Workbook

Sheet Control
A1: Customer discount rates | B1: % | L1: Cumulative DF assuming 15 years
A2: High income | B2: =Scenarios!G4 -> 0.06646118392 | D2: Recoonections as share of gross connections | E2: 0.25 | H2: Asset lives | I2: Years | K2: High income | L2: =((1+$B2)^-1+(1+$B2)^-2+(1+$B2)^-3+(1+$B2)^-4+(1+$B2)^-5+(1+$B2)^-6+(1+$B2)^-7+(1+$B2)^-8+(1+$B2)^-9+(1+$B2)^-10+(1+$B2)^-11+(1+$B2)^-12+(1+$B2)^-13+(1+$B2)^-14+(1+$B2)^-15) -> 9.31503711
A3: Medium income | B3: =Scenarios!G5 -> 0.09704565749 | H3: Cooking | I3: 15 | K3: Medium income | L3: =((1+$B3)^-1+(1+$B3)^-2+(1+$B3)^-3+(1+$B3)^-4+(1+$B3)^-5+(1+$B3)^-6+(1+$B3)^-7+(1+$B3)^-8+(1+$B3)^-9+(1+$B3)^-10+(1+$B3)^-11+(1+$B3)^-12+(1+$B3)^-13+(1+$B3)^-14+(1+$B3)^-15) -> 7.736083147
A4: Low income | B4: =Scenarios!G6 -> 0.1735068414 | D4: Appliance capital costs | H4: Hot water | I4: 12 | K4: Low income | L4: 5.240585136
A5: Commercial | B5: =Scenarios!G7 -> 0.0472 | D5: Cooking | E5: $ real 2021 | F5: Subsidy | H5: Room heating | I5: 15 | K5: Commercial | L5: 10.5789295
D6: Electric cooktop (induction) | E6: 2287 | F6: =E6*$F$25 -> 2287 | H6: Ducted heating | I6: 15
A7: Appliance costs | D7: Gas stove | E7: 1386 | F7: 1386 | H7: Service charge | I7: 15
A8: Cooking | B8: real % change (p.a.) | F8: 0
A9: Electric cooktop (induction) | B9: =Scenarios!K11 -> -0.01 | D9: Hot water | F9: 0 | H9: Decision point | I9: 15
A10: Gas stove | B10: =Scenarios!K12 -> 0 | D10: Heat pump hot water | E10: 4622 | F10: 4622
D11: Gas instant hot water | E11: 2230 | F11: 2230 | H11: Elasticities | I11: Residential | J11: Commercial
A12: Hot water | B12: =Scenarios!K14 -> 0 | F12: 0 | H12: Weather | I12: 0.3555523 | J12: 0.1551871
A13: Heat pump hot water | B13: =Scenarios!K15 -> -0.01 | D13: Room heating | F13: 0 | H13: Gas price | I13: -0.1 | J13: -0.35
A14: Gas instant hot water | B14: =Scenarios!K16 -> 0 | D14: RCAC split system | E14: 3324 | F14: 3324 | H14: Elecricity price | I14: 0.08 | J14: 0.3
D15: Gas wall furnace | E15: 2322 | F15: 2322
A16: Room heating | B16: =Scenarios!K18 -> 0 | F16: 0 | L16: Residential | M16: Commercial
A17: RCAC split system | B17: =Scenarios!K19 -> -0.01 | D17: Ducted heating | F17: 0 | H17: Distribution share of retail fixed charge | I17: % | K17: Non-Appliance Cost Related Growth | L17: 0.02 | M17: 0.02
A18: Gas wall furnace | B18: =Scenarios!K20 -> 0 | D18: Ducted RCAC | E18: 6389 | F18: 6389 | H18: Residential | I18: 0.3 | K18: Non-Appliance Cost Related Disconnections | L18: 0.005 | M18: 0.005
D19: Ducted gas heating | E19: 4578 | F19: 4578 | H19: Commercial | I19: 0.29
A20: Ducted heating | B20: =Scenarios!K22 -> 0 | F20: 0
A21: Ducted RCAC | B21: =Scenarios!K23 -> -0.01 | D21: Gas disconnection charge | E21: 100 | F21: 100
A22: Ducted gas heating | B22: =Scenarios!K24 -> 0 | D22: Electricity connection upgrade | E22: 2225 | F22: 2225
A24: Gas disconnection charge | B24: =Scenarios!K26 -> 0 | D24: Subsidy end date | F24: 2030
A25: Electricity connection upgrade | B25: =Scenarios!K27 -> 0 | D25: Subsidy? | F25: 1
A27: Appliance consumption | D27: Appliance efficiency | I27: Maintenance costs (p/a) | K27: Maintenance costs
A28: Cooking | B28: Average consumption | D28: Cooking | E28: % change (p.a.) | H28: Cooking | I28: $ | K28: Cooking | L28: real % change (p.a.)
A29: Electric cooktop (induction) kWh | B29: 133.3 | D29: Electric cooktop (induction) | E29: =Scenarios!G11 -> 0.006 | H29: Electric cooktop (induction) | I29: 0 | K29: Electric cooktop (induction) | L29: =Scenarios!G29 -> -0.006
A30: Gas stove (GJ) | B30: 1.2 | D30: Gas stove | E30: =Scenarios!G12 -> 0 | H30: Gas stove | I30: 2.160528801 | K30: Gas stove | L30: =Scenarios!G30 -> 0
A32: Hot water | D32: Hot water | H32: Hot water | K32: Hot water
A33: Heat pump hot water (kWh) | B33: 2200 | D33: Heat pump hot water | E33: =Scenarios!G15 -> 0.0064 | H33: Heat pump hot water | I33: 43.21057602 | K33: Heat pump hot water | L33: =Scenarios!G33 -> -0.0064
A34: Gas instant hot water (GJ) | B34: 20.6 | D34: Gas instant hot water | E34: =Scenarios!G16 -> 0 | H34: Gas instant hot water | I34: 32.40793201 | K34: Gas instant hot water | L34: =Scenarios!G34 -> 0
A36: Room heating | D36: Room heating | H36: Room heating | K36: Room heating
A37: RCAC split system (kWh) | B37: 1170 | D37: RCAC split system | E37: =Scenarios!G19 -> 0 | H37: RCAC split system | I37: 29.16713881 | K37: RCAC split system | L37: =Scenarios!G37 -> 0
A38: Gas wall furnace (GJ) | B38: 19.37 | D38: Gas wall furnace | E38: =Scenarios!G20 -> 0 | H38: Gas wall furnace | I38: 25.92634561 | K38: Gas wall furnace | L38: =Scenarios!G38 -> 0
A40: Ducted heating | D40: Ducted heating | H40: Ducted heating | K40: Ducted heating
A41: Ducted RCAC (kWh) | B41: 4735.71 | D41: Ducted RCAC | E41: =Scenarios!G23 -> 0.0029 | H41: Ducted RCAC | I41: 29.16713881 | K41: Ducted RCAC | L41: =Scenarios!G41 -> -0.0029
A42: Ducted gas heating (GJ) | B42: 68.59 | D42: Ducted gas heating | E42: =Scenarios!G24 -> 0 | H42: Ducted gas heating | I42: 29.16713881 | K42: Ducted gas heating | L42: =Scenarios!G42 -> 0
A45: LGA | B45: Income class | C45: shutdown order | D45: Shutdown? | E45: Connection moratorium
A46: Ararat (RC) | B46: L | C46: 8 | D46: yes | E46: no
A47: Ballarat (C) | B47: L | C47: 30 | D47: no | E47: no
A48: Brimbank (C) | B48: L | C48: 23 | D48: yes | E48: no
A49: Central Goldfields (S) | B49: L | C49: 11 | D49: yes | E49: no
A50: Colac-Otway (S) | B50: L | C50: 12 | D50: yes | E50: no
A51: Corangamite (S) | B51: L | C51: 4 | D51: yes | E51: no
A52: Darebin (C) | B52: L | C52: 13 | D52: yes | E52: no
A53: Glenelg (S) | B53: L | C53: 2 | D53: yes | E53: no
A54: Golden Plains (S) | B54: L | C54: 29 | D54: yes | E54: no
A55: Greater Bendigo (C) | B55: L | C55: 31 | D55: no | E55: no
A56: Greater Geelong (C) | B56: L | C56: 15 | D56: no | E56: no
A57: Hepburn (S) | B57: L | C57: 21 | D57: yes | E57: no
A58: Hobsons Bay (C) | B58: M | C58: 18 | D58: no | E58: no
A59: Horsham (RC) | B59: L | C59: 28 | D59: yes | E59: no
A60: Hume (C) | B60: L | C60: 19 | D60: no | E60: no
A61: Macedon Ranges (S) | B61: M | C61: 25 | D61: no | E61: no
A62: Maribyrnong (C) | B62: M | C62: 17 | D62: no | E62: no
A63: Melbourne (C) | B63: L | C63: 24 | D63: no | E63: no
A64: Melton (S) | B64: M | C64: 26 | D64: yes | E64: no
A65: Moonee Valley (C) | B65: M | C65: 14 | D65: yes | E65: no
A66: Moorabool (S) | B66: L | C66: 22 | D66: yes | E66: no
A67: Moreland (C) | B67: M | C67: 16 | D67: yes | E67: no
A68: Mount Alexander (S) | B68: L | C68: 5 | D68: yes | E68: no
A69: Moyne (S) | B69: L | C69: 6 | D69: yes | E69: no
A70: Northern Grampians (S) | B70: L | C70: 3 | D70: yes | E70: no
A71: Pyrenees (S) | B71: L | C71: 7 | D71: yes | E71: no
A72: Queenscliffe (B) | B72: L | C72: 10 | D72: yes | E72: no
A73: Southern Grampians (S) | B73: L | C73: 9 | D73: yes | E73: no
A74: Surf Coast (S) | B74: M | C74: 20 | D74: yes | E74: no
A75: Warrnambool (C) | B75: L | C75: 1 | D75: yes | E75: no
A76: Wyndham (C) | B76: L | C76: 27 | D76: no | E76: no
A77: Whittlesea (C) | B77: M | C77: 1 | D77: yes | E77: no
A80: Appliance costs
A81: Cooking | B81: real % change (p.a.) | C81: 2022 | D81: 2023 | E81: 2024 | F81: 2025 | G81: 2026 | H81: 2027 | I81: 2028 | J81: 2029 | K81: 2030 | L81: 2031 | M81: 2032 | N81: 2033 | O81: 2034 | P81: 2035 | Q81: 2036 | R81: 2037 | S81: 2038 | T81: 2039 | U81: 2040 | V81: 2041 | W81: 2042 | X81: 2043 | Y81: 2044 | Z81: 2045 | AA81: 2046 | AB81: 2047 | AC81: 2048 | AD81: 2049 | AE81: 2050 | AF81: 2051 | AG81: 2052 | AH81: 2053 | AI81: 2054 | AJ81: 2055 | AK81: 2056 | AL81: 2057 | AM81: 2058 | AN81: 2059 | AO81: 2060 | AP81: 2061 | AQ81: 2062 | AR81: 2063 | AS81: 2064 | AT81: 2065 | AU81: 2066 | AV81: 2067 | AW81: 2068 | AX81: 2069 | AY81: 2070 | AZ81: 2071 | BA81: 2072 | BB81: 2073 | BC81: 2074 | BD81: 2075 | BE81: 2076 | BF81: 2077 | BG81: 2078 | BH81: 2079 | BI81: 2080 | BJ81: 2081 | BK81: 2082 | BL81: 2083 | BM81: 2084 | BN81: 2085 | BO81: 2086 | BP81: 2087 | BQ81: 2088 | BR81: 2089 | BS81: 2090 | BT81: 2091 | BU81: 2092 | BV81: 2093 | BW81: 2094 | BX81: 2095 | BY81: 2096 | BZ81: 2097 | CA81: 2098 | CB81: 2099 | CC81: 2100
A82: Electric cooktop (induction) | B82: =$B9 -> -0.01 | C82: =B82 -> -0.01 | D82: =C82 -> -0.01 | E82: -0.01 | F82: -0.01 | G82: -0.01 | H82: -0.01 | I82: -0.01 | J82: -0.01 | K82: -0.01 | L82: -0.01 | M82: -0.01 | N82: -0.01 | O82: -0.01 | P82: -0.01 | Q82: -0.01 | R82: -0.01 | S82: -0.01 | T82: -0.01 | U82: -0.01 | V82: -0.01 | W82: -0.01 | X82: -0.01 | Y82: -0.01 | Z82: -0.01 | AA82: -0.01 | AB82: -0.01 | AC82: -0.01 | AD82: -0.01
A83: Gas stove
A85: Hot water
A86: Heat pump hot water | B86: =$B13 -> -0.01 | C86: =B86 -> -0.01 | D86: =C86 -> -0.01 | E86: -0.01 | F86: -0.01 | G86: -0.01 | H86: -0.01 | I86: -0.01 | J86: -0.01 | K86: -0.01 | L86: -0.01 | M86: -0.01 | N86: -0.01 | O86: -0.01 | P86: -0.01 | Q86: -0.01 | R86: -0.01 | S86: -0.01 | T86: -0.01 | U86: -0.01 | V86: -0.01 | W86: -0.01 | X86: -0.01 | Y86: -0.01 | Z86: -0.01 | AA86: -0.01 | AB86: -0.01 | AC86: -0.01 | AD86: -0.01
A87: Gas instant hot water
A89: Room heating
A90: RCAC split system | B90: -0.01 | C90: -0.01 | D90: =C90 -> -0.01 | E90: -0.01 | F90: -0.01 | G90: -0.01 | H90: -0.01 | I90: -0.01 | J90: -0.01 | K90: -0.01 | L90: -0.01 | M90: -0.01 | N90: -0.01 | O90: -0.01 | P90: -0.01 | Q90: -0.01 | R90: -0.01 | S90: -0.01 | T90: -0.01 | U90: -0.01 | V90: -0.01 | W90: -0.01 | X90: -0.01 | Y90: -0.01 | Z90: -0.01 | AA90: -0.01 | AB90: -0.01 | AC90: -0.01 | AD90: -0.01
A91: Gas wall furnace
A93: Ducted heating
A94: Ducted RCAC | B94: -0.01 | C94: -0.01 | D94: =C94 -> -0.01 | E94: -0.01 | F94: -0.01 | G94: -0.01 | H94: -0.01 | I94: -0.01 | J94: -0.01 | K94: -0.01 | L94: -0.01 | M94: -0.01 | N94: -0.01 | O94: -0.01 | P94: -0.01 | Q94: -0.01 | R94: -0.01 | S94: -0.01 | T94: -0.01 | U94: -0.01 | V94: -0.01 | W94: -0.01 | X94: -0.01 | Y94: -0.01 | Z94: -0.01 | AA94: -0.01 | AB94: -0.01 | AC94: -0.01 | AD94: -0.01
A95: Ducted gas heating
A97: Gas disconnection charge
A98: Electricity connection upgrade

Sheet Summary
A2: Customers | B2: 2020 | C2: =B2+1 -> 2021 | D2: =C2+1 -> 2022 | E2: 2023 | F2: 2024 | G2: 2025 | H2: 2026 | I2: 2027 | J2: 2028 | K2: 2029 | L2: 2030 | M2: 2031 | N2: 2032 | O2: 2033 | P2: 2034 | Q2: 2035 | R2: 2036 | S2: 2037 | T2: 2038 | U2: 2039 | V2: 2040 | W2: 2041 | X2: 2042 | Y2: 2043 | Z2: 2044 | AA2: 2045 | AB2: 2046 | AC2: 2047 | AD2: 2048 | AE2: 2049 | AF2: 2050 | AG2: 2051 | AH2: 2052 | AI2: 2053 | AJ2: 2054 | AK2: 2055 | AL2: 2056 | AM2: 2057 | AN2: 2058 | AO2: 2059 | AP2: 2060 | AQ2: 2061 | AR2: 2062 | AS2: 2063 | AT2: 2064 | AU2: 2065 | AV2: 2066 | AW2: 2067 | AX2: 2068 | AY2: 2069 | AZ2: 2070 | BA2: 2071 | BB2: 2072 | BC2: 2073 | BD2: 2074 | BE2: 2075 | BF2: 2076 | BG2: 2077 | BH2: 2078 | BI2: 2079 | BJ2: 2080 | BK2: 2081 | BL2: 2082 | BM2: 2083 | BN2: 2084 | BO2: 2085 | BP2: =BO2+1 -> 2086 | BQ2: 2087 | BR2: 2088 | BS2: 2089 | BT2: 2090 | BU2: 2091 | BV2: 2092 | BW2: 2093 | BX2: 2094 | BY2: 2095 | BZ2: 2096 | CA2: 2097 | CB2: 2098 | CC2: 2099 | CD2: 2100
A3: Residential | B3: =Forecasts!J69 -> 710593 | C3: =Forecasts!K69 -> 721243 | D3: =Forecasts!L69 -> 732056 | E3: =Forecasts!M69 -> 743032 | F3: =Forecasts!N69 -> 754159 | G3: =Forecasts!O69 -> 765410 | H3: =Forecasts!P69 -> 776359 | I3: =Forecasts!Q69 -> 785004 | J3: =Forecasts!R69 -> 794722 | K3: =Forecasts!S69 -> 801971 | L3: =Forecasts!T69 -> 811170 | M3: =Forecasts!U69 -> 822886 | N3: =Forecasts!V69 -> 834590 | O3: =Forecasts!W69 -> 844142 | P3: =Forecasts!X69 -> 852859 | Q3: =Forecasts!Y69 -> 860112 | R3: =Forecasts!Z69 -> 866953 | S3: =Forecasts!AA69 -> 872854 | T3: =Forecasts!AB69 -> 877694 | U3: =Forecasts!AC69 -> 880806 | V3: =Forecasts!AD69 -> 842593.27 | W3: =Forecasts!AE69 -> 803283.28 | X3: =Forecasts!AF69 -> 764298.75 | Y3: =Forecasts!AG69 -> 725577.62 | Z3: =Forecasts!AH69 -> 687171.85 | AA3: =Forecasts!AI69 -> 648980.92 | AB3: =Forecasts!AJ69 -> 611388.1 | AC3: =Forecasts!AK69 -> 574202.68 | AD3: =Forecasts!AL69 -> 537432 | AE3: =Forecasts!AM69 -> 500816 | AF3: =Forecasts!AN69 -> 495924 | AG3: =Forecasts!AO69 -> 492053 | AH3: =Forecasts!AP69 -> 488545 | AI3: =Forecasts!AQ69 -> 485313 | AJ3: =Forecasts!AR69 -> 482370 | AK3: =Forecasts!AS69 -> 479708 | AL3: =Forecasts!AT69 -> 477342 | AM3: =Forecasts!AU69 -> 479241 | AN3: =Forecasts!AV69 -> 481514 | AO3: =Forecasts!AW69 -> 483860 | AP3: =Forecasts!AX69 -> 486298 | AQ3: =Forecasts!AY69 -> 488751 | AR3: =Forecasts!AZ69 -> 491238 | AS3: =Forecasts!BA69 -> 493751 | AT3: =Forecasts!BB69 -> 496317 | AU3: =Forecasts!BC69 -> 498859 | AV3: =Forecasts!BD69 -> 501401 | AW3: =Forecasts!BE69 -> 503937 | AX3: =Forecasts!BF69 -> 506501 | AY3: =Forecasts!BG69 -> 509020 | AZ3: =Forecasts!BH69 -> 511521 | BA3: =Forecasts!BI69 -> 514002 | BB3: =Forecasts!BJ69 -> 516496 | BC3: =Forecasts!BK69 -> 518926 | BD3: =Forecasts!BL69 -> 521343 | BE3: =Forecasts!BM69 -> 523837 | BF3: =Forecasts!BN69 -> 526452 | BG3: =Forecasts!BO69 -> 529096 | BH3: =Forecasts!BP69 -> 531801 | BI3: =Forecasts!BQ69 -> 534553 | BJ3: =Forecasts!BR69 -> 537460 | BK3: =Forecasts!BS69 -> 540444 | BL3: =Forecasts!BT69 -> 543545 | BM3: =Forecasts!BU69 -> 546775 | BN3: =Forecasts!BV69 -> 550170 | BO3: =Forecasts!BW69 -> 553644 | BP3: =Forecasts!BX69 -> 557232 | BQ3: =Forecasts!BY69 -> 560928 | BR3: =Forecasts!BZ69 -> 564767 | BS3: =Forecasts!CA69 -> 568674 | BT3: =Forecasts!CB69 -> 572675 | BU3: =Forecasts!CC69 -> 576775 | BV3: =Forecasts!CD69 -> 580985 | BW3: =Forecasts!CE69 -> 585222 | BX3: =Forecasts!CF69 -> 589518 | BY3: =Forecasts!CG69 -> 593878 | BZ3: =Forecasts!CH69 -> 598337 | CA3: =Forecasts!CI69 -> 602822 | CB3: =Forecasts!CJ69 -> 607372 | CC3: =Forecasts!CK69 -> 611985 | CD3: =Forecasts!CL69 -> 616666
A4: Gross new connections | B4: =CustomersRes!J69 -> 24664 | C4: =CustomersRes!K69 -> 14194 | D4: =CustomersRes!L69 -> 14408 | E4: =CustomersRes!M69 -> 14626 | F4: =CustomersRes!N69 -> 14845 | G4: =CustomersRes!O69 -> 15060 | H4: =CustomersRes!P69 -> 14940 | I4: =CustomersRes!Q69 -> 12917 | J4: =CustomersRes!R69 -> 13962 | K4: =CustomersRes!S69 -> 11811 | L4: =CustomersRes!T69 -> 13602 | M4: =CustomersRes!U69 -> 15937 | N4: =CustomersRes!V69 -> 16017 | O4: =CustomersRes!W69 -> 14145 | P4: =CustomersRes!X69 -> 13458 | Q4: =CustomersRes!Y69 -> 12283 | R4: =CustomersRes!Z69 -> 12034 | S4: =CustomersRes!AA69 -> 11459 | T4: =CustomersRes!AB69 -> 10793 | U4: =CustomersRes!AC69 -> 9577 | V4: =CustomersRes!AD69 -> 3550.6 | W4: =CustomersRes!AE69 -> 2110 | X4: =CustomersRes!AF69 -> 1554.9 | Y4: =CustomersRes!AG69 -> 1076.6 | Z4: =CustomersRes!AH69 -> 732 | AA4: =CustomersRes!AI69 -> 464.4 | AB4: =CustomersRes!AJ69 -> 385.2 | AC4: =CustomersRes!AK69 -> 314.6 | AD4: =CustomersRes!AL69 -> 294.9 | AE4: =CustomersRes!AM69 -> 260 | AF4: =CustomersRes!AN69 -> 336 | AG4: =CustomersRes!AO69 -> 689 | AH4: =CustomersRes!AP69 -> 850 | AI4: =CustomersRes!AQ69 -> 981 | AJ4: =CustomersRes!AR69 -> 1134 | AK4: =CustomersRes!AS69 -> 1295 | AL4: =CustomersRes!AT69 -> 1478 | AM4: =CustomersRes!AU69 -> 5005 | AN4: =CustomersRes!AV69 -> 5349 | AO4: =CustomersRes!AW69 -> 5427 | AP4: =CustomersRes!AX69 -> 5525 | AQ4: =CustomersRes!AY69 -> 5555 | AR4: =CustomersRes!AZ69 -> 5600 | AS4: =CustomersRes!BA69 -> 5639 | AT4: =CustomersRes!BB69 -> 5700 | AU4: =CustomersRes!BC69 -> 5697 | AV4: =CustomersRes!BD69 -> 5713 | AW4: =CustomersRes!BE69 -> 5724 | AX4: =CustomersRes!BF69 -> 5766 | AY4: =CustomersRes!BG69 -> 5742 | AZ4: =CustomersRes!BH69 -> 5740 | BA4: =CustomersRes!BI69 -> 5737 | BB4: =CustomersRes!BJ69 -> 5765 | BC4: =CustomersRes!BK69 -> 5723 | BD4: =CustomersRes!BL69 -> 5726 | BE4: =CustomersRes!BM69 -> 5810 | BF4: =CustomersRes!BN69 -> 5933 | BG4: =CustomersRes!BO69 -> 5976 | BH4: =CustomersRes!BP69 -> 6047 | BI4: =CustomersRes!BQ69 -> 6108 | BJ4: =CustomersRes!BR69 -> 6266 | BK4: =CustomersRes!BS69 -> 6351 | BL4: =CustomersRes!BT69 -> 6477 | BM4: =CustomersRes!BU69 -> 6613 | BN4: =CustomersRes!BV69 -> 6782 | BO4: =CustomersRes!BW69 -> 6877 | BP4: =CustomersRes!BX69 -> 7001 | BQ4: =CustomersRes!BY69 -> 7122 | BR4: =CustomersRes!BZ69 -> 7275 | BS4: =CustomersRes!CA69 -> 7362 | BT4: =CustomersRes!CB69 -> 7474 | BU4: =CustomersRes!CC69 -> 7588 | BV4: =CustomersRes!CD69 -> 7714 | BW4: =CustomersRes!CE69 -> 7766 | BX4: =CustomersRes!CF69 -> 7848 | BY4: =CustomersRes!CG69 -> 7933 | BZ4: =CustomersRes!CH69 -> 8052 | CA4: =CustomersRes!CI69 -> 8105 | CB4: =CustomersRes!CJ69 -> 8191 | CC4: =CustomersRes!CK69 -> 8279 | CD4: =CustomersRes!CL69 -> 8371
A5: Disconnections | B5: =CustomersRes!J104 -> 7167 | C5: =-((C3-B3)-C4) -> 3544 | D5: =-((D3-C3)-D4) -> 3595 | E5: 3650 | F5: 3718 | G5: 3809 | H5: 3991 | I5: 4272 | J5: 4244 | K5: 4562 | L5: 4403 | M5: 4221 | N5: 4313 | O5: 4593 | P5: 4741 | Q5: 5030 | R5: 5193 | S5: 5558 | T5: 5953 | U5: 6465 | V5: 41763.33 | W5: 41419.99 | X5: 40539.43 | Y5: 39797.73 | Z5: 39137.77 | AA5: 38655.33 | AB5: 37978.02 | AC5: 37500.02 | AD5: 37065.58 | AE5: 36876 | AF5: 5228 | AG5: 4560 | AH5: 4358 | AI5: 4213 | AJ5: 4077 | AK5: 3957 | AL5: 3844 | AM5: 3106 | AN5: 3076 | AO5: 3081 | AP5: 3087 | AQ5: 3102 | AR5: 3113 | AS5: 3126 | AT5: 3134 | AU5: 3155 | AV5: 3171 | AW5: 3188 | AX5: 3202 | AY5: 3223 | AZ5: 3239 | BA5: 3256 | BB5: 3271 | BC5: 3293 | BD5: 3309 | BE5: 3316 | BF5: 3318 | BG5: 3332 | BH5: 3342 | BI5: 3356 | BJ5: 3359 | BK5: 3367 | BL5: 3376 | BM5: 3383 | BN5: 3387 | BO5: 3403 | BP5: =-((BP3-BO3)-BP4) -> 3413 | BQ5: 3426 | BR5: 3436 | BS5: 3455 | BT5: 3473 | BU5: 3488 | BV5: 3504 | BW5: 3529 | BX5: 3552 | BY5: 3573 | BZ5: 3593 | CA5: 3620 | CB5: 3641 | CC5: 3666 | CD5: 3690
A6: Commercial | B6: =Forecasts!J174 -> 15049 | C6: =Forecasts!K174 -> 15180.755 | D6: =Forecasts!L174 -> 15392.85123 | E6: =Forecasts!M174 -> 15489.88697 | F6: =Forecasts!N174 -> 14964.43753 | G6: =Forecasts!O174 -> 13993.61535 | H6: =Forecasts!P174 -> 13037.64727 | I6: =Forecasts!Q174 -> 12149.45903 | J6: =Forecasts!R174 -> 11322.71174 | K6: =Forecasts!S174 -> 10558.09818 | L6: =Forecasts!T174 -> 9841.307689 | M6: =Forecasts!U174 -> 9182.10115 | N6: =Forecasts!V174 -> 8567.190644 | O6: =Forecasts!W174 -> 7998.354691 | P6: =Forecasts!X174 -> 7468.362918 | Q6: =Forecasts!Y174 -> 6974.021103 | R6: =Forecasts!Z174 -> 6515.150998 | S6: =Forecasts!AA174 -> 6089.575243 | T6: =Forecasts!AB174 -> 5693.127366 | U6: =Forecasts!AC174 -> 5326.66173 | V6: =Forecasts!AD174 -> 5002.220684 | W6: =Forecasts!AE174 -> 4716.439376 | X6: =Forecasts!AF174 -> 4466.008493 | Y6: =Forecasts!AG174 -> 4245.669497 | Z6: =Forecasts!AH174 -> 4053.21249 | AA6: =Forecasts!AI174 -> 3881.668723 | AB6: =Forecasts!AJ174 -> 3735.519373 | AC6: =Forecasts!AK174 -> 3611.440181 | AD6: =Forecasts!AL174 -> 3505.543012 | AE6: =Forecasts!AM174 -> 3419.575244 | AF6: =Forecasts!AN174 -> 3340.037314 | AG6: =Forecasts!AO174 -> 3265.897075 | AH6: =Forecasts!AP174 -> 3196.127536 | AI6: =Forecasts!AQ174 -> 3131.706846 | AJ6: =Forecasts!AR174 -> 3072.608258 | AK6: =Forecasts!AS174 -> 3018.805164 | AL6: =Forecasts!AT174 -> 2968.271085 | AM6: =Forecasts!AU174 -> 2920.989677 | AN6: =Forecasts!AV174 -> 2876.944675 | AO6: =Forecasts!AW174 -> 2836.119899 | AP6: =Forecasts!AX174 -> 2798.499246 | AQ6: =Forecasts!AY174 -> 2763.066697 | AR6: =Forecasts!AZ174 -> 2729.81131 | AS6: =Forecasts!BA174 -> 2698.722201 | AT6: =Forecasts!BB174 -> 2667.788536 | AU6: =Forecasts!BC174 -> 2641.009541 | AV6: =Forecasts!BD174 -> 2616.36444 | AW6: =Forecasts!BE174 -> 2592.842565 | AX6: =Forecasts!BF174 -> 2572.438299 | AY6: =Forecasts!BG174 -> 2553.136054 | AZ6: =Forecasts!BH174 -> 2534.930321 | BA6: =Forecasts!BI174 -> 2519.815616 | BB6: =Forecasts!BJ174 -> 2506.776485 | BC6: =Forecasts!BK174 -> 2493.802549 | BD6: =Forecasts!BL174 -> 2480.893484 | BE6: =Forecasts!BM174 -> 2470.048963 | BF6: =Forecasts!BN174 -> 2460.258665 | BG6: =Forecasts!BO174 -> 2450.517319 | BH6: =Forecasts!BP174 -> 2440.824679 | BI6: =Forecasts!BQ174 -> 2432.180503 | BJ6: =Forecasts!BR174 -> 2423.579547 | BK6: =Forecasts!BS174 -> 2416.021596 | BL6: =Forecasts!BT174 -> 2408.501435 | BM6: =Forecasts!BU174 -> 2402.018875 | BN6: =Forecasts!BV174 -> 2396.568727 | BO6: =Forecasts!BW174 -> 2392.145831 | BP6: =Forecasts!BX174 -> 2387.745049 | BQ6: =Forecasts!BY174 -> 2383.36627 | BR6: =Forecasts!BZ174 -> 2380.009386 | BS6: =Forecasts!CA174 -> 2376.669286 | BT6: =Forecasts!CB174 -> 2373.345886 | BU6: =Forecasts!CC174 -> 2370.039104 | BV6: =Forecasts!CD174 -> 2366.748855 | BW6: =Forecasts!CE174 -> 2363.475058 | BX6: =Forecasts!CF174 -> 2361.217629 | BY6: =Forecasts!CG174 -> 2358.971488 | BZ6: =Forecasts!CH174 -> 2356.736578 | CA6: =Forecasts!CI174 -> 2354.512842 | CB6: =Forecasts!CJ174 -> 2353.300224 | CC6: =Forecasts!CK174 -> 2352.09367 | CD6: =Forecasts!CL174 -> 2350.893149
A7: Gross new connections | B7: =CustomersCOM!J69 -> 495 | C7: =CustomersCOM!K69 -> 221 | D7: =CustomersCOM!L69 -> 288 | E7: =CustomersCOM!M69 -> 190 | F7: =CustomersCOM!N69 -> 0 | G7: =CustomersCOM!O69 -> 0 | H7: =CustomersCOM!P69 -> 0 | I7: =CustomersCOM!Q69 -> 0 | J7: =CustomersCOM!R69 -> 0 | K7: =CustomersCOM!S69 -> 0 | L7: =CustomersCOM!T69 -> 0 | M7: =CustomersCOM!U69 -> 0 | N7: =CustomersCOM!V69 -> 0 | O7: =CustomersCOM!W69 -> 0 | P7: =CustomersCOM!X69 -> 0 | Q7: =CustomersCOM!Y69 -> 0 | R7: =CustomersCOM!Z69 -> 0 | S7: =CustomersCOM!AA69 -> 0 | T7: =CustomersCOM!AB69 -> 0 | U7: =CustomersCOM!AC69 -> 0 | V7: =CustomersCOM!AD69 -> 0 | W7: =CustomersCOM!AE69 -> 0 | X7: =CustomersCOM!AF69 -> 0 | Y7: =CustomersCOM!AG69 -> 0 | Z7: =CustomersCOM!AH69 -> 0 | AA7: =CustomersCOM!AI69 -> 0 | AB7: =CustomersCOM!AJ69 -> 0 | AC7: =CustomersCOM!AK69 -> 0 | AD7: =CustomersCOM!AL69 -> 0 | AE7: =CustomersCOM!AM69 -> 0 | AF7: =CustomersCOM!AN69 -> 0 | AG7: =CustomersCOM!AO69 -> 0 | AH7: =CustomersCOM!AP69 -> 0 | AI7: =CustomersCOM!AQ69 -> 0 | AJ7: =CustomersCOM!AR69 -> 0 | AK7: =CustomersCOM!AS69 -> 0 | AL7: =CustomersCOM!AT69 -> 0 | AM7: =CustomersCOM!AU69 -> 0 | AN7: =CustomersCOM!AV69 -> 0 | AO7: =CustomersCOM!AW69 -> 0 | AP7: =CustomersCOM!AX69 -> 0 | AQ7: =CustomersCOM!AY69 -> 0 | AR7: =CustomersCOM!AZ69 -> 0 | AS7: =CustomersCOM!BA69 -> 0 | AT7: =CustomersCOM!BB69 -> 0 | AU7: =CustomersCOM!BC69 -> 0 | AV7: =CustomersCOM!BD69 -> 0 | AW7: =CustomersCOM!BE69 -> 0 | AX7: =CustomersCOM!BF69 -> 0 | AY7: =CustomersCOM!BG69 -> 0 | AZ7: =CustomersCOM!BH69 -> 0 | BA7: =CustomersCOM!BI69 -> 0 | BB7: =CustomersCOM!BJ69 -> 0 | BC7: =CustomersCOM!BK69 -> 0 | BD7: =CustomersCOM!BL69 -> 0 | BE7: =CustomersCOM!BM69 -> 0 | BF7: =CustomersCOM!BN69 -> 0 | BG7: =CustomersCOM!BO69 -> 0 | BH7: =CustomersCOM!BP69 -> 0 | BI7: =CustomersCOM!BQ69 -> 0 | BJ7: =CustomersCOM!BR69 -> 0 | BK7: =CustomersCOM!BS69 -> 0 | BL7: =CustomersCOM!BT69 -> 0 | BM7: =CustomersCOM!BU69 -> 0 | BN7: =CustomersCOM!BV69 -> 0 | BO7: =CustomersCOM!BW69 -> 0 | BP7: =CustomersCOM!BX69 -> 0 | BQ7: =CustomersCOM!BY69 -> 0 | BR7: =CustomersCOM!BZ69 -> 0 | BS7: =CustomersCOM!CA69 -> 0 | BT7: =CustomersCOM!CB69 -> 0 | BU7: =CustomersCOM!CC69 -> 0 | BV7: =CustomersCOM!CD69 -> 0 | BW7: =CustomersCOM!CE69 -> 0 | BX7: =CustomersCOM!CF69 -> 0 | BY7: =CustomersCOM!CG69 -> 0 | BZ7: =CustomersCOM!CH69 -> 0 | CA7: =CustomersCOM!CI69 -> 0 | CB7: =CustomersCOM!CJ69 -> 0 | CC7: =CustomersCOM!CK69 -> 0 | CD7: =CustomersCOM!CL69 -> 0
A8: Disconnections | B8: =CustomersCOM!J104 -> 565 | C8: =CustomersCOM!K104 -> 89.245 | D8: =CustomersCOM!L104 -> 75.903775 | E8: =CustomersCOM!M104 -> 92.96425612 | F8: =CustomersCOM!N104 -> 525.4494348 | G8: =CustomersCOM!O104 -> 970.8221877 | H8: =CustomersCOM!P104 -> 955.9680767 | I8: =CustomersCOM!Q104 -> 888.1882363 | J8: =CustomersCOM!R104 -> 826.7472952 | K8: =CustomersCOM!S104 -> 764.6135587 | L8: =CustomersCOM!T104 -> 716.7904909 | M8: =CustomersCOM!U104 -> 659.2065384 | N8: =CustomersCOM!V104 -> 614.9105058 | O8: =CustomersCOM!W104 -> 568.8359532 | P8: =CustomersCOM!X104 -> 529.9917735 | Q8: =CustomersCOM!Y104 -> 494.3418146 | R8: =CustomersCOM!Z104 -> 458.8701055 | S8: =CustomersCOM!AA104 -> 425.575755 | T8: =CustomersCOM!AB104 -> 396.4478762 | U8: =CustomersCOM!AC104 -> 366.4656368 | V8: =CustomersCOM!AD104 -> 324.4410458 | W8: =CustomersCOM!AE104 -> 285.7813081 | X8: =CustomersCOM!AF104 -> 250.4308827 | Y8: =CustomersCOM!AG104 -> 220.3389963 | Z8: =CustomersCOM!AH104 -> 192.4570062 | AA8: =CustomersCOM!AI104 -> 171.543767 | AB8: =CustomersCOM!AJ104 -> 146.1493509 | AC8: =CustomersCOM!AK104 -> 124.079192 | AD8: =CustomersCOM!AL104 -> 105.8971687 | AE8: =CustomersCOM!AM104 -> 85.96776814 | AF8: =CustomersCOM!AN104 -> 79.5379293 | AG8: =CustomersCOM!AO104 -> 74.14023965 | AH8: =CustomersCOM!AP104 -> 69.76953845 | AI8: =CustomersCOM!AQ104 -> 64.42069076 | AJ8: =CustomersCOM!AR104 -> 59.09858731 | AK8: =CustomersCOM!AS104 -> 53.80309437 | AL8: =CustomersCOM!AT104 -> 50.5340789 | AM8: =CustomersCOM!AU104 -> 47.28140851 | AN8: =CustomersCOM!AV104 -> 44.04500146 | AO8: =CustomersCOM!AW104 -> 40.82477646 | AP8: =CustomersCOM!AX104 -> 37.62065257 | AQ8: =CustomersCOM!AY104 -> 35.43254931 | AR8: =CustomersCOM!AZ104 -> 33.25538656 | AS8: =CustomersCOM!BA104 -> 31.08910963 | AT8: =CustomersCOM!BB104 -> 30.93366408 | AU8: =CustomersCOM!BC104 -> 26.77899576 | AV8: =CustomersCOM!BD104 -> 24.64510078 | AW8: =CustomersCOM!BE104 -> 23.52187528 | AX8: =CustomersCOM!BF104 -> 20.4042659 | AY8: =CustomersCOM!BG104 -> 19.30224457 | AZ8: =CustomersCOM!BH104 -> 18.20573335 | BA8: =CustomersCOM!BI104 -> 15.11470468 | BB8: =CustomersCOM!BJ104 -> 13.03913116 | BC8: =CustomersCOM!BK104 -> 12.9739355 | BD8: =CustomersCOM!BL104 -> 12.90906583 | BE8: =CustomersCOM!BM104 -> 10.8445205 | BF8: =CustomersCOM!BN104 -> 9.790297896 | BG8: =CustomersCOM!BO104 -> 9.741346406 | BH8: =CustomersCOM!BP104 -> 9.692639674 | BI8: =CustomersCOM!BQ104 -> 8.644176476 | BJ8: =CustomersCOM!BR104 -> 8.600955593 | BK8: =CustomersCOM!BS104 -> 7.557950815 | BL8: =CustomersCOM!BT104 -> 7.520161061 | BM8: =CustomersCOM!BU104 -> 6.482560256 | BN8: =CustomersCOM!BV104 -> 5.450147455 | BO8: =CustomersCOM!BW104 -> 4.422896717 | BP8: =CustomersCOM!BX104 -> 4.400782234 | BQ8: =CustomersCOM!BY104 -> 4.378778323 | BR8: =CustomersCOM!BZ104 -> 3.356884431 | BS8: =CustomersCOM!CA104 -> 3.340100009 | BT8: =CustomersCOM!CB104 -> 3.323399509 | BU8: =CustomersCOM!CC104 -> 3.306782511 | BV8: =CustomersCOM!CD104 -> 3.290248599 | BW8: =CustomersCOM!CE104 -> 3.273797356 | BX8: =CustomersCOM!CF104 -> 2.257428369 | BY8: =CustomersCOM!CG104 -> 2.246141227 | BZ8: =CustomersCOM!CH104 -> 2.234910521 | CA8: =CustomersCOM!CI104 -> 2.223735968 | CB8: =CustomersCOM!CJ104 -> 1.212617289 | CC8: =CustomersCOM!CK104 -> 1.206554202 | CD8: =CustomersCOM!CL104 -> 1.200521431
A9: Ausnet | B9: =SUM(B3:B6) -> 757473 | C9: =SUM(C3:C6) -> 754161.755 | D9: 765451.8512 | E9: 776797.887 | F9: 787686.4375 | G9: 798272.6153 | H9: 808327.6473 | I9: 814342.459 | J9: 824250.7117 | K9: 828902.0982 | L9: 839016.3077 | M9: 852226.1012 | N9: 863487.1906 | O9: 870878.3547 | P9: 878526.3629 | Q9: 884399.0211 | R9: 890695.151 | S9: 895960.5752 | T9: 900133.1274 | U9: 902174.6617 | V9: 892909.4207 | W9: 851529.7094 | X9: 810859.0885 | Y9: 770697.6195 | Z9: 731094.8325 | AA9: 691982.3187 | AB9: 653486.8394 | AC9: 615628.7402 | AD9: 578298.023 | AE9: 541371.5752 | AF9: 504828.0373 | AG9: 500567.8971 | AH9: 496949.1275 | AI9: 493638.7068 | AJ9: 490653.6083 | AK9: 487978.8052 | AL9: 485632.2711 | AM9: 490272.9897 | AN9: 492815.9447 | AO9: 495204.1199 | AP9: 497708.4992 | AQ9: 500171.0667 | AR9: 502680.8113 | AS9: 505214.7222 | AT9: 507818.7885 | AU9: 510352.0095 | AV9: 512901.3644 | AW9: 515441.8426 | AX9: 518041.4383 | AY9: 520538.1361 | AZ9: 523034.9303 | BA9: 525514.8156 | BB9: 528038.7765 | BC9: 530435.8025 | BD9: 532858.8935 | BE9: 535433.049 | BF9: 538163.2587 | BG9: 540854.5173 | BH9: 543630.8247 | BI9: 546449.1805 | BJ9: 549508.5795 | BK9: 552578.0216 | BL9: 555806.5014 | BM9: 559173.0189 | BN9: 562735.5687 | BO9: =SUM(BO3:BO6) -> 566316.1458 | BP9: 570033.745 | BQ9: 573859.3663 | BR9: 577858.0094 | BS9: 581867.6693 | BT9: 585995.3459 | BU9: 590221.0391 | BV9: 594569.7489 | BW9: 598880.4751 | BX9: 603279.2176 | BY9: 607742.9715 | BZ9: 612338.7366 | CA9: 616901.5128 | CB9: 621557.3002 | CC9: 626282.0937 | CD9: =SUM(CD3:CD6) -> 631077.8931
A11: Volumes (TJ) | B11: 2020 | C11: =B11+1 -> 2021 | D11: =C11+1 -> 2022 | E11: =D11+1 -> 2023 | F11: =E11+1 -> 2024 | G11: =F11+1 -> 2025 | H11: =G11+1 -> 2026 | I11: =H11+1 -> 2027 | J11: =I11+1 -> 2028 | K11: =J11+1 -> 2029 | L11: =K11+1 -> 2030 | M11: =L11+1 -> 2031 | N11: =M11+1 -> 2032 | O11: =N11+1 -> 2033 | P11: =O11+1 -> 2034 | Q11: =P11+1 -> 2035 | R11: =Q11+1 -> 2036 | S11: =R11+1 -> 2037 | T11: =S11+1 -> 2038 | U11: =T11+1 -> 2039 | V11: =U11+1 -> 2040 | W11: =V11+1 -> 2041 | X11: =W11+1 -> 2042 | Y11: =X11+1 -> 2043 | Z11: =Y11+1 -> 2044 | AA11: =Z11+1 -> 2045 | AB11: =AA11+1 -> 2046 | AC11: =AB11+1 -> 2047 | AD11: =AC11+1 -> 2048 | AE11: =AD11+1 -> 2049 | AF11: =AE11+1 -> 2050 | AG11: =AF11+1 -> 2051 | AH11: =AG11+1 -> 2052 | AI11: =AH11+1 -> 2053 | AJ11: =AI11+1 -> 2054 | AK11: =AJ11+1 -> 2055 | AL11: =AK11+1 -> 2056 | AM11: =AL11+1 -> 2057 | AN11: =AM11+1 -> 2058 | AO11: =AN11+1 -> 2059 | AP11: =AO11+1 -> 2060 | AQ11: =AP11+1 -> 2061 | AR11: =AQ11+1 -> 2062 | AS11: =AR11+1 -> 2063 | AT11: =AS11+1 -> 2064 | AU11: =AT11+1 -> 2065 | AV11: =AU11+1 -> 2066 | AW11: =AV11+1 -> 2067 | AX11: =AW11+1 -> 2068 | AY11: =AX11+1 -> 2069 | AZ11: =AY11+1 -> 2070 | BA11: =AZ11+1 -> 2071 | BB11: =BA11+1 -> 2072 | BC11: =BB11+1 -> 2073 | BD11: =BC11+1 -> 2074 | BE11: =BD11+1 -> 2075 | BF11: =BE11+1 -> 2076 | BG11: =BF11+1 -> 2077 | BH11: =BG11+1 -> 2078 | BI11: =BH11+1 -> 2079 | BJ11: =BI11+1 -> 2080 | BK11: =BJ11+1 -> 2081 | BL11: =BK11+1 -> 2082 | BM11: =BL11+1 -> 2083 | BN11: =BM11+1 -> 2084 | BO11: =BN11+1 -> 2085 | BP11: =BO11+1 -> 2086 | BQ11: =BP11+1 -> 2087 | BR11: =BQ11+1 -> 2088 | BS11: =BR11+1 -> 2089 | BT11: =BS11+1 -> 2090 | BU11: =BT11+1 -> 2091 | BV11: =BU11+1 -> 2092 | BW11: =BV11+1 -> 2093 | BX11: =BW11+1 -> 2094 | BY11: =BX11+1 -> 2095 | BZ11: =BY11+1 -> 2096 | CA11: =BZ11+1 -> 2097 | CB11: =CA11+1 -> 2098 | CC11: =CB11+1 -> 2099 | CD11: =CC11+1 -> 2100
A12: Residential | B12: =Forecasts!J104 -> 34764.6204 | C12: =Forecasts!K104 -> 34346.87921 | D12: =Forecasts!L104 -> 35340.87546 | E12: =Forecasts!M104 -> 35402.78471 | F12: =Forecasts!N104 -> 35631.52933 | G12: =Forecasts!O104 -> 35852.6128 | H12: =Forecasts!P104 -> 36038.37802 | I12: =Forecasts!Q104 -> 36230.59741 | J12: =Forecasts!R104 -> 36698.64392 | K12: =Forecasts!S104 -> 36862.32257 | L12: =Forecasts!T104 -> 37346.59404 | M12: =Forecasts!U104 -> 38077.8143 | N12: =Forecasts!V104 -> 38536.71026 | O12: =Forecasts!W104 -> 38764.40949 | P12: =Forecasts!X104 -> 39061.65661 | Q12: =Forecasts!Y104 -> 39259.57191 | R12: =Forecasts!Z104 -> 39491.37769 | S12: =Forecasts!AA104 -> 39634.41367 | T12: =Forecasts!AB104 -> 39742.6361 | U12: =Forecasts!AC104 -> 39768.68023 | V12: =Forecasts!AD104 -> 37759.84749 | W12: =Forecasts!AE104 -> 35934.26137 | X12: =Forecasts!AF104 -> 34146.01778 | Y12: =Forecasts!AG104 -> 32369.21397 | Z12: =Forecasts!AH104 -> 30610.46133 | AA12: =Forecasts!AI104 -> 28863.88482 | AB12: =Forecasts!AJ104 -> 27173.61088 | AC12: =Forecasts!AK104 -> 25502.79544 | AD12: =Forecasts!AL104 -> 23863.81009 | AE12: =Forecasts!AM104 -> 22231.84206 | AF12: =Forecasts!AN104 -> 22006.15829 | AG12: =Forecasts!AO104 -> 21831.52549 | AH12: =Forecasts!AP104 -> 21650.01182 | AI12: =Forecasts!AQ104 -> 21478.96737 | AJ12: =Forecasts!AR104 -> 21320.14097 | AK12: =Forecasts!AS104 -> 21173.16574 | AL12: =Forecasts!AT104 -> 21038.64228 | AM12: =Forecasts!AU104 -> 21159.78055 | AN12: =Forecasts!AV104 -> 21229.64734 | AO12: =Forecasts!AW104 -> 21296.53309 | AP12: =Forecasts!AX104 -> 21366.39905 | AQ12: =Forecasts!AY104 -> 21435.9833 | AR12: =Forecasts!AZ104 -> 21506.03825 | AS12: =Forecasts!BA104 -> 21576.32058 | AT12: =Forecasts!BB104 -> 21648.00902 | AU12: =Forecasts!BC104 -> 21717.78831 | AV12: =Forecasts!BD104 -> 21786.65264 | AW12: =Forecasts!BE104 -> 21854.43824 | AX12: =Forecasts!BF104 -> 21922.63995 | AY12: =Forecasts!BG104 -> 21988.14096 | AZ12: =Forecasts!BH104 -> 22052.01865 | BA12: =Forecasts!BI104 -> 22114.29034 | BB12: =Forecasts!BJ104 -> 22176.3773 | BC12: =Forecasts!BK104 -> 22235.0111 | BD12: =Forecasts!BL104 -> 22292.5794 | BE12: =Forecasts!BM104 -> 22354.2714 | BF12: =Forecasts!BN104 -> 22420.45768 | BG12: =Forecasts!BO104 -> 22487.01095 | BH12: =Forecasts!BP104 -> 22555.23454 | BI12: =Forecasts!BQ104 -> 22624.52531 | BJ12: =Forecasts!BR104 -> 22700.79866 | BK12: =Forecasts!BS104 -> 22779.46706 | BL12: =Forecasts!BT104 -> 22862.30827 | BM12: =Forecasts!BU104 -> 22949.94327 | BN12: =Forecasts!BV104 -> 23043.65346 | BO12: =Forecasts!BW104 -> 23139.66294 | BP12: =Forecasts!BX104 -> 23239.38264 | BQ12: =Forecasts!BY104 -> 23342.5916 | BR12: =Forecasts!BZ104 -> 23450.75817 | BS12: =Forecasts!CA104 -> 23560.75203 | BT12: =Forecasts!CB104 -> 23673.5067 | BU12: =Forecasts!CC104 -> 23789.24241 | BV12: =Forecasts!CD104 -> 23907.99682 | BW12: =Forecasts!CE104 -> 24026.69492 | BX12: =Forecasts!CF104 -> 24146.62751 | BY12: =Forecasts!CG104 -> 24268.08152 | BZ12: =Forecasts!CH104 -> 24392.44446 | CA12: =Forecasts!CI104 -> 24516.7586 | CB12: =Forecasts!CJ104 -> 24642.5063 | CC12: =Forecasts!CK104 -> 24769.67827 | CD12: =Forecasts!CL104 -> 24898.41908
A13: Commercial | B13: =Forecasts!J209 -> 6000.457134 | C13: =Forecasts!K209 -> 5123.182194 | D13: =Forecasts!L209 -> 5446.617169 | E13: =Forecasts!M209 -> 5228.803455 | F13: =Forecasts!N209 -> 4882.798874 | G13: =Forecasts!O209 -> 4433.31794 | H13: =Forecasts!P209 -> 3990.772487 | I13: =Forecasts!Q209 -> 3644.835599 | J13: =Forecasts!R209 -> 3421.437075 | K13: =Forecasts!S209 -> 3137.144831 | L13: =Forecasts!T209 -> 2959.981252 | M13: =Forecasts!U209 -> 2824.252229 | N13: =Forecasts!V209 -> 2623.522118 | O13: =Forecasts!W209 -> 2407.445911 | P13: =Forecasts!X209 -> 2235.51022 | Q13: =Forecasts!Y209 -> 2065.645082 | R13: =Forecasts!Z209 -> 1924.586845 | S13: =Forecasts!AA209 -> 1786.577773 | T13: =Forecasts!AB209 -> 1660.55194 | U13: =Forecasts!AC209 -> 1543.832652 | V13: =Forecasts!AD209 -> 1417.0432 | W13: =Forecasts!AE209 -> 1331.7299 | X13: =Forecasts!AF209 -> 1260.447119 | Y13: =Forecasts!AG209 -> 1197.516132 | Z13: =Forecasts!AH209 -> 1142.673961 | AA13: =Forecasts!AI209 -> 1093.812281 | AB13: =Forecasts!AJ209 -> 1056.811587 | AC13: =Forecasts!AK209 -> 1026.315338 | AD13: =Forecasts!AL209 -> 1002.841202 | AE13: =Forecasts!AM209 -> 985.2234912 | AF13: =Forecasts!AN209 -> 969.4925372 | AG13: =Forecasts!AO209 -> 952.5273783 | AH13: =Forecasts!AP209 -> 933.1207593 | AI13: =Forecasts!AQ209 -> 914.8279286 | AJ13: =Forecasts!AR209 -> 897.9650251 | AK13: =Forecasts!AS209 -> 882.5502416 | AL13: =Forecasts!AT209 -> 867.9987463 | AM13: =Forecasts!AU209 -> 864.1967261 | AN13: =Forecasts!AV209 -> 851.5288552 | AO13: =Forecasts!AW209 -> 838.700617 | AP13: =Forecasts!AX209 -> 826.7267803 | AQ13: =Forecasts!AY209 -> 815.3635081 | AR13: =Forecasts!AZ209 -> 804.5956646 | AS13: =Forecasts!BA209 -> 794.4379172 | AT13: =Forecasts!BB209 -> 784.304022 | AU13: =Forecasts!BC209 -> 775.3491057 | AV13: =Forecasts!BD209 -> 767.0343155 | AW13: =Forecasts!BE209 -> 759.0516714 | AX13: =Forecasts!BF209 -> 751.9739834 | AY13: =Forecasts!BG209 -> 745.2459086 | AZ13: =Forecasts!BH209 -> 738.8300198 | BA13: =Forecasts!BI209 -> 733.3178172 | BB13: =Forecasts!BJ209 -> 728.4455057 | BC13: =Forecasts!BK209 -> 723.6177696 | BD13: =Forecasts!BL209 -> 718.8353856 | BE13: =Forecasts!BM209 -> 714.8633791 | BF13: =Forecasts!BN209 -> 711.2339798 | BG13: =Forecasts!BO209 -> 707.6031922 | BH13: =Forecasts!BP209 -> 703.9527868 | BI13: =Forecasts!BQ209 -> 700.5688052 | BJ13: =Forecasts!BR209 -> 697.3719354 | BK13: =Forecasts!BS209 -> 694.4577933 | BL13: =Forecasts!BT209 -> 691.5683443 | BM13: =Forecasts!BU209 -> 688.992992 | BN13: =Forecasts!BV209 -> 686.7200258 | BO13: =Forecasts!BW209 -> 684.7259612 | BP13: =Forecasts!BX209 -> 682.7252339 | BQ13: =Forecasts!BY209 -> 680.7069285 | BR13: =Forecasts!BZ209 -> 678.9631677 | BS13: =Forecasts!CA209 -> 677.2255181 | BT13: =Forecasts!CB209 -> 675.4668512 | BU13: =Forecasts!CC209 -> 673.6903752 | BV13: =Forecasts!CD209 -> 671.8433716 | BW13: =Forecasts!CE209 -> 669.9738948 | BX13: =Forecasts!CF209 -> 668.3728948 | BY13: =Forecasts!CG209 -> 666.7865111 | BZ13: =Forecasts!CH209 -> 665.1961174 | CA13: =Forecasts!CI209 -> 663.6046306 | CB13: =Forecasts!CJ209 -> 662.2873316 | CC13: =Forecasts!CK209 -> 660.9898945 | CD13: =Forecasts!CL209 -> 659.691438
A14: Ausnet | B14: =SUM(B12:B13) -> 40765.07753 | C14: 39470.06141 | D14: 40787.49263 | E14: 40631.58816 | F14: 40514.32821 | G14: 40285.93074 | H14: 40029.15051 | I14: 39875.43301 | J14: 40120.08099 | K14: 39999.4674 | L14: 40306.57529 | M14: 40902.06652 | N14: 41160.23238 | O14: 41171.8554 | P14: 41297.16683 | Q14: 41325.21699 | R14: 41415.96453 | S14: 41420.99145 | T14: 41403.18804 | U14: 41312.51289 | V14: 39176.89068 | W14: 37265.99127 | X14: 35406.4649 | Y14: 33566.7301 | Z14: 31753.13529 | AA14: 29957.6971 | AB14: 28230.42246 | AC14: 26529.11078 | AD14: 24866.65129 | AE14: 23217.06555 | AF14: 22975.65083 | AG14: 22784.05287 | AH14: =SUM(AH12:AH13) -> 22583.13258 | AI14: 22393.7953 | AJ14: 22218.106 | AK14: 22055.71598 | AL14: 21906.64103 | AM14: 22023.97727 | AN14: 22081.1762 | AO14: 22135.2337 | AP14: 22193.12583 | AQ14: 22251.34681 | AR14: 22310.63391 | AS14: 22370.7585 | AT14: 22432.31304 | AU14: 22493.13742 | AV14: 22553.68695 | AW14: 22613.48992 | AX14: 22674.61393 | AY14: 22733.38687 | AZ14: 22790.84867 | BA14: 22847.60816 | BB14: 22904.8228 | BC14: 22958.62887 | BD14: 23011.41479 | BE14: 23069.13478 | BF14: 23131.69165 | BG14: 23194.61414 | BH14: 23259.18733 | BI14: 23325.09412 | BJ14: 23398.1706 | BK14: 23473.92485 | BL14: 23553.87662 | BM14: 23638.93626 | BN14: =SUM(BN12:BN13) -> 23730.37349 | BO14: 23824.38891 | BP14: 23922.10787 | BQ14: 24023.29853 | BR14: 24129.72133 | BS14: 24237.97755 | BT14: 24348.97355 | BU14: 24462.93278 | BV14: 24579.84019 | BW14: 24696.66882 | BX14: 24815.0004 | BY14: 24934.86803 | BZ14: 25057.64057 | CA14: 25180.36323 | CB14: 25304.79363 | CC14: 25430.66817 | CD14: 25558.11052
L15: =L14/B14 -> 0.9887525728
A49: Residential | D49: 2022 | E49: =D49+1 -> 2023 | F49: =E49+1 -> 2024 | G49: =F49+1 -> 2025 | H49: =G49+1 -> 2026 | I49: =H49+1 -> 2027 | J49: =I49+1 -> 2028 | K49: =J49+1 -> 2029 | L49: =K49+1 -> 2030 | M49: =L49+1 -> 2031 | N49: =M49+1 -> 2032 | O49: =N49+1 -> 2033 | P49: =O49+1 -> 2034 | Q49: =P49+1 -> 2035 | R49: =Q49+1 -> 2036 | S49: =R49+1 -> 2037 | T49: =S49+1 -> 2038 | U49: =T49+1 -> 2039 | V49: =U49+1 -> 2040 | W49: =V49+1 -> 2041 | X49: =W49+1 -> 2042 | Y49: =X49+1 -> 2043 | Z49: =Y49+1 -> 2044 | AA49: =Z49+1 -> 2045 | AB49: =AA49+1 -> 2046 | AC49: =AB49+1 -> 2047 | AD49: =AC49+1 -> 2048 | AE49: =AD49+1 -> 2049 | AF49: =AE49+1 -> 2050 | AG49: =AF49+1 -> 2051 | AH49: =AG49+1 -> 2052 | AI49: =AH49+1 -> 2053 | AJ49: =AI49+1 -> 2054 | AK49: =AJ49+1 -> 2055 | AL49: =AK49+1 -> 2056 | AM49: =AL49+1 -> 2057 | AN49: =AM49+1 -> 2058 | AO49: =AN49+1 -> 2059 | AP49: =AO49+1 -> 2060 | AQ49: =AP49+1 -> 2061 | AR49: =AQ49+1 -> 2062 | AS49: =AR49+1 -> 2063 | AT49: =AS49+1 -> 2064 | AU49: =AT49+1 -> 2065 | AV49: =AU49+1 -> 2066 | AW49: =AV49+1 -> 2067 | AX49: =AW49+1 -> 2068 | AY49: =AX49+1 -> 2069 | AZ49: =AY49+1 -> 2070 | BA49: =AZ49+1 -> 2071 | BB49: =BA49+1 -> 2072 | BC49: =BB49+1 -> 2073 | BD49: =BC49+1 -> 2074 | BE49: =BD49+1 -> 2075 | BF49: =BE49+1 -> 2076 | BG49: =BF49+1 -> 2077 | BH49: =BG49+1 -> 2078 | BI49: =BH49+1 -> 2079 | BJ49: =BI49+1 -> 2080 | BK49: =BJ49+1 -> 2081 | BL49: =BK49+1 -> 2082 | BM49: =BL49+1 -> 2083 | BN49: =BM49+1 -> 2084 | BO49: =BN49+1 -> 2085 | BP49: =BO49+1 -> 2086 | BQ49: =BP49+1 -> 2087 | BR49: =BQ49+1 -> 2088 | BS49: =BR49+1 -> 2089 | BT49: =BS49+1 -> 2090 | BU49: =BT49+1 -> 2091 | BV49: =BU49+1 -> 2092 | BW49: =BV49+1 -> 2093 | BX49: =BW49+1 -> 2094 | BY49: =BX49+1 -> 2095 | BZ49: =BY49+1 -> 2096 | CA49: =BZ49+1 -> 2097 | CB49: =CA49+1 -> 2098 | CC49: =CB49+1 -> 2099 | CD49: =CC49+1 -> 2100
A50: Daily supply charge | D50: 0.3404201731 | E50: =[1]ACIL!I144/365 -> 0.458503 | F50: =[1]ACIL!J144/365 -> 0.4263956948 | G50: =[1]ACIL!K144/365 -> 0.4316547364 | H50: =[1]ACIL!L144/365 -> 0.4333194543 | I50: =[1]ACIL!M144/365 -> 0.4381323004 | J50: =[1]ACIL!N144/365 -> 0.4355221179 | K50: =[1]ACIL!O144/365 -> 0.4290717631 | L50: =[1]ACIL!P144/365 -> 0.4235080829 | M50: =[1]ACIL!Q144/365 -> 0.4089451086 | N50: =[1]ACIL!R144/365 -> 0.3942948523 | O50: =[1]ACIL!S144/365 -> 0.3875232111 | P50: =[1]ACIL!T144/365 -> 0.3647839416 | Q50: =[1]ACIL!U144/365 -> 0.3571922634 | R50: =[1]ACIL!V144/365 -> 0.3511221482 | S50: =[1]ACIL!W144/365 -> 0.3443575524 | T50: =[1]ACIL!X144/365 -> 0.3386284374 | U50: =[1]ACIL!Y144/365 -> 0.3330741175 | V50: =[1]ACIL!Z144/365 -> 0.3268772813 | W50: =[1]ACIL!AA144/365 -> 0.3480138479 | X50: =[1]ACIL!AB144/365 -> 0.3528871522 | Y50: =[1]ACIL!AC144/365 -> 0.3587735278 | Z50: =[1]ACIL!AD144/365 -> 0.365948592 | AA50: =[1]ACIL!AE144/365 -> 0.3737875504 | AB50: =[1]ACIL!AF144/365 -> 0.3832374096 | AC50: =[1]ACIL!AG144/365 -> 0.393510551 | AD50: =[1]ACIL!AH144/365 -> 0.4056724519 | AE50: =[1]ACIL!AI144/365 -> 0.4198601863 | AF50: =[1]ACIL!AJ144/365 -> 0.4373444533 | AG50: =[1]ACIL!AK144/365 -> 0.4088271613 | AH50: =[1]ACIL!AL144/365 -> 0.4049432095 | AI50: =[1]ACIL!AM144/365 -> 0.4021945062 | AJ50: =[1]ACIL!AN144/365 -> 0.3994569364 | AK50: =[1]ACIL!AO144/365 -> 0.3967987483 | AL50: =[1]ACIL!AP144/365 -> 0.3943179695 | AM50: =[1]ACIL!AQ144/365 -> 0.3014204868 | AN50: =[1]ACIL!AR144/365 -> 0.2987241653 | AO50: =[1]ACIL!AS144/365 -> 0.3016499592 | AP50: =[1]ACIL!AT144/365 -> 0.3045418432 | AQ50: =[1]ACIL!AU144/365 -> 0.3073374985 | AR50: =[1]ACIL!AV144/365 -> 0.3101638418 | AS50: =[1]ACIL!AW144/365 -> 0.3129086228 | AT50: =[1]ACIL!AX144/365 -> 0.315592037 | AU50: =[1]ACIL!AY144/365 -> 0.3181793797 | AV50: =[1]ACIL!AZ144/365 -> 0.3207582112 | AW50: =[1]ACIL!BA144/365 -> 0.3232328434 | AX50: =[1]ACIL!BB144/365 -> 0.3255982372 | AY50: =[1]ACIL!BC144/365 -> 0.3278216842 | AZ50: =[1]ACIL!BD144/365 -> 0.3300341751 | BA50: =[1]ACIL!BE144/365 -> 0.3321327205 | BB50: =[1]ACIL!BF144/365 -> 0.334133239 | BC50: =[1]ACIL!BG144/365 -> 0.3360087955 | BD50: =[1]ACIL!BH144/365 -> 0.3375499247 | BE50: =[1]ACIL!BI144/365 -> 0.3372289731 | BF50: =[1]ACIL!BJ144/365 -> 0.3367986225 | BG50: =[1]ACIL!BK144/365 -> 0.3364564659 | BH50: =[1]ACIL!BL144/365 -> 0.3362529859 | BI50: =[1]ACIL!BM144/365 -> 0.3361837523 | BJ50: =[1]ACIL!BN144/365 -> 0.3347238165 | BK50: =[1]ACIL!BO144/365 -> 0.3333197608 | BL50: =[1]ACIL!BP144/365 -> 0.3318241838 | BM50: =[1]ACIL!BQ144/365 -> 0.3300796515 | BN50: =[1]ACIL!BR144/365 -> 0.328302243 | BO50: =[1]ACIL!BS144/365 -> 0.3266382244 | BP50: =[1]ACIL!BT144/365 -> 0.3251092891 | BQ50: =[1]ACIL!BU144/365 -> 0.3236474218 | BR50: =[1]ACIL!BV144/365 -> 0.3222021775 | BS50: =[1]ACIL!BW144/365 -> 0.3207542465 | BT50: =[1]ACIL!BX144/365 -> 0.3194261623 | BU50: =[1]ACIL!BY144/365 -> 0.3181685869 | BV50: =[1]ACIL!BZ144/365 -> 0.3173731738 | BW50: =[1]ACIL!CA144/365 -> 0.3166496179 | BX50: =[1]ACIL!CB144/365 -> 0.3160064877 | BY50: =[1]ACIL!CC144/365 -> 0.3153370292 | BZ50: =[1]ACIL!CD144/365 -> 0.314658025 | CA50: =[1]ACIL!CE144/365 -> 0.313924341 | CB50: =[1]ACIL!CF144/365 -> 0.313220399 | CC50: =[1]ACIL!CG144/365 -> 0.3124499302 | CD50: =[1]ACIL!CH144/365 -> 0.3116458549
A51: Average volumetric charge $/GJ | D51: 2.543096079 | E51: =[1]ACIL!I145 -> 2.751738962 | F51: =[1]ACIL!J145 -> 2.559044644 | G51: =[1]ACIL!K145 -> 2.611085368 | H51: =[1]ACIL!L145 -> 2.642414777 | I51: =[1]ACIL!M145 -> 2.694613277 | J51: =[1]ACIL!N145 -> 2.693041864 | K51: =[1]ACIL!O145 -> 2.650997517 | L51: =[1]ACIL!P145 -> 2.628032945 | M51: =[1]ACIL!Q145 -> 2.53290965 | N51: =[1]ACIL!R145 -> 2.429466298 | O51: =[1]ACIL!S145 -> 2.391964795 | P51: =[1]ACIL!T145 -> 2.263206223 | Q51: =[1]ACIL!U145 -> 2.22133666 | R51: =[1]ACIL!V145 -> 2.19054178 | S51: =[1]ACIL!W145 -> 2.152278403 | T51: =[1]ACIL!X145 -> 2.122799723 | U51: =[1]ACIL!Y145 -> 2.093538888 | V51: =[1]ACIL!Z145 -> 2.060338257 | W51: =[1]ACIL!AA145 -> 2.214170282 | X51: =[1]ACIL!AB145 -> 2.252386843 | Y51: =[1]ACIL!AC145 -> 2.296377751 | Z51: =[1]ACIL!AD145 -> 2.349611224 | AA51: =[1]ACIL!AE145 -> 2.407931369 | AB51: =[1]ACIL!AF145 -> 2.47777394 | AC51: =[1]ACIL!AG145 -> 2.551386804 | AD51: =[1]ACIL!AH145 -> 2.638464457 | AE51: =[1]ACIL!AI145 -> 2.738663225 | AF51: =[1]ACIL!AJ145 -> 2.862208614 | AG51: =[1]ACIL!AK145 -> 2.677661587 | AH51: =[1]ACIL!AL145 -> 2.653393057 | AI51: =[1]ACIL!AM145 -> 2.63932679 | AJ51: =[1]ACIL!AN145 -> 2.625499419 | AK51: =[1]ACIL!AO145 -> 2.612205783 | AL51: =[1]ACIL!AP145 -> 2.600091203 | AM51: =[1]ACIL!AQ145 -> 1.990806842 | AN51: =[1]ACIL!AR145 -> 1.96923126 | AO51: =[1]ACIL!AS145 -> 1.990980868 | AP51: =[1]ACIL!AT145 -> 2.013106872 | AQ51: =[1]ACIL!AU145 -> 2.034718743 | AR51: =[1]ACIL!AV145 -> 2.056657461 | AS51: =[1]ACIL!AW145 -> 2.078184037 | AT51: =[1]ACIL!AX145 -> 2.099422296 | AU51: =[1]ACIL!AY145 -> 2.120134966 | AV51: =[1]ACIL!AZ145 -> 2.140913435 | AW51: =[1]ACIL!BA145 -> 2.161120109 | AX51: =[1]ACIL!BB145 -> 2.180710544 | AY51: =[1]ACIL!BC145 -> 2.199454441 | AZ51: =[1]ACIL!BD145 -> 2.21823684 | BA51: =[1]ACIL!BE145 -> 2.236369973 | BB51: =[1]ACIL!BF145 -> 2.253948526 | BC51: =[1]ACIL!BG145 -> 2.270781987 | BD51: =[1]ACIL!BH145 -> 2.285458487 | BE51: =[1]ACIL!BI145 -> 2.287574724 | BF51: =[1]ACIL!BJ145 -> 2.288818524 | BG51: =[1]ACIL!BK145 -> 2.290675351 | BH51: =[1]ACIL!BL145 -> 2.293527801 | BI51: =[1]ACIL!BM145 -> 2.297350014 | BJ51: =[1]ACIL!BN145 -> 2.291708392 | BK51: =[1]ACIL!BO145 -> 2.286316622 | BL51: =[1]ACIL!BP145 -> 2.28030428 | BM51: =[1]ACIL!BQ145 -> 2.272565667 | BN51: =[1]ACIL!BR145 -> 2.264565239 | BO51: =[1]ACIL!BS145 -> 2.25732598 | BP51: =[1]ACIL!BT145 -> 2.251029318 | BQ51: =[1]ACIL!BU145 -> 2.245205455 | BR51: =[1]ACIL!BV145 -> 2.239501283 | BS51: =[1]ACIL!BW145 -> 2.233773307 | BT51: =[1]ACIL!BX145 -> 2.22888585 | BU51: =[1]ACIL!BY145 -> 2.22450612 | BV51: =[1]ACIL!BZ145 -> 2.223375911 | BW51: =[1]ACIL!CA145 -> 2.222808729 | BX51: =[1]ACIL!CB145 -> 2.222845464 | BY51: =[1]ACIL!CC145 -> 2.222733353 | BZ51: =[1]ACIL!CD145 -> 2.222579742 | CA51: =[1]ACIL!CE145 -> 2.222061772 | CB51: =[1]ACIL!CF145 -> 2.221781811 | CC51: =[1]ACIL!CG145 -> 2.22105969 | CD51: =[1]ACIL!CH145 -> 2.220118793
A52: Commercial
A53: Daily supply charge | D53: 0.3554205436 | E53: =[1]ACIL!I146/365 -> 0.4786535 | F53: =[1]ACIL!J146/365 -> 0.4451351282 | G53: =[1]ACIL!K146/365 -> 0.4724498365 | H53: =[1]ACIL!L146/365 -> 0.5138768777 | I53: =[1]ACIL!M146/365 -> 0.5646082499 | J53: =[1]ACIL!N146/365 -> 0.6076680136 | K53: =[1]ACIL!O146/365 -> 0.6485902352 | L53: =[1]ACIL!P146/365 -> 0.6906976056 | M53: =[1]ACIL!Q146/365 -> 0.7210929398 | N53: =[1]ACIL!R146/365 -> 0.7526621432 | O53: =[1]ACIL!S146/365 -> 0.8001856698 | P53: =[1]ACIL!T146/365 -> 0.8116918616 | Q53: =[1]ACIL!U146/365 -> 0.8549399028 | R53: =[1]ACIL!V146/365 -> 0.9017988381 | S53: =[1]ACIL!W146/365 -> 0.9475179845 | T53: =[1]ACIL!X146/365 -> 0.9959665256 | U53: =[1]ACIL!Y146/365 -> 1.044908137 | V53: =[1]ACIL!Z146/365 -> 1.090110863 | W53: =[1]ACIL!AA146/365 -> 1.170281859 | X53: =[1]ACIL!AB146/365 -> 1.187235045 | Y53: =[1]ACIL!AC146/365 -> 1.199960769 | Z53: =[1]ACIL!AD146/365 -> 1.2092048 | AA53: =[1]ACIL!AE146/365 -> 1.212335588 | AB53: =[1]ACIL!AF146/365 -> 1.212862258 | AC53: =[1]ACIL!AG146/365 -> 1.206864329 | AD53: =[1]ACIL!AH146/365 -> 1.197084418 | AE53: =[1]ACIL!AI146/365 -> 1.183781342 | AF53: =[1]ACIL!AJ146/365 -> 1.168048207 | AG53: =[1]ACIL!AK146/365 -> 1.100764669 | AH53: =[1]ACIL!AL146/365 -> 1.100281665 | AI53: =[1]ACIL!AM146/365 -> 1.102727946 | AJ53: =[1]ACIL!AN146/365 -> 1.104598995 | AK53: =[1]ACIL!AO146/365 -> 1.106076755 | AL53: =[1]ACIL!AP146/365 -> 1.107388796 | AM53: =[1]ACIL!AQ146/365 -> 0.8527807444 | AN53: =[1]ACIL!AR146/365 -> 0.8581864509 | AO53: =[1]ACIL!AS146/365 -> 0.8800004235 | AP53: =[1]ACIL!AT146/365 -> 0.9016686084 | AQ53: =[1]ACIL!AU146/365 -> 0.9229875519 | AR53: =[1]ACIL!AV146/365 -> 0.94438666 | AS53: =[1]ACIL!AW146/365 -> 0.9655264072 | AT53: =[1]ACIL!AX146/365 -> 0.9864134618 | AU53: =[1]ACIL!AY146/365 -> 1.007477572 | AV53: =[1]ACIL!AZ146/365 -> 1.027764008 | AW53: =[1]ACIL!BA146/365 -> 1.047487576 | AX53: =[1]ACIL!BB146/365 -> 1.066857527 | AY53: =[1]ACIL!BC146/365 -> 1.085226801 | AZ53: =[1]ACIL!BD146/365 -> 1.103411914 | BA53: =[1]ACIL!BE146/365 -> 1.121102032 | BB53: =[1]ACIL!BF146/365 -> 1.137704425 | BC53: =[1]ACIL!BG146/365 -> 1.153455093 | BD53: =[1]ACIL!BH146/365 -> 1.168061219 | BE53: =[1]ACIL!BI146/365 -> 1.176274277 | BF53: =[1]ACIL!BJ146/365 -> 1.183648328 | BG53: =[1]ACIL!BK146/365 -> 1.19128192 | BH53: =[1]ACIL!BL146/365 -> 1.199486175 | BI53: =[1]ACIL!BM146/365 -> 1.208325921 | BJ53: =[1]ACIL!BN146/365 -> 1.211925267 | BK53: =[1]ACIL!BO146/365 -> 1.216013482 | BL53: =[1]ACIL!BP146/365 -> 1.219545013 | BM53: =[1]ACIL!BQ146/365 -> 1.222349508 | BN53: =[1]ACIL!BR146/365 -> 1.224894815 | BO53: =[1]ACIL!BS146/365 -> 1.227799002 | BP53: =[1]ACIL!BT146/365 -> 1.230964996 | BQ53: =[1]ACIL!BU146/365 -> 1.23455807 | BR53: =[1]ACIL!BV146/365 -> 1.238374643 | BS53: =[1]ACIL!BW146/365 -> 1.242065533 | BT53: =[1]ACIL!BX146/365 -> 1.246293936 | BU53: =[1]ACIL!BY146/365 -> 1.250928967 | BV53: =[1]ACIL!BZ146/365 -> 1.257537172 | BW53: =[1]ACIL!CA146/365 -> 1.264623954 | BX53: =[1]ACIL!CB146/365 -> 1.272057387 | BY53: =[1]ACIL!CC146/365 -> 1.279119216 | BZ53: =[1]ACIL!CD146/365 -> 1.286241095 | CA53: =[1]ACIL!CE146/365 -> 1.293307629 | CB53: =[1]ACIL!CF146/365 -> 1.300512641 | CC53: =[1]ACIL!CG146/365 -> 1.30716879 | CD53: =[1]ACIL!CH146/365 -> 1.313768237
A54: Average volumetric charge $/GJ | D54: 0.6147405579 | E54: =[1]ACIL!I147 -> 0.7116420732 | F54: =[1]ACIL!J147 -> 0.6618083551 | G54: =[1]ACIL!K147 -> 0.731432649 | H54: =[1]ACIL!L147 -> 0.8288031838 | I54: =[1]ACIL!M147 -> 0.9554881864 | J54: =[1]ACIL!N147 -> 1.060666808 | K54: =[1]ACIL!O147 -> 1.131289954 | L54: =[1]ACIL!P147 -> 1.238724618 | M54: =[1]ACIL!Q147 -> 1.286361834 | N54: =[1]ACIL!R147 -> 1.321006165 | O54: =[1]ACIL!S147 -> 1.425142807 | P54: =[1]ACIL!T147 -> 1.490088853 | Q54: =[1]ACIL!U147 -> 1.596435065 | R54: =[1]ACIL!V147 -> 1.724011103 | S54: =[1]ACIL!W147 -> 1.838595361 | T54: =[1]ACIL!X147 -> 1.972314228 | U54: =[1]ACIL!Y147 -> 2.1106067 | V54: =[1]ACIL!Z147 -> 2.248489572 | W54: =[1]ACIL!AA147 -> 2.512635384 | X54: =[1]ACIL!AB147 -> 2.592211851 | Y54: =[1]ACIL!AC147 -> 2.654557711 | Z54: =[1]ACIL!AD147 -> 2.709384666 | AA54: =[1]ACIL!AE147 -> 2.749039712 | AB54: =[1]ACIL!AF147 -> 2.781873779 | AC54: =[1]ACIL!AG147 -> 2.783805631 | AD54: =[1]ACIL!AH147 -> 2.772595812 | AE54: =[1]ACIL!AI147 -> 2.744474366 | AF54: =[1]ACIL!AJ147 -> 2.706121262 | AG54: =[1]ACIL!AK147 -> 2.547002711 | AH54: =[1]ACIL!AL147 -> 2.549131035 | AI54: =[1]ACIL!AM147 -> 2.567762013 | AJ54: =[1]ACIL!AN147 -> 2.585671613 | AK54: =[1]ACIL!AO147 -> 2.602283293 | AL54: =[1]ACIL!AP147 -> 2.617960319 | AM54: =[1]ACIL!AQ147 -> 2.025630242 | AN54: =[1]ACIL!AR147 -> 2.02405296 | AO54: =[1]ACIL!AS147 -> 2.084147865 | AP54: =[1]ACIL!AT147 -> 2.146763186 | AQ54: =[1]ACIL!AU147 -> 2.208897397 | AR54: =[1]ACIL!AV147 -> 2.271620169 | AS54: =[1]ACIL!AW147 -> 2.334111096 | AT54: =[1]ACIL!AX147 -> 2.396284717 | AU54: =[1]ACIL!AY147 -> 2.459721663 | AV54: =[1]ACIL!AZ147 -> 2.520924295 | AW54: =[1]ACIL!BA147 -> 2.580736762 | AX54: =[1]ACIL!BB147 -> 2.639971727 | AY54: =[1]ACIL!BC147 -> 2.69632491 | AZ54: =[1]ACIL!BD147 -> 2.752298844 | BA54: =[1]ACIL!BE147 -> 2.807212825 | BB54: =[1]ACIL!BF147 -> 2.858733879 | BC54: =[1]ACIL!BG147 -> 2.907595343 | BD54: =[1]ACIL!BH147 -> 2.953811428 | BE54: =[1]ACIL!BI147 -> 2.984034174 | BF54: =[1]ACIL!BJ147 -> 3.010624269 | BG54: =[1]ACIL!BK147 -> 3.037461435 | BH54: =[1]ACIL!BL147 -> 3.065976631 | BI54: =[1]ACIL!BM147 -> 3.096432173 | BJ54: =[1]ACIL!BN147 -> 3.113326614 | BK54: =[1]ACIL!BO147 -> 3.130789849 | BL54: =[1]ACIL!BP147 -> 3.146544265 | BM54: =[1]ACIL!BQ147 -> 3.160433315 | BN54: =[1]ACIL!BR147 -> 3.17319384 | BO54: =[1]ACIL!BS147 -> 3.186459723 | BP54: =[1]ACIL!BT147 -> 3.200074745 | BQ54: =[1]ACIL!BU147 -> 3.214912744 | BR54: =[1]ACIL!BV147 -> 3.230501996 | BS54: =[1]ACIL!BW147 -> 3.245437067 | BT54: =[1]ACIL!BX147 -> 3.261823651 | BU54: =[1]ACIL!BY147 -> 3.279457942 | BV54: =[1]ACIL!BZ147 -> 3.302446673 | BW54: =[1]ACIL!CA147 -> 3.327150619 | BX54: =[1]ACIL!CB147 -> 3.35299898 | BY54: =[1]ACIL!CC147 -> 3.377573395 | BZ54: =[1]ACIL!CD147 -> 3.402337147 | CA54: =[1]ACIL!CE147 -> 3.427080423 | CB54: =[1]ACIL!CF147 -> 3.4523032 | CC54: =[1]ACIL!CG147 -> 3.47570532 | CD54: =[1]ACIL!CH147 -> 3.498938219
A56: Unshaped
A57: Residential | D57: 2022 | E57: 2023 | F57: 2024 | G57: 2025 | H57: 2026 | I57: 2027 | J57: 2028 | K57: 2029 | L57: 2030 | M57: 2031 | N57: 2032 | O57: 2033 | P57: 2034 | Q57: 2035 | R57: 2036 | S57: 2037 | T57: 2038 | U57: 2039 | V57: 2040 | W57: 2041 | X57: 2042 | Y57: 2043 | Z57: 2044 | AA57: 2045 | AB57: 2046 | AC57: 2047 | AD57: 2048 | AE57: 2049 | AF57: 2050 | AG57: 2051 | AH57: 2052 | AI57: 2053 | AJ57: 2054 | AK57: 2055 | AL57: 2056 | AM57: 2057 | AN57: 2058 | AO57: 2059 | AP57: 2060 | AQ57: 2061 | AR57: 2062 | AS57: 2063 | AT57: 2064 | AU57: 2065 | AV57: 2066 | AW57: 2067 | AX57: 2068 | AY57: 2069 | AZ57: 2070 | BA57: 2071 | BB57: 2072 | BC57: 2073 | BD57: 2074 | BE57: 2075 | BF57: 2076 | BG57: 2077 | BH57: 2078 | BI57: 2079 | BJ57: 2080 | BK57: 2081 | BL57: 2082 | BM57: 2083 | BN57: 2084 | BO57: 2085 | BP57: 2086 | BQ57: 2087 | BR57: 2088 | BS57: 2089 | BT57: 2090 | BU57: 2091 | BV57: 2092 | BW57: 2093 | BX57: 2094 | BY57: 2095 | BZ57: 2096 | CA57: 2097 | CB57: 2098 | CC57: 2099 | CD57: 2100
A58: Daily supply charge | D58: 0.3404201731 | E58: 0.3404201731 | F58: 0.3404209602 | G58: 0.3303617619 | H58: 0.3532804165 | I58: 0.3638443288 | J58: 0.3620011687 | K58: 0.3636741967 | L58: 0.3672007692 | M58: 0.3666018366 | N58: 0.3639616332 | O58: 0.3682799668 | P58: 0.3521381692 | Q58: 0.3534326895 | R58: 0.3550245927 | S58: 0.3563554302 | T58: 0.3577241949 | U58: 0.3589486751 | V58: 0.3585113512 | W58: 0.3783620493 | X58: 0.3865816222 | Y58: 0.3957339863 | Z58: 0.405414756 | AA58: 0.4152605369 | AB58: 0.4255172987 | AC58: 0.4360975772 | AD58: 0.4472392979 | AE58: 0.4587244767 | AF58: 0.4707318611 | AG58: 0.4467193952 | AH58: 0.4425650568 | AI58: 0.4390182869 | AJ58: 0.4353265479 | AK58: 0.4316494599 | AL58: 0.4280111148 | AM58: 0.3373619293 | AN58: 0.3367229052 | AO58: 0.3373427872 | AP58: 0.3373915371 | AQ58: 0.3374059267 | AR58: 0.3374131241 | AS58: 0.337412944 | AT58: 0.3374007739 | AU58: 0.3373790372 | AV58: 0.3373460093 | AW58: 0.3372514546 | AX58: 0.3370899779 | AY58: 0.336874686 | AZ58: 0.3366053392 | BA58: 0.3362835579 | BB58: 0.3359114622 | BC58: 0.3354937974 | BD58: 0.3350257698 | BE58: 0.332455968 | BF58: 0.3299386626 | BG58: 0.3276606364 | BH58: 0.3254575539 | BI58: 0.323420881 | BJ58: 0.3217044365 | BK58: 0.3200091974 | BL58: 0.3183275845 | BM58: 0.3166621514 | BN58: 0.3150095641 | BO58: 0.3133736928 | BP58: 0.3117575025 | BQ58: 0.3101536576 | BR58: 0.3085674156 | BS58: 0.3069952518 | BT58: 0.3054418178 | BU58: 0.3039083351 | BV58: 0.3024200455 | BW58: 0.3009702249 | BX58: 0.2995579926 | BY58: 0.2981808815 | BZ58: 0.2968433896 | CA58: 0.2955375936 | CB58: 0.2942736389 | CC58: 0.2930427388 | CD58: 0.2918463367
A59: Average volumetric charge $/GJ | D59: 2.543096079 | E59: 2.543096079 | F59: 2.543101959 | G59: 2.216527033 | H59: 2.374381313 | I59: 2.457227663 | J59: 2.452824331 | K59: 2.467878839 | L59: 2.500463714 | M59: 2.502080857 | N59: 2.466079319 | O59: 2.499087144 | P59: 2.396003032 | Q59: 2.407821455 | R59: 2.423394321 | S59: 2.436570249 | T59: 2.450851428 | U59: 2.464064037 | V59: 2.465738564 | W59: 2.613190882 | X59: 2.677698087 | Y59: 2.747998945 | Z59: 2.822725256 | AA59: 2.899008372 | AB59: 2.978833972 | AC59: 3.060862623 | AD59: 3.147863274 | AE59: 3.2369907 | AF59: 3.330341195 | AG59: 3.164376101 | AH59: 3.135373651 | AI59: 3.113692586 | AJ59: 3.091135173 | AK59: 3.068684984 | AL59: 3.046527319 | AM59: 2.404284404 | AN59: 2.394426951 | AO59: 2.402070138 | AP59: 2.405958885 | AQ59: 2.409609233 | AR59: 2.413262972 | AS59: 2.416920915 | AT59: 2.420548752 | AU59: 2.424162639 | AV59: 2.427749449 | AW59: 2.430945779 | AX59: 2.433704971 | AY59: 2.436118271 | AZ59: 2.438182982 | BA59: 2.43990845 | BB59: 2.441307923 | BC59: 2.44241389 | BD59: 2.443190062 | BE59: 2.428647721 | BF59: 2.414257021 | BG59: 2.401610904 | BH59: 2.389533248 | BI59: 2.378681871 | BJ59: 2.370204809 | BK59: 2.361922634 | BL59: 2.353749019 | BM59: 2.345701372 | BN59: 2.337755488 | BO59: 2.329939948 | BP59: 2.322277354 | BQ59: 2.31471363 | BR59: 2.307287397 | BS59: 2.299973298 | BT59: 2.292806063 | BU59: 2.285796011 | BV59: 2.27913397 | BW59: 2.272773384 | BX59: 2.266708588 | BY59: 2.260922377 | BZ59: 2.255450075 | CA59: 2.25023346 | CB59: 2.245350751 | CC59: 2.240737539 | CD59: 2.236405678
A60: Commercial
A61: Daily supply charge | D61: 0.3554205436 | E61: 0.3554205436 | F61: 0.3554213654 | G61: 0.3453438799 | H61: 0.3697810215 | I61: 0.3813581003 | J61: 0.3800344187 | K61: 0.3823630196 | L61: 0.3869884193 | M61: 0.3875005014 | N61: 0.3852479735 | O61: 0.3903153232 | P61: 0.373751276 | Q61: 0.3756425503 | R61: 0.3779249768 | S61: 0.3799836222 | T61: 0.3821006795 | U61: 0.384098339 | V61: 0.3843150051 | W61: 0.398045071 | X61: 0.4026562045 | Y61: 0.4145164927 | Z61: 0.4327290339 | AA61: 0.4538405916 | AB61: 0.4764910065 | AC61: 0.4976433173 | AD61: 0.5173095741 | AE61: 0.5348354581 | AF61: 0.5499782943 | AG61: 0.545972525 | AH61: 0.5649870713 | AI61: 0.584652719 | AJ61: 0.6041173336 | AK61: 0.6234345568 | AL61: 0.6426213071 | AM61: 0.5260993035 | AN61: 0.5439350236 | AO61: 0.5641261319 | AP61: 0.5836315574 | AQ61: 0.603096346 | AR61: 0.6224863968 | AS61: 0.6420213746 | AT61: 0.6617095519 | AU61: 0.6815083847 | AV61: 0.7014364644 | AW61: 0.7211324206 | AX61: 0.7405801825 | AY61: 0.7599692759 | AZ61: 0.7791713811 | BA61: 0.7981344098 | BB61: 0.8168069177 | BC61: 0.8354077491 | BD61: 0.8538876157 | BE61: 0.8665863898 | BF61: 0.8791147799 | BG61: 0.8919643212 | BH61: 0.9047904458 | BI61: 0.9177432011 | BJ61: 0.9315760364 | BK61: 0.9452468917 | BL61: 0.9586055133 | BM61: 0.9720736803 | BN61: 0.9853070636 | BO61: 0.9982981945 | BP61: 1.011496167 | BQ61: 1.02453582 | BR61: 1.037658323 | BS61: 1.050490576 | BT61: 1.06327595 | BU61: 1.076131308 | BV61: 1.089149673 | BW61: 1.102439667 | BX61: 1.115874605 | BY61: 1.129058001 | BZ61: 1.14239069 | CA61: 1.155449763 | CB61: 1.168795522 | CC61: 1.182407177 | CD61: 1.196294751
A62: Average volumetric charge $/GJ | D62: 0.6147405579 | E62: 0.6147405579 | F62: 0.6147419794 | G62: 0.6929747798 | H62: 0.7505349423 | I62: 0.7838444656 | J62: 0.7868395918 | K62: 0.7922917718 | L62: 0.8091473359 | M62: 0.8127706758 | N62: 0.7826205794 | O62: 0.7934582916 | P62: 0.763284281 | Q62: 0.7676665144 | R62: 0.7741073117 | S62: 0.7787921203 | T62: 0.7846211267 | U62: 0.7900620274 | V62: 0.7916760304 | W62: 0.8263302543 | X62: 0.8369266848 | Y62: 0.8631846344 | Z62: 0.9041682313 | AA62: 0.9520414707 | AB62: 1.004068171 | AC62: 1.052131221 | AD62: 1.097578674 | AE62: 1.136951492 | AF62: 1.17071304 | AG62: 1.163450036 | AH62: 1.20558872 | AI62: 1.25187692 | AJ62: 1.298208095 | AK62: 1.344542931 | AL62: 1.39090775 | AM62: 1.142822285 | AN62: 1.177486591 | AO62: 1.225077236 | AP62: 1.271859211 | AQ62: 1.318784947 | AR62: 1.365783672 | AS62: 1.413381716 | AT62: 1.461619728 | AU62: 1.510396662 | AV62: 1.559757019 | AW62: 1.608831989 | AX62: 1.657544471 | AY62: 1.706349977 | AZ62: 1.754939989 | BA62: 1.803162401 | BB62: 1.850869935 | BC62: 1.898600869 | BD62: 1.946252904 | BE62: 1.980790658 | BF62: 2.014435847 | BG62: 2.048840261 | BH62: 2.083309348 | BI62: 2.118120339 | BJ62: 2.155112159 | BK62: 2.191907103 | BL62: 2.228000592 | BM62: 2.264465126 | BN62: 2.300449461 | BO62: 2.335881708 | BP62: 2.371938926 | BQ62: 2.407720308 | BR62: 2.443812402 | BS62: 2.479253707 | BT62: 2.514632486 | BU62: 2.550291676 | BV62: 2.586471065 | BW62: 2.623484743 | BX62: 2.661013602 | BY62: 2.697969318 | BZ62: 2.73536591 | CA62: 2.772119395 | CB62: 2.809677594 | CC62: 2.848081549 | CD62: 2.88736459
D65: =D58/$D$58 -> 1 | E65: =E59/$D$59 -> 1 | F65: =F59/$D$59 -> 1.000002312 | G65: 0.871586037 | H65: 0.9336577304 | I65: 0.9662346945 | J65: 0.9645032097 | K65: 0.9704229656 | L65: 0.9832360383 | M65: 0.9838719337 | N65: 0.9697153559 | O65: 0.9826947414 | P65: 0.9421598545 | Q65: 0.9468071124 | R65: 0.9529306977 | S65: 0.9581117557 | T65: 0.963727422 | U65: 0.9689229035 | V65: 0.9695813634 | W65: 1.027562782 | X65: 1.052928401 | Y65: 1.080572208 | Z65: 1.109956198 | AA65: 1.139952358 | AB65: 1.171341498 | AC65: 1.203596926 | AD65: 1.23780745 | AE65: 1.272854269 | AF65: 1.309561688 | AG65: 1.244300649 | AH65: 1.232896263 | AI65: 1.224370802 | AJ65: 1.215500743 | AK65: 1.206672846 | AL65: 1.197959976 | AM65: 0.9454162679 | AN65: 0.9415401056 | AO65: 0.944545571 | AP65: 0.9460747099 | AQ65: 0.9475101049 | AR65: 0.9489468337 | AS65: 0.9503852153 | AT65: 0.9518117588 | AU65: 0.9532328169 | AV65: 0.9546432275 | AW65: 0.955900093 | AX65: 0.9569850668 | AY65: 0.9579340281 | AZ65: 0.9587459167 | BA65: 0.9594244079 | BB65: 0.9599747109 | BC65: 0.9604096008 | BD65: 0.9607148082 | BE65: 0.9549964473 | BF65: 0.949337715 | BG65: 0.9443649904 | BH65: 0.9396157964 | BI65: 0.9353488022 | BJ65: 0.9320154391 | BK65: 0.9287587103 | BL65: 0.9255446692 | BM65: 0.9223801615 | BN65: 0.9192556691 | BO65: 0.9161824312 | BP65: 0.9131693346 | BQ65: 0.9101951158 | BR65: =BR59/$D$59 -> 0.9072749614 | BS65: 0.9043989005 | BT65: 0.9015805898 | BU65: 0.898824087 | BV65: 0.8962044291 | BW65: 0.8937033102 | BX65: 0.8913185021 | BY65: 0.8890432398 | BZ65: 0.8868914132 | CA65: 0.8848401281 | CB65: 0.8829201418 | CC65: 0.881106128 | CD65: 0.8794027471
D66: =D51/$D$51 -> 1 | E66: =E51/$D$51 -> 1.082042863 | F66: 1.006271318 | G66: 1.026734849 | H66: 1.039054245 | I66: 1.059579817 | J66: 1.058961903 | K66: 1.042429163 | L66: 1.033399 | M66: 0.9959944774 | N66: 0.9553183297 | O66: 0.9405719329 | P66: 0.8899412972 | Q66: 0.8734772857 | R66: 0.8613680774 | S66: 0.8463220957 | T66: 0.8347304456 | U66: 0.8232244568 | V66: 0.8101692554 | W66: 0.8706593116 | X66: 0.8856868845 | Y66: 0.9029850542 | Z66: 0.9239175993 | AA66: 0.946850333 | AB66: 0.9743139317 | AC66: 1.003260091 | AD66: 1.037500895 | AE66: 1.076901202 | AF66: 1.125481903 | AG66: 1.052914048 | AH66: 1.043371141 | AI66: 1.037839982 | AJ66: 1.032402763 | AK66: 1.02717542 | AL66: 1.022411707 | AM66: 0.7828280096 | AN66: 0.7743440275 | AO66: 0.7828964406 | AP66: 0.7915968606 | AQ66: 0.8000951123 | AR66: 0.8087218874 | AS66: 0.8171865995 | AT66: 0.8255379389 | AU66: 0.8336826058 | AV66: 0.8418531462 | AW66: 0.8497988442 | AX66: 0.8575022241 | AY66: 0.864872727 | AZ66: 0.8722583698 | BA66: 0.879388707 | BB66: 0.8863009717 | BC66: 0.8929202503 | BD66: 0.898691365 | BE66: 0.8995235149 | BF66: 0.9000126038 | BG66: 0.9007427483 | BH66: 0.9018643927 | BI66: 0.9033673691 | BJ66: 0.9011489621 | BK66: 0.8990288024 | BL66: 0.8966646204 | BM66: 0.8936216315 | BN66: 0.8904756911 | BO66: 0.8876290593 | BP66: 0.8851530764 | BQ66: =BQ51/$D$51 -> 0.8828630083 | BR66: 0.8806200054 | BS66: 0.8783676422 | BT66: 0.876445789 | BU66: 0.8747235851 | BV66: 0.874279163 | BW66: 0.8740561345 | BX66: 0.8740705797 | BY66: 0.8740264952 | BZ66: 0.873966092 | CA66: 0.8737624152 | CB66: 0.8736523284 | CC66: 0.873368375 | CD66: 0.8729983941
E68: =E50/D50 -> 1.346873764 | F68: =F50/$D50 -> 1.252557071 | G68: =G50/$D50 -> 1.268005748 | H68: 1.272895934 | I68: 1.287033892 | J68: 1.279366361 | K68: 1.260418145 | L68: 1.244074577 | M68: 1.201295167 | N68: 1.158259362 | O68: 1.138367352 | P68: 1.071569697 | Q68: 1.049268791 | R68: 1.031437547 | S68: 1.011566234 | T68: 0.9947366936 | U68: 0.978420622 | V68: 0.9602171291 | W68: 1.022306771 | X68: 1.036622328 | Y68: 1.053913828 | Z68: 1.074990911 | AA68: 1.098018214 | AB68: 1.125777612 | AC68: 1.15595544 | AD68: 1.191681586 | AE68: 1.233358712 | AF68: 1.284719555 | AG68: 1.200948691 | AH68: 1.189539403 | AI68: 1.18146496 | AJ68: 1.173423222 | AK68: 1.165614672 | AL68: 1.158327269 | AM68: 0.885436618 | AN68: 0.8775160491 | AO68: 0.8861107039 | AP68: 0.8946057468 | AQ68: 0.9028181135 | AR68: 0.9111206279 | AS68: 0.9191835489 | AT68: 0.9270662021 | AU68: 0.934666641 | AV68: 0.9422420776 | AW68: 0.9495114244 | AX68: 0.956459878 | AY68: 0.9629913564 | AZ68: 0.9694906505 | BA68: 0.9756552249 | BB68: 0.9815318405 | BC68: 0.9870413743 | BD68: 0.9915685125 | BE68: 0.9906257026 | BF68: 0.9893615277 | BG68: 0.9883564269 | BH68: 0.987758695 | BI68: 0.987555318 | BJ68: 0.9832666891 | BK68: 0.9791422105 | BL68: 0.9747488838 | BM68: 0.9696242397 | BN68: 0.96440302 | BO68: 0.9595148884 | BP68: 0.9550235702 | BQ68: 0.9507292675 | BR68: 0.9464837955 | BS68: =BS50/$D50 -> 0.9422304313 | BT68: 0.9383291225 | BU68: 0.9346349365 | BV68: 0.9322983739 | BW68: 0.9301728948 | BX68: 0.9282836703 | BY68: 0.926317105 | BZ68: 0.9243224988 | CA68: 0.922167268 | CB68: 0.9200994058 | CC68: 0.9178361181 | CD68: 0.9154741096
E69: =E51/D51 -> 1.082042863 | F69: =F51/$D51 -> 1.006271318 | G69: =G51/$D51 -> 1.026734849 | H69: 1.039054245 | I69: 1.059579817 | J69: 1.058961903 | K69: 1.042429163 | L69: 1.033399 | M69: 0.9959944774 | N69: 0.9553183297 | O69: 0.9405719329 | P69: 0.8899412972 | Q69: 0.8734772857 | R69: 0.8613680774 | S69: 0.8463220957 | T69: 0.8347304456 | U69: 0.8232244568 | V69: 0.8101692554 | W69: 0.8706593116 | X69: 0.8856868845 | Y69: 0.9029850542 | Z69: 0.9239175993 | AA69: 0.946850333 | AB69: 0.9743139317 | AC69: 1.003260091 | AD69: 1.037500895 | AE69: 1.076901202 | AF69: 1.125481903 | AG69: 1.052914048 | AH69: 1.043371141 | AI69: 1.037839982 | AJ69: 1.032402763 | AK69: 1.02717542 | AL69: 1.022411707 | AM69: 0.7828280096 | AN69: 0.7743440275 | AO69: 0.7828964406 | AP69: 0.7915968606 | AQ69: 0.8000951123 | AR69: 0.8087218874 | AS69: 0.8171865995 | AT69: 0.8255379389 | AU69: 0.8336826058 | AV69: 0.8418531462 | AW69: 0.8497988442 | AX69: 0.8575022241 | AY69: 0.864872727 | AZ69: 0.8722583698 | BA69: 0.879388707 | BB69: 0.8863009717 | BC69: 0.8929202503 | BD69: 0.898691365 | BE69: 0.8995235149 | BF69: 0.9000126038 | BG69: 0.9007427483 | BH69: 0.9018643927 | BI69: 0.9033673691 | BJ69: 0.9011489621 | BK69: 0.8990288024 | BL69: 0.8966646204 | BM69: 0.8936216315 | BN69: 0.8904756911 | BO69: 0.8876290593 | BP69: 0.8851530764 | BQ69: 0.8828630083 | BR69: 0.8806200054 | BS69: =BS51/$D51 -> 0.8783676422 | BT69: 0.876445789 | BU69: 0.8747235851 | BV69: 0.874279163 | BW69: 0.8740561345 | BX69: 0.8740705797 | BY69: 0.8740264952 | BZ69: 0.873966092 | CA69: 0.8737624152 | CB69: 0.8736523284 | CC69: 0.873368375 | CD69: 0.8729983941

Sheet Scenarios
A1: Scenario | B1: 2 | F1: 5 is not a Scenario, it’s a baseline for model calibration | J1: 1 | K1: electric dreams
J2: 2 | K2: dual fuel
A3: Discount Factor | B3: 1 | C3: 2 | D3: 3 | E3: 4 | F3: 5 | G3: Selected Input | J3: 3 | K3: muddling through
A4: High income | B4: 0.06646118392 | C4: 0.06646118392 | D4: 0.07646118392 | E4: 0.07146118392 | F4: 0.05 | G4: =IF($B$1=$B$3,B4,IF($B$1=$C$3,C4,IF($B$1=$D$3,D4,IF($B$1=E4,$E$3,F4)))) -> 0.06646118392 | J4: 4 | K4: hydrogen hero
A5: Medium income | B5: 0.09704565749 | C5: 0.09704565749 | D5: 0.1070456575 | E5: 0.1020456575 | F5: 0.1 | G5: =IF($B$1=$B$3,B5,IF($B$1=$C$3,C5,IF($B$1=$D$3,D5,IF($B$1=E5,$E$3,F5)))) -> 0.09704565749
A6: Low income | B6: 0.1735068414 | C6: 0.1735068414 | D6: 0.1835068414 | E6: 0.1785068414 | F6: 0.15 | G6: 0.1735068414
A7: Commercial | B7: 0.0472 | C7: 0.0472 | D7: 0.0572 | E7: 0.0522 | F7: 0.03 | G7: 0.0472
A9: Appliance efficiency | B9: 1 | C9: 2 | D9: 3 | E9: 4 | F9: 5 | G9: Selected Input | I9: Appliance costs
A10: Cooking | I10: Cooking | J10: real % change (p.a.)
A11: Electric cooktop (induction) | B11: 0.0064 | C11: 0.006 | D11: 0.0057 | E11: 0 | F11: 0 | G11: =IF($B$1=$B$9,B11,IF($B$1=$C$9,C11,IF($B$1=$D$9,D11,IF($B$1=$E$9,E11,F11)))) -> 0.006 | I11: Electric cooktop (induction) | J11: -0.01 | K11: -0.01
A12: Gas stove | B12: 0 | C12: 0 | D12: 0.0057 | E12: 0.0064 | F12: 0 | G12: =IF($B$1=$B$9,B12,IF($B$1=$C$9,C12,IF($B$1=$D$9,D12,IF($B$1=$E$9,E12,F12)))) -> 0 | I12: Gas stove | J12: 0 | K12: 0
A14: Hot water | I14: Hot water
A15: Heat pump hot water | B15: 0.0064 | C15: 0.0064 | D15: 0 | E15: 0 | F15: 0 | G15: =IF($B$1=$B$9,B15,IF($B$1=$C$9,C15,IF($B$1=$D$9,D15,IF($B$1=$E$9,E15,F15)))) -> 0.0064 | I15: Heat pump hot water | J15: -0.01 | K15: -0.01
A16: Gas instant hot water | B16: 0 | C16: 0 | D16: 0 | E16: 0.0082 | F16: 0 | G16: 0 | I16: Gas instant hot water | J16: 0 | K16: 0
A18: Room heating | I18: Room heating
A19: RCAC split system | B19: 0 | C19: 0 | D19: 0 | E19: 0.002 | F19: 0 | G19: 0 | I19: RCAC split system | J19: -0.01 | K19: -0.01
A20: Gas wall furnace | B20: 0 | C20: 0 | D20: 0 | E20: 0 | F20: 0 | G20: 0 | I20: Gas wall furnace | J20: 0 | K20: 0
A22: Ducted heating | I22: Ducted heating
A23: Ducted RCAC | B23: 0.0029 | C23: 0.0029 | D23: 0.002 | E23: 0 | F23: 0 | G23: 0.0029 | I23: Ducted RCAC | J23: -0.01 | K23: -0.01
A24: Ducted gas heating | B24: 0 | C24: 0 | D24: 0.002 | E24: 0.002 | F24: 0 | G24: 0 | I24: Ducted gas heating | J24: 0 | K24: 0
A27: Maintenance costs | B27: 1 | C27: 2 | D27: 3 | E27: 4 | F27: 5 | G27: Selected Input | I27: Connection/Disconnection Sensitity | J27: Residential | L27: Commercial
A28: Cooking | I28: 1 (90% switch at 10% saving) | J28: 2.45 | K28: -0.033 | L28: 2.7 | M28: -0.0061
A29: Electric cooktop (induction) | B29: -0.0064 | C29: -0.006 | D29: -0.0057 | E29: 0 | F29: 0 | G29: =IF($B$1=$B$27,B29,IF($B$1=$C$27,C29,IF($B$1=$D$27,D29,IF($B$1=$E$27,E29,F29)))) -> -0.006 | I29: 2 (90% switch at 20% saving) | J29: 2.6 | K29: -0.00167 | L29: 2.7 | M29: -0.000305
A30: Gas stove | B30: 0 | C30: 0 | D30: -0.0057 | E30: -0.0064 | F30: 0 | G30: =IF($B$1=$B$27,B30,IF($B$1=$C$27,C30,IF($B$1=$D$27,D30,IF($B$1=$E$27,E30,F30)))) -> 0 | I30: 3 (90% switch at 20% saving) | J30: 2.6 | K30: -0.00167 | L30: 2.7 | M30: -0.000305
I31: 4 (90% switch at 40% saving) | J31: 2.77 | K31: -0.00087 | L31: 2.7 | M31: -0.000152
A32: Hot water | I32: Selected Input | J32: =IF($B$1=1,J28,IF($B$1=2,J29,IF($B$1=3,J30,IF($B$1=4,J31,J30)))) -> 2.6 | K32: =IF($B$1=1,K28,IF($B$1=2,K29,IF($B$1=3,K30,IF($B$1=4,K31,K30)))) -> -0.00167 | L32: =IF($B$1=1,L28,IF($B$1=2,L29,IF($B$1=3,L30,IF($B$1=4,L31,L30)))) -> 2.7 | M32: =IF($B$1=1,M28,IF($B$1=2,M29,IF($B$1=3,M30,IF($B$1=4,M31,M30)))) -> -0.000305
A33: Heat pump hot water | B33: -0.0064 | C33: -0.0064 | D33: 0 | E33: 0 | F33: 0 | G33: -0.0064
A34: Gas instant hot water | B34: 0 | C34: 0 | D34: 0 | E34: -0.0082 | F34: 0 | G34: 0
A36: Room heating
A37: RCAC split system | B37: 0 | C37: 0 | D37: 0 | E37: -0.002 | F37: 0 | G37: 0
A38: Gas wall furnace | B38: 0 | C38: 0 | D38: 0 | E38: 0 | F38: 0 | G38: 0
A40: Ducted heating
A41: Ducted RCAC | B41: -0.0029 | C41: -0.0029 | D41: -0.002 | E41: 0 | F41: 0 | G41: -0.0029
A42: Ducted gas heating | B42: 0 | C42: 0 | D42: -0.002 | E42: -0.002 | F42: 0 | G42: 0
A44: Elasticities | B44: 1 | C44: 2 | D44: 3 | E44: 4 | F44: 5 | G44: Selected Input
A45: Residential
A46: Weather | B46: 0.3555523 | C46: 0.3555523 | D46: 0.3555523 | E46: 0.3555523 | F46: 0.3555523 | G46: =IF($B$1=$B$44,B46,IF($B$1=$C$44,C46,IF($B$1=$D$44,D46,IF($B$1=$E$44,E46,F46)))) -> 0.3555523
A47: Gas price | B47: -0.8 | C47: -0.7 | D47: -0.6 | E47: -0.4 | F47: -0.1 | G47: =IF($B$1=$B$44,B47,IF($B$1=$C$44,C47,IF($B$1=$D$44,D47,IF($B$1=$E$44,E47,F47)))) -> -0.7
A48: Electricity price | B48: 0.008 | C48: 0.008 | D48: 0.008 | E48: 0.008 | F48: 0.08 | G48: 0.008
A49: Commercial
A50: Weather | B50: 0.1551871 | C50: 0.1551871 | D50: 0.1551871 | E50: 0.1551871 | F50: 0.1551871 | G50: 0.1551871
A51: Gas price | B51: -0.9 | C51: -0.8 | D51: -0.7 | E51: -0.5 | F51: -0.35 | G51: -0.8 | I51: Percent of status quo in prices | J51: 0
A52: Electricity price | B52: 0.008 | C52: 0.008 | D52: 0.008 | E52: 0.008 | F52: 0.3 | G52: 0.008 | I52: Upper NPV electrification threshold | J52: 1
A55: Gas (Energy only) Prices | B55: Selected Input | C55: 2021 | D55: =C55+1 -> 2022 | E55: 2023 | F55: 2024 | G55: 2025 | H55: 2026 | I55: 2027 | J55: 2028 | K55: 2029 | L55: 2030 | M55: 2031 | N55: 2032 | O55: 2033 | P55: 2034 | Q55: 2035 | R55: 2036 | S55: 2037 | T55: 2038 | U55: 2039 | V55: 2040 | W55: 2041 | X55: 2042 | Y55: 2043 | Z55: 2044 | AA55: 2045 | AB55: 2046 | AC55: 2047 | AD55: 2048 | AE55: 2049 | AF55: 2050 | AG55: 2051 | AH55: 2052 | AI55: 2053 | AJ55: 2054 | AK55: 2055 | AL55: 2056 | AM55: 2057 | AN55: 2058 | AO55: 2059 | AP55: 2060 | AQ55: 2061 | AR55: 2062 | AS55: 2063 | AT55: 2064 | AU55: 2065 | AV55: 2066 | AW55: 2067 | AX55: 2068 | AY55: 2069 | AZ55: 2070 | BA55: 2071 | BB55: 2072 | BC55: 2073 | BD55: 2074 | BE55: 2075 | BF55: 2076 | BG55: 2077 | BH55: 2078 | BI55: 2079 | BJ55: 2080 | BK55: 2081 | BL55: 2082 | BM55: 2083 | BN55: 2084 | BO55: 2085 | BP55: =BO55+1 -> 2086 | BQ55: 2087 | BR55: 2088 | BS55: 2089 | BT55: 2090 | BU55: 2091 | BV55: 2092 | BW55: 2093 | BX55: 2094 | BY55: 2095 | BZ55: 2096 | CA55: 2097 | CB55: 2098 | CC55: 2099 | CD55: 2100
B56: =B1 -> 2 | C56: =AVERAGE(C57:C60) -> 10.06747439 | D56: =AVERAGE(D57:D60) -> 9.971201912 | E56: =IF($B$1=$A57,E57,IF($B$1=$A58,E58,IF($B$1=$A59,E59,IF($B$1=$A60,E60,E61))))*(1-$J$51)+E61*$J$51 -> 11.20059418 | F56: =IF($B$1=$A57,F57,IF($B$1=$A58,F58,IF($B$1=$A59,F59,IF($B$1=$A60,F60,F61))))*(1-$J$51)+F61*$J$51 -> 11.88144628 | G56: 12.81778223 | H56: 13.74847079 | I56: 13.88559921 | J56: 13.72939762 | K56: 13.69127049 | L56: 13.50633716 | M56: 13.54693418 | N56: 13.6373312 | O56: 13.79822822 | P56: 13.87212523 | Q56: 13.88092225 | R56: 13.93651927 | S56: 14.17331629 | T56: 14.25441331 | U56: 14.31481032 | V56: 15.27707343 | W56: 15.03622708 | X56: 14.79319348 | Y56: 14.56434713 | Z56: 14.34150078 | AA56: 14.12246717 | AB56: 13.91162083 | AC56: 13.67484188 | AD56: 13.36287574 | AE56: 13.05090961 | AF56: 12.73894348 | AG56: 12.63176975 | AH56: 12.53289069 | AI56: 12.4416105 | AJ56: 12.35729896 | AK56: 12.27938431 | AL56: 12.20734702 | AM56: 12.14071435 | AN56: 12.07905552 | AO56: 12.02197746 | AP56: 11.96912109 | AQ56: 11.920158 | AR56: 11.87478748 | AS56: 11.83273393 | AT56: 11.79374447 | AU56: 11.75758693 | AV56: 11.7240479 | AW56: 11.69293108 | AX56: 11.66405581 | AY56: 11.63725565 | AZ56: 11.61237718 | BA56: 11.58927892 | BB56: 11.56783028 | BC56: 11.54791069 | BD56: 11.52940876 | BE56: 11.51222153 | BF56: 11.49625381 | BG56: 11.48141751 | BH56: 11.46763114 | BI56: 11.45481925 | BJ56: 11.44291197 | BK56: 11.43184455 | BL56: 11.42155702 | BM56: 11.41199377 | BN56: 11.40310326 | BO56: 11.39483767 | BP56: 11.38715267 | BQ56: 11.38000712 | BR56: =IF($B$1=$A57,BR57,IF($B$1=$A58,BR58,IF($B$1=$A59,BR59,IF($B$1=$A60,BR60,BR61))))*(1-$J$51)+BR61*$J$51 -> 11.37336283 | BS56: 11.36718438 | BT56: 11.36143886 | BU56: 11.35609574 | BV56: 11.35112667 | BW56: 11.3465053 | BX56: 11.34220717 | BY56: 11.33820957 | BZ56: 11.33449138 | CA56: 11.33103299 | CB56: 11.32781616 | CC56: 11.32482398 | CD56: 11.32204068
A57: 1 | C57: 9.875 | D57: 9.6 | E57: 10.55 | F57: 11.13333333 | G57: 12.05416667 | H57: 12.975 | I57: 13.09375 | J57: 12.9375 | K57: 12.93125 | L57: 12.9 | M57: 13 | N57: 13.15 | O57: 13.375 | P57: 13.5 | Q57: 13.55 | R57: 13.65 | S57: 13.95 | T57: 14.075 | U57: 14.175 | V57: 14.2 | W57: 14.2375 | X57: 14.25 | Y57: 14.2625 | Z57: 14.275 | AA57: 14.2875 | AB57: 14.3 | AC57: 14.3125 | AD57: 14.325 | AE57: 14.3375 | AF57: 14.35 | AG57: 14.36 | AH57: 14.37 | AI57: 14.38 | AJ57: 14.39 | AK57: 14.4 | AL57: 14.41 | AM57: 14.42 | AN57: 14.43 | AO57: 14.44 | AP57: 14.45 | AQ57: 14.46 | AR57: 14.47 | AS57: 14.48 | AT57: 14.49 | AU57: 14.5 | AV57: 14.51 | AW57: 14.52 | AX57: 14.53 | AY57: 14.54 | AZ57: 14.55 | BA57: 14.56 | BB57: 14.57 | BC57: 14.58 | BD57: 14.59 | BE57: 14.6 | BF57: 14.61 | BG57: 14.62 | BH57: 14.63 | BI57: 14.64 | BJ57: 14.65 | BK57: 14.66 | BL57: 14.67 | BM57: 14.68 | BN57: 14.69 | BO57: 14.7 | BP57: 14.71 | BQ57: 14.72 | BR57: 14.73 | BS57: 14.74 | BT57: 14.75 | BU57: 14.76 | BV57: 14.77 | BW57: 14.78 | BX57: 14.79 | BY57: 14.8 | BZ57: 14.81 | CA57: 14.82 | CB57: 14.83 | CC57: 14.84 | CD57: 14.85
A58: 2 | C58: 10.14771468 | D58: 10.10292304 | E58: 11.20059418 | F58: 11.88144628 | G58: 12.81778223 | H58: 13.74847079 | I58: 13.88559921 | J58: 13.72939762 | K58: 13.69127049 | L58: 13.50633716 | M58: 13.54693418 | N58: 13.6373312 | O58: 13.79822822 | P58: 13.87212523 | Q58: 13.88092225 | R58: 13.93651927 | S58: 14.17331629 | T58: 14.25441331 | U58: 14.31481032 | V58: 15.27707343 | W58: 15.03622708 | X58: 14.79319348 | Y58: 14.56434713 | Z58: 14.34150078 | AA58: 14.12246717 | AB58: 13.91162083 | AC58: 13.67484188 | AD58: 13.36287574 | AE58: 13.05090961 | AF58: 12.73894348 | AG58: 12.63176975 | AH58: 12.53289069 | AI58: 12.4416105 | AJ58: 12.35729896 | AK58: 12.27938431 | AL58: 12.20734702 | AM58: 12.14071435 | AN58: 12.07905552 | AO58: 12.02197746 | AP58: 11.96912109 | AQ58: 11.920158 | AR58: 11.87478748 | AS58: 11.83273393 | AT58: 11.79374447 | AU58: 11.75758693 | AV58: 11.7240479 | AW58: 11.69293108 | AX58: 11.66405581 | AY58: 11.63725565 | AZ58: 11.61237718 | BA58: 11.58927892 | BB58: 11.56783028 | BC58: 11.54791069 | BD58: 11.52940876 | BE58: 11.51222153 | BF58: 11.49625381 | BG58: 11.48141751 | BH58: 11.46763114 | BI58: 11.45481925 | BJ58: 11.44291197 | BK58: 11.43184455 | BL58: 11.42155702 | BM58: 11.41199377 | BN58: 11.40310326 | BO58: 11.39483767 | BP58: 11.38715267 | BQ58: 11.38000712 | BR58: 11.37336283 | BS58: 11.36718438 | BT58: 11.36143886 | BU58: 11.35609574 | BV58: 11.35112667 | BW58: 11.3465053 | BX58: 11.34220717 | BY58: 11.33820957 | BZ58: 11.33449138 | CA58: 11.33103299 | CB58: 11.32781616 | CC58: 11.32482398 | CD58: 11.32204068
A59: 3 | C59: 10.11897087 | D59: 10.11611548 | E59: 11.12728216 | F59: 11.6017237 | G59: 12.07816952 | H59: 12.64043553 | I59: 12.77768308 | J59: 12.75236186 | K59: 12.71273026 | L59: 12.64975718 | M59: 12.77300159 | N59: 12.92074599 | O59: 13.0472404 | P59: 13.19748481 | Q59: 13.32622922 | R59: 13.40622363 | S59: 13.52421804 | T59: 13.62046245 | U59: 13.67245686 | V59: 13.67945127 | W59: 13.67166758 | X59: 13.64711014 | Y59: 13.62346281 | Z59: 13.60006549 | AA59: 13.57650805 | AB59: 13.55361072 | AC59: 13.53218468 | AD59: 13.50762583 | AE59: 13.48306699 | AF59: 13.45850815 | AG59: 13.45431408 | AH59: 13.45114116 | AI59: 13.44890373 | AJ59: 13.4475242 | AK59: 13.44693219 | AL59: 13.44706374 | AM59: 13.44786065 | AN59: 13.44926988 | AO59: 13.45124305 | AP59: 13.45373594 | AQ59: 13.45670814 | AR59: 13.46012261 | AS59: 13.46394543 | AT59: 13.46814547 | AU59: 13.47269415 | AV59: 13.47756519 | AW59: 13.48273442 | AX59: 13.48817961 | AY59: 13.49388026 | AZ59: 13.4998175 | BA59: 13.50597389 | BB59: 13.51233336 | BC59: 13.51888108 | BD59: 13.52560332 | BE59: 13.53248742 | BF59: 13.53952164 | BG59: 13.54669516 | BH59: 13.55399793 | BI59: 13.56142067 | BJ59: 13.56895477 | BK59: 13.57659227 | BL59: 13.58432578 | BM59: 13.59214846 | BN59: 13.60005395 | BO59: 13.60803638 | BP59: 13.61609029 | BQ59: 13.62421061 | BR59: 13.63239263 | BS59: 13.64063201 | BT59: 13.64892468 | BU59: 13.6572669 | BV59: 13.66565516 | BW59: 13.67408623 | BX59: 13.68255709 | BY59: 13.69106495 | BZ59: 13.6996072 | CA59: 13.70818144 | CB59: 13.71678542 | CC59: 13.72541706 | CD59: 13.73407441
A60: 4 | C60: 10.12821202 | D60: 10.06576913 | E60: 11.14887077 | F60: 11.81618453 | G60: 12.74288411 | H60: 13.65934304 | I60: 13.78249184 | J60: 13.61584152 | K60: 13.56464488 | L60: 13.34308573 | M60: 13.38233386 | N60: 13.472582 | O60: 13.63408013 | P60: 13.70932827 | Q60: 13.72007641 | R60: 13.77807454 | S60: 14.01757268 | T60: 14.10182082 | U60: 14.16581895 | V60: 13.82317089 | W60: 13.60889193 | X60: 13.39324592 | Y60: 13.19396696 | Z60: 13.00218799 | AA60: 12.81654198 | AB60: 12.63976302 | AC60: 12.41963198 | AD60: 12.10551697 | AE60: 11.79140195 | AF60: 11.47728694 | AG60: 11.38072762 | AH60: 11.29164148 | AI60: 11.20940162 | AJ60: 11.13344024 | AK60: 11.0632422 | AL60: 10.99833944 | AM60: 10.93830603 | AN60: 10.88275384 | AO60: 10.83132876 | AP60: 10.78370725 | AQ60: 10.73959343 | AR60: 10.69871638 | AS60: 10.66082778 | AT60: 10.62569982 | AU60: 10.59312329 | AV60: 10.56290594 | AW60: 10.53487092 | AX60: 10.50885543 | AY60: 10.48470954 | AZ60: 10.46229502 | BA60: 10.4414844 | BB60: 10.42216002 | BC60: 10.40421325 | BD60: 10.38754374 | BE60: 10.37205872 | BF60: 10.35767243 | BG60: 10.34430551 | BH60: 10.33188454 | BI60: 10.32034153 | BJ60: 10.30961353 | BK60: 10.29964222 | BL60: 10.29037356 | BM60: 10.28175745 | BN60: 10.27374745 | BO60: 10.26630048 | BP60: 10.2593766 | BQ60: 10.25293874 | BR60: 10.2469525 | BS60: 10.24138595 | BT60: 10.23620947 | BU60: 10.23139553 | BV60: 10.22691858 | BW60: 10.22275491 | BX60: 10.21888247 | BY60: 10.21528079 | BZ60: 10.21193085 | CA60: 10.20881497 | CB60: 10.20591674 | CC60: 10.2032209 | CD60: 10.20071326
A61: 5 | C61: =C56 -> 10.06747439 | D61: =D56 -> 9.971201912 | E61: =D61 -> 9.971201912 | F61: =E61 -> 9.971201912 | G61: 9.971201912 | H61: 9.971201912 | I61: 9.971201912 | J61: 9.971201912 | K61: 9.971201912 | L61: 9.971201912 | M61: 9.971201912 | N61: 9.971201912 | O61: 9.971201912 | P61: 9.971201912 | Q61: 9.971201912 | R61: 9.971201912 | S61: 9.971201912 | T61: 9.971201912 | U61: 9.971201912 | V61: 9.971201912 | W61: 9.971201912 | X61: 9.971201912 | Y61: 9.971201912 | Z61: 9.971201912 | AA61: 9.971201912 | AB61: 9.971201912 | AC61: 9.971201912 | AD61: 9.971201912 | AE61: 9.971201912 | AF61: 9.971201912 | AG61: 9.971201912 | AH61: 9.971201912 | AI61: 9.971201912 | AJ61: 9.971201912 | AK61: 9.971201912 | AL61: 9.971201912 | AM61: 9.971201912 | AN61: 9.971201912 | AO61: 9.971201912 | AP61: 9.971201912 | AQ61: 9.971201912 | AR61: 9.971201912 | AS61: 9.971201912 | AT61: 9.971201912 | AU61: 9.971201912 | AV61: 9.971201912 | AW61: 9.971201912 | AX61: 9.971201912 | AY61: 9.971201912 | AZ61: 9.971201912 | BA61: 9.971201912 | BB61: 9.971201912 | BC61: 9.971201912 | BD61: 9.971201912 | BE61: 9.971201912 | BF61: 9.971201912 | BG61: 9.971201912 | BH61: 9.971201912 | BI61: 9.971201912 | BJ61: 9.971201912 | BK61: 9.971201912 | BL61: 9.971201912 | BM61: 9.971201912 | BN61: 9.971201912 | BO61: 9.971201912 | BP61: 9.971201912 | BQ61: 9.971201912 | BR61: =BQ61 -> 9.971201912 | BS61: 9.971201912 | BT61: 9.971201912 | BU61: 9.971201912 | BV61: 9.971201912 | BW61: 9.971201912 | BX61: 9.971201912 | BY61: 9.971201912 | BZ61: 9.971201912 | CA61: 9.971201912 | CB61: 9.971201912 | CC61: 9.971201912 | CD61: 9.971201912
E62: =Prices!AC3/Prices!$AC$3 -> 1 | F62: =Prices!AD3/Prices!$AC$3 -> 1.029700839 | G62: =Prices!AE3/Prices!$AC$3 -> 1.08939884 | H62: =Prices!AF3/Prices!$AC$3 -> 1.148865678 | I62: =Prices!AG3/Prices!$AC$3 -> 1.166180898 | J62: =Prices!AH3/Prices!$AC$3 -> 1.169535754 | K62: =Prices!AI3/Prices!$AC$3 -> 1.182484132 | L62: =Prices!AJ3/Prices!$AC$3 -> 1.19478063 | M62: =Prices!AK3/Prices!$AC$3 -> 1.092431634 | N62: =Prices!AL3/Prices!$AC$3 -> 1.09317126 | O62: =Prices!AM3/Prices!$AC$3 -> 1.1010279 | P62: =Prices!AN3/Prices!$AC$3 -> 1.098927786 | Q62: =Prices!AO3/Prices!$AC$3 -> 1.097766589 | R62: =Prices!AP3/Prices!$AC$3 -> 1.100436705 | S62: =Prices!AQ3/Prices!$AC$3 -> 1.112329113 | T62: =Prices!AR3/Prices!$AC$3 -> 1.117317677 | U62: =Prices!AS3/Prices!$AC$3 -> 1.120217641 | V62: =Prices!AT3/Prices!$AC$3 -> 1.17124007 | W62: =Prices!AU3/Prices!$AC$3 -> 1.166901448 | X62: =Prices!AV3/Prices!$AC$3 -> 1.156455538 | Y62: =Prices!AW3/Prices!$AC$3 -> 1.147244201 | Z62: =Prices!AX3/Prices!$AC$3 -> 1.137931891 | AA62: =Prices!AY3/Prices!$AC$3 -> 1.129141321 | AB62: =Prices!AZ3/Prices!$AC$3 -> 1.121459226 | AC62: =Prices!BA3/Prices!$AC$3 -> 1.114028112 | AD62: =Prices!BB3/Prices!$AC$3 -> 1.101296778 | AE62: =Prices!BC3/Prices!$AC$3 -> 1.088773884 | AF62: =Prices!BD3/Prices!$AC$3 -> 1.07746 | AG62: =Prices!BE3/Prices!$AC$3 -> 1.05911052 | AH62: =Prices!BF3/Prices!$AC$3 -> 1.052225471 | AI62: =Prices!BG3/Prices!$AC$3 -> 1.046335665 | AJ62: =Prices!BH3/Prices!$AC$3 -> 1.040848824 | AK62: =Prices!BI3/Prices!$AC$3 -> 1.035749467 | AL62: =Prices!BJ3/Prices!$AC$3 -> 1.031044627 | AM62: =Prices!BK3/Prices!$AC$3 -> 0.9932548339 | AN62: =Prices!BL3/Prices!$AC$3 -> 0.9886012874 | AO62: =Prices!BM3/Prices!$AC$3 -> 0.9866261117 | AP62: =Prices!BN3/Prices!$AC$3 -> 0.9849080102 | AQ62: =Prices!BO3/Prices!$AC$3 -> 0.983378833 | AR62: =Prices!BP3/Prices!$AC$3 -> 0.9820687864 | AS62: =Prices!BQ3/Prices!$AC$3 -> 0.980921145 | AT62: =Prices!BR3/Prices!$AC$3 -> 0.9799286949 | AU62: =Prices!BS3/Prices!$AC$3 -> 0.9790651887 | AV62: =Prices!BT3/Prices!$AC$3 -> 0.9783517592 | AW62: =Prices!BU3/Prices!$AC$3 -> 0.9777417851 | AX62: =Prices!BV3/Prices!$AC$3 -> 0.9772226799 | AY62: =Prices!BW3/Prices!$AC$3 -> 0.9767722628 | AZ62: =Prices!BX3/Prices!$AC$3 -> 0.9764314383 | BA62: =Prices!BY3/Prices!$AC$3 -> 0.9761538433 | BB62: =Prices!BZ3/Prices!$AC$3 -> 0.9759374709 | BC62: =Prices!CA3/Prices!$AC$3 -> 0.9757649288 | BD62: =Prices!CB3/Prices!$AC$3 -> 0.975551053 | BE62: =Prices!CC3/Prices!$AC$3 -> 0.9747084501 | BF62: =Prices!CD3/Prices!$AC$3 -> 0.9738852512 | BG62: =Prices!CE3/Prices!$AC$3 -> 0.9731595831 | BH62: =Prices!CF3/Prices!$AC$3 -> 0.9725482797 | BI62: =Prices!CG3/Prices!$AC$3 -> 0.9720456766 | BJ62: =Prices!CH3/Prices!$AC$3 -> 0.9710645359 | BK62: =Prices!CI3/Prices!$AC$3 -> 0.9701443204 | BL62: =Prices!CJ3/Prices!$AC$3 -> 0.969233012 | BM62: =Prices!CK3/Prices!$AC$3 -> 0.9682656836 | BN62: =Prices!CL3/Prices!$AC$3 -> 0.9673213293 | BO62: =Prices!CM3/Prices!$AC$3 -> 0.9664544703 | BP62: =Prices!CN3/Prices!$AC$3 -> 0.9656727708 | BQ62: =Prices!CO3/Prices!$AC$3 -> 0.9649476647 | BR62: =Prices!CP3/Prices!$AC$3 -> 0.9642572756 | BS62: =Prices!CQ3/Prices!$AC$3 -> 0.9635915998 | BT62: =Prices!CR3/Prices!$AC$3 -> 0.9629971217 | BU62: =Prices!CS3/Prices!$AC$3 -> 0.9624535278 | BV62: =Prices!CT3/Prices!$AC$3 -> 0.9621125234 | BW62: =Prices!CU3/Prices!$AC$3 -> 0.961822437 | BX62: =Prices!CV3/Prices!$AC$3 -> 0.9615841874 | BY62: =Prices!CW3/Prices!$AC$3 -> 0.9613544177 | BZ62: =Prices!CX3/Prices!$AC$3 -> 0.9611379494 | CA62: =Prices!CY3/Prices!$AC$3 -> 0.9609156353 | CB62: =Prices!CZ3/Prices!$AC$3 -> 0.9607201339 | CC62: =Prices!DA3/Prices!$AC$3 -> 0.9605124709 | CD62: =Prices!DB3/Prices!$AC$3 -> 0.9603042553
A63: Electricity Prices | B63: Selected Input | C63: 2021 | D63: 2022 | E63: 2023 | F63: 2024 | G63: 2025 | H63: 2026 | I63: 2027 | J63: 2028 | K63: 2029 | L63: 2030 | M63: 2031 | N63: 2032 | O63: 2033 | P63: 2034 | Q63: 2035 | R63: 2036 | S63: 2037 | T63: 2038 | U63: 2039 | V63: 2040 | W63: 2041 | X63: 2042 | Y63: 2043 | Z63: 2044 | AA63: 2045 | AB63: 2046 | AC63: 2047 | AD63: 2048 | AE63: 2049 | AF63: 2050 | AG63: 2051 | AH63: 2052 | AI63: 2053 | AJ63: 2054 | AK63: 2055 | AL63: 2056 | AM63: 2057 | AN63: 2058 | AO63: 2059 | AP63: 2060 | AQ63: 2061 | AR63: 2062 | AS63: 2063 | AT63: 2064 | AU63: 2065 | AV63: 2066 | AW63: 2067 | AX63: 2068 | AY63: 2069 | AZ63: 2070 | BA63: 2071 | BB63: 2072 | BC63: 2073 | BD63: 2074 | BE63: 2075 | BF63: 2076 | BG63: 2077 | BH63: 2078 | BI63: 2079 | BJ63: 2080 | BK63: 2081 | BL63: 2082 | BM63: 2083 | BN63: 2084 | BO63: 2085 | BP63: 2086 | BQ63: 2087 | BR63: 2088 | BS63: 2089 | BT63: 2090 | BU63: 2091 | BV63: 2092 | BW63: 2093 | BX63: 2094 | BY63: 2095 | BZ63: 2096 | CA63: 2097 | CB63: 2098 | CC63: 2099 | CD63: 2100
A65: Residential - Fixed component | B65: =$B$1 -> 2 | D65: =IF($B$1=$B72,D72,IF($B$1=$B79,D79,IF($B$1=$B86,D86,IF($B$1=$B93,D93,D101)))) -> 3.404881395 | E65: =IF($B$1=$B72,E72,IF($B$1=$B79,E79,IF($B$1=$B86,E86,IF($B$1=$B93,E93,E100)))) -> 3.30769195 | F65: 3.150230098 | G65: 3.104117461 | H65: 3.02994897 | I65: 2.931532071 | J65: 3.021662534 | K65: 2.951221934 | L65: 3.11142152 | M65: 3.872000262 | N65: 4.870484516 | O65: 5.66598634 | P65: 6.62638268 | Q65: 7.57125265 | R65: 8.745216589 | S65: 9.979670206 | T65: 11.27625984 | U65: 12.63441505 | V65: 14.05317975 | W65: 13.9823987 | X65: 13.90580995 | Y65: 13.82209864 | Z65: 13.73177353 | AA65: 13.63533208 | AB65: 13.70936373 | AC65: 13.78234351 | AD65: 13.85444731 | AE65: 13.92445247 | AF65: 13.99379719 | AG65: =AF65 -> 13.99379719 | AH65: =AG65 -> 13.99379719 | AI65: 13.99379719 | AJ65: 13.99379719 | AK65: 13.99379719 | AL65: 13.99379719 | AM65: 13.99379719 | AN65: 13.99379719 | AO65: 13.99379719 | AP65: 13.99379719 | AQ65: 13.99379719 | AR65: 13.99379719 | AS65: 13.99379719 | AT65: 13.99379719 | AU65: 13.99379719 | AV65: 13.99379719 | AW65: 13.99379719 | AX65: =AW65 -> 13.99379719 | AY65: 13.99379719 | AZ65: 13.99379719 | BA65: 13.99379719 | BB65: 13.99379719 | BC65: 13.99379719 | BD65: 13.99379719 | BE65: 13.99379719 | BF65: 13.99379719 | BG65: 13.99379719 | BH65: 13.99379719 | BI65: 13.99379719 | BJ65: 13.99379719 | BK65: 13.99379719 | BL65: 13.99379719 | BM65: 13.99379719 | BN65: =BM65 -> 13.99379719 | BO65: 13.99379719 | BP65: 13.99379719 | BQ65: 13.99379719 | BR65: 13.99379719 | BS65: 13.99379719 | BT65: 13.99379719 | BU65: 13.99379719 | BV65: 13.99379719 | BW65: 13.99379719 | BX65: 13.99379719 | BY65: 13.99379719 | BZ65: 13.99379719 | CA65: 13.99379719 | CB65: 13.99379719 | CC65: 13.99379719 | CD65: =CC65 -> 13.99379719
A66: Residential - Variable Component | B66: =$B$1 -> 2 | C66: =AVERAGE(C73,C80,C87,C94)/100 -> 0.2419784749 | D66: =AVERAGE(D73,D80,D87,D94)/100 -> 0.2682832668 | E66: =(IF($B$1=$B73,E73,IF($B$1=$B80,E80,IF($B$1=$B87,E87,IF($B$1=$B94,E94,E101))))*(1-$J$51)+E101*$J$51)/100 -> 0.2589099709 | F66: =(IF($B$1=$B73,F73,IF($B$1=$B80,F80,IF($B$1=$B87,F87,IF($B$1=$B94,F94,F101))))*(1-$J$51)+F101*$J$51)/100 -> 0.2465846262 | G66: =(IF($B$1=$B73,G73,IF($B$1=$B80,G80,IF($B$1=$B87,G87,IF($B$1=$B94,G94,G101))))*(1-$J$51)+G101*$J$51)/100 -> 0.2429751543 | H66: =(IF($B$1=$B73,H73,IF($B$1=$B80,H80,IF($B$1=$B87,H87,IF($B$1=$B94,H94,H101))))*(1-$J$51)+H101*$J$51)/100 -> 0.237169607 | I66: =(IF($B$1=$B73,I73,IF($B$1=$B80,I80,IF($B$1=$B87,I87,IF($B$1=$B94,I94,I101))))*(1-$J$51)+I101*$J$51)/100 -> 0.2294660128 | J66: 0.2365209852 | K66: 0.2310072391 | L66: 0.2435468803 | M66: 0.2379423743 | N66: 0.2367435154 | O66: 0.2276379855 | P66: 0.2244060998 | Q66: 0.2193007251 | R66: 0.2190610381 | S66: 0.2180427152 | T66: 0.2163209521 | U66: 0.2139051046 | V66: 0.2107976962 | W66: 0.2097359805 | X66: 0.2085871493 | Y66: 0.2073314796 | Z66: 0.205976603 | AA66: 0.2045299812 | AB66: 0.2056404559 | AC66: 0.2067351527 | AD66: 0.2078167097 | AE66: 0.2088667871 | AF66: 0.2099069579 | AG66: =AF66 -> 0.2099069579 | AH66: 0.2099069579 | AI66: 0.2099069579 | AJ66: 0.2099069579 | AK66: 0.2099069579 | AL66: 0.2099069579 | AM66: 0.2099069579 | AN66: 0.2099069579 | AO66: 0.2099069579 | AP66: 0.2099069579 | AQ66: 0.2099069579 | AR66: 0.2099069579 | AS66: 0.2099069579 | AT66: 0.2099069579 | AU66: 0.2099069579 | AV66: 0.2099069579 | AW66: 0.2099069579 | AX66: 0.2099069579 | AY66: 0.2099069579 | AZ66: 0.2099069579 | BA66: 0.2099069579 | BB66: 0.2099069579 | BC66: 0.2099069579 | BD66: 0.2099069579 | BE66: 0.2099069579 | BF66: 0.2099069579 | BG66: 0.2099069579 | BH66: 0.2099069579 | BI66: 0.2099069579 | BJ66: 0.2099069579 | BK66: 0.2099069579 | BL66: 0.2099069579 | BM66: 0.2099069579 | BN66: 0.2099069579 | BO66: 0.2099069579 | BP66: 0.2099069579 | BQ66: 0.2099069579 | BR66: 0.2099069579 | BS66: 0.2099069579 | BT66: 0.2099069579 | BU66: 0.2099069579 | BV66: 0.2099069579 | BW66: 0.2099069579 | BX66: 0.2099069579 | BY66: 0.2099069579 | BZ66: 0.2099069579 | CA66: 0.2099069579 | CB66: 0.2099069579 | CC66: 0.2099069579 | CD66: 0.2099069579
A67: Commercial - Fixed component | B67: 2 | D67: =IF($B$1=$B75,D75,IF($B$1=$B82,D82,IF($B$1=$B89,D89,IF($B$1=$B96,D96,D103)))) -> 1.984977424 | E67: 1.9103017 | F67: 1.797399217 | G67: 1.765854493 | H67: 1.703680378 | I67: 1.635453935 | J67: 1.695431047 | K67: 1.640438595 | L67: 1.745405113 | M67: 2.177301192 | N67: 2.745596619 | O67: 3.200100582 | P67: 3.77292688 | Q67: 4.30237284 | R67: 5.006255453 | S67: 5.750989209 | T67: 6.538003902 | U67: 7.366508827 | V67: 8.235859835 | W67: 8.1823134 | X67: 8.124924781 | Y67: 8.062696903 | Z67: 7.995936121 | AA67: 7.925013874 | AB67: 7.971741644 | AC67: 8.018511309 | AD67: 8.065420138 | AE67: 8.111538691 | AF67: 8.157896846 | AG67: 8.157896846 | AH67: 8.157896846 | AI67: 8.157896846 | AJ67: 8.157896846 | AK67: 8.157896846 | AL67: 8.157896846 | AM67: 8.157896846 | AN67: 8.157896846 | AO67: 8.157896846 | AP67: 8.157896846 | AQ67: 8.157896846 | AR67: 8.157896846 | AS67: 8.157896846 | AT67: 8.157896846 | AU67: 8.157896846 | AV67: 8.157896846 | AW67: 8.157896846 | AX67: 8.157896846 | AY67: 8.157896846 | AZ67: 8.157896846 | BA67: 8.157896846 | BB67: 8.157896846 | BC67: 8.157896846 | BD67: 8.157896846 | BE67: 8.157896846 | BF67: 8.157896846 | BG67: 8.157896846 | BH67: 8.157896846 | BI67: 8.157896846 | BJ67: 8.157896846 | BK67: 8.157896846 | BL67: 8.157896846 | BM67: 8.157896846 | BN67: 8.157896846 | BO67: 8.157896846 | BP67: 8.157896846 | BQ67: 8.157896846 | BR67: 8.157896846 | BS67: 8.157896846 | BT67: 8.157896846 | BU67: 8.157896846 | BV67: 8.157896846 | BW67: 8.157896846 | BX67: 8.157896846 | BY67: 8.157896846 | BZ67: 8.157896846 | CA67: 8.157896846 | CB67: 8.157896846 | CC67: 8.157896846 | CD67: 8.157896846
A68: Commericial - Variable Component | B68: 2 | C68: =AVERAGE(C76,C83,C90,C97)/100 -> 0.1491544402 | D68: =AVERAGE(D76,D83,D90,D97)/100 -> 0.1566081308 | E68: =(IF($B$1=$B76,E76,IF($B$1=$B83,E83,IF($B$1=$B90,E90,IF($B$1=$B97,E97,E104))))*(1-$J$51)+E104*$J$51)/100 -> 0.1495290871 | F68: =(IF($B$1=$B76,F76,IF($B$1=$B83,F83,IF($B$1=$B90,F90,IF($B$1=$B97,F97,F104))))*(1-$J$51)+F104*$J$51)/100 -> 0.1406916321 | G68: =(IF($B$1=$B76,G76,IF($B$1=$B83,G83,IF($B$1=$B90,G90,IF($B$1=$B97,G97,G104))))*(1-$J$51)+G104*$J$51)/100 -> 0.1382224652 | H68: =(IF($B$1=$B76,H76,IF($B$1=$B83,H83,IF($B$1=$B90,H90,IF($B$1=$B97,H97,H104))))*(1-$J$51)+H104*$J$51)/100 -> 0.1333557792 | I68: =(IF($B$1=$B76,I76,IF($B$1=$B83,I83,IF($B$1=$B90,I90,IF($B$1=$B97,I97,I104))))*(1-$J$51)+I104*$J$51)/100 -> 0.1280153464 | J68: 0.1327100618 | K68: 0.1284055212 | L68: 0.1366217876 | M68: 0.1337996333 | N68: 0.133457399 | O68: 0.1285679856 | P68: 0.1277722472 | Q68: 0.1246178838 | R68: 0.1254028994 | S68: 0.1256515773 | T68: 0.1254234338 | U68: 0.1247175936 | V68: 0.1235378975 | W68: 0.122734701 | X68: 0.1218738717 | Y68: 0.1209404535 | Z68: 0.1199390418 | AA68: 0.1188752081 | AB68: 0.1195761247 | AC68: 0.1202776696 | AD68: 0.1209813021 | AE68: 0.1216730804 | AF68: 0.1223684527 | AG68: 0.1223684527 | AH68: 0.1223684527 | AI68: 0.1223684527 | AJ68: 0.1223684527 | AK68: 0.1223684527 | AL68: 0.1223684527 | AM68: 0.1223684527 | AN68: 0.1223684527 | AO68: 0.1223684527 | AP68: 0.1223684527 | AQ68: 0.1223684527 | AR68: 0.1223684527 | AS68: 0.1223684527 | AT68: 0.1223684527 | AU68: 0.1223684527 | AV68: 0.1223684527 | AW68: 0.1223684527 | AX68: 0.1223684527 | AY68: 0.1223684527 | AZ68: 0.1223684527 | BA68: 0.1223684527 | BB68: 0.1223684527 | BC68: 0.1223684527 | BD68: 0.1223684527 | BE68: 0.1223684527 | BF68: 0.1223684527 | BG68: 0.1223684527 | BH68: 0.1223684527 | BI68: 0.1223684527 | BJ68: 0.1223684527 | BK68: 0.1223684527 | BL68: 0.1223684527 | BM68: 0.1223684527 | BN68: 0.1223684527 | BO68: 0.1223684527 | BP68: 0.1223684527 | BQ68: 0.1223684527 | BR68: 0.1223684527 | BS68: 0.1223684527 | BT68: 0.1223684527 | BU68: 0.1223684527 | BV68: 0.1223684527 | BW68: 0.1223684527 | BX68: 0.1223684527 | BY68: 0.1223684527 | BZ68: 0.1223684527 | CA68: 0.1223684527 | CB68: 0.1223684527 | CC68: 0.1223684527 | CD68: 0.1223684527
E69: =E66/$E$66 -> 1 | F69: =F66/$E$66 -> 0.9523952491 | G69: 0.9384542179 | H69: 0.9160311832 | I69: 0.8862772337 | J69: 0.9135259812 | K69: 0.8922299837 | L69: 0.940662422 | M69: 0.9190158782 | N69: 0.9143854696 | O69: 0.8792167591 | P69: 0.8667340966 | Q69: 0.847015371 | R69: 0.8460896167 | S69: 0.8421565009 | T69: 0.8355064556 | U69: 0.8261756157 | V69: 0.814173728 | W69: 0.8100730141 | X69: 0.8056358299 | Y69: 0.8007859986 | Z69: 0.7955529957 | AA69: 0.7899656413 | AB69: 0.7942546793 | AC69: 0.7984827775 | AD69: 0.8026601252 | AE69: 0.8067158878 | AF69: 0.8107333878 | AG69: 0.8107333878 | AH69: 0.8107333878 | AI69: 0.8107333878 | AJ69: 0.8107333878 | AK69: 0.8107333878 | AL69: 0.8107333878 | AM69: 0.8107333878 | AN69: 0.8107333878 | AO69: 0.8107333878 | AP69: 0.8107333878 | AQ69: 0.8107333878 | AR69: 0.8107333878 | AS69: 0.8107333878 | AT69: 0.8107333878 | AU69: 0.8107333878 | AV69: 0.8107333878 | AW69: 0.8107333878 | AX69: 0.8107333878 | AY69: 0.8107333878 | AZ69: 0.8107333878 | BA69: 0.8107333878 | BB69: 0.8107333878 | BC69: 0.8107333878 | BD69: 0.8107333878 | BE69: 0.8107333878 | BF69: 0.8107333878 | BG69: 0.8107333878 | BH69: 0.8107333878 | BI69: 0.8107333878 | BJ69: 0.8107333878 | BK69: 0.8107333878 | BL69: 0.8107333878 | BM69: 0.8107333878 | BN69: 0.8107333878 | BO69: 0.8107333878 | BP69: 0.8107333878 | BQ69: 0.8107333878 | BR69: =BR66/$E$66 -> 0.8107333878 | BS69: 0.8107333878 | BT69: 0.8107333878 | BU69: 0.8107333878 | BV69: 0.8107333878 | BW69: 0.8107333878 | BX69: 0.8107333878 | BY69: 0.8107333878 | BZ69: 0.8107333878 | CA69: 0.8107333878 | CB69: 0.8107333878 | CC69: 0.8107333878 | CD69: 0.8107333878
A70: Electric Dreams
A71: Residential (cents/kWh real 2021)
A72: Fixed component | B72: 1 | C72: 3.091384431 | D72: 3.460818744 | E72: 3.420921294 | F72: 3.320179563 | G72: 3.329404467 | H72: 3.310581659 | I72: 3.245230128 | J72: 3.396430745 | K72: 3.390676493 | L72: 3.596422311 | M72: 4.467623867 | N72: 5.617359764 | O72: 6.574291212 | P72: 7.677224038 | Q72: 8.773332229 | R72: 10.00676653 | S72: 11.28175684 | T72: 12.60062137 | U72: 13.96239931 | V72: 15.36563551 | W72: 15.18164794 | X72: 14.99231666 | Y72: 14.79614745 | Z72: 14.5941628 | AA72: 14.38733399 | AB72: 14.33733569 | AC72: 14.28973792 | AD72: 14.2446862 | AE72: 14.20061279 | AF72: 14.15924753
A73: Variable Component | B73: 1 | C73: 24.19784749 | D73: 27.08959886 | E73: 26.7773011 | F73: 25.98874403 | G73: 26.06095207 | H73: 25.91361632 | I73: 25.40207646 | J73: 26.58560104 | K73: 26.54055957 | L73: 28.15103735 | M73: 27.4544669 | N73: 27.30474747 | O73: 26.41302534 | P73: 25.99934212 | Q73: 25.41188636 | R73: 25.06619065 | S73: 24.64916018 | T73: 24.1727173 | U73: 23.63883467 | V73: 23.04845326 | W73: 22.77247191 | X73: 22.48847499 | Y73: 22.19422117 | Z73: 21.89124419 | AA73: 21.58100098 | AB73: 21.50600353 | AC73: 21.43460688 | AD73: 21.3670293 | AE73: 21.30091918 | AF73: 21.23887129
A74: Commercial (cents/kWh real 2021)
A75: Fixed component | B75: 1 | C75: 1.905515416 | D75: 2.023837999 | E75: 1.989151268 | F75: 1.915937808 | G75: 1.923150032 | H75: 1.899803859 | I75: 1.855928158 | J75: 1.960158803 | K75: 1.952104117 | L75: 2.089566973 | M75: 2.60034337 | N75: 3.276637184 | O75: 3.847776698 | P75: 4.523050951 | Q75: 5.161536693 | R75: 5.907575432 | S75: 6.68071776 | T75: 7.482966584 | U75: 8.313057826 | V75: 9.169995819 | W75: 9.035124766 | X75: 8.896638197 | Y75: 8.753409373 | Z75: 8.606112953 | AA75: 8.455484768 | AB75: 8.412124746 | AC75: 8.371252619 | AD75: 8.332950817 | AE75: 8.296043252 | AF75: 8.26178114
A76: Variable Component | B76: 1 | C76: 14.91544402 | D76: 15.84161541 | E76: 15.57010462 | F76: 14.99702541 | G76: 15.05347917 | H76: 14.87073674 | I76: 14.52729918 | J76: 15.34316576 | K76: 15.28011761 | L76: 16.35610971 | M76: 15.97964446 | N76: 15.92701102 | O76: 15.45891719 | P76: 15.31756121 | Q76: 14.95034959 | R76: 14.79802808 | S76: 14.59649277 | T76: 14.35513619 | U76: 14.07430021 | V76: 13.75499373 | W76: 13.55268715 | X76: 13.3449573 | Y76: 13.13011406 | Z76: 12.90916943 | AA76: 12.68322715 | AB76: 12.61818712 | AC76: 12.55687893 | AD76: 12.49942623 | AE76: 12.44406488 | AF76: 12.39267171
A77: Dual Fuel
A78: Residential (cents/kWh real 2021)
A79: Fixed component | B79: =B72+1 -> 2 | C79: 3.091384431 | D79: 3.404881395 | E79: 3.30769195 | F79: 3.150230098 | G79: 3.104117461 | H79: 3.02994897 | I79: 2.931532071 | J79: 3.021662534 | K79: 2.951221934 | L79: 3.11142152 | M79: 3.872000262 | N79: 4.870484516 | O79: 5.66598634 | P79: 6.62638268 | Q79: 7.57125265 | R79: 8.745216589 | S79: 9.979670206 | T79: 11.27625984 | U79: 12.63441505 | V79: 14.05317975 | W79: 13.9823987 | X79: 13.90580995 | Y79: 13.82209864 | Z79: 13.73177353 | AA79: 13.63533208 | AB79: 13.70936373 | AC79: 13.78234351 | AD79: 13.85444731 | AE79: 13.92445247 | AF79: 13.99379719
A80: Variable Component | B80: =B73+1 -> 2 | C80: 24.19784749 | D80: 26.6517486 | E80: 25.89099709 | F80: 24.65846262 | G80: 24.29751543 | H80: 23.7169607 | I80: 22.94660128 | J80: 23.65209852 | K80: 23.10072391 | L80: 24.35468803 | M80: 23.79423743 | N80: 23.67435154 | O80: 22.76379855 | P80: 22.44060998 | Q80: 21.93007251 | R80: 21.90610381 | S80: 21.80427152 | T80: 21.63209521 | U80: 21.39051046 | V80: 21.07976962 | W80: 20.97359805 | X80: 20.85871493 | Y80: 20.73314796 | Z80: 20.5976603 | AA80: 20.45299812 | AB80: 20.56404559 | AC80: 20.67351527 | AD80: 20.78167097 | AE80: 20.88667871 | AF80: 20.99069579
A81: Commercial (cents/kWh real 2021)
A82: Fixed component | B82: =B75+1 -> 2 | C82: 1.905515416 | D82: 1.984977424 | E82: 1.9103017 | F82: 1.797399217 | G82: 1.765854493 | H82: 1.703680378 | I82: 1.635453935 | J82: 1.695431047 | K82: 1.640438595 | L82: 1.745405113 | M82: 2.177301192 | N82: 2.745596619 | O82: 3.200100582 | P82: 3.77292688 | Q82: 4.30237284 | R82: 5.006255453 | S82: 5.750989209 | T82: 6.538003902 | U82: 7.366508827 | V82: 8.235859835 | W82: 8.1823134 | X82: 8.124924781 | Y82: 8.062696903 | Z82: 7.995936121 | AA82: 7.925013874 | AB82: 7.971741644 | AC82: 8.018511309 | AD82: 8.065420138 | AE82: 8.111538691 | AF82: 8.157896846
A83: Variable Component | B83: =B76+1 -> 2 | C83: 14.91544402 | D83: 15.53743381 | E83: 14.95290871 | F83: 14.06916321 | G83: 13.82224652 | H83: 13.33557792 | I83: 12.80153464 | J83: 13.27100618 | K83: 12.84055212 | L83: 13.66217876 | M83: 13.37996333 | N83: 13.3457399 | O83: 12.85679856 | P83: 12.77722472 | Q83: 12.46178838 | R83: 12.54028994 | S83: 12.56515773 | T83: 12.54234338 | U83: 12.47175936 | V83: 12.35378975 | W83: 12.2734701 | X83: 12.18738717 | Y83: 12.09404535 | Z83: 11.99390418 | AA83: 11.88752081 | AB83: 11.95761247 | AC83: 12.02776696 | AD83: 12.09813021 | AE83: 12.16730804 | AF83: 12.23684527
A84: Muddling Through
A85: Residential (cents/kWh real 2021)
A86: Fixed component | B86: =B79+1 -> 3 | C86: 3.091384431 | D86: 3.451835764 | E86: 3.39985988 | F86: 3.283678167 | G86: 3.280913156 | H86: 3.24717265 | I86: 3.180284281 | J86: 3.322982223 | K86: 3.291841781 | L86: 3.510352789 | M86: 4.372433555 | N86: 5.503755248 | O86: 6.414240382 | P86: 7.504053809 | Q86: 8.570444533 | R86: 9.855637338 | S86: 11.19929192 | T86: 12.60339054 | U86: 14.06716759 | V86: 15.58941744 | W86: 15.45851079 | X86: 15.32202844 | Y86: 15.17856583 | Z86: 15.02888861 | AA86: 14.87373114 | AB86: 14.90527548 | AC86: 14.93749415 | AD86: 14.97054786 | AE86: 15.0030414 | AF86: 15.03655879
A87: Variable Component | B87: =B80+1 -> 3 | C87: 24.19784749 | D87: 27.01928447 | E87: 26.61244264 | F87: 25.70302893 | G87: 25.68138577 | H87: 25.41728157 | I87: 24.89371209 | J87: 26.01068188 | K87: 25.76692971 | L87: 27.47732716 | M87: 26.86950287 | N87: 26.75254096 | O87: 25.7700014 | P87: 25.4128916 | Q87: 24.82422377 | R87: 24.6876235 | S87: 24.46898513 | T87: 24.17802961 | U87: 23.81621107 | V87: 23.38412616 | W87: 23.18776619 | X87: 22.98304265 | Y87: 22.76784875 | Z87: 22.54333291 | AA87: 22.3105967 | AB87: 22.35791322 | AC87: 22.40624123 | AD87: 22.45582179 | AE87: 22.5045621 | AF87: 22.55483819
A88: Commercial (cents/kWh real 2021)
A89: Fixed component | B89: =B82+1 -> 3 | C89: 1.905515416 | D89: 2.018682248 | E89: 1.976457467 | F89: 1.893113552 | G89: 1.892735566 | H89: 1.859565473 | I89: 1.814789139 | J89: 1.913458244 | K89: 1.887165335 | L89: 2.035099763 | M89: 2.541164762 | N89: 3.206474364 | O89: 3.745061129 | P89: 4.412831046 | Q89: 5.03130839 | R89: 5.817540703 | S89: 6.643343396 | T89: 7.51043282 | U89: 8.417781582 | V89: 9.364569776 | W89: 9.267712733 | X89: 9.167126839 | Y89: 9.061750188 | Z89: 8.952073288 | AA89: 8.838649772 | AB89: 8.855015669 | AC89: 8.87264646 | AD89: 8.891631995 | AE89: 8.910919511 | AF89: 8.931649555
A90: Variable Component | B90: =B83+1 -> 3 | C90: 14.91544402 | D90: 15.8012587 | E90: 15.47074375 | F90: 14.81836828 | G90: 14.81540959 | H90: 14.5557703 | I90: 14.20528303 | J90: 14.97761659 | K90: 14.77180855 | L90: 15.929767 | M90: 15.61597975 | N90: 15.58596502 | O90: 15.04624473 | P90: 14.94429543 | Q90: 14.57314435 | R90: 14.57249792 | S90: 14.51483468 | T90: 14.40782673 | U90: 14.25160122 | V90: 14.04685466 | W90: 13.9015691 | X90: 13.75069026 | Y90: 13.59262528 | Z90: 13.42810993 | AA90: 13.25797466 | AB90: 13.2825235 | AC90: 13.30896969 | AD90: 13.33744799 | AE90: 13.36637927 | AF90: 13.39747433
A91: Hydrogen Hero
A92: Residential (cents/kWh real 2021)
A93: Fixed component | B93: =B86+1 -> 4 | C93: 3.091384431 | D93: 3.392224265 | E93: 3.283989777 | F93: 3.117914541 | G93: 3.061349334 | H93: 2.954780308 | I93: 2.825267262 | J93: 2.876165008 | K93: 2.777017961 | L93: 2.889276664 | M93: 3.561550165 | N93: 4.439635194 | O93: 5.116519368 | P93: 5.928706051 | Q93: 6.718812198 | R93: 7.766571989 | S93: 8.869687985 | T93: 10.02947738 | U93: 11.24548373 | V93: 12.51694206 | W93: 12.45935045 | X93: 12.39689794 | Y93: 12.32854228 | Z93: 12.25469976 | AA93: 12.17577736 | AB93: 12.25289716 | AC93: 12.32878736 | AD93: 12.40360467 | AE93: 12.47638648 | AF93: 12.54829827
A94: Variable Component | B94: =B87+1 -> 4 | C94: 24.19784749 | D94: 26.55267477 | E94: 25.70546806 | F94: 24.40551222 | G94: 23.96274741 | H94: 23.12857712 | I94: 22.11481226 | J94: 22.51321496 | K94: 21.73714029 | L94: 22.61584659 | M94: 21.88645777 | N94: 21.58008796 | O94: 20.55624726 | P94: 20.07788964 | Q94: 19.46098558 | R94: 19.45467336 | S94: 19.37910583 | T94: 19.24029889 | U94: 19.03900073 | V94: 18.77541308 | W94: 18.68902567 | X94: 18.59534692 | Y94: 18.49281341 | Z94: 18.38204964 | AA94: 18.26366605 | AB94: 18.37934574 | AC94: 18.49318103 | AD94: 18.60540701 | AE94: 18.71457971 | AF94: 18.82244741
A95: Commercial (cents/kWh real 2021)
A96: Fixed component | B96: =B89+1 -> 4 | C96: 1.905515416 | D96: 1.975461067 | E96: 1.892481045 | F96: 1.773102524 | G96: 1.733698956 | H96: 1.648235063 | I96: 1.557403786 | J96: 1.588667372 | K96: 1.512835537 | L96: 1.582481765 | M96: 1.949834619 | N96: 2.430200226 | O96: 2.798256435 | P96: 3.262758682 | Q96: 3.679310582 | R96: 4.290114937 | S96: 4.937856009 | T96: 5.62367776 | U96: 6.346947527 | V96: 7.107149894 | W96: 7.062910372 | X96: 7.015540669 | Y96: 6.964245631 | Z96: 6.909272787 | AA96: 6.850921666 | AB96: 6.899373745 | AC96: 6.947757307 | AD96: 6.996154383 | AE96: 7.043825494 | AF96: 7.09159847
A97: Variable Component | B97: =B90+1 -> 4 | C97: 14.91544402 | D97: 15.46294441 | E97: 14.81341732 | F97: 13.87898057 | G97: 13.57054869 | H97: 12.90157907 | I97: 12.1905962 | J97: 12.43531228 | K97: 11.84173771 | L97: 12.38689437 | M97: 11.98213449 | N97: 11.81266756 | O97: 11.24234016 | P97: 11.04951201 | Q97: 10.65709356 | R97: 10.7464123 | S97: 10.78856825 | T97: 10.78832295 | U97: 10.7456061 | V97: 10.66072484 | W97: 10.59436556 | X97: 10.523311 | Y97: 10.44636845 | Z97: 10.36390918 | AA97: 10.2763825 | AB97: 10.34906062 | AC97: 10.42163596 | AD97: 10.49423157 | AE97: 10.56573824 | AF97: 10.6373977
A98: Baseline
A99: Residential (cents/kWh real 2021)
A100: Fixed component | B100: 5
A101: Variable Component | B101: 5 | C101: =AVERAGE(C73,C80,C87,C94) -> 24.19784749 | D101: =AVERAGE(D73,D80,D87,D94) -> 26.82832668 | E101: =D101 -> 26.82832668 | F101: =E101 -> 26.82832668 | G101: 26.82832668 | H101: 26.82832668 | I101: 26.82832668 | J101: 26.82832668 | K101: 26.82832668 | L101: 26.82832668 | M101: 26.82832668 | N101: 26.82832668 | O101: 26.82832668 | P101: 26.82832668 | Q101: 26.82832668 | R101: 26.82832668 | S101: 26.82832668 | T101: 26.82832668 | U101: 26.82832668 | V101: 26.82832668 | W101: 26.82832668 | X101: 26.82832668 | Y101: 26.82832668 | Z101: 26.82832668 | AA101: 26.82832668 | AB101: 26.82832668 | AC101: 26.82832668 | AD101: 26.82832668 | AE101: 26.82832668 | AF101: 26.82832668 | AG101: 26.82832668 | AH101: 26.82832668 | AI101: 26.82832668 | AJ101: 26.82832668 | AK101: 26.82832668 | AL101: 26.82832668 | AM101: 26.82832668 | AN101: 26.82832668 | AO101: 26.82832668 | AP101: 26.82832668 | AQ101: 26.82832668 | AR101: 26.82832668 | AS101: 26.82832668 | AT101: 26.82832668 | AU101: 26.82832668 | AV101: 26.82832668 | AW101: 26.82832668 | AX101: 26.82832668 | AY101: 26.82832668 | AZ101: 26.82832668 | BA101: 26.82832668 | BB101: 26.82832668 | BC101: 26.82832668 | BD101: 26.82832668 | BE101: 26.82832668 | BF101: 26.82832668 | BG101: 26.82832668 | BH101: 26.82832668 | BI101: 26.82832668 | BJ101: 26.82832668 | BK101: 26.82832668 | BL101: 26.82832668 | BM101: 26.82832668 | BN101: 26.82832668 | BO101: 26.82832668 | BP101: 26.82832668 | BQ101: 26.82832668 | BR101: =BQ101 -> 26.82832668 | BS101: 26.82832668 | BT101: 26.82832668 | BU101: 26.82832668 | BV101: 26.82832668 | BW101: 26.82832668 | BX101: 26.82832668 | BY101: 26.82832668 | BZ101: 26.82832668 | CA101: 26.82832668 | CB101: 26.82832668 | CC101: 26.82832668 | CD101: 26.82832668 | CE101: 26.82832668 | CF101: 26.82832668 | CG101: 26.82832668 | CH101: 26.82832668 | CI101: 26.82832668 | CJ101: 26.82832668 | CK101: 26.82832668 | CL101: 26.82832668 | CM101: 26.82832668 | CN101: 26.82832668 | CO101: 26.82832668 | CP101: 26.82832668 | CQ101: 26.82832668 | CR101: 26.82832668 | CS101: 26.82832668 | CT101: 26.82832668 | CU101: 26.82832668 | CV101: 26.82832668 | CW101: 26.82832668 | CX101: 26.82832668
A102: Commercial (cents/kWh real 2021)
A103: Fixed component | B103: 5
A104: Variable Component | B104: 5 | C104: =AVERAGE(C76,C83,C90,C97) -> 14.91544402 | D104: =AVERAGE(D76,D83,D90,D97) -> 15.66081308 | E104: =D104 -> 15.66081308 | F104: =E104 -> 15.66081308 | G104: 15.66081308 | H104: 15.66081308 | I104: 15.66081308 | J104: 15.66081308 | K104: 15.66081308 | L104: 15.66081308 | M104: 15.66081308 | N104: 15.66081308 | O104: 15.66081308 | P104: 15.66081308 | Q104: 15.66081308 | R104: 15.66081308 | S104: 15.66081308 | T104: 15.66081308 | U104: 15.66081308 | V104: 15.66081308 | W104: 15.66081308 | X104: 15.66081308 | Y104: 15.66081308 | Z104: 15.66081308 | AA104: 15.66081308 | AB104: 15.66081308 | AC104: 15.66081308 | AD104: 15.66081308 | AE104: 15.66081308 | AF104: 15.66081308 | AG104: 15.66081308 | AH104: 15.66081308 | AI104: 15.66081308 | AJ104: 15.66081308 | AK104: 15.66081308 | AL104: 15.66081308 | AM104: 15.66081308 | AN104: 15.66081308 | AO104: 15.66081308 | AP104: 15.66081308 | AQ104: 15.66081308 | AR104: 15.66081308 | AS104: 15.66081308 | AT104: 15.66081308 | AU104: 15.66081308 | AV104: 15.66081308 | AW104: 15.66081308 | AX104: 15.66081308 | AY104: 15.66081308 | AZ104: 15.66081308 | BA104: 15.66081308 | BB104: 15.66081308 | BC104: 15.66081308 | BD104: 15.66081308 | BE104: 15.66081308 | BF104: 15.66081308 | BG104: 15.66081308 | BH104: 15.66081308 | BI104: 15.66081308 | BJ104: 15.66081308 | BK104: 15.66081308 | BL104: 15.66081308 | BM104: 15.66081308 | BN104: 15.66081308 | BO104: 15.66081308 | BP104: 15.66081308 | BQ104: 15.66081308 | BR104: =BQ104 -> 15.66081308 | BS104: 15.66081308 | BT104: 15.66081308 | BU104: 15.66081308 | BV104: 15.66081308 | BW104: 15.66081308 | BX104: 15.66081308 | BY104: 15.66081308 | BZ104: 15.66081308 | CA104: 15.66081308 | CB104: 15.66081308 | CC104: 15.66081308 | CD104: 15.66081308 | CE104: 15.66081308 | CF104: 15.66081308 | CG104: 15.66081308 | CH104: 15.66081308 | CI104: 15.66081308 | CJ104: 15.66081308 | CK104: 15.66081308 | CL104: 15.66081308 | CM104: 15.66081308 | CN104: 15.66081308 | CO104: 15.66081308 | CP104: 15.66081308 | CQ104: 15.66081308 | CR104: 15.66081308 | CS104: 15.66081308 | CT104: 15.66081308 | CU104: 15.66081308 | CV104: 15.66081308 | CW104: 15.66081308 | CX104: 15.66081308
A107: Residential Network ON/OFF | U107: 0.9 | V107: 0.8 | W107: 0.7 | X107: 0.6 | Y107: 0.5 | Z107: 0.4 | AA107: 0.3 | AB107: 0.2 | AC107: 0.1 | AD107: 0 | AE107: 0 | AF107: 0 | AG107: 0 | AH107: 0 | AI107: 0 | AJ107: 0 | AK107: 0 | AL107: 0 | AM107: 0 | AN107: 0 | AO107: 0 | AP107: 0 | AQ107: 0 | AR107: 0 | AS107: 0 | AT107: 0 | AU107: 0 | AV107: 0 | AW107: 0 | AX107: 0 | AY107: 0 | AZ107: 0 | BA107: 0 | BB107: 0 | BC107: 0 | BD107: 0 | BE107: 0 | BF107: 0 | BG107: 0 | BH107: 0 | BI107: 0 | BJ107: 0 | BK107: 0 | BL107: 0 | BM107: 0 | BN107: 0 | BO107: 0 | BP107: 0 | BQ107: 0 | BR107: 0 | BS107: 0 | BT107: 0 | BU107: 0 | BV107: 0 | BW107: 0 | BX107: 0 | BY107: 0 | BZ107: 0 | CA107: 0 | CB107: 0 | CC107: 0
A108: LGA | B108: 2021 | C108: =B108+1 -> 2022 | D108: =C108+1 -> 2023 | E108: 2024 | F108: 2025 | G108: 2026 | H108: 2027 | I108: 2028 | J108: 2029 | K108: 2030 | L108: 2031 | M108: 2032 | N108: 2033 | O108: 2034 | P108: 2035 | Q108: 2036 | R108: 2037 | S108: 2038 | T108: 2039 | U108: 2040 | V108: 2041 | W108: 2042 | X108: 2043 | Y108: 2044 | Z108: 2045 | AA108: 2046 | AB108: 2047 | AC108: 2048 | AD108: 2049 | AE108: 2050 | AF108: 2051 | AG108: 2052 | AH108: 2053 | AI108: 2054 | AJ108: 2055 | AK108: 2056 | AL108: 2057 | AM108: 2058 | AN108: 2059 | AO108: 2060 | AP108: 2061 | AQ108: 2062 | AR108: 2063 | AS108: 2064 | AT108: 2065 | AU108: 2066 | AV108: 2067 | AW108: 2068 | AX108: 2069 | AY108: 2070 | AZ108: 2071 | BA108: 2072 | BB108: 2073 | BC108: 2074 | BD108: 2075 | BE108: 2076 | BF108: 2077 | BG108: 2078 | BH108: 2079 | BI108: 2080 | BJ108: 2081 | BK108: 2082 | BL108: 2083 | BM108: 2084 | BN108: 2085 | BO108: 2086 | BP108: =BO108+1 -> 2087 | BQ108: 2088 | BR108: 2089 | BS108: 2090 | BT108: 2091 | BU108: 2092 | BV108: 2093 | BW108: 2094 | BX108: 2095 | BY108: 2096 | BZ108: 2097 | CA108: 2098 | CB108: 2099 | CC108: 2100
A109: Ararat (RC) | B109: 1 | C109: 1 | D109: 1 | E109: 1 | F109: 1 | G109: 1 | H109: 1 | I109: 1 | J109: 1 | K109: 1 | L109: 1 | M109: 1 | N109: 1 | O109: 1 | P109: 1 | Q109: 1 | R109: 1 | S109: 1 | T109: 1 | U109: =IF(Control!$D46="yes",Scenarios!U$107,1) -> 0.9 | V109: =IF(Control!$D46="yes",Scenarios!V$107,1) -> 0.8 | W109: =IF(Control!$D46="yes",Scenarios!W$107,1) -> 0.7 | X109: =IF(Control!$D46="yes",Scenarios!X$107,1) -> 0.6 | Y109: =IF(Control!$D46="yes",Scenarios!Y$107,1) -> 0.5 | Z109: =IF(Control!$D46="yes",Scenarios!Z$107,1) -> 0.4 | AA109: =IF(Control!$D46="yes",Scenarios!AA$107,1) -> 0.3 | AB109: =IF(Control!$D46="yes",Scenarios!AB$107,1) -> 0.2 | AC109: =IF(Control!$D46="yes",Scenarios!AC$107,1) -> 0.1 | AD109: =IF(Control!$D46="yes",Scenarios!AD$107,1) -> 0 | AE109: =IF(Control!$D46="yes",Scenarios!AE$107,1) -> 0 | AF109: =IF(Control!$D46="yes",Scenarios!AF$107,1) -> 0 | AG109: =IF(Control!$D46="yes",Scenarios!AG$107,1) -> 0 | AH109: =IF(Control!$D46="yes",Scenarios!AH$107,1) -> 0 | AI109: =IF(Control!$D46="yes",Scenarios!AI$107,1) -> 0 | AJ109: =IF(Control!$D46="yes",Scenarios!AJ$107,1) -> 0 | AK109: =IF(Control!$D46="yes",Scenarios!AK$107,1) -> 0 | AL109: =IF(Control!$D46="yes",Scenarios!AL$107,1) -> 0 | AM109: =IF(Control!$D46="yes",Scenarios!AM$107,1) -> 0 | AN109: =IF(Control!$D46="yes",Scenarios!AN$107,1) -> 0 | AO109: =IF(Control!$D46="yes",Scenarios!AO$107,1) -> 0 | AP109: =IF(Control!$D46="yes",Scenarios!AP$107,1) -> 0 | AQ109: =IF(Control!$D46="yes",Scenarios!AQ$107,1) -> 0 | AR109: =IF(Control!$D46="yes",Scenarios!AR$107,1) -> 0 | AS109: =IF(Control!$D46="yes",Scenarios!AS$107,1) -> 0 | AT109: =IF(Control!$D46="yes",Scenarios!AT$107,1) -> 0 | AU109: =IF(Control!$D46="yes",Scenarios!AU$107,1) -> 0 | AV109: =IF(Control!$D46="yes",Scenarios!AV$107,1) -> 0 | AW109: =IF(Control!$D46="yes",Scenarios!AW$107,1) -> 0 | AX109: =IF(Control!$D46="yes",Scenarios!AX$107,1) -> 0 | AY109: =IF(Control!$D46="yes",Scenarios!AY$107,1) -> 0 | AZ109: =IF(Control!$D46="yes",Scenarios!AZ$107,1) -> 0 | BA109: =IF(Control!$D46="yes",Scenarios!BA$107,1) -> 0 | BB109: =IF(Control!$D46="yes",Scenarios!BB$107,1) -> 0 | BC109: =IF(Control!$D46="yes",Scenarios!BC$107,1) -> 0 | BD109: =IF(Control!$D46="yes",Scenarios!BD$107,1) -> 0 | BE109: =IF(Control!$D46="yes",Scenarios!BE$107,1) -> 0 | BF109: =IF(Control!$D46="yes",Scenarios!BF$107,1) -> 0 | BG109: =IF(Control!$D46="yes",Scenarios!BG$107,1) -> 0 | BH109: =IF(Control!$D46="yes",Scenarios!BH$107,1) -> 0 | BI109: =IF(Control!$D46="yes",Scenarios!BI$107,1) -> 0 | BJ109: =IF(Control!$D46="yes",Scenarios!BJ$107,1) -> 0 | BK109: =IF(Control!$D46="yes",Scenarios!BK$107,1) -> 0 | BL109: =IF(Control!$D46="yes",Scenarios!BL$107,1) -> 0 | BM109: =IF(Control!$D46="yes",Scenarios!BM$107,1) -> 0 | BN109: =IF(Control!$D46="yes",Scenarios!BN$107,1) -> 0 | BO109: =IF(Control!$D46="yes",Scenarios!BO$107,1) -> 0 | BP109: =IF(Control!$D46="yes",Scenarios!BP$107,1) -> 0 | BQ109: =IF(Control!$D46="yes",Scenarios!BQ$107,1) -> 0 | BR109: =IF(Control!$D46="yes",Scenarios!BR$107,1) -> 0 | BS109: =IF(Control!$D46="yes",Scenarios!BS$107,1) -> 0 | BT109: =IF(Control!$D46="yes",Scenarios!BT$107,1) -> 0 | BU109: =IF(Control!$D46="yes",Scenarios!BU$107,1) -> 0 | BV109: =IF(Control!$D46="yes",Scenarios!BV$107,1) -> 0 | BW109: =IF(Control!$D46="yes",Scenarios!BW$107,1) -> 0 | BX109: =IF(Control!$D46="yes",Scenarios!BX$107,1) -> 0 | BY109: =IF(Control!$D46="yes",Scenarios!BY$107,1) -> 0 | BZ109: =IF(Control!$D46="yes",Scenarios!BZ$107,1) -> 0 | CA109: =IF(Control!$D46="yes",Scenarios!CA$107,1) -> 0 | CB109: =IF(Control!$D46="yes",Scenarios!CB$107,1) -> 0 | CC109: =IF(Control!$D46="yes",Scenarios!CC$107,1) -> 0
A110: Ballarat (C) | B110: 1 | C110: 1 | D110: 1 | E110: 1 | F110: 1 | G110: 1 | H110: 1 | I110: 1 | J110: 1 | K110: 1 | L110: 1 | M110: 1 | N110: 1 | O110: 1 | P110: 1 | Q110: 1 | R110: 1 | S110: 1 | T110: 1 | U110: =IF(Control!$D47="yes",Scenarios!U$107,1) -> 1 | V110: =IF(Control!$D47="yes",Scenarios!V$107,1) -> 1 | W110: =IF(Control!$D47="yes",Scenarios!W$107,1) -> 1 | X110: =IF(Control!$D47="yes",Scenarios!X$107,1) -> 1 | Y110: =IF(Control!$D47="yes",Scenarios!Y$107,1) -> 1 | Z110: =IF(Control!$D47="yes",Scenarios!Z$107,1) -> 1 | AA110: =IF(Control!$D47="yes",Scenarios!AA$107,1) -> 1 | AB110: =IF(Control!$D47="yes",Scenarios!AB$107,1) -> 1 | AC110: =IF(Control!$D47="yes",Scenarios!AC$107,1) -> 1 | AD110: =IF(Control!$D47="yes",Scenarios!AD$107,1) -> 1 | AE110: =IF(Control!$D47="yes",Scenarios!AE$107,1) -> 1 | AF110: =IF(Control!$D47="yes",Scenarios!AF$107,1) -> 1 | AG110: =IF(Control!$D47="yes",Scenarios!AG$107,1) -> 1 | AH110: =IF(Control!$D47="yes",Scenarios!AH$107,1) -> 1 | AI110: =IF(Control!$D47="yes",Scenarios!AI$107,1) -> 1 | AJ110: =IF(Control!$D47="yes",Scenarios!AJ$107,1) -> 1 | AK110: =IF(Control!$D47="yes",Scenarios!AK$107,1) -> 1 | AL110: =IF(Control!$D47="yes",Scenarios!AL$107,1) -> 1 | AM110: =IF(Control!$D47="yes",Scenarios!AM$107,1) -> 1 | AN110: =IF(Control!$D47="yes",Scenarios!AN$107,1) -> 1 | AO110: =IF(Control!$D47="yes",Scenarios!AO$107,1) -> 1 | AP110: =IF(Control!$D47="yes",Scenarios!AP$107,1) -> 1 | AQ110: =IF(Control!$D47="yes",Scenarios!AQ$107,1) -> 1 | AR110: =IF(Control!$D47="yes",Scenarios!AR$107,1) -> 1 | AS110: =IF(Control!$D47="yes",Scenarios!AS$107,1) -> 1 | AT110: =IF(Control!$D47="yes",Scenarios!AT$107,1) -> 1 | AU110: =IF(Control!$D47="yes",Scenarios!AU$107,1) -> 1 | AV110: =IF(Control!$D47="yes",Scenarios!AV$107,1) -> 1 | AW110: =IF(Control!$D47="yes",Scenarios!AW$107,1) -> 1 | AX110: =IF(Control!$D47="yes",Scenarios!AX$107,1) -> 1 | AY110: =IF(Control!$D47="yes",Scenarios!AY$107,1) -> 1 | AZ110: =IF(Control!$D47="yes",Scenarios!AZ$107,1) -> 1 | BA110: =IF(Control!$D47="yes",Scenarios!BA$107,1) -> 1 | BB110: =IF(Control!$D47="yes",Scenarios!BB$107,1) -> 1 | BC110: =IF(Control!$D47="yes",Scenarios!BC$107,1) -> 1 | BD110: =IF(Control!$D47="yes",Scenarios!BD$107,1) -> 1 | BE110: =IF(Control!$D47="yes",Scenarios!BE$107,1) -> 1 | BF110: =IF(Control!$D47="yes",Scenarios!BF$107,1) -> 1 | BG110: =IF(Control!$D47="yes",Scenarios!BG$107,1) -> 1 | BH110: =IF(Control!$D47="yes",Scenarios!BH$107,1) -> 1 | BI110: =IF(Control!$D47="yes",Scenarios!BI$107,1) -> 1 | BJ110: =IF(Control!$D47="yes",Scenarios!BJ$107,1) -> 1 | BK110: =IF(Control!$D47="yes",Scenarios!BK$107,1) -> 1 | BL110: =IF(Control!$D47="yes",Scenarios!BL$107,1) -> 1 | BM110: =IF(Control!$D47="yes",Scenarios!BM$107,1) -> 1 | BN110: =IF(Control!$D47="yes",Scenarios!BN$107,1) -> 1 | BO110: =IF(Control!$D47="yes",Scenarios!BO$107,1) -> 1 | BP110: =IF(Control!$D47="yes",Scenarios!BP$107,1) -> 1 | BQ110: =IF(Control!$D47="yes",Scenarios!BQ$107,1) -> 1 | BR110: =IF(Control!$D47="yes",Scenarios!BR$107,1) -> 1 | BS110: =IF(Control!$D47="yes",Scenarios!BS$107,1) -> 1 | BT110: =IF(Control!$D47="yes",Scenarios!BT$107,1) -> 1 | BU110: =IF(Control!$D47="yes",Scenarios!BU$107,1) -> 1 | BV110: =IF(Control!$D47="yes",Scenarios!BV$107,1) -> 1 | BW110: =IF(Control!$D47="yes",Scenarios!BW$107,1) -> 1 | BX110: =IF(Control!$D47="yes",Scenarios!BX$107,1) -> 1 | BY110: =IF(Control!$D47="yes",Scenarios!BY$107,1) -> 1 | BZ110: =IF(Control!$D47="yes",Scenarios!BZ$107,1) -> 1 | CA110: =IF(Control!$D47="yes",Scenarios!CA$107,1) -> 1 | CB110: =IF(Control!$D47="yes",Scenarios!CB$107,1) -> 1 | CC110: =IF(Control!$D47="yes",Scenarios!CC$107,1) -> 1
A111: Brimbank (C) | B111: 1 | C111: 1 | D111: 1 | E111: 1 | F111: 1 | G111: 1 | H111: 1 | I111: 1 | J111: 1 | K111: 1 | L111: 1 | M111: 1 | N111: 1 | O111: 1 | P111: 1 | Q111: 1 | R111: 1 | S111: 1 | T111: 1 | U111: =IF(Control!$D48="yes",Scenarios!U$107,1) -> 0.9 | V111: =IF(Control!$D48="yes",Scenarios!V$107,1) -> 0.8 | W111: =IF(Control!$D48="yes",Scenarios!W$107,1) -> 0.7 | X111: =IF(Control!$D48="yes",Scenarios!X$107,1) -> 0.6 | Y111: =IF(Control!$D48="yes",Scenarios!Y$107,1) -> 0.5 | Z111: =IF(Control!$D48="yes",Scenarios!Z$107,1) -> 0.4 | AA111: =IF(Control!$D48="yes",Scenarios!AA$107,1) -> 0.3 | AB111: =IF(Control!$D48="yes",Scenarios!AB$107,1) -> 0.2 | AC111: =IF(Control!$D48="yes",Scenarios!AC$107,1) -> 0.1 | AD111: =IF(Control!$D48="yes",Scenarios!AD$107,1) -> 0 | AE111: =IF(Control!$D48="yes",Scenarios!AE$107,1) -> 0 | AF111: =IF(Control!$D48="yes",Scenarios!AF$107,1) -> 0 | AG111: =IF(Control!$D48="yes",Scenarios!AG$107,1) -> 0 | AH111: =IF(Control!$D48="yes",Scenarios!AH$107,1) -> 0 | AI111: =IF(Control!$D48="yes",Scenarios!AI$107,1) -> 0 | AJ111: =IF(Control!$D48="yes",Scenarios!AJ$107,1) -> 0 | AK111: =IF(Control!$D48="yes",Scenarios!AK$107,1) -> 0 | AL111: =IF(Control!$D48="yes",Scenarios!AL$107,1) -> 0 | AM111: =IF(Control!$D48="yes",Scenarios!AM$107,1) -> 0 | AN111: =IF(Control!$D48="yes",Scenarios!AN$107,1) -> 0 | AO111: =IF(Control!$D48="yes",Scenarios!AO$107,1) -> 0 | AP111: =IF(Control!$D48="yes",Scenarios!AP$107,1) -> 0 | AQ111: =IF(Control!$D48="yes",Scenarios!AQ$107,1) -> 0 | AR111: =IF(Control!$D48="yes",Scenarios!AR$107,1) -> 0 | AS111: =IF(Control!$D48="yes",Scenarios!AS$107,1) -> 0 | AT111: =IF(Control!$D48="yes",Scenarios!AT$107,1) -> 0 | AU111: =IF(Control!$D48="yes",Scenarios!AU$107,1) -> 0 | AV111: =IF(Control!$D48="yes",Scenarios!AV$107,1) -> 0 | AW111: =IF(Control!$D48="yes",Scenarios!AW$107,1) -> 0 | AX111: =IF(Control!$D48="yes",Scenarios!AX$107,1) -> 0 | AY111: =IF(Control!$D48="yes",Scenarios!AY$107,1) -> 0 | AZ111: =IF(Control!$D48="yes",Scenarios!AZ$107,1) -> 0 | BA111: =IF(Control!$D48="yes",Scenarios!BA$107,1) -> 0 | BB111: =IF(Control!$D48="yes",Scenarios!BB$107,1) -> 0 | BC111: =IF(Control!$D48="yes",Scenarios!BC$107,1) -> 0 | BD111: =IF(Control!$D48="yes",Scenarios!BD$107,1) -> 0 | BE111: =IF(Control!$D48="yes",Scenarios!BE$107,1) -> 0 | BF111: =IF(Control!$D48="yes",Scenarios!BF$107,1) -> 0 | BG111: =IF(Control!$D48="yes",Scenarios!BG$107,1) -> 0 | BH111: =IF(Control!$D48="yes",Scenarios!BH$107,1) -> 0 | BI111: =IF(Control!$D48="yes",Scenarios!BI$107,1) -> 0 | BJ111: =IF(Control!$D48="yes",Scenarios!BJ$107,1) -> 0 | BK111: =IF(Control!$D48="yes",Scenarios!BK$107,1) -> 0 | BL111: =IF(Control!$D48="yes",Scenarios!BL$107,1) -> 0 | BM111: =IF(Control!$D48="yes",Scenarios!BM$107,1) -> 0 | BN111: =IF(Control!$D48="yes",Scenarios!BN$107,1) -> 0 | BO111: =IF(Control!$D48="yes",Scenarios!BO$107,1) -> 0 | BP111: =IF(Control!$D48="yes",Scenarios!BP$107,1) -> 0 | BQ111: =IF(Control!$D48="yes",Scenarios!BQ$107,1) -> 0 | BR111: =IF(Control!$D48="yes",Scenarios!BR$107,1) -> 0 | BS111: =IF(Control!$D48="yes",Scenarios!BS$107,1) -> 0 | BT111: =IF(Control!$D48="yes",Scenarios!BT$107,1) -> 0 | BU111: =IF(Control!$D48="yes",Scenarios!BU$107,1) -> 0 | BV111: =IF(Control!$D48="yes",Scenarios!BV$107,1) -> 0 | BW111: =IF(Control!$D48="yes",Scenarios!BW$107,1) -> 0 | BX111: =IF(Control!$D48="yes",Scenarios!BX$107,1) -> 0 | BY111: =IF(Control!$D48="yes",Scenarios!BY$107,1) -> 0 | BZ111: =IF(Control!$D48="yes",Scenarios!BZ$107,1) -> 0 | CA111: =IF(Control!$D48="yes",Scenarios!CA$107,1) -> 0 | CB111: =IF(Control!$D48="yes",Scenarios!CB$107,1) -> 0 | CC111: =IF(Control!$D48="yes",Scenarios!CC$107,1) -> 0
A112: Central Goldfields (S) | B112: 1 | C112: 1 | D112: 1 | E112: 1 | F112: 1 | G112: 1 | H112: 1 | I112: 1 | J112: 1 | K112: 1 | L112: 1 | M112: 1 | N112: 1 | O112: 1 | P112: 1 | Q112: 1 | R112: 1 | S112: 1 | T112: 1 | U112: =IF(Control!$D49="yes",Scenarios!U$107,1) -> 0.9 | V112: =IF(Control!$D49="yes",Scenarios!V$107,1) -> 0.8 | W112: =IF(Control!$D49="yes",Scenarios!W$107,1) -> 0.7 | X112: =IF(Control!$D49="yes",Scenarios!X$107,1) -> 0.6 | Y112: =IF(Control!$D49="yes",Scenarios!Y$107,1) -> 0.5 | Z112: =IF(Control!$D49="yes",Scenarios!Z$107,1) -> 0.4 | AA112: =IF(Control!$D49="yes",Scenarios!AA$107,1) -> 0.3 | AB112: =IF(Control!$D49="yes",Scenarios!AB$107,1) -> 0.2 | AC112: =IF(Control!$D49="yes",Scenarios!AC$107,1) -> 0.1 | AD112: =IF(Control!$D49="yes",Scenarios!AD$107,1) -> 0 | AE112: =IF(Control!$D49="yes",Scenarios!AE$107,1) -> 0 | AF112: =IF(Control!$D49="yes",Scenarios!AF$107,1) -> 0 | AG112: =IF(Control!$D49="yes",Scenarios!AG$107,1) -> 0 | AH112: =IF(Control!$D49="yes",Scenarios!AH$107,1) -> 0 | AI112: =IF(Control!$D49="yes",Scenarios!AI$107,1) -> 0 | AJ112: =IF(Control!$D49="yes",Scenarios!AJ$107,1) -> 0 | AK112: =IF(Control!$D49="yes",Scenarios!AK$107,1) -> 0 | AL112: =IF(Control!$D49="yes",Scenarios!AL$107,1) -> 0 | AM112: =IF(Control!$D49="yes",Scenarios!AM$107,1) -> 0 | AN112: =IF(Control!$D49="yes",Scenarios!AN$107,1) -> 0 | AO112: =IF(Control!$D49="yes",Scenarios!AO$107,1) -> 0 | AP112: =IF(Control!$D49="yes",Scenarios!AP$107,1) -> 0 | AQ112: =IF(Control!$D49="yes",Scenarios!AQ$107,1) -> 0 | AR112: =IF(Control!$D49="yes",Scenarios!AR$107,1) -> 0 | AS112: =IF(Control!$D49="yes",Scenarios!AS$107,1) -> 0 | AT112: =IF(Control!$D49="yes",Scenarios!AT$107,1) -> 0 | AU112: =IF(Control!$D49="yes",Scenarios!AU$107,1) -> 0 | AV112: =IF(Control!$D49="yes",Scenarios!AV$107,1) -> 0 | AW112: =IF(Control!$D49="yes",Scenarios!AW$107,1) -> 0 | AX112: =IF(Control!$D49="yes",Scenarios!AX$107,1) -> 0 | AY112: =IF(Control!$D49="yes",Scenarios!AY$107,1) -> 0 | AZ112: =IF(Control!$D49="yes",Scenarios!AZ$107,1) -> 0 | BA112: =IF(Control!$D49="yes",Scenarios!BA$107,1) -> 0 | BB112: =IF(Control!$D49="yes",Scenarios!BB$107,1) -> 0 | BC112: =IF(Control!$D49="yes",Scenarios!BC$107,1) -> 0 | BD112: =IF(Control!$D49="yes",Scenarios!BD$107,1) -> 0 | BE112: =IF(Control!$D49="yes",Scenarios!BE$107,1) -> 0 | BF112: =IF(Control!$D49="yes",Scenarios!BF$107,1) -> 0 | BG112: =IF(Control!$D49="yes",Scenarios!BG$107,1) -> 0 | BH112: =IF(Control!$D49="yes",Scenarios!BH$107,1) -> 0 | BI112: =IF(Control!$D49="yes",Scenarios!BI$107,1) -> 0 | BJ112: =IF(Control!$D49="yes",Scenarios!BJ$107,1) -> 0 | BK112: =IF(Control!$D49="yes",Scenarios!BK$107,1) -> 0 | BL112: =IF(Control!$D49="yes",Scenarios!BL$107,1) -> 0 | BM112: =IF(Control!$D49="yes",Scenarios!BM$107,1) -> 0 | BN112: =IF(Control!$D49="yes",Scenarios!BN$107,1) -> 0 | BO112: =IF(Control!$D49="yes",Scenarios!BO$107,1) -> 0 | BP112: =IF(Control!$D49="yes",Scenarios!BP$107,1) -> 0 | BQ112: =IF(Control!$D49="yes",Scenarios!BQ$107,1) -> 0 | BR112: =IF(Control!$D49="yes",Scenarios!BR$107,1) -> 0 | BS112: =IF(Control!$D49="yes",Scenarios!BS$107,1) -> 0 | BT112: =IF(Control!$D49="yes",Scenarios!BT$107,1) -> 0 | BU112: =IF(Control!$D49="yes",Scenarios!BU$107,1) -> 0 | BV112: =IF(Control!$D49="yes",Scenarios!BV$107,1) -> 0 | BW112: =IF(Control!$D49="yes",Scenarios!BW$107,1) -> 0 | BX112: =IF(Control!$D49="yes",Scenarios!BX$107,1) -> 0 | BY112: =IF(Control!$D49="yes",Scenarios!BY$107,1) -> 0 | BZ112: =IF(Control!$D49="yes",Scenarios!BZ$107,1) -> 0 | CA112: =IF(Control!$D49="yes",Scenarios!CA$107,1) -> 0 | CB112: =IF(Control!$D49="yes",Scenarios!CB$107,1) -> 0 | CC112: =IF(Control!$D49="yes",Scenarios!CC$107,1) -> 0
A113: Colac-Otway (S) | B113: 1 | C113: 1 | D113: 1 | E113: 1 | F113: 1 | G113: 1 | H113: 1 | I113: 1 | J113: 1 | K113: 1 | L113: 1 | M113: 1 | N113: 1 | O113: 1 | P113: 1 | Q113: 1 | R113: 1 | S113: 1 | T113: 1 | U113: =IF(Control!$D50="yes",Scenarios!U$107,1) -> 0.9 | V113: =IF(Control!$D50="yes",Scenarios!V$107,1) -> 0.8 | W113: =IF(Control!$D50="yes",Scenarios!W$107,1) -> 0.7 | X113: =IF(Control!$D50="yes",Scenarios!X$107,1) -> 0.6 | Y113: =IF(Control!$D50="yes",Scenarios!Y$107,1) -> 0.5 | Z113: =IF(Control!$D50="yes",Scenarios!Z$107,1) -> 0.4 | AA113: =IF(Control!$D50="yes",Scenarios!AA$107,1) -> 0.3 | AB113: =IF(Control!$D50="yes",Scenarios!AB$107,1) -> 0.2 | AC113: =IF(Control!$D50="yes",Scenarios!AC$107,1) -> 0.1 | AD113: =IF(Control!$D50="yes",Scenarios!AD$107,1) -> 0 | AE113: =IF(Control!$D50="yes",Scenarios!AE$107,1) -> 0 | AF113: =IF(Control!$D50="yes",Scenarios!AF$107,1) -> 0 | AG113: =IF(Control!$D50="yes",Scenarios!AG$107,1) -> 0 | AH113: =IF(Control!$D50="yes",Scenarios!AH$107,1) -> 0 | AI113: =IF(Control!$D50="yes",Scenarios!AI$107,1) -> 0 | AJ113: =IF(Control!$D50="yes",Scenarios!AJ$107,1) -> 0 | AK113: =IF(Control!$D50="yes",Scenarios!AK$107,1) -> 0 | AL113: =IF(Control!$D50="yes",Scenarios!AL$107,1) -> 0 | AM113: =IF(Control!$D50="yes",Scenarios!AM$107,1) -> 0 | AN113: =IF(Control!$D50="yes",Scenarios!AN$107,1) -> 0 | AO113: =IF(Control!$D50="yes",Scenarios!AO$107,1) -> 0 | AP113: =IF(Control!$D50="yes",Scenarios!AP$107,1) -> 0 | AQ113: =IF(Control!$D50="yes",Scenarios!AQ$107,1) -> 0 | AR113: =IF(Control!$D50="yes",Scenarios!AR$107,1) -> 0 | AS113: =IF(Control!$D50="yes",Scenarios!AS$107,1) -> 0 | AT113: =IF(Control!$D50="yes",Scenarios!AT$107,1) -> 0 | AU113: =IF(Control!$D50="yes",Scenarios!AU$107,1) -> 0 | AV113: =IF(Control!$D50="yes",Scenarios!AV$107,1) -> 0 | AW113: =IF(Control!$D50="yes",Scenarios!AW$107,1) -> 0 | AX113: =IF(Control!$D50="yes",Scenarios!AX$107,1) -> 0 | AY113: =IF(Control!$D50="yes",Scenarios!AY$107,1) -> 0 | AZ113: =IF(Control!$D50="yes",Scenarios!AZ$107,1) -> 0 | BA113: =IF(Control!$D50="yes",Scenarios!BA$107,1) -> 0 | BB113: =IF(Control!$D50="yes",Scenarios!BB$107,1) -> 0 | BC113: =IF(Control!$D50="yes",Scenarios!BC$107,1) -> 0 | BD113: =IF(Control!$D50="yes",Scenarios!BD$107,1) -> 0 | BE113: =IF(Control!$D50="yes",Scenarios!BE$107,1) -> 0 | BF113: =IF(Control!$D50="yes",Scenarios!BF$107,1) -> 0 | BG113: =IF(Control!$D50="yes",Scenarios!BG$107,1) -> 0 | BH113: =IF(Control!$D50="yes",Scenarios!BH$107,1) -> 0 | BI113: =IF(Control!$D50="yes",Scenarios!BI$107,1) -> 0 | BJ113: =IF(Control!$D50="yes",Scenarios!BJ$107,1) -> 0 | BK113: =IF(Control!$D50="yes",Scenarios!BK$107,1) -> 0 | BL113: =IF(Control!$D50="yes",Scenarios!BL$107,1) -> 0 | BM113: =IF(Control!$D50="yes",Scenarios!BM$107,1) -> 0 | BN113: =IF(Control!$D50="yes",Scenarios!BN$107,1) -> 0 | BO113: =IF(Control!$D50="yes",Scenarios!BO$107,1) -> 0 | BP113: =IF(Control!$D50="yes",Scenarios!BP$107,1) -> 0 | BQ113: =IF(Control!$D50="yes",Scenarios!BQ$107,1) -> 0 | BR113: =IF(Control!$D50="yes",Scenarios!BR$107,1) -> 0 | BS113: =IF(Control!$D50="yes",Scenarios!BS$107,1) -> 0 | BT113: =IF(Control!$D50="yes",Scenarios!BT$107,1) -> 0 | BU113: =IF(Control!$D50="yes",Scenarios!BU$107,1) -> 0 | BV113: =IF(Control!$D50="yes",Scenarios!BV$107,1) -> 0 | BW113: =IF(Control!$D50="yes",Scenarios!BW$107,1) -> 0 | BX113: =IF(Control!$D50="yes",Scenarios!BX$107,1) -> 0 | BY113: =IF(Control!$D50="yes",Scenarios!BY$107,1) -> 0 | BZ113: =IF(Control!$D50="yes",Scenarios!BZ$107,1) -> 0 | CA113: =IF(Control!$D50="yes",Scenarios!CA$107,1) -> 0 | CB113: =IF(Control!$D50="yes",Scenarios!CB$107,1) -> 0 | CC113: =IF(Control!$D50="yes",Scenarios!CC$107,1) -> 0
A114: Corangamite (S) | B114: 1 | C114: 1 | D114: 1 | E114: 1 | F114: 1 | G114: 1 | H114: 1 | I114: 1 | J114: 1 | K114: 1 | L114: 1 | M114: 1 | N114: 1 | O114: 1 | P114: 1 | Q114: 1 | R114: 1 | S114: 1 | T114: 1 | U114: =IF(Control!$D51="yes",Scenarios!U$107,1) -> 0.9 | V114: =IF(Control!$D51="yes",Scenarios!V$107,1) -> 0.8 | W114: =IF(Control!$D51="yes",Scenarios!W$107,1) -> 0.7 | X114: =IF(Control!$D51="yes",Scenarios!X$107,1) -> 0.6 | Y114: =IF(Control!$D51="yes",Scenarios!Y$107,1) -> 0.5 | Z114: =IF(Control!$D51="yes",Scenarios!Z$107,1) -> 0.4 | AA114: =IF(Control!$D51="yes",Scenarios!AA$107,1) -> 0.3 | AB114: =IF(Control!$D51="yes",Scenarios!AB$107,1) -> 0.2 | AC114: =IF(Control!$D51="yes",Scenarios!AC$107,1) -> 0.1 | AD114: =IF(Control!$D51="yes",Scenarios!AD$107,1) -> 0 | AE114: =IF(Control!$D51="yes",Scenarios!AE$107,1) -> 0 | AF114: =IF(Control!$D51="yes",Scenarios!AF$107,1) -> 0 | AG114: =IF(Control!$D51="yes",Scenarios!AG$107,1) -> 0 | AH114: =IF(Control!$D51="yes",Scenarios!AH$107,1) -> 0 | AI114: =IF(Control!$D51="yes",Scenarios!AI$107,1) -> 0 | AJ114: =IF(Control!$D51="yes",Scenarios!AJ$107,1) -> 0 | AK114: =IF(Control!$D51="yes",Scenarios!AK$107,1) -> 0 | AL114: =IF(Control!$D51="yes",Scenarios!AL$107,1) -> 0 | AM114: =IF(Control!$D51="yes",Scenarios!AM$107,1) -> 0 | AN114: =IF(Control!$D51="yes",Scenarios!AN$107,1) -> 0 | AO114: =IF(Control!$D51="yes",Scenarios!AO$107,1) -> 0 | AP114: =IF(Control!$D51="yes",Scenarios!AP$107,1) -> 0 | AQ114: =IF(Control!$D51="yes",Scenarios!AQ$107,1) -> 0 | AR114: =IF(Control!$D51="yes",Scenarios!AR$107,1) -> 0 | AS114: =IF(Control!$D51="yes",Scenarios!AS$107,1) -> 0 | AT114: =IF(Control!$D51="yes",Scenarios!AT$107,1) -> 0 | AU114: =IF(Control!$D51="yes",Scenarios!AU$107,1) -> 0 | AV114: =IF(Control!$D51="yes",Scenarios!AV$107,1) -> 0 | AW114: =IF(Control!$D51="yes",Scenarios!AW$107,1) -> 0 | AX114: =IF(Control!$D51="yes",Scenarios!AX$107,1) -> 0 | AY114: =IF(Control!$D51="yes",Scenarios!AY$107,1) -> 0 | AZ114: =IF(Control!$D51="yes",Scenarios!AZ$107,1) -> 0 | BA114: =IF(Control!$D51="yes",Scenarios!BA$107,1) -> 0 | BB114: =IF(Control!$D51="yes",Scenarios!BB$107,1) -> 0 | BC114: =IF(Control!$D51="yes",Scenarios!BC$107,1) -> 0 | BD114: =IF(Control!$D51="yes",Scenarios!BD$107,1) -> 0 | BE114: =IF(Control!$D51="yes",Scenarios!BE$107,1) -> 0 | BF114: =IF(Control!$D51="yes",Scenarios!BF$107,1) -> 0 | BG114: =IF(Control!$D51="yes",Scenarios!BG$107,1) -> 0 | BH114: =IF(Control!$D51="yes",Scenarios!BH$107,1) -> 0 | BI114: =IF(Control!$D51="yes",Scenarios!BI$107,1) -> 0 | BJ114: =IF(Control!$D51="yes",Scenarios!BJ$107,1) -> 0 | BK114: =IF(Control!$D51="yes",Scenarios!BK$107,1) -> 0 | BL114: =IF(Control!$D51="yes",Scenarios!BL$107,1) -> 0 | BM114: =IF(Control!$D51="yes",Scenarios!BM$107,1) -> 0 | BN114: =IF(Control!$D51="yes",Scenarios!BN$107,1) -> 0 | BO114: =IF(Control!$D51="yes",Scenarios!BO$107,1) -> 0 | BP114: =IF(Control!$D51="yes",Scenarios!BP$107,1) -> 0 | BQ114: =IF(Control!$D51="yes",Scenarios!BQ$107,1) -> 0 | BR114: =IF(Control!$D51="yes",Scenarios!BR$107,1) -> 0 | BS114: =IF(Control!$D51="yes",Scenarios!BS$107,1) -> 0 | BT114: =IF(Control!$D51="yes",Scenarios!BT$107,1) -> 0 | BU114: =IF(Control!$D51="yes",Scenarios!BU$107,1) -> 0 | BV114: =IF(Control!$D51="yes",Scenarios!BV$107,1) -> 0 | BW114: =IF(Control!$D51="yes",Scenarios!BW$107,1) -> 0 | BX114: =IF(Control!$D51="yes",Scenarios!BX$107,1) -> 0 | BY114: =IF(Control!$D51="yes",Scenarios!BY$107,1) -> 0 | BZ114: =IF(Control!$D51="yes",Scenarios!BZ$107,1) -> 0 | CA114: =IF(Control!$D51="yes",Scenarios!CA$107,1) -> 0 | CB114: =IF(Control!$D51="yes",Scenarios!CB$107,1) -> 0 | CC114: =IF(Control!$D51="yes",Scenarios!CC$107,1) -> 0
A115: Darebin (C) | B115: 1 | C115: 1 | D115: 1 | E115: 1 | F115: 1 | G115: 1 | H115: 1 | I115: 1 | J115: 1 | K115: 1 | L115: 1 | M115: 1 | N115: 1 | O115: 1 | P115: 1 | Q115: 1 | R115: 1 | S115: 1 | T115: 1 | U115: =IF(Control!$D52="yes",Scenarios!U$107,1) -> 0.9 | V115: =IF(Control!$D52="yes",Scenarios!V$107,1) -> 0.8 | W115: =IF(Control!$D52="yes",Scenarios!W$107,1) -> 0.7 | X115: =IF(Control!$D52="yes",Scenarios!X$107,1) -> 0.6 | Y115: =IF(Control!$D52="yes",Scenarios!Y$107,1) -> 0.5 | Z115: =IF(Control!$D52="yes",Scenarios!Z$107,1) -> 0.4 | AA115: =IF(Control!$D52="yes",Scenarios!AA$107,1) -> 0.3 | AB115: =IF(Control!$D52="yes",Scenarios!AB$107,1) -> 0.2 | AC115: =IF(Control!$D52="yes",Scenarios!AC$107,1) -> 0.1 | AD115: =IF(Control!$D52="yes",Scenarios!AD$107,1) -> 0 | AE115: =IF(Control!$D52="yes",Scenarios!AE$107,1) -> 0 | AF115: =IF(Control!$D52="yes",Scenarios!AF$107,1) -> 0 | AG115: =IF(Control!$D52="yes",Scenarios!AG$107,1) -> 0 | AH115: =IF(Control!$D52="yes",Scenarios!AH$107,1) -> 0 | AI115: =IF(Control!$D52="yes",Scenarios!AI$107,1) -> 0 | AJ115: =IF(Control!$D52="yes",Scenarios!AJ$107,1) -> 0 | AK115: =IF(Control!$D52="yes",Scenarios!AK$107,1) -> 0 | AL115: =IF(Control!$D52="yes",Scenarios!AL$107,1) -> 0 | AM115: =IF(Control!$D52="yes",Scenarios!AM$107,1) -> 0 | AN115: =IF(Control!$D52="yes",Scenarios!AN$107,1) -> 0 | AO115: =IF(Control!$D52="yes",Scenarios!AO$107,1) -> 0 | AP115: =IF(Control!$D52="yes",Scenarios!AP$107,1) -> 0 | AQ115: =IF(Control!$D52="yes",Scenarios!AQ$107,1) -> 0 | AR115: =IF(Control!$D52="yes",Scenarios!AR$107,1) -> 0 | AS115: =IF(Control!$D52="yes",Scenarios!AS$107,1) -> 0 | AT115: =IF(Control!$D52="yes",Scenarios!AT$107,1) -> 0 | AU115: =IF(Control!$D52="yes",Scenarios!AU$107,1) -> 0 | AV115: =IF(Control!$D52="yes",Scenarios!AV$107,1) -> 0 | AW115: =IF(Control!$D52="yes",Scenarios!AW$107,1) -> 0 | AX115: =IF(Control!$D52="yes",Scenarios!AX$107,1) -> 0 | AY115: =IF(Control!$D52="yes",Scenarios!AY$107,1) -> 0 | AZ115: =IF(Control!$D52="yes",Scenarios!AZ$107,1) -> 0 | BA115: =IF(Control!$D52="yes",Scenarios!BA$107,1) -> 0 | BB115: =IF(Control!$D52="yes",Scenarios!BB$107,1) -> 0 | BC115: =IF(Control!$D52="yes",Scenarios!BC$107,1) -> 0 | BD115: =IF(Control!$D52="yes",Scenarios!BD$107,1) -> 0 | BE115: =IF(Control!$D52="yes",Scenarios!BE$107,1) -> 0 | BF115: =IF(Control!$D52="yes",Scenarios!BF$107,1) -> 0 | BG115: =IF(Control!$D52="yes",Scenarios!BG$107,1) -> 0 | BH115: =IF(Control!$D52="yes",Scenarios!BH$107,1) -> 0 | BI115: =IF(Control!$D52="yes",Scenarios!BI$107,1) -> 0 | BJ115: =IF(Control!$D52="yes",Scenarios!BJ$107,1) -> 0 | BK115: =IF(Control!$D52="yes",Scenarios!BK$107,1) -> 0 | BL115: =IF(Control!$D52="yes",Scenarios!BL$107,1) -> 0 | BM115: =IF(Control!$D52="yes",Scenarios!BM$107,1) -> 0 | BN115: =IF(Control!$D52="yes",Scenarios!BN$107,1) -> 0 | BO115: =IF(Control!$D52="yes",Scenarios!BO$107,1) -> 0 | BP115: =IF(Control!$D52="yes",Scenarios!BP$107,1) -> 0 | BQ115: =IF(Control!$D52="yes",Scenarios!BQ$107,1) -> 0 | BR115: =IF(Control!$D52="yes",Scenarios!BR$107,1) -> 0 | BS115: =IF(Control!$D52="yes",Scenarios!BS$107,1) -> 0 | BT115: =IF(Control!$D52="yes",Scenarios!BT$107,1) -> 0 | BU115: =IF(Control!$D52="yes",Scenarios!BU$107,1) -> 0 | BV115: =IF(Control!$D52="yes",Scenarios!BV$107,1) -> 0 | BW115: =IF(Control!$D52="yes",Scenarios!BW$107,1) -> 0 | BX115: =IF(Control!$D52="yes",Scenarios!BX$107,1) -> 0 | BY115: =IF(Control!$D52="yes",Scenarios!BY$107,1) -> 0 | BZ115: =IF(Control!$D52="yes",Scenarios!BZ$107,1) -> 0 | CA115: =IF(Control!$D52="yes",Scenarios!CA$107,1) -> 0 | CB115: =IF(Control!$D52="yes",Scenarios!CB$107,1) -> 0 | CC115: =IF(Control!$D52="yes",Scenarios!CC$107,1) -> 0
A116: Glenelg (S) | B116: 1 | C116: 1 | D116: 1 | E116: 1 | F116: 1 | G116: 1 | H116: 1 | I116: 1 | J116: 1 | K116: 1 | L116: 1 | M116: 1 | N116: 1 | O116: 1 | P116: 1 | Q116: 1 | R116: 1 | S116: 1 | T116: 1 | U116: =IF(Control!$D53="yes",Scenarios!U$107,1) -> 0.9 | V116: =IF(Control!$D53="yes",Scenarios!V$107,1) -> 0.8 | W116: =IF(Control!$D53="yes",Scenarios!W$107,1) -> 0.7 | X116: =IF(Control!$D53="yes",Scenarios!X$107,1) -> 0.6 | Y116: =IF(Control!$D53="yes",Scenarios!Y$107,1) -> 0.5 | Z116: =IF(Control!$D53="yes",Scenarios!Z$107,1) -> 0.4 | AA116: =IF(Control!$D53="yes",Scenarios!AA$107,1) -> 0.3 | AB116: =IF(Control!$D53="yes",Scenarios!AB$107,1) -> 0.2 | AC116: =IF(Control!$D53="yes",Scenarios!AC$107,1) -> 0.1 | AD116: =IF(Control!$D53="yes",Scenarios!AD$107,1) -> 0 | AE116: =IF(Control!$D53="yes",Scenarios!AE$107,1) -> 0 | AF116: =IF(Control!$D53="yes",Scenarios!AF$107,1) -> 0 | AG116: =IF(Control!$D53="yes",Scenarios!AG$107,1) -> 0 | AH116: =IF(Control!$D53="yes",Scenarios!AH$107,1) -> 0 | AI116: =IF(Control!$D53="yes",Scenarios!AI$107,1) -> 0 | AJ116: =IF(Control!$D53="yes",Scenarios!AJ$107,1) -> 0 | AK116: =IF(Control!$D53="yes",Scenarios!AK$107,1) -> 0 | AL116: =IF(Control!$D53="yes",Scenarios!AL$107,1) -> 0 | AM116: =IF(Control!$D53="yes",Scenarios!AM$107,1) -> 0 | AN116: =IF(Control!$D53="yes",Scenarios!AN$107,1) -> 0 | AO116: =IF(Control!$D53="yes",Scenarios!AO$107,1) -> 0 | AP116: =IF(Control!$D53="yes",Scenarios!AP$107,1) -> 0 | AQ116: =IF(Control!$D53="yes",Scenarios!AQ$107,1) -> 0 | AR116: =IF(Control!$D53="yes",Scenarios!AR$107,1) -> 0 | AS116: =IF(Control!$D53="yes",Scenarios!AS$107,1) -> 0 | AT116: =IF(Control!$D53="yes",Scenarios!AT$107,1) -> 0 | AU116: =IF(Control!$D53="yes",Scenarios!AU$107,1) -> 0 | AV116: =IF(Control!$D53="yes",Scenarios!AV$107,1) -> 0 | AW116: =IF(Control!$D53="yes",Scenarios!AW$107,1) -> 0 | AX116: =IF(Control!$D53="yes",Scenarios!AX$107,1) -> 0 | AY116: =IF(Control!$D53="yes",Scenarios!AY$107,1) -> 0 | AZ116: =IF(Control!$D53="yes",Scenarios!AZ$107,1) -> 0 | BA116: =IF(Control!$D53="yes",Scenarios!BA$107,1) -> 0 | BB116: =IF(Control!$D53="yes",Scenarios!BB$107,1) -> 0 | BC116: =IF(Control!$D53="yes",Scenarios!BC$107,1) -> 0 | BD116: =IF(Control!$D53="yes",Scenarios!BD$107,1) -> 0 | BE116: =IF(Control!$D53="yes",Scenarios!BE$107,1) -> 0 | BF116: =IF(Control!$D53="yes",Scenarios!BF$107,1) -> 0 | BG116: =IF(Control!$D53="yes",Scenarios!BG$107,1) -> 0 | BH116: =IF(Control!$D53="yes",Scenarios!BH$107,1) -> 0 | BI116: =IF(Control!$D53="yes",Scenarios!BI$107,1) -> 0 | BJ116: =IF(Control!$D53="yes",Scenarios!BJ$107,1) -> 0 | BK116: =IF(Control!$D53="yes",Scenarios!BK$107,1) -> 0 | BL116: =IF(Control!$D53="yes",Scenarios!BL$107,1) -> 0 | BM116: =IF(Control!$D53="yes",Scenarios!BM$107,1) -> 0 | BN116: =IF(Control!$D53="yes",Scenarios!BN$107,1) -> 0 | BO116: =IF(Control!$D53="yes",Scenarios!BO$107,1) -> 0 | BP116: =IF(Control!$D53="yes",Scenarios!BP$107,1) -> 0 | BQ116: =IF(Control!$D53="yes",Scenarios!BQ$107,1) -> 0 | BR116: =IF(Control!$D53="yes",Scenarios!BR$107,1) -> 0 | BS116: =IF(Control!$D53="yes",Scenarios!BS$107,1) -> 0 | BT116: =IF(Control!$D53="yes",Scenarios!BT$107,1) -> 0 | BU116: =IF(Control!$D53="yes",Scenarios!BU$107,1) -> 0 | BV116: =IF(Control!$D53="yes",Scenarios!BV$107,1) -> 0 | BW116: =IF(Control!$D53="yes",Scenarios!BW$107,1) -> 0 | BX116: =IF(Control!$D53="yes",Scenarios!BX$107,1) -> 0 | BY116: =IF(Control!$D53="yes",Scenarios!BY$107,1) -> 0 | BZ116: =IF(Control!$D53="yes",Scenarios!BZ$107,1) -> 0 | CA116: =IF(Control!$D53="yes",Scenarios!CA$107,1) -> 0 | CB116: =IF(Control!$D53="yes",Scenarios!CB$107,1) -> 0 | CC116: =IF(Control!$D53="yes",Scenarios!CC$107,1) -> 0
A117: Golden Plains (S) | B117: 1 | C117: 1 | D117: 1 | E117: 1 | F117: 1 | G117: 1 | H117: 1 | I117: 1 | J117: 1 | K117: 1 | L117: 1 | M117: 1 | N117: 1 | O117: 1 | P117: 1 | Q117: 1 | R117: 1 | S117: 1 | T117: 1 | U117: =IF(Control!$D54="yes",Scenarios!U$107,1) -> 0.9 | V117: =IF(Control!$D54="yes",Scenarios!V$107,1) -> 0.8 | W117: =IF(Control!$D54="yes",Scenarios!W$107,1) -> 0.7 | X117: =IF(Control!$D54="yes",Scenarios!X$107,1) -> 0.6 | Y117: =IF(Control!$D54="yes",Scenarios!Y$107,1) -> 0.5 | Z117: =IF(Control!$D54="yes",Scenarios!Z$107,1) -> 0.4 | AA117: =IF(Control!$D54="yes",Scenarios!AA$107,1) -> 0.3 | AB117: =IF(Control!$D54="yes",Scenarios!AB$107,1) -> 0.2 | AC117: =IF(Control!$D54="yes",Scenarios!AC$107,1) -> 0.1 | AD117: =IF(Control!$D54="yes",Scenarios!AD$107,1) -> 0 | AE117: =IF(Control!$D54="yes",Scenarios!AE$107,1) -> 0 | AF117: =IF(Control!$D54="yes",Scenarios!AF$107,1) -> 0 | AG117: =IF(Control!$D54="yes",Scenarios!AG$107,1) -> 0 | AH117: =IF(Control!$D54="yes",Scenarios!AH$107,1) -> 0 | AI117: =IF(Control!$D54="yes",Scenarios!AI$107,1) -> 0 | AJ117: =IF(Control!$D54="yes",Scenarios!AJ$107,1) -> 0 | AK117: =IF(Control!$D54="yes",Scenarios!AK$107,1) -> 0 | AL117: =IF(Control!$D54="yes",Scenarios!AL$107,1) -> 0 | AM117: =IF(Control!$D54="yes",Scenarios!AM$107,1) -> 0 | AN117: =IF(Control!$D54="yes",Scenarios!AN$107,1) -> 0 | AO117: =IF(Control!$D54="yes",Scenarios!AO$107,1) -> 0 | AP117: =IF(Control!$D54="yes",Scenarios!AP$107,1) -> 0 | AQ117: =IF(Control!$D54="yes",Scenarios!AQ$107,1) -> 0 | AR117: =IF(Control!$D54="yes",Scenarios!AR$107,1) -> 0 | AS117: =IF(Control!$D54="yes",Scenarios!AS$107,1) -> 0 | AT117: =IF(Control!$D54="yes",Scenarios!AT$107,1) -> 0 | AU117: =IF(Control!$D54="yes",Scenarios!AU$107,1) -> 0 | AV117: =IF(Control!$D54="yes",Scenarios!AV$107,1) -> 0 | AW117: =IF(Control!$D54="yes",Scenarios!AW$107,1) -> 0 | AX117: =IF(Control!$D54="yes",Scenarios!AX$107,1) -> 0 | AY117: =IF(Control!$D54="yes",Scenarios!AY$107,1) -> 0 | AZ117: =IF(Control!$D54="yes",Scenarios!AZ$107,1) -> 0 | BA117: =IF(Control!$D54="yes",Scenarios!BA$107,1) -> 0 | BB117: =IF(Control!$D54="yes",Scenarios!BB$107,1) -> 0 | BC117: =IF(Control!$D54="yes",Scenarios!BC$107,1) -> 0 | BD117: =IF(Control!$D54="yes",Scenarios!BD$107,1) -> 0 | BE117: =IF(Control!$D54="yes",Scenarios!BE$107,1) -> 0 | BF117: =IF(Control!$D54="yes",Scenarios!BF$107,1) -> 0 | BG117: =IF(Control!$D54="yes",Scenarios!BG$107,1) -> 0 | BH117: =IF(Control!$D54="yes",Scenarios!BH$107,1) -> 0 | BI117: =IF(Control!$D54="yes",Scenarios!BI$107,1) -> 0 | BJ117: =IF(Control!$D54="yes",Scenarios!BJ$107,1) -> 0 | BK117: =IF(Control!$D54="yes",Scenarios!BK$107,1) -> 0 | BL117: =IF(Control!$D54="yes",Scenarios!BL$107,1) -> 0 | BM117: =IF(Control!$D54="yes",Scenarios!BM$107,1) -> 0 | BN117: =IF(Control!$D54="yes",Scenarios!BN$107,1) -> 0 | BO117: =IF(Control!$D54="yes",Scenarios!BO$107,1) -> 0 | BP117: =IF(Control!$D54="yes",Scenarios!BP$107,1) -> 0 | BQ117: =IF(Control!$D54="yes",Scenarios!BQ$107,1) -> 0 | BR117: =IF(Control!$D54="yes",Scenarios!BR$107,1) -> 0 | BS117: =IF(Control!$D54="yes",Scenarios!BS$107,1) -> 0 | BT117: =IF(Control!$D54="yes",Scenarios!BT$107,1) -> 0 | BU117: =IF(Control!$D54="yes",Scenarios!BU$107,1) -> 0 | BV117: =IF(Control!$D54="yes",Scenarios!BV$107,1) -> 0 | BW117: =IF(Control!$D54="yes",Scenarios!BW$107,1) -> 0 | BX117: =IF(Control!$D54="yes",Scenarios!BX$107,1) -> 0 | BY117: =IF(Control!$D54="yes",Scenarios!BY$107,1) -> 0 | BZ117: =IF(Control!$D54="yes",Scenarios!BZ$107,1) -> 0 | CA117: =IF(Control!$D54="yes",Scenarios!CA$107,1) -> 0 | CB117: =IF(Control!$D54="yes",Scenarios!CB$107,1) -> 0 | CC117: =IF(Control!$D54="yes",Scenarios!CC$107,1) -> 0
A118: Greater Bendigo (C) | B118: 1 | C118: 1 | D118: 1 | E118: 1 | F118: 1 | G118: 1 | H118: 1 | I118: 1 | J118: 1 | K118: 1 | L118: 1 | M118: 1 | N118: 1 | O118: 1 | P118: 1 | Q118: 1 | R118: 1 | S118: 1 | T118: 1 | U118: =IF(Control!$D55="yes",Scenarios!U$107,1) -> 1 | V118: =IF(Control!$D55="yes",Scenarios!V$107,1) -> 1 | W118: =IF(Control!$D55="yes",Scenarios!W$107,1) -> 1 | X118: =IF(Control!$D55="yes",Scenarios!X$107,1) -> 1 | Y118: =IF(Control!$D55="yes",Scenarios!Y$107,1) -> 1 | Z118: =IF(Control!$D55="yes",Scenarios!Z$107,1) -> 1 | AA118: =IF(Control!$D55="yes",Scenarios!AA$107,1) -> 1 | AB118: =IF(Control!$D55="yes",Scenarios!AB$107,1) -> 1 | AC118: =IF(Control!$D55="yes",Scenarios!AC$107,1) -> 1 | AD118: =IF(Control!$D55="yes",Scenarios!AD$107,1) -> 1 | AE118: =IF(Control!$D55="yes",Scenarios!AE$107,1) -> 1 | AF118: =IF(Control!$D55="yes",Scenarios!AF$107,1) -> 1 | AG118: =IF(Control!$D55="yes",Scenarios!AG$107,1) -> 1 | AH118: =IF(Control!$D55="yes",Scenarios!AH$107,1) -> 1 | AI118: =IF(Control!$D55="yes",Scenarios!AI$107,1) -> 1 | AJ118: =IF(Control!$D55="yes",Scenarios!AJ$107,1) -> 1 | AK118: =IF(Control!$D55="yes",Scenarios!AK$107,1) -> 1 | AL118: =IF(Control!$D55="yes",Scenarios!AL$107,1) -> 1 | AM118: =IF(Control!$D55="yes",Scenarios!AM$107,1) -> 1 | AN118: =IF(Control!$D55="yes",Scenarios!AN$107,1) -> 1 | AO118: =IF(Control!$D55="yes",Scenarios!AO$107,1) -> 1 | AP118: =IF(Control!$D55="yes",Scenarios!AP$107,1) -> 1 | AQ118: =IF(Control!$D55="yes",Scenarios!AQ$107,1) -> 1 | AR118: =IF(Control!$D55="yes",Scenarios!AR$107,1) -> 1 | AS118: =IF(Control!$D55="yes",Scenarios!AS$107,1) -> 1 | AT118: =IF(Control!$D55="yes",Scenarios!AT$107,1) -> 1 | AU118: =IF(Control!$D55="yes",Scenarios!AU$107,1) -> 1 | AV118: =IF(Control!$D55="yes",Scenarios!AV$107,1) -> 1 | AW118: =IF(Control!$D55="yes",Scenarios!AW$107,1) -> 1 | AX118: =IF(Control!$D55="yes",Scenarios!AX$107,1) -> 1 | AY118: =IF(Control!$D55="yes",Scenarios!AY$107,1) -> 1 | AZ118: =IF(Control!$D55="yes",Scenarios!AZ$107,1) -> 1 | BA118: =IF(Control!$D55="yes",Scenarios!BA$107,1) -> 1 | BB118: =IF(Control!$D55="yes",Scenarios!BB$107,1) -> 1 | BC118: =IF(Control!$D55="yes",Scenarios!BC$107,1) -> 1 | BD118: =IF(Control!$D55="yes",Scenarios!BD$107,1) -> 1 | BE118: =IF(Control!$D55="yes",Scenarios!BE$107,1) -> 1 | BF118: =IF(Control!$D55="yes",Scenarios!BF$107,1) -> 1 | BG118: =IF(Control!$D55="yes",Scenarios!BG$107,1) -> 1 | BH118: =IF(Control!$D55="yes",Scenarios!BH$107,1) -> 1 | BI118: =IF(Control!$D55="yes",Scenarios!BI$107,1) -> 1 | BJ118: =IF(Control!$D55="yes",Scenarios!BJ$107,1) -> 1 | BK118: =IF(Control!$D55="yes",Scenarios!BK$107,1) -> 1 | BL118: =IF(Control!$D55="yes",Scenarios!BL$107,1) -> 1 | BM118: =IF(Control!$D55="yes",Scenarios!BM$107,1) -> 1 | BN118: =IF(Control!$D55="yes",Scenarios!BN$107,1) -> 1 | BO118: =IF(Control!$D55="yes",Scenarios!BO$107,1) -> 1 | BP118: =IF(Control!$D55="yes",Scenarios!BP$107,1) -> 1 | BQ118: =IF(Control!$D55="yes",Scenarios!BQ$107,1) -> 1 | BR118: =IF(Control!$D55="yes",Scenarios!BR$107,1) -> 1 | BS118: =IF(Control!$D55="yes",Scenarios!BS$107,1) -> 1 | BT118: =IF(Control!$D55="yes",Scenarios!BT$107,1) -> 1 | BU118: =IF(Control!$D55="yes",Scenarios!BU$107,1) -> 1 | BV118: =IF(Control!$D55="yes",Scenarios!BV$107,1) -> 1 | BW118: =IF(Control!$D55="yes",Scenarios!BW$107,1) -> 1 | BX118: =IF(Control!$D55="yes",Scenarios!BX$107,1) -> 1 | BY118: =IF(Control!$D55="yes",Scenarios!BY$107,1) -> 1 | BZ118: =IF(Control!$D55="yes",Scenarios!BZ$107,1) -> 1 | CA118: =IF(Control!$D55="yes",Scenarios!CA$107,1) -> 1 | CB118: =IF(Control!$D55="yes",Scenarios!CB$107,1) -> 1 | CC118: =IF(Control!$D55="yes",Scenarios!CC$107,1) -> 1
A119: Greater Geelong (C) | B119: 1 | C119: 1 | D119: 1 | E119: 1 | F119: 1 | G119: 1 | H119: 1 | I119: 1 | J119: 1 | K119: 1 | L119: 1 | M119: 1 | N119: 1 | O119: 1 | P119: 1 | Q119: 1 | R119: 1 | S119: 1 | T119: 1 | U119: =IF(Control!$D56="yes",Scenarios!U$107,1) -> 1 | V119: =IF(Control!$D56="yes",Scenarios!V$107,1) -> 1 | W119: =IF(Control!$D56="yes",Scenarios!W$107,1) -> 1 | X119: =IF(Control!$D56="yes",Scenarios!X$107,1) -> 1 | Y119: =IF(Control!$D56="yes",Scenarios!Y$107,1) -> 1 | Z119: =IF(Control!$D56="yes",Scenarios!Z$107,1) -> 1 | AA119: =IF(Control!$D56="yes",Scenarios!AA$107,1) -> 1 | AB119: =IF(Control!$D56="yes",Scenarios!AB$107,1) -> 1 | AC119: =IF(Control!$D56="yes",Scenarios!AC$107,1) -> 1 | AD119: =IF(Control!$D56="yes",Scenarios!AD$107,1) -> 1 | AE119: =IF(Control!$D56="yes",Scenarios!AE$107,1) -> 1 | AF119: =IF(Control!$D56="yes",Scenarios!AF$107,1) -> 1 | AG119: =IF(Control!$D56="yes",Scenarios!AG$107,1) -> 1 | AH119: =IF(Control!$D56="yes",Scenarios!AH$107,1) -> 1 | AI119: =IF(Control!$D56="yes",Scenarios!AI$107,1) -> 1 | AJ119: =IF(Control!$D56="yes",Scenarios!AJ$107,1) -> 1 | AK119: =IF(Control!$D56="yes",Scenarios!AK$107,1) -> 1 | AL119: =IF(Control!$D56="yes",Scenarios!AL$107,1) -> 1 | AM119: =IF(Control!$D56="yes",Scenarios!AM$107,1) -> 1 | AN119: =IF(Control!$D56="yes",Scenarios!AN$107,1) -> 1 | AO119: =IF(Control!$D56="yes",Scenarios!AO$107,1) -> 1 | AP119: =IF(Control!$D56="yes",Scenarios!AP$107,1) -> 1 | AQ119: =IF(Control!$D56="yes",Scenarios!AQ$107,1) -> 1 | AR119: =IF(Control!$D56="yes",Scenarios!AR$107,1) -> 1 | AS119: =IF(Control!$D56="yes",Scenarios!AS$107,1) -> 1 | AT119: =IF(Control!$D56="yes",Scenarios!AT$107,1) -> 1 | AU119: =IF(Control!$D56="yes",Scenarios!AU$107,1) -> 1 | AV119: =IF(Control!$D56="yes",Scenarios!AV$107,1) -> 1 | AW119: =IF(Control!$D56="yes",Scenarios!AW$107,1) -> 1 | AX119: =IF(Control!$D56="yes",Scenarios!AX$107,1) -> 1 | AY119: =IF(Control!$D56="yes",Scenarios!AY$107,1) -> 1 | AZ119: =IF(Control!$D56="yes",Scenarios!AZ$107,1) -> 1 | BA119: =IF(Control!$D56="yes",Scenarios!BA$107,1) -> 1 | BB119: =IF(Control!$D56="yes",Scenarios!BB$107,1) -> 1 | BC119: =IF(Control!$D56="yes",Scenarios!BC$107,1) -> 1 | BD119: =IF(Control!$D56="yes",Scenarios!BD$107,1) -> 1 | BE119: =IF(Control!$D56="yes",Scenarios!BE$107,1) -> 1 | BF119: =IF(Control!$D56="yes",Scenarios!BF$107,1) -> 1 | BG119: =IF(Control!$D56="yes",Scenarios!BG$107,1) -> 1 | BH119: =IF(Control!$D56="yes",Scenarios!BH$107,1) -> 1 | BI119: =IF(Control!$D56="yes",Scenarios!BI$107,1) -> 1 | BJ119: =IF(Control!$D56="yes",Scenarios!BJ$107,1) -> 1 | BK119: =IF(Control!$D56="yes",Scenarios!BK$107,1) -> 1 | BL119: =IF(Control!$D56="yes",Scenarios!BL$107,1) -> 1 | BM119: =IF(Control!$D56="yes",Scenarios!BM$107,1) -> 1 | BN119: =IF(Control!$D56="yes",Scenarios!BN$107,1) -> 1 | BO119: =IF(Control!$D56="yes",Scenarios!BO$107,1) -> 1 | BP119: =IF(Control!$D56="yes",Scenarios!BP$107,1) -> 1 | BQ119: =IF(Control!$D56="yes",Scenarios!BQ$107,1) -> 1 | BR119: =IF(Control!$D56="yes",Scenarios!BR$107,1) -> 1 | BS119: =IF(Control!$D56="yes",Scenarios!BS$107,1) -> 1 | BT119: =IF(Control!$D56="yes",Scenarios!BT$107,1) -> 1 | BU119: =IF(Control!$D56="yes",Scenarios!BU$107,1) -> 1 | BV119: =IF(Control!$D56="yes",Scenarios!BV$107,1) -> 1 | BW119: =IF(Control!$D56="yes",Scenarios!BW$107,1) -> 1 | BX119: =IF(Control!$D56="yes",Scenarios!BX$107,1) -> 1 | BY119: =IF(Control!$D56="yes",Scenarios!BY$107,1) -> 1 | BZ119: =IF(Control!$D56="yes",Scenarios!BZ$107,1) -> 1 | CA119: =IF(Control!$D56="yes",Scenarios!CA$107,1) -> 1 | CB119: =IF(Control!$D56="yes",Scenarios!CB$107,1) -> 1 | CC119: =IF(Control!$D56="yes",Scenarios!CC$107,1) -> 1
A120: Hepburn (S) | B120: 1 | C120: 1 | D120: 1 | E120: 1 | F120: 1 | G120: 1 | H120: 1 | I120: 1 | J120: 1 | K120: 1 | L120: 1 | M120: 1 | N120: 1 | O120: 1 | P120: 1 | Q120: 1 | R120: 1 | S120: 1 | T120: 1 | U120: =IF(Control!$D57="yes",Scenarios!U$107,1) -> 0.9 | V120: =IF(Control!$D57="yes",Scenarios!V$107,1) -> 0.8 | W120: =IF(Control!$D57="yes",Scenarios!W$107,1) -> 0.7 | X120: =IF(Control!$D57="yes",Scenarios!X$107,1) -> 0.6 | Y120: =IF(Control!$D57="yes",Scenarios!Y$107,1) -> 0.5 | Z120: =IF(Control!$D57="yes",Scenarios!Z$107,1) -> 0.4 | AA120: =IF(Control!$D57="yes",Scenarios!AA$107,1) -> 0.3 | AB120: =IF(Control!$D57="yes",Scenarios!AB$107,1) -> 0.2 | AC120: =IF(Control!$D57="yes",Scenarios!AC$107,1) -> 0.1 | AD120: =IF(Control!$D57="yes",Scenarios!AD$107,1) -> 0 | AE120: =IF(Control!$D57="yes",Scenarios!AE$107,1) -> 0 | AF120: =IF(Control!$D57="yes",Scenarios!AF$107,1) -> 0 | AG120: =IF(Control!$D57="yes",Scenarios!AG$107,1) -> 0 | AH120: =IF(Control!$D57="yes",Scenarios!AH$107,1) -> 0 | AI120: =IF(Control!$D57="yes",Scenarios!AI$107,1) -> 0 | AJ120: =IF(Control!$D57="yes",Scenarios!AJ$107,1) -> 0 | AK120: =IF(Control!$D57="yes",Scenarios!AK$107,1) -> 0 | AL120: =IF(Control!$D57="yes",Scenarios!AL$107,1) -> 0 | AM120: =IF(Control!$D57="yes",Scenarios!AM$107,1) -> 0 | AN120: =IF(Control!$D57="yes",Scenarios!AN$107,1) -> 0 | AO120: =IF(Control!$D57="yes",Scenarios!AO$107,1) -> 0 | AP120: =IF(Control!$D57="yes",Scenarios!AP$107,1) -> 0 | AQ120: =IF(Control!$D57="yes",Scenarios!AQ$107,1) -> 0 | AR120: =IF(Control!$D57="yes",Scenarios!AR$107,1) -> 0 | AS120: =IF(Control!$D57="yes",Scenarios!AS$107,1) -> 0 | AT120: =IF(Control!$D57="yes",Scenarios!AT$107,1) -> 0 | AU120: =IF(Control!$D57="yes",Scenarios!AU$107,1) -> 0 | AV120: =IF(Control!$D57="yes",Scenarios!AV$107,1) -> 0 | AW120: =IF(Control!$D57="yes",Scenarios!AW$107,1) -> 0 | AX120: =IF(Control!$D57="yes",Scenarios!AX$107,1) -> 0 | AY120: =IF(Control!$D57="yes",Scenarios!AY$107,1) -> 0 | AZ120: =IF(Control!$D57="yes",Scenarios!AZ$107,1) -> 0 | BA120: =IF(Control!$D57="yes",Scenarios!BA$107,1) -> 0 | BB120: =IF(Control!$D57="yes",Scenarios!BB$107,1) -> 0 | BC120: =IF(Control!$D57="yes",Scenarios!BC$107,1) -> 0 | BD120: =IF(Control!$D57="yes",Scenarios!BD$107,1) -> 0 | BE120: =IF(Control!$D57="yes",Scenarios!BE$107,1) -> 0 | BF120: =IF(Control!$D57="yes",Scenarios!BF$107,1) -> 0 | BG120: =IF(Control!$D57="yes",Scenarios!BG$107,1) -> 0 | BH120: =IF(Control!$D57="yes",Scenarios!BH$107,1) -> 0 | BI120: =IF(Control!$D57="yes",Scenarios!BI$107,1) -> 0 | BJ120: =IF(Control!$D57="yes",Scenarios!BJ$107,1) -> 0 | BK120: =IF(Control!$D57="yes",Scenarios!BK$107,1) -> 0 | BL120: =IF(Control!$D57="yes",Scenarios!BL$107,1) -> 0 | BM120: =IF(Control!$D57="yes",Scenarios!BM$107,1) -> 0 | BN120: =IF(Control!$D57="yes",Scenarios!BN$107,1) -> 0 | BO120: =IF(Control!$D57="yes",Scenarios!BO$107,1) -> 0 | BP120: =IF(Control!$D57="yes",Scenarios!BP$107,1) -> 0 | BQ120: =IF(Control!$D57="yes",Scenarios!BQ$107,1) -> 0 | BR120: =IF(Control!$D57="yes",Scenarios!BR$107,1) -> 0 | BS120: =IF(Control!$D57="yes",Scenarios!BS$107,1) -> 0 | BT120: =IF(Control!$D57="yes",Scenarios!BT$107,1) -> 0 | BU120: =IF(Control!$D57="yes",Scenarios!BU$107,1) -> 0 | BV120: =IF(Control!$D57="yes",Scenarios!BV$107,1) -> 0 | BW120: =IF(Control!$D57="yes",Scenarios!BW$107,1) -> 0 | BX120: =IF(Control!$D57="yes",Scenarios!BX$107,1) -> 0 | BY120: =IF(Control!$D57="yes",Scenarios!BY$107,1) -> 0 | BZ120: =IF(Control!$D57="yes",Scenarios!BZ$107,1) -> 0 | CA120: =IF(Control!$D57="yes",Scenarios!CA$107,1) -> 0 | CB120: =IF(Control!$D57="yes",Scenarios!CB$107,1) -> 0 | CC120: =IF(Control!$D57="yes",Scenarios!CC$107,1) -> 0
A121: Hobsons Bay (C) | B121: 1 | C121: 1 | D121: 1 | E121: 1 | F121: 1 | G121: 1 | H121: 1 | I121: 1 | J121: 1 | K121: 1 | L121: 1 | M121: 1 | N121: 1 | O121: 1 | P121: 1 | Q121: 1 | R121: 1 | S121: 1 | T121: 1 | U121: =IF(Control!$D58="yes",Scenarios!U$107,1) -> 1 | V121: =IF(Control!$D58="yes",Scenarios!V$107,1) -> 1 | W121: =IF(Control!$D58="yes",Scenarios!W$107,1) -> 1 | X121: =IF(Control!$D58="yes",Scenarios!X$107,1) -> 1 | Y121: =IF(Control!$D58="yes",Scenarios!Y$107,1) -> 1 | Z121: =IF(Control!$D58="yes",Scenarios!Z$107,1) -> 1 | AA121: =IF(Control!$D58="yes",Scenarios!AA$107,1) -> 1 | AB121: =IF(Control!$D58="yes",Scenarios!AB$107,1) -> 1 | AC121: =IF(Control!$D58="yes",Scenarios!AC$107,1) -> 1 | AD121: =IF(Control!$D58="yes",Scenarios!AD$107,1) -> 1 | AE121: =IF(Control!$D58="yes",Scenarios!AE$107,1) -> 1 | AF121: =IF(Control!$D58="yes",Scenarios!AF$107,1) -> 1 | AG121: =IF(Control!$D58="yes",Scenarios!AG$107,1) -> 1 | AH121: =IF(Control!$D58="yes",Scenarios!AH$107,1) -> 1 | AI121: =IF(Control!$D58="yes",Scenarios!AI$107,1) -> 1 | AJ121: =IF(Control!$D58="yes",Scenarios!AJ$107,1) -> 1 | AK121: =IF(Control!$D58="yes",Scenarios!AK$107,1) -> 1 | AL121: =IF(Control!$D58="yes",Scenarios!AL$107,1) -> 1 | AM121: =IF(Control!$D58="yes",Scenarios!AM$107,1) -> 1 | AN121: =IF(Control!$D58="yes",Scenarios!AN$107,1) -> 1 | AO121: =IF(Control!$D58="yes",Scenarios!AO$107,1) -> 1 | AP121: =IF(Control!$D58="yes",Scenarios!AP$107,1) -> 1 | AQ121: =IF(Control!$D58="yes",Scenarios!AQ$107,1) -> 1 | AR121: =IF(Control!$D58="yes",Scenarios!AR$107,1) -> 1 | AS121: =IF(Control!$D58="yes",Scenarios!AS$107,1) -> 1 | AT121: =IF(Control!$D58="yes",Scenarios!AT$107,1) -> 1 | AU121: =IF(Control!$D58="yes",Scenarios!AU$107,1) -> 1 | AV121: =IF(Control!$D58="yes",Scenarios!AV$107,1) -> 1 | AW121: =IF(Control!$D58="yes",Scenarios!AW$107,1) -> 1 | AX121: =IF(Control!$D58="yes",Scenarios!AX$107,1) -> 1 | AY121: =IF(Control!$D58="yes",Scenarios!AY$107,1) -> 1 | AZ121: =IF(Control!$D58="yes",Scenarios!AZ$107,1) -> 1 | BA121: =IF(Control!$D58="yes",Scenarios!BA$107,1) -> 1 | BB121: =IF(Control!$D58="yes",Scenarios!BB$107,1) -> 1 | BC121: =IF(Control!$D58="yes",Scenarios!BC$107,1) -> 1 | BD121: =IF(Control!$D58="yes",Scenarios!BD$107,1) -> 1 | BE121: =IF(Control!$D58="yes",Scenarios!BE$107,1) -> 1 | BF121: =IF(Control!$D58="yes",Scenarios!BF$107,1) -> 1 | BG121: =IF(Control!$D58="yes",Scenarios!BG$107,1) -> 1 | BH121: =IF(Control!$D58="yes",Scenarios!BH$107,1) -> 1 | BI121: =IF(Control!$D58="yes",Scenarios!BI$107,1) -> 1 | BJ121: =IF(Control!$D58="yes",Scenarios!BJ$107,1) -> 1 | BK121: =IF(Control!$D58="yes",Scenarios!BK$107,1) -> 1 | BL121: =IF(Control!$D58="yes",Scenarios!BL$107,1) -> 1 | BM121: =IF(Control!$D58="yes",Scenarios!BM$107,1) -> 1 | BN121: =IF(Control!$D58="yes",Scenarios!BN$107,1) -> 1 | BO121: =IF(Control!$D58="yes",Scenarios!BO$107,1) -> 1 | BP121: =IF(Control!$D58="yes",Scenarios!BP$107,1) -> 1 | BQ121: =IF(Control!$D58="yes",Scenarios!BQ$107,1) -> 1 | BR121: =IF(Control!$D58="yes",Scenarios!BR$107,1) -> 1 | BS121: =IF(Control!$D58="yes",Scenarios!BS$107,1) -> 1 | BT121: =IF(Control!$D58="yes",Scenarios!BT$107,1) -> 1 | BU121: =IF(Control!$D58="yes",Scenarios!BU$107,1) -> 1 | BV121: =IF(Control!$D58="yes",Scenarios!BV$107,1) -> 1 | BW121: =IF(Control!$D58="yes",Scenarios!BW$107,1) -> 1 | BX121: =IF(Control!$D58="yes",Scenarios!BX$107,1) -> 1 | BY121: =IF(Control!$D58="yes",Scenarios!BY$107,1) -> 1 | BZ121: =IF(Control!$D58="yes",Scenarios!BZ$107,1) -> 1 | CA121: =IF(Control!$D58="yes",Scenarios!CA$107,1) -> 1 | CB121: =IF(Control!$D58="yes",Scenarios!CB$107,1) -> 1 | CC121: =IF(Control!$D58="yes",Scenarios!CC$107,1) -> 1
A122: Horsham (RC) | B122: 1 | C122: 1 | D122: 1 | E122: 1 | F122: 1 | G122: 1 | H122: 1 | I122: 1 | J122: 1 | K122: 1 | L122: 1 | M122: 1 | N122: 1 | O122: 1 | P122: 1 | Q122: 1 | R122: 1 | S122: 1 | T122: 1 | U122: =IF(Control!$D59="yes",Scenarios!U$107,1) -> 0.9 | V122: =IF(Control!$D59="yes",Scenarios!V$107,1) -> 0.8 | W122: =IF(Control!$D59="yes",Scenarios!W$107,1) -> 0.7 | X122: =IF(Control!$D59="yes",Scenarios!X$107,1) -> 0.6 | Y122: =IF(Control!$D59="yes",Scenarios!Y$107,1) -> 0.5 | Z122: =IF(Control!$D59="yes",Scenarios!Z$107,1) -> 0.4 | AA122: =IF(Control!$D59="yes",Scenarios!AA$107,1) -> 0.3 | AB122: =IF(Control!$D59="yes",Scenarios!AB$107,1) -> 0.2 | AC122: =IF(Control!$D59="yes",Scenarios!AC$107,1) -> 0.1 | AD122: =IF(Control!$D59="yes",Scenarios!AD$107,1) -> 0 | AE122: =IF(Control!$D59="yes",Scenarios!AE$107,1) -> 0 | AF122: =IF(Control!$D59="yes",Scenarios!AF$107,1) -> 0 | AG122: =IF(Control!$D59="yes",Scenarios!AG$107,1) -> 0 | AH122: =IF(Control!$D59="yes",Scenarios!AH$107,1) -> 0 | AI122: =IF(Control!$D59="yes",Scenarios!AI$107,1) -> 0 | AJ122: =IF(Control!$D59="yes",Scenarios!AJ$107,1) -> 0 | AK122: =IF(Control!$D59="yes",Scenarios!AK$107,1) -> 0 | AL122: =IF(Control!$D59="yes",Scenarios!AL$107,1) -> 0 | AM122: =IF(Control!$D59="yes",Scenarios!AM$107,1) -> 0 | AN122: =IF(Control!$D59="yes",Scenarios!AN$107,1) -> 0 | AO122: =IF(Control!$D59="yes",Scenarios!AO$107,1) -> 0 | AP122: =IF(Control!$D59="yes",Scenarios!AP$107,1) -> 0 | AQ122: =IF(Control!$D59="yes",Scenarios!AQ$107,1) -> 0 | AR122: =IF(Control!$D59="yes",Scenarios!AR$107,1) -> 0 | AS122: =IF(Control!$D59="yes",Scenarios!AS$107,1) -> 0 | AT122: =IF(Control!$D59="yes",Scenarios!AT$107,1) -> 0 | AU122: =IF(Control!$D59="yes",Scenarios!AU$107,1) -> 0 | AV122: =IF(Control!$D59="yes",Scenarios!AV$107,1) -> 0 | AW122: =IF(Control!$D59="yes",Scenarios!AW$107,1) -> 0 | AX122: =IF(Control!$D59="yes",Scenarios!AX$107,1) -> 0 | AY122: =IF(Control!$D59="yes",Scenarios!AY$107,1) -> 0 | AZ122: =IF(Control!$D59="yes",Scenarios!AZ$107,1) -> 0 | BA122: =IF(Control!$D59="yes",Scenarios!BA$107,1) -> 0 | BB122: =IF(Control!$D59="yes",Scenarios!BB$107,1) -> 0 | BC122: =IF(Control!$D59="yes",Scenarios!BC$107,1) -> 0 | BD122: =IF(Control!$D59="yes",Scenarios!BD$107,1) -> 0 | BE122: =IF(Control!$D59="yes",Scenarios!BE$107,1) -> 0 | BF122: =IF(Control!$D59="yes",Scenarios!BF$107,1) -> 0 | BG122: =IF(Control!$D59="yes",Scenarios!BG$107,1) -> 0 | BH122: =IF(Control!$D59="yes",Scenarios!BH$107,1) -> 0 | BI122: =IF(Control!$D59="yes",Scenarios!BI$107,1) -> 0 | BJ122: =IF(Control!$D59="yes",Scenarios!BJ$107,1) -> 0 | BK122: =IF(Control!$D59="yes",Scenarios!BK$107,1) -> 0 | BL122: =IF(Control!$D59="yes",Scenarios!BL$107,1) -> 0 | BM122: =IF(Control!$D59="yes",Scenarios!BM$107,1) -> 0 | BN122: =IF(Control!$D59="yes",Scenarios!BN$107,1) -> 0 | BO122: =IF(Control!$D59="yes",Scenarios!BO$107,1) -> 0 | BP122: =IF(Control!$D59="yes",Scenarios!BP$107,1) -> 0 | BQ122: =IF(Control!$D59="yes",Scenarios!BQ$107,1) -> 0 | BR122: =IF(Control!$D59="yes",Scenarios!BR$107,1) -> 0 | BS122: =IF(Control!$D59="yes",Scenarios!BS$107,1) -> 0 | BT122: =IF(Control!$D59="yes",Scenarios!BT$107,1) -> 0 | BU122: =IF(Control!$D59="yes",Scenarios!BU$107,1) -> 0 | BV122: =IF(Control!$D59="yes",Scenarios!BV$107,1) -> 0 | BW122: =IF(Control!$D59="yes",Scenarios!BW$107,1) -> 0 | BX122: =IF(Control!$D59="yes",Scenarios!BX$107,1) -> 0 | BY122: =IF(Control!$D59="yes",Scenarios!BY$107,1) -> 0 | BZ122: =IF(Control!$D59="yes",Scenarios!BZ$107,1) -> 0 | CA122: =IF(Control!$D59="yes",Scenarios!CA$107,1) -> 0 | CB122: =IF(Control!$D59="yes",Scenarios!CB$107,1) -> 0 | CC122: =IF(Control!$D59="yes",Scenarios!CC$107,1) -> 0
A123: Hume (C) | B123: 1 | C123: 1 | D123: 1 | E123: 1 | F123: 1 | G123: 1 | H123: 1 | I123: 1 | J123: 1 | K123: 1 | L123: 1 | M123: 1 | N123: 1 | O123: 1 | P123: 1 | Q123: 1 | R123: 1 | S123: 1 | T123: 1 | U123: =IF(Control!$D60="yes",Scenarios!U$107,1) -> 1 | V123: =IF(Control!$D60="yes",Scenarios!V$107,1) -> 1 | W123: =IF(Control!$D60="yes",Scenarios!W$107,1) -> 1 | X123: =IF(Control!$D60="yes",Scenarios!X$107,1) -> 1 | Y123: =IF(Control!$D60="yes",Scenarios!Y$107,1) -> 1 | Z123: =IF(Control!$D60="yes",Scenarios!Z$107,1) -> 1 | AA123: =IF(Control!$D60="yes",Scenarios!AA$107,1) -> 1 | AB123: =IF(Control!$D60="yes",Scenarios!AB$107,1) -> 1 | AC123: =IF(Control!$D60="yes",Scenarios!AC$107,1) -> 1 | AD123: =IF(Control!$D60="yes",Scenarios!AD$107,1) -> 1 | AE123: =IF(Control!$D60="yes",Scenarios!AE$107,1) -> 1 | AF123: =IF(Control!$D60="yes",Scenarios!AF$107,1) -> 1 | AG123: =IF(Control!$D60="yes",Scenarios!AG$107,1) -> 1 | AH123: =IF(Control!$D60="yes",Scenarios!AH$107,1) -> 1 | AI123: =IF(Control!$D60="yes",Scenarios!AI$107,1) -> 1 | AJ123: =IF(Control!$D60="yes",Scenarios!AJ$107,1) -> 1 | AK123: =IF(Control!$D60="yes",Scenarios!AK$107,1) -> 1 | AL123: =IF(Control!$D60="yes",Scenarios!AL$107,1) -> 1 | AM123: =IF(Control!$D60="yes",Scenarios!AM$107,1) -> 1 | AN123: =IF(Control!$D60="yes",Scenarios!AN$107,1) -> 1 | AO123: =IF(Control!$D60="yes",Scenarios!AO$107,1) -> 1 | AP123: =IF(Control!$D60="yes",Scenarios!AP$107,1) -> 1 | AQ123: =IF(Control!$D60="yes",Scenarios!AQ$107,1) -> 1 | AR123: =IF(Control!$D60="yes",Scenarios!AR$107,1) -> 1 | AS123: =IF(Control!$D60="yes",Scenarios!AS$107,1) -> 1 | AT123: =IF(Control!$D60="yes",Scenarios!AT$107,1) -> 1 | AU123: =IF(Control!$D60="yes",Scenarios!AU$107,1) -> 1 | AV123: =IF(Control!$D60="yes",Scenarios!AV$107,1) -> 1 | AW123: =IF(Control!$D60="yes",Scenarios!AW$107,1) -> 1 | AX123: =IF(Control!$D60="yes",Scenarios!AX$107,1) -> 1 | AY123: =IF(Control!$D60="yes",Scenarios!AY$107,1) -> 1 | AZ123: =IF(Control!$D60="yes",Scenarios!AZ$107,1) -> 1 | BA123: =IF(Control!$D60="yes",Scenarios!BA$107,1) -> 1 | BB123: =IF(Control!$D60="yes",Scenarios!BB$107,1) -> 1 | BC123: =IF(Control!$D60="yes",Scenarios!BC$107,1) -> 1 | BD123: =IF(Control!$D60="yes",Scenarios!BD$107,1) -> 1 | BE123: =IF(Control!$D60="yes",Scenarios!BE$107,1) -> 1 | BF123: =IF(Control!$D60="yes",Scenarios!BF$107,1) -> 1 | BG123: =IF(Control!$D60="yes",Scenarios!BG$107,1) -> 1 | BH123: =IF(Control!$D60="yes",Scenarios!BH$107,1) -> 1 | BI123: =IF(Control!$D60="yes",Scenarios!BI$107,1) -> 1 | BJ123: =IF(Control!$D60="yes",Scenarios!BJ$107,1) -> 1 | BK123: =IF(Control!$D60="yes",Scenarios!BK$107,1) -> 1 | BL123: =IF(Control!$D60="yes",Scenarios!BL$107,1) -> 1 | BM123: =IF(Control!$D60="yes",Scenarios!BM$107,1) -> 1 | BN123: =IF(Control!$D60="yes",Scenarios!BN$107,1) -> 1 | BO123: =IF(Control!$D60="yes",Scenarios!BO$107,1) -> 1 | BP123: =IF(Control!$D60="yes",Scenarios!BP$107,1) -> 1 | BQ123: =IF(Control!$D60="yes",Scenarios!BQ$107,1) -> 1 | BR123: =IF(Control!$D60="yes",Scenarios!BR$107,1) -> 1 | BS123: =IF(Control!$D60="yes",Scenarios!BS$107,1) -> 1 | BT123: =IF(Control!$D60="yes",Scenarios!BT$107,1) -> 1 | BU123: =IF(Control!$D60="yes",Scenarios!BU$107,1) -> 1 | BV123: =IF(Control!$D60="yes",Scenarios!BV$107,1) -> 1 | BW123: =IF(Control!$D60="yes",Scenarios!BW$107,1) -> 1 | BX123: =IF(Control!$D60="yes",Scenarios!BX$107,1) -> 1 | BY123: =IF(Control!$D60="yes",Scenarios!BY$107,1) -> 1 | BZ123: =IF(Control!$D60="yes",Scenarios!BZ$107,1) -> 1 | CA123: =IF(Control!$D60="yes",Scenarios!CA$107,1) -> 1 | CB123: =IF(Control!$D60="yes",Scenarios!CB$107,1) -> 1 | CC123: =IF(Control!$D60="yes",Scenarios!CC$107,1) -> 1
A124: Macedon Ranges (S) | B124: 1 | C124: 1 | D124: 1 | E124: 1 | F124: 1 | G124: 1 | H124: 1 | I124: 1 | J124: 1 | K124: 1 | L124: 1 | M124: 1 | N124: 1 | O124: 1 | P124: 1 | Q124: 1 | R124: 1 | S124: 1 | T124: 1 | U124: =IF(Control!$D61="yes",Scenarios!U$107,1) -> 1 | V124: =IF(Control!$D61="yes",Scenarios!V$107,1) -> 1 | W124: =IF(Control!$D61="yes",Scenarios!W$107,1) -> 1 | X124: =IF(Control!$D61="yes",Scenarios!X$107,1) -> 1 | Y124: =IF(Control!$D61="yes",Scenarios!Y$107,1) -> 1 | Z124: =IF(Control!$D61="yes",Scenarios!Z$107,1) -> 1 | AA124: =IF(Control!$D61="yes",Scenarios!AA$107,1) -> 1 | AB124: =IF(Control!$D61="yes",Scenarios!AB$107,1) -> 1 | AC124: =IF(Control!$D61="yes",Scenarios!AC$107,1) -> 1 | AD124: =IF(Control!$D61="yes",Scenarios!AD$107,1) -> 1 | AE124: =IF(Control!$D61="yes",Scenarios!AE$107,1) -> 1 | AF124: =IF(Control!$D61="yes",Scenarios!AF$107,1) -> 1 | AG124: =IF(Control!$D61="yes",Scenarios!AG$107,1) -> 1 | AH124: =IF(Control!$D61="yes",Scenarios!AH$107,1) -> 1 | AI124: =IF(Control!$D61="yes",Scenarios!AI$107,1) -> 1 | AJ124: =IF(Control!$D61="yes",Scenarios!AJ$107,1) -> 1 | AK124: =IF(Control!$D61="yes",Scenarios!AK$107,1) -> 1 | AL124: =IF(Control!$D61="yes",Scenarios!AL$107,1) -> 1 | AM124: =IF(Control!$D61="yes",Scenarios!AM$107,1) -> 1 | AN124: =IF(Control!$D61="yes",Scenarios!AN$107,1) -> 1 | AO124: =IF(Control!$D61="yes",Scenarios!AO$107,1) -> 1 | AP124: =IF(Control!$D61="yes",Scenarios!AP$107,1) -> 1 | AQ124: =IF(Control!$D61="yes",Scenarios!AQ$107,1) -> 1 | AR124: =IF(Control!$D61="yes",Scenarios!AR$107,1) -> 1 | AS124: =IF(Control!$D61="yes",Scenarios!AS$107,1) -> 1 | AT124: =IF(Control!$D61="yes",Scenarios!AT$107,1) -> 1 | AU124: =IF(Control!$D61="yes",Scenarios!AU$107,1) -> 1 | AV124: =IF(Control!$D61="yes",Scenarios!AV$107,1) -> 1 | AW124: =IF(Control!$D61="yes",Scenarios!AW$107,1) -> 1 | AX124: =IF(Control!$D61="yes",Scenarios!AX$107,1) -> 1 | AY124: =IF(Control!$D61="yes",Scenarios!AY$107,1) -> 1 | AZ124: =IF(Control!$D61="yes",Scenarios!AZ$107,1) -> 1 | BA124: =IF(Control!$D61="yes",Scenarios!BA$107,1) -> 1 | BB124: =IF(Control!$D61="yes",Scenarios!BB$107,1) -> 1 | BC124: =IF(Control!$D61="yes",Scenarios!BC$107,1) -> 1 | BD124: =IF(Control!$D61="yes",Scenarios!BD$107,1) -> 1 | BE124: =IF(Control!$D61="yes",Scenarios!BE$107,1) -> 1 | BF124: =IF(Control!$D61="yes",Scenarios!BF$107,1) -> 1 | BG124: =IF(Control!$D61="yes",Scenarios!BG$107,1) -> 1 | BH124: =IF(Control!$D61="yes",Scenarios!BH$107,1) -> 1 | BI124: =IF(Control!$D61="yes",Scenarios!BI$107,1) -> 1 | BJ124: =IF(Control!$D61="yes",Scenarios!BJ$107,1) -> 1 | BK124: =IF(Control!$D61="yes",Scenarios!BK$107,1) -> 1 | BL124: =IF(Control!$D61="yes",Scenarios!BL$107,1) -> 1 | BM124: =IF(Control!$D61="yes",Scenarios!BM$107,1) -> 1 | BN124: =IF(Control!$D61="yes",Scenarios!BN$107,1) -> 1 | BO124: =IF(Control!$D61="yes",Scenarios!BO$107,1) -> 1 | BP124: =IF(Control!$D61="yes",Scenarios!BP$107,1) -> 1 | BQ124: =IF(Control!$D61="yes",Scenarios!BQ$107,1) -> 1 | BR124: =IF(Control!$D61="yes",Scenarios!BR$107,1) -> 1 | BS124: =IF(Control!$D61="yes",Scenarios!BS$107,1) -> 1 | BT124: =IF(Control!$D61="yes",Scenarios!BT$107,1) -> 1 | BU124: =IF(Control!$D61="yes",Scenarios!BU$107,1) -> 1 | BV124: =IF(Control!$D61="yes",Scenarios!BV$107,1) -> 1 | BW124: =IF(Control!$D61="yes",Scenarios!BW$107,1) -> 1 | BX124: =IF(Control!$D61="yes",Scenarios!BX$107,1) -> 1 | BY124: =IF(Control!$D61="yes",Scenarios!BY$107,1) -> 1 | BZ124: =IF(Control!$D61="yes",Scenarios!BZ$107,1) -> 1 | CA124: =IF(Control!$D61="yes",Scenarios!CA$107,1) -> 1 | CB124: =IF(Control!$D61="yes",Scenarios!CB$107,1) -> 1 | CC124: =IF(Control!$D61="yes",Scenarios!CC$107,1) -> 1
A125: Maribyrnong (C) | B125: 1 | C125: 1 | D125: 1 | E125: 1 | F125: 1 | G125: 1 | H125: 1 | I125: 1 | J125: 1 | K125: 1 | L125: 1 | M125: 1 | N125: 1 | O125: 1 | P125: 1 | Q125: 1 | R125: 1 | S125: 1 | T125: 1 | U125: =IF(Control!$D62="yes",Scenarios!U$107,1) -> 1 | V125: =IF(Control!$D62="yes",Scenarios!V$107,1) -> 1 | W125: =IF(Control!$D62="yes",Scenarios!W$107,1) -> 1 | X125: =IF(Control!$D62="yes",Scenarios!X$107,1) -> 1 | Y125: =IF(Control!$D62="yes",Scenarios!Y$107,1) -> 1 | Z125: =IF(Control!$D62="yes",Scenarios!Z$107,1) -> 1 | AA125: =IF(Control!$D62="yes",Scenarios!AA$107,1) -> 1 | AB125: =IF(Control!$D62="yes",Scenarios!AB$107,1) -> 1 | AC125: =IF(Control!$D62="yes",Scenarios!AC$107,1) -> 1 | AD125: =IF(Control!$D62="yes",Scenarios!AD$107,1) -> 1 | AE125: =IF(Control!$D62="yes",Scenarios!AE$107,1) -> 1 | AF125: =IF(Control!$D62="yes",Scenarios!AF$107,1) -> 1 | AG125: =IF(Control!$D62="yes",Scenarios!AG$107,1) -> 1 | AH125: =IF(Control!$D62="yes",Scenarios!AH$107,1) -> 1 | AI125: =IF(Control!$D62="yes",Scenarios!AI$107,1) -> 1 | AJ125: =IF(Control!$D62="yes",Scenarios!AJ$107,1) -> 1 | AK125: =IF(Control!$D62="yes",Scenarios!AK$107,1) -> 1 | AL125: =IF(Control!$D62="yes",Scenarios!AL$107,1) -> 1 | AM125: =IF(Control!$D62="yes",Scenarios!AM$107,1) -> 1 | AN125: =IF(Control!$D62="yes",Scenarios!AN$107,1) -> 1 | AO125: =IF(Control!$D62="yes",Scenarios!AO$107,1) -> 1 | AP125: =IF(Control!$D62="yes",Scenarios!AP$107,1) -> 1 | AQ125: =IF(Control!$D62="yes",Scenarios!AQ$107,1) -> 1 | AR125: =IF(Control!$D62="yes",Scenarios!AR$107,1) -> 1 | AS125: =IF(Control!$D62="yes",Scenarios!AS$107,1) -> 1 | AT125: =IF(Control!$D62="yes",Scenarios!AT$107,1) -> 1 | AU125: =IF(Control!$D62="yes",Scenarios!AU$107,1) -> 1 | AV125: =IF(Control!$D62="yes",Scenarios!AV$107,1) -> 1 | AW125: =IF(Control!$D62="yes",Scenarios!AW$107,1) -> 1 | AX125: =IF(Control!$D62="yes",Scenarios!AX$107,1) -> 1 | AY125: =IF(Control!$D62="yes",Scenarios!AY$107,1) -> 1 | AZ125: =IF(Control!$D62="yes",Scenarios!AZ$107,1) -> 1 | BA125: =IF(Control!$D62="yes",Scenarios!BA$107,1) -> 1 | BB125: =IF(Control!$D62="yes",Scenarios!BB$107,1) -> 1 | BC125: =IF(Control!$D62="yes",Scenarios!BC$107,1) -> 1 | BD125: =IF(Control!$D62="yes",Scenarios!BD$107,1) -> 1 | BE125: =IF(Control!$D62="yes",Scenarios!BE$107,1) -> 1 | BF125: =IF(Control!$D62="yes",Scenarios!BF$107,1) -> 1 | BG125: =IF(Control!$D62="yes",Scenarios!BG$107,1) -> 1 | BH125: =IF(Control!$D62="yes",Scenarios!BH$107,1) -> 1 | BI125: =IF(Control!$D62="yes",Scenarios!BI$107,1) -> 1 | BJ125: =IF(Control!$D62="yes",Scenarios!BJ$107,1) -> 1 | BK125: =IF(Control!$D62="yes",Scenarios!BK$107,1) -> 1 | BL125: =IF(Control!$D62="yes",Scenarios!BL$107,1) -> 1 | BM125: =IF(Control!$D62="yes",Scenarios!BM$107,1) -> 1 | BN125: =IF(Control!$D62="yes",Scenarios!BN$107,1) -> 1 | BO125: =IF(Control!$D62="yes",Scenarios!BO$107,1) -> 1 | BP125: =IF(Control!$D62="yes",Scenarios!BP$107,1) -> 1 | BQ125: =IF(Control!$D62="yes",Scenarios!BQ$107,1) -> 1 | BR125: =IF(Control!$D62="yes",Scenarios!BR$107,1) -> 1 | BS125: =IF(Control!$D62="yes",Scenarios!BS$107,1) -> 1 | BT125: =IF(Control!$D62="yes",Scenarios!BT$107,1) -> 1 | BU125: =IF(Control!$D62="yes",Scenarios!BU$107,1) -> 1 | BV125: =IF(Control!$D62="yes",Scenarios!BV$107,1) -> 1 | BW125: =IF(Control!$D62="yes",Scenarios!BW$107,1) -> 1 | BX125: =IF(Control!$D62="yes",Scenarios!BX$107,1) -> 1 | BY125: =IF(Control!$D62="yes",Scenarios!BY$107,1) -> 1 | BZ125: =IF(Control!$D62="yes",Scenarios!BZ$107,1) -> 1 | CA125: =IF(Control!$D62="yes",Scenarios!CA$107,1) -> 1 | CB125: =IF(Control!$D62="yes",Scenarios!CB$107,1) -> 1 | CC125: =IF(Control!$D62="yes",Scenarios!CC$107,1) -> 1
A126: Melbourne (C) | B126: 1 | C126: 1 | D126: 1 | E126: 1 | F126: 1 | G126: 1 | H126: 1 | I126: 1 | J126: 1 | K126: 1 | L126: 1 | M126: 1 | N126: 1 | O126: 1 | P126: 1 | Q126: 1 | R126: 1 | S126: 1 | T126: 1 | U126: =IF(Control!$D63="yes",Scenarios!U$107,1) -> 1 | V126: =IF(Control!$D63="yes",Scenarios!V$107,1) -> 1 | W126: =IF(Control!$D63="yes",Scenarios!W$107,1) -> 1 | X126: =IF(Control!$D63="yes",Scenarios!X$107,1) -> 1 | Y126: =IF(Control!$D63="yes",Scenarios!Y$107,1) -> 1 | Z126: =IF(Control!$D63="yes",Scenarios!Z$107,1) -> 1 | AA126: =IF(Control!$D63="yes",Scenarios!AA$107,1) -> 1 | AB126: =IF(Control!$D63="yes",Scenarios!AB$107,1) -> 1 | AC126: =IF(Control!$D63="yes",Scenarios!AC$107,1) -> 1 | AD126: =IF(Control!$D63="yes",Scenarios!AD$107,1) -> 1 | AE126: =IF(Control!$D63="yes",Scenarios!AE$107,1) -> 1 | AF126: =IF(Control!$D63="yes",Scenarios!AF$107,1) -> 1 | AG126: =IF(Control!$D63="yes",Scenarios!AG$107,1) -> 1 | AH126: =IF(Control!$D63="yes",Scenarios!AH$107,1) -> 1 | AI126: =IF(Control!$D63="yes",Scenarios!AI$107,1) -> 1 | AJ126: =IF(Control!$D63="yes",Scenarios!AJ$107,1) -> 1 | AK126: =IF(Control!$D63="yes",Scenarios!AK$107,1) -> 1 | AL126: =IF(Control!$D63="yes",Scenarios!AL$107,1) -> 1 | AM126: =IF(Control!$D63="yes",Scenarios!AM$107,1) -> 1 | AN126: =IF(Control!$D63="yes",Scenarios!AN$107,1) -> 1 | AO126: =IF(Control!$D63="yes",Scenarios!AO$107,1) -> 1 | AP126: =IF(Control!$D63="yes",Scenarios!AP$107,1) -> 1 | AQ126: =IF(Control!$D63="yes",Scenarios!AQ$107,1) -> 1 | AR126: =IF(Control!$D63="yes",Scenarios!AR$107,1) -> 1 | AS126: =IF(Control!$D63="yes",Scenarios!AS$107,1) -> 1 | AT126: =IF(Control!$D63="yes",Scenarios!AT$107,1) -> 1 | AU126: =IF(Control!$D63="yes",Scenarios!AU$107,1) -> 1 | AV126: =IF(Control!$D63="yes",Scenarios!AV$107,1) -> 1 | AW126: =IF(Control!$D63="yes",Scenarios!AW$107,1) -> 1 | AX126: =IF(Control!$D63="yes",Scenarios!AX$107,1) -> 1 | AY126: =IF(Control!$D63="yes",Scenarios!AY$107,1) -> 1 | AZ126: =IF(Control!$D63="yes",Scenarios!AZ$107,1) -> 1 | BA126: =IF(Control!$D63="yes",Scenarios!BA$107,1) -> 1 | BB126: =IF(Control!$D63="yes",Scenarios!BB$107,1) -> 1 | BC126: =IF(Control!$D63="yes",Scenarios!BC$107,1) -> 1 | BD126: =IF(Control!$D63="yes",Scenarios!BD$107,1) -> 1 | BE126: =IF(Control!$D63="yes",Scenarios!BE$107,1) -> 1 | BF126: =IF(Control!$D63="yes",Scenarios!BF$107,1) -> 1 | BG126: =IF(Control!$D63="yes",Scenarios!BG$107,1) -> 1 | BH126: =IF(Control!$D63="yes",Scenarios!BH$107,1) -> 1 | BI126: =IF(Control!$D63="yes",Scenarios!BI$107,1) -> 1 | BJ126: =IF(Control!$D63="yes",Scenarios!BJ$107,1) -> 1 | BK126: =IF(Control!$D63="yes",Scenarios!BK$107,1) -> 1 | BL126: =IF(Control!$D63="yes",Scenarios!BL$107,1) -> 1 | BM126: =IF(Control!$D63="yes",Scenarios!BM$107,1) -> 1 | BN126: =IF(Control!$D63="yes",Scenarios!BN$107,1) -> 1 | BO126: =IF(Control!$D63="yes",Scenarios!BO$107,1) -> 1 | BP126: =IF(Control!$D63="yes",Scenarios!BP$107,1) -> 1 | BQ126: =IF(Control!$D63="yes",Scenarios!BQ$107,1) -> 1 | BR126: =IF(Control!$D63="yes",Scenarios!BR$107,1) -> 1 | BS126: =IF(Control!$D63="yes",Scenarios!BS$107,1) -> 1 | BT126: =IF(Control!$D63="yes",Scenarios!BT$107,1) -> 1 | BU126: =IF(Control!$D63="yes",Scenarios!BU$107,1) -> 1 | BV126: =IF(Control!$D63="yes",Scenarios!BV$107,1) -> 1 | BW126: =IF(Control!$D63="yes",Scenarios!BW$107,1) -> 1 | BX126: =IF(Control!$D63="yes",Scenarios!BX$107,1) -> 1 | BY126: =IF(Control!$D63="yes",Scenarios!BY$107,1) -> 1 | BZ126: =IF(Control!$D63="yes",Scenarios!BZ$107,1) -> 1 | CA126: =IF(Control!$D63="yes",Scenarios!CA$107,1) -> 1 | CB126: =IF(Control!$D63="yes",Scenarios!CB$107,1) -> 1 | CC126: =IF(Control!$D63="yes",Scenarios!CC$107,1) -> 1
A127: Melton (S) | B127: 1 | C127: 1 | D127: 1 | E127: 1 | F127: 1 | G127: 1 | H127: 1 | I127: 1 | J127: 1 | K127: 1 | L127: 1 | M127: 1 | N127: 1 | O127: 1 | P127: 1 | Q127: 1 | R127: 1 | S127: 1 | T127: 1 | U127: =IF(Control!$D64="yes",Scenarios!U$107,1) -> 0.9 | V127: =IF(Control!$D64="yes",Scenarios!V$107,1) -> 0.8 | W127: =IF(Control!$D64="yes",Scenarios!W$107,1) -> 0.7 | X127: =IF(Control!$D64="yes",Scenarios!X$107,1) -> 0.6 | Y127: =IF(Control!$D64="yes",Scenarios!Y$107,1) -> 0.5 | Z127: =IF(Control!$D64="yes",Scenarios!Z$107,1) -> 0.4 | AA127: =IF(Control!$D64="yes",Scenarios!AA$107,1) -> 0.3 | AB127: =IF(Control!$D64="yes",Scenarios!AB$107,1) -> 0.2 | AC127: =IF(Control!$D64="yes",Scenarios!AC$107,1) -> 0.1 | AD127: =IF(Control!$D64="yes",Scenarios!AD$107,1) -> 0 | AE127: =IF(Control!$D64="yes",Scenarios!AE$107,1) -> 0 | AF127: =IF(Control!$D64="yes",Scenarios!AF$107,1) -> 0 | AG127: =IF(Control!$D64="yes",Scenarios!AG$107,1) -> 0 | AH127: =IF(Control!$D64="yes",Scenarios!AH$107,1) -> 0 | AI127: =IF(Control!$D64="yes",Scenarios!AI$107,1) -> 0 | AJ127: =IF(Control!$D64="yes",Scenarios!AJ$107,1) -> 0 | AK127: =IF(Control!$D64="yes",Scenarios!AK$107,1) -> 0 | AL127: =IF(Control!$D64="yes",Scenarios!AL$107,1) -> 0 | AM127: =IF(Control!$D64="yes",Scenarios!AM$107,1) -> 0 | AN127: =IF(Control!$D64="yes",Scenarios!AN$107,1) -> 0 | AO127: =IF(Control!$D64="yes",Scenarios!AO$107,1) -> 0 | AP127: =IF(Control!$D64="yes",Scenarios!AP$107,1) -> 0 | AQ127: =IF(Control!$D64="yes",Scenarios!AQ$107,1) -> 0 | AR127: =IF(Control!$D64="yes",Scenarios!AR$107,1) -> 0 | AS127: =IF(Control!$D64="yes",Scenarios!AS$107,1) -> 0 | AT127: =IF(Control!$D64="yes",Scenarios!AT$107,1) -> 0 | AU127: =IF(Control!$D64="yes",Scenarios!AU$107,1) -> 0 | AV127: =IF(Control!$D64="yes",Scenarios!AV$107,1) -> 0 | AW127: =IF(Control!$D64="yes",Scenarios!AW$107,1) -> 0 | AX127: =IF(Control!$D64="yes",Scenarios!AX$107,1) -> 0 | AY127: =IF(Control!$D64="yes",Scenarios!AY$107,1) -> 0 | AZ127: =IF(Control!$D64="yes",Scenarios!AZ$107,1) -> 0 | BA127: =IF(Control!$D64="yes",Scenarios!BA$107,1) -> 0 | BB127: =IF(Control!$D64="yes",Scenarios!BB$107,1) -> 0 | BC127: =IF(Control!$D64="yes",Scenarios!BC$107,1) -> 0 | BD127: =IF(Control!$D64="yes",Scenarios!BD$107,1) -> 0 | BE127: =IF(Control!$D64="yes",Scenarios!BE$107,1) -> 0 | BF127: =IF(Control!$D64="yes",Scenarios!BF$107,1) -> 0 | BG127: =IF(Control!$D64="yes",Scenarios!BG$107,1) -> 0 | BH127: =IF(Control!$D64="yes",Scenarios!BH$107,1) -> 0 | BI127: =IF(Control!$D64="yes",Scenarios!BI$107,1) -> 0 | BJ127: =IF(Control!$D64="yes",Scenarios!BJ$107,1) -> 0 | BK127: =IF(Control!$D64="yes",Scenarios!BK$107,1) -> 0 | BL127: =IF(Control!$D64="yes",Scenarios!BL$107,1) -> 0 | BM127: =IF(Control!$D64="yes",Scenarios!BM$107,1) -> 0 | BN127: =IF(Control!$D64="yes",Scenarios!BN$107,1) -> 0 | BO127: =IF(Control!$D64="yes",Scenarios!BO$107,1) -> 0 | BP127: =IF(Control!$D64="yes",Scenarios!BP$107,1) -> 0 | BQ127: =IF(Control!$D64="yes",Scenarios!BQ$107,1) -> 0 | BR127: =IF(Control!$D64="yes",Scenarios!BR$107,1) -> 0 | BS127: =IF(Control!$D64="yes",Scenarios!BS$107,1) -> 0 | BT127: =IF(Control!$D64="yes",Scenarios!BT$107,1) -> 0 | BU127: =IF(Control!$D64="yes",Scenarios!BU$107,1) -> 0 | BV127: =IF(Control!$D64="yes",Scenarios!BV$107,1) -> 0 | BW127: =IF(Control!$D64="yes",Scenarios!BW$107,1) -> 0 | BX127: =IF(Control!$D64="yes",Scenarios!BX$107,1) -> 0 | BY127: =IF(Control!$D64="yes",Scenarios!BY$107,1) -> 0 | BZ127: =IF(Control!$D64="yes",Scenarios!BZ$107,1) -> 0 | CA127: =IF(Control!$D64="yes",Scenarios!CA$107,1) -> 0 | CB127: =IF(Control!$D64="yes",Scenarios!CB$107,1) -> 0 | CC127: =IF(Control!$D64="yes",Scenarios!CC$107,1) -> 0
A128: Moonee Valley (C) | B128: 1 | C128: 1 | D128: 1 | E128: 1 | F128: 1 | G128: 1 | H128: 1 | I128: 1 | J128: 1 | K128: 1 | L128: 1 | M128: 1 | N128: 1 | O128: 1 | P128: 1 | Q128: 1 | R128: 1 | S128: 1 | T128: 1 | U128: =IF(Control!$D65="yes",Scenarios!U$107,1) -> 0.9 | V128: =IF(Control!$D65="yes",Scenarios!V$107,1) -> 0.8 | W128: =IF(Control!$D65="yes",Scenarios!W$107,1) -> 0.7 | X128: =IF(Control!$D65="yes",Scenarios!X$107,1) -> 0.6 | Y128: =IF(Control!$D65="yes",Scenarios!Y$107,1) -> 0.5 | Z128: =IF(Control!$D65="yes",Scenarios!Z$107,1) -> 0.4 | AA128: =IF(Control!$D65="yes",Scenarios!AA$107,1) -> 0.3 | AB128: =IF(Control!$D65="yes",Scenarios!AB$107,1) -> 0.2 | AC128: =IF(Control!$D65="yes",Scenarios!AC$107,1) -> 0.1 | AD128: =IF(Control!$D65="yes",Scenarios!AD$107,1) -> 0 | AE128: =IF(Control!$D65="yes",Scenarios!AE$107,1) -> 0 | AF128: =IF(Control!$D65="yes",Scenarios!AF$107,1) -> 0 | AG128: =IF(Control!$D65="yes",Scenarios!AG$107,1) -> 0 | AH128: =IF(Control!$D65="yes",Scenarios!AH$107,1) -> 0 | AI128: =IF(Control!$D65="yes",Scenarios!AI$107,1) -> 0 | AJ128: =IF(Control!$D65="yes",Scenarios!AJ$107,1) -> 0 | AK128: =IF(Control!$D65="yes",Scenarios!AK$107,1) -> 0 | AL128: =IF(Control!$D65="yes",Scenarios!AL$107,1) -> 0 | AM128: =IF(Control!$D65="yes",Scenarios!AM$107,1) -> 0 | AN128: =IF(Control!$D65="yes",Scenarios!AN$107,1) -> 0 | AO128: =IF(Control!$D65="yes",Scenarios!AO$107,1) -> 0 | AP128: =IF(Control!$D65="yes",Scenarios!AP$107,1) -> 0 | AQ128: =IF(Control!$D65="yes",Scenarios!AQ$107,1) -> 0 | AR128: =IF(Control!$D65="yes",Scenarios!AR$107,1) -> 0 | AS128: =IF(Control!$D65="yes",Scenarios!AS$107,1) -> 0 | AT128: =IF(Control!$D65="yes",Scenarios!AT$107,1) -> 0 | AU128: =IF(Control!$D65="yes",Scenarios!AU$107,1) -> 0 | AV128: =IF(Control!$D65="yes",Scenarios!AV$107,1) -> 0 | AW128: =IF(Control!$D65="yes",Scenarios!AW$107,1) -> 0 | AX128: =IF(Control!$D65="yes",Scenarios!AX$107,1) -> 0 | AY128: =IF(Control!$D65="yes",Scenarios!AY$107,1) -> 0 | AZ128: =IF(Control!$D65="yes",Scenarios!AZ$107,1) -> 0 | BA128: =IF(Control!$D65="yes",Scenarios!BA$107,1) -> 0 | BB128: =IF(Control!$D65="yes",Scenarios!BB$107,1) -> 0 | BC128: =IF(Control!$D65="yes",Scenarios!BC$107,1) -> 0 | BD128: =IF(Control!$D65="yes",Scenarios!BD$107,1) -> 0 | BE128: =IF(Control!$D65="yes",Scenarios!BE$107,1) -> 0 | BF128: =IF(Control!$D65="yes",Scenarios!BF$107,1) -> 0 | BG128: =IF(Control!$D65="yes",Scenarios!BG$107,1) -> 0 | BH128: =IF(Control!$D65="yes",Scenarios!BH$107,1) -> 0 | BI128: =IF(Control!$D65="yes",Scenarios!BI$107,1) -> 0 | BJ128: =IF(Control!$D65="yes",Scenarios!BJ$107,1) -> 0 | BK128: =IF(Control!$D65="yes",Scenarios!BK$107,1) -> 0 | BL128: =IF(Control!$D65="yes",Scenarios!BL$107,1) -> 0 | BM128: =IF(Control!$D65="yes",Scenarios!BM$107,1) -> 0 | BN128: =IF(Control!$D65="yes",Scenarios!BN$107,1) -> 0 | BO128: =IF(Control!$D65="yes",Scenarios!BO$107,1) -> 0 | BP128: =IF(Control!$D65="yes",Scenarios!BP$107,1) -> 0 | BQ128: =IF(Control!$D65="yes",Scenarios!BQ$107,1) -> 0 | BR128: =IF(Control!$D65="yes",Scenarios!BR$107,1) -> 0 | BS128: =IF(Control!$D65="yes",Scenarios!BS$107,1) -> 0 | BT128: =IF(Control!$D65="yes",Scenarios!BT$107,1) -> 0 | BU128: =IF(Control!$D65="yes",Scenarios!BU$107,1) -> 0 | BV128: =IF(Control!$D65="yes",Scenarios!BV$107,1) -> 0 | BW128: =IF(Control!$D65="yes",Scenarios!BW$107,1) -> 0 | BX128: =IF(Control!$D65="yes",Scenarios!BX$107,1) -> 0 | BY128: =IF(Control!$D65="yes",Scenarios!BY$107,1) -> 0 | BZ128: =IF(Control!$D65="yes",Scenarios!BZ$107,1) -> 0 | CA128: =IF(Control!$D65="yes",Scenarios!CA$107,1) -> 0 | CB128: =IF(Control!$D65="yes",Scenarios!CB$107,1) -> 0 | CC128: =IF(Control!$D65="yes",Scenarios!CC$107,1) -> 0
A129: Moorabool (S) | B129: 1 | C129: 1 | D129: 1 | E129: 1 | F129: 1 | G129: 1 | H129: 1 | I129: 1 | J129: 1 | K129: 1 | L129: 1 | M129: 1 | N129: 1 | O129: 1 | P129: 1 | Q129: 1 | R129: 1 | S129: 1 | T129: 1 | U129: =IF(Control!$D66="yes",Scenarios!U$107,1) -> 0.9 | V129: =IF(Control!$D66="yes",Scenarios!V$107,1) -> 0.8 | W129: =IF(Control!$D66="yes",Scenarios!W$107,1) -> 0.7 | X129: =IF(Control!$D66="yes",Scenarios!X$107,1) -> 0.6 | Y129: =IF(Control!$D66="yes",Scenarios!Y$107,1) -> 0.5 | Z129: =IF(Control!$D66="yes",Scenarios!Z$107,1) -> 0.4 | AA129: =IF(Control!$D66="yes",Scenarios!AA$107,1) -> 0.3 | AB129: =IF(Control!$D66="yes",Scenarios!AB$107,1) -> 0.2 | AC129: =IF(Control!$D66="yes",Scenarios!AC$107,1) -> 0.1 | AD129: =IF(Control!$D66="yes",Scenarios!AD$107,1) -> 0 | AE129: =IF(Control!$D66="yes",Scenarios!AE$107,1) -> 0 | AF129: =IF(Control!$D66="yes",Scenarios!AF$107,1) -> 0 | AG129: =IF(Control!$D66="yes",Scenarios!AG$107,1) -> 0 | AH129: =IF(Control!$D66="yes",Scenarios!AH$107,1) -> 0 | AI129: =IF(Control!$D66="yes",Scenarios!AI$107,1) -> 0 | AJ129: =IF(Control!$D66="yes",Scenarios!AJ$107,1) -> 0 | AK129: =IF(Control!$D66="yes",Scenarios!AK$107,1) -> 0 | AL129: =IF(Control!$D66="yes",Scenarios!AL$107,1) -> 0 | AM129: =IF(Control!$D66="yes",Scenarios!AM$107,1) -> 0 | AN129: =IF(Control!$D66="yes",Scenarios!AN$107,1) -> 0 | AO129: =IF(Control!$D66="yes",Scenarios!AO$107,1) -> 0 | AP129: =IF(Control!$D66="yes",Scenarios!AP$107,1) -> 0 | AQ129: =IF(Control!$D66="yes",Scenarios!AQ$107,1) -> 0 | AR129: =IF(Control!$D66="yes",Scenarios!AR$107,1) -> 0 | AS129: =IF(Control!$D66="yes",Scenarios!AS$107,1) -> 0 | AT129: =IF(Control!$D66="yes",Scenarios!AT$107,1) -> 0 | AU129: =IF(Control!$D66="yes",Scenarios!AU$107,1) -> 0 | AV129: =IF(Control!$D66="yes",Scenarios!AV$107,1) -> 0 | AW129: =IF(Control!$D66="yes",Scenarios!AW$107,1) -> 0 | AX129: =IF(Control!$D66="yes",Scenarios!AX$107,1) -> 0 | AY129: =IF(Control!$D66="yes",Scenarios!AY$107,1) -> 0 | AZ129: =IF(Control!$D66="yes",Scenarios!AZ$107,1) -> 0 | BA129: =IF(Control!$D66="yes",Scenarios!BA$107,1) -> 0 | BB129: =IF(Control!$D66="yes",Scenarios!BB$107,1) -> 0 | BC129: =IF(Control!$D66="yes",Scenarios!BC$107,1) -> 0 | BD129: =IF(Control!$D66="yes",Scenarios!BD$107,1) -> 0 | BE129: =IF(Control!$D66="yes",Scenarios!BE$107,1) -> 0 | BF129: =IF(Control!$D66="yes",Scenarios!BF$107,1) -> 0 | BG129: =IF(Control!$D66="yes",Scenarios!BG$107,1) -> 0 | BH129: =IF(Control!$D66="yes",Scenarios!BH$107,1) -> 0 | BI129: =IF(Control!$D66="yes",Scenarios!BI$107,1) -> 0 | BJ129: =IF(Control!$D66="yes",Scenarios!BJ$107,1) -> 0 | BK129: =IF(Control!$D66="yes",Scenarios!BK$107,1) -> 0 | BL129: =IF(Control!$D66="yes",Scenarios!BL$107,1) -> 0 | BM129: =IF(Control!$D66="yes",Scenarios!BM$107,1) -> 0 | BN129: =IF(Control!$D66="yes",Scenarios!BN$107,1) -> 0 | BO129: =IF(Control!$D66="yes",Scenarios!BO$107,1) -> 0 | BP129: =IF(Control!$D66="yes",Scenarios!BP$107,1) -> 0 | BQ129: =IF(Control!$D66="yes",Scenarios!BQ$107,1) -> 0 | BR129: =IF(Control!$D66="yes",Scenarios!BR$107,1) -> 0 | BS129: =IF(Control!$D66="yes",Scenarios!BS$107,1) -> 0 | BT129: =IF(Control!$D66="yes",Scenarios!BT$107,1) -> 0 | BU129: =IF(Control!$D66="yes",Scenarios!BU$107,1) -> 0 | BV129: =IF(Control!$D66="yes",Scenarios!BV$107,1) -> 0 | BW129: =IF(Control!$D66="yes",Scenarios!BW$107,1) -> 0 | BX129: =IF(Control!$D66="yes",Scenarios!BX$107,1) -> 0 | BY129: =IF(Control!$D66="yes",Scenarios!BY$107,1) -> 0 | BZ129: =IF(Control!$D66="yes",Scenarios!BZ$107,1) -> 0 | CA129: =IF(Control!$D66="yes",Scenarios!CA$107,1) -> 0 | CB129: =IF(Control!$D66="yes",Scenarios!CB$107,1) -> 0 | CC129: =IF(Control!$D66="yes",Scenarios!CC$107,1) -> 0
A130: Moreland (C) | B130: 1 | C130: 1 | D130: 1 | E130: 1 | F130: 1 | G130: 1 | H130: 1 | I130: 1 | J130: 1 | K130: 1 | L130: 1 | M130: 1 | N130: 1 | O130: 1 | P130: 1 | Q130: 1 | R130: 1 | S130: 1 | T130: 1 | U130: =IF(Control!$D67="yes",Scenarios!U$107,1) -> 0.9 | V130: =IF(Control!$D67="yes",Scenarios!V$107,1) -> 0.8 | W130: =IF(Control!$D67="yes",Scenarios!W$107,1) -> 0.7 | X130: =IF(Control!$D67="yes",Scenarios!X$107,1) -> 0.6 | Y130: =IF(Control!$D67="yes",Scenarios!Y$107,1) -> 0.5 | Z130: =IF(Control!$D67="yes",Scenarios!Z$107,1) -> 0.4 | AA130: =IF(Control!$D67="yes",Scenarios!AA$107,1) -> 0.3 | AB130: =IF(Control!$D67="yes",Scenarios!AB$107,1) -> 0.2 | AC130: =IF(Control!$D67="yes",Scenarios!AC$107,1) -> 0.1 | AD130: =IF(Control!$D67="yes",Scenarios!AD$107,1) -> 0 | AE130: =IF(Control!$D67="yes",Scenarios!AE$107,1) -> 0 | AF130: =IF(Control!$D67="yes",Scenarios!AF$107,1) -> 0 | AG130: =IF(Control!$D67="yes",Scenarios!AG$107,1) -> 0 | AH130: =IF(Control!$D67="yes",Scenarios!AH$107,1) -> 0 | AI130: =IF(Control!$D67="yes",Scenarios!AI$107,1) -> 0 | AJ130: =IF(Control!$D67="yes",Scenarios!AJ$107,1) -> 0 | AK130: =IF(Control!$D67="yes",Scenarios!AK$107,1) -> 0 | AL130: =IF(Control!$D67="yes",Scenarios!AL$107,1) -> 0 | AM130: =IF(Control!$D67="yes",Scenarios!AM$107,1) -> 0 | AN130: =IF(Control!$D67="yes",Scenarios!AN$107,1) -> 0 | AO130: =IF(Control!$D67="yes",Scenarios!AO$107,1) -> 0 | AP130: =IF(Control!$D67="yes",Scenarios!AP$107,1) -> 0 | AQ130: =IF(Control!$D67="yes",Scenarios!AQ$107,1) -> 0 | AR130: =IF(Control!$D67="yes",Scenarios!AR$107,1) -> 0 | AS130: =IF(Control!$D67="yes",Scenarios!AS$107,1) -> 0 | AT130: =IF(Control!$D67="yes",Scenarios!AT$107,1) -> 0 | AU130: =IF(Control!$D67="yes",Scenarios!AU$107,1) -> 0 | AV130: =IF(Control!$D67="yes",Scenarios!AV$107,1) -> 0 | AW130: =IF(Control!$D67="yes",Scenarios!AW$107,1) -> 0 | AX130: =IF(Control!$D67="yes",Scenarios!AX$107,1) -> 0 | AY130: =IF(Control!$D67="yes",Scenarios!AY$107,1) -> 0 | AZ130: =IF(Control!$D67="yes",Scenarios!AZ$107,1) -> 0 | BA130: =IF(Control!$D67="yes",Scenarios!BA$107,1) -> 0 | BB130: =IF(Control!$D67="yes",Scenarios!BB$107,1) -> 0 | BC130: =IF(Control!$D67="yes",Scenarios!BC$107,1) -> 0 | BD130: =IF(Control!$D67="yes",Scenarios!BD$107,1) -> 0 | BE130: =IF(Control!$D67="yes",Scenarios!BE$107,1) -> 0 | BF130: =IF(Control!$D67="yes",Scenarios!BF$107,1) -> 0 | BG130: =IF(Control!$D67="yes",Scenarios!BG$107,1) -> 0 | BH130: =IF(Control!$D67="yes",Scenarios!BH$107,1) -> 0 | BI130: =IF(Control!$D67="yes",Scenarios!BI$107,1) -> 0 | BJ130: =IF(Control!$D67="yes",Scenarios!BJ$107,1) -> 0 | BK130: =IF(Control!$D67="yes",Scenarios!BK$107,1) -> 0 | BL130: =IF(Control!$D67="yes",Scenarios!BL$107,1) -> 0 | BM130: =IF(Control!$D67="yes",Scenarios!BM$107,1) -> 0 | BN130: =IF(Control!$D67="yes",Scenarios!BN$107,1) -> 0 | BO130: =IF(Control!$D67="yes",Scenarios!BO$107,1) -> 0 | BP130: =IF(Control!$D67="yes",Scenarios!BP$107,1) -> 0 | BQ130: =IF(Control!$D67="yes",Scenarios!BQ$107,1) -> 0 | BR130: =IF(Control!$D67="yes",Scenarios!BR$107,1) -> 0 | BS130: =IF(Control!$D67="yes",Scenarios!BS$107,1) -> 0 | BT130: =IF(Control!$D67="yes",Scenarios!BT$107,1) -> 0 | BU130: =IF(Control!$D67="yes",Scenarios!BU$107,1) -> 0 | BV130: =IF(Control!$D67="yes",Scenarios!BV$107,1) -> 0 | BW130: =IF(Control!$D67="yes",Scenarios!BW$107,1) -> 0 | BX130: =IF(Control!$D67="yes",Scenarios!BX$107,1) -> 0 | BY130: =IF(Control!$D67="yes",Scenarios!BY$107,1) -> 0 | BZ130: =IF(Control!$D67="yes",Scenarios!BZ$107,1) -> 0 | CA130: =IF(Control!$D67="yes",Scenarios!CA$107,1) -> 0 | CB130: =IF(Control!$D67="yes",Scenarios!CB$107,1) -> 0 | CC130: =IF(Control!$D67="yes",Scenarios!CC$107,1) -> 0
A131: Mount Alexander (S) | B131: 1 | C131: 1 | D131: 1 | E131: 1 | F131: 1 | G131: 1 | H131: 1 | I131: 1 | J131: 1 | K131: 1 | L131: 1 | M131: 1 | N131: 1 | O131: 1 | P131: 1 | Q131: 1 | R131: 1 | S131: 1 | T131: 1 | U131: =IF(Control!$D68="yes",Scenarios!U$107,1) -> 0.9 | V131: =IF(Control!$D68="yes",Scenarios!V$107,1) -> 0.8 | W131: =IF(Control!$D68="yes",Scenarios!W$107,1) -> 0.7 | X131: =IF(Control!$D68="yes",Scenarios!X$107,1) -> 0.6 | Y131: =IF(Control!$D68="yes",Scenarios!Y$107,1) -> 0.5 | Z131: =IF(Control!$D68="yes",Scenarios!Z$107,1) -> 0.4 | AA131: =IF(Control!$D68="yes",Scenarios!AA$107,1) -> 0.3 | AB131: =IF(Control!$D68="yes",Scenarios!AB$107,1) -> 0.2 | AC131: =IF(Control!$D68="yes",Scenarios!AC$107,1) -> 0.1 | AD131: =IF(Control!$D68="yes",Scenarios!AD$107,1) -> 0 | AE131: =IF(Control!$D68="yes",Scenarios!AE$107,1) -> 0 | AF131: =IF(Control!$D68="yes",Scenarios!AF$107,1) -> 0 | AG131: =IF(Control!$D68="yes",Scenarios!AG$107,1) -> 0 | AH131: =IF(Control!$D68="yes",Scenarios!AH$107,1) -> 0 | AI131: =IF(Control!$D68="yes",Scenarios!AI$107,1) -> 0 | AJ131: =IF(Control!$D68="yes",Scenarios!AJ$107,1) -> 0 | AK131: =IF(Control!$D68="yes",Scenarios!AK$107,1) -> 0 | AL131: =IF(Control!$D68="yes",Scenarios!AL$107,1) -> 0 | AM131: =IF(Control!$D68="yes",Scenarios!AM$107,1) -> 0 | AN131: =IF(Control!$D68="yes",Scenarios!AN$107,1) -> 0 | AO131: =IF(Control!$D68="yes",Scenarios!AO$107,1) -> 0 | AP131: =IF(Control!$D68="yes",Scenarios!AP$107,1) -> 0 | AQ131: =IF(Control!$D68="yes",Scenarios!AQ$107,1) -> 0 | AR131: =IF(Control!$D68="yes",Scenarios!AR$107,1) -> 0 | AS131: =IF(Control!$D68="yes",Scenarios!AS$107,1) -> 0 | AT131: =IF(Control!$D68="yes",Scenarios!AT$107,1) -> 0 | AU131: =IF(Control!$D68="yes",Scenarios!AU$107,1) -> 0 | AV131: =IF(Control!$D68="yes",Scenarios!AV$107,1) -> 0 | AW131: =IF(Control!$D68="yes",Scenarios!AW$107,1) -> 0 | AX131: =IF(Control!$D68="yes",Scenarios!AX$107,1) -> 0 | AY131: =IF(Control!$D68="yes",Scenarios!AY$107,1) -> 0 | AZ131: =IF(Control!$D68="yes",Scenarios!AZ$107,1) -> 0 | BA131: =IF(Control!$D68="yes",Scenarios!BA$107,1) -> 0 | BB131: =IF(Control!$D68="yes",Scenarios!BB$107,1) -> 0 | BC131: =IF(Control!$D68="yes",Scenarios!BC$107,1) -> 0 | BD131: =IF(Control!$D68="yes",Scenarios!BD$107,1) -> 0 | BE131: =IF(Control!$D68="yes",Scenarios!BE$107,1) -> 0 | BF131: =IF(Control!$D68="yes",Scenarios!BF$107,1) -> 0 | BG131: =IF(Control!$D68="yes",Scenarios!BG$107,1) -> 0 | BH131: =IF(Control!$D68="yes",Scenarios!BH$107,1) -> 0 | BI131: =IF(Control!$D68="yes",Scenarios!BI$107,1) -> 0 | BJ131: =IF(Control!$D68="yes",Scenarios!BJ$107,1) -> 0 | BK131: =IF(Control!$D68="yes",Scenarios!BK$107,1) -> 0 | BL131: =IF(Control!$D68="yes",Scenarios!BL$107,1) -> 0 | BM131: =IF(Control!$D68="yes",Scenarios!BM$107,1) -> 0 | BN131: =IF(Control!$D68="yes",Scenarios!BN$107,1) -> 0 | BO131: =IF(Control!$D68="yes",Scenarios!BO$107,1) -> 0 | BP131: =IF(Control!$D68="yes",Scenarios!BP$107,1) -> 0 | BQ131: =IF(Control!$D68="yes",Scenarios!BQ$107,1) -> 0 | BR131: =IF(Control!$D68="yes",Scenarios!BR$107,1) -> 0 | BS131: =IF(Control!$D68="yes",Scenarios!BS$107,1) -> 0 | BT131: =IF(Control!$D68="yes",Scenarios!BT$107,1) -> 0 | BU131: =IF(Control!$D68="yes",Scenarios!BU$107,1) -> 0 | BV131: =IF(Control!$D68="yes",Scenarios!BV$107,1) -> 0 | BW131: =IF(Control!$D68="yes",Scenarios!BW$107,1) -> 0 | BX131: =IF(Control!$D68="yes",Scenarios!BX$107,1) -> 0 | BY131: =IF(Control!$D68="yes",Scenarios!BY$107,1) -> 0 | BZ131: =IF(Control!$D68="yes",Scenarios!BZ$107,1) -> 0 | CA131: =IF(Control!$D68="yes",Scenarios!CA$107,1) -> 0 | CB131: =IF(Control!$D68="yes",Scenarios!CB$107,1) -> 0 | CC131: =IF(Control!$D68="yes",Scenarios!CC$107,1) -> 0
A132: Moyne (S) | B132: 1 | C132: 1 | D132: 1 | E132: 1 | F132: 1 | G132: 1 | H132: 1 | I132: 1 | J132: 1 | K132: 1 | L132: 1 | M132: 1 | N132: 1 | O132: 1 | P132: 1 | Q132: 1 | R132: 1 | S132: 1 | T132: 1 | U132: =IF(Control!$D69="yes",Scenarios!U$107,1) -> 0.9 | V132: =IF(Control!$D69="yes",Scenarios!V$107,1) -> 0.8 | W132: =IF(Control!$D69="yes",Scenarios!W$107,1) -> 0.7 | X132: =IF(Control!$D69="yes",Scenarios!X$107,1) -> 0.6 | Y132: =IF(Control!$D69="yes",Scenarios!Y$107,1) -> 0.5 | Z132: =IF(Control!$D69="yes",Scenarios!Z$107,1) -> 0.4 | AA132: =IF(Control!$D69="yes",Scenarios!AA$107,1) -> 0.3 | AB132: =IF(Control!$D69="yes",Scenarios!AB$107,1) -> 0.2 | AC132: =IF(Control!$D69="yes",Scenarios!AC$107,1) -> 0.1 | AD132: =IF(Control!$D69="yes",Scenarios!AD$107,1) -> 0 | AE132: =IF(Control!$D69="yes",Scenarios!AE$107,1) -> 0 | AF132: =IF(Control!$D69="yes",Scenarios!AF$107,1) -> 0 | AG132: =IF(Control!$D69="yes",Scenarios!AG$107,1) -> 0 | AH132: =IF(Control!$D69="yes",Scenarios!AH$107,1) -> 0 | AI132: =IF(Control!$D69="yes",Scenarios!AI$107,1) -> 0 | AJ132: =IF(Control!$D69="yes",Scenarios!AJ$107,1) -> 0 | AK132: =IF(Control!$D69="yes",Scenarios!AK$107,1) -> 0 | AL132: =IF(Control!$D69="yes",Scenarios!AL$107,1) -> 0 | AM132: =IF(Control!$D69="yes",Scenarios!AM$107,1) -> 0 | AN132: =IF(Control!$D69="yes",Scenarios!AN$107,1) -> 0 | AO132: =IF(Control!$D69="yes",Scenarios!AO$107,1) -> 0 | AP132: =IF(Control!$D69="yes",Scenarios!AP$107,1) -> 0 | AQ132: =IF(Control!$D69="yes",Scenarios!AQ$107,1) -> 0 | AR132: =IF(Control!$D69="yes",Scenarios!AR$107,1) -> 0 | AS132: =IF(Control!$D69="yes",Scenarios!AS$107,1) -> 0 | AT132: =IF(Control!$D69="yes",Scenarios!AT$107,1) -> 0 | AU132: =IF(Control!$D69="yes",Scenarios!AU$107,1) -> 0 | AV132: =IF(Control!$D69="yes",Scenarios!AV$107,1) -> 0 | AW132: =IF(Control!$D69="yes",Scenarios!AW$107,1) -> 0 | AX132: =IF(Control!$D69="yes",Scenarios!AX$107,1) -> 0 | AY132: =IF(Control!$D69="yes",Scenarios!AY$107,1) -> 0 | AZ132: =IF(Control!$D69="yes",Scenarios!AZ$107,1) -> 0 | BA132: =IF(Control!$D69="yes",Scenarios!BA$107,1) -> 0 | BB132: =IF(Control!$D69="yes",Scenarios!BB$107,1) -> 0 | BC132: =IF(Control!$D69="yes",Scenarios!BC$107,1) -> 0 | BD132: =IF(Control!$D69="yes",Scenarios!BD$107,1) -> 0 | BE132: =IF(Control!$D69="yes",Scenarios!BE$107,1) -> 0 | BF132: =IF(Control!$D69="yes",Scenarios!BF$107,1) -> 0 | BG132: =IF(Control!$D69="yes",Scenarios!BG$107,1) -> 0 | BH132: =IF(Control!$D69="yes",Scenarios!BH$107,1) -> 0 | BI132: =IF(Control!$D69="yes",Scenarios!BI$107,1) -> 0 | BJ132: =IF(Control!$D69="yes",Scenarios!BJ$107,1) -> 0 | BK132: =IF(Control!$D69="yes",Scenarios!BK$107,1) -> 0 | BL132: =IF(Control!$D69="yes",Scenarios!BL$107,1) -> 0 | BM132: =IF(Control!$D69="yes",Scenarios!BM$107,1) -> 0 | BN132: =IF(Control!$D69="yes",Scenarios!BN$107,1) -> 0 | BO132: =IF(Control!$D69="yes",Scenarios!BO$107,1) -> 0 | BP132: =IF(Control!$D69="yes",Scenarios!BP$107,1) -> 0 | BQ132: =IF(Control!$D69="yes",Scenarios!BQ$107,1) -> 0 | BR132: =IF(Control!$D69="yes",Scenarios!BR$107,1) -> 0 | BS132: =IF(Control!$D69="yes",Scenarios!BS$107,1) -> 0 | BT132: =IF(Control!$D69="yes",Scenarios!BT$107,1) -> 0 | BU132: =IF(Control!$D69="yes",Scenarios!BU$107,1) -> 0 | BV132: =IF(Control!$D69="yes",Scenarios!BV$107,1) -> 0 | BW132: =IF(Control!$D69="yes",Scenarios!BW$107,1) -> 0 | BX132: =IF(Control!$D69="yes",Scenarios!BX$107,1) -> 0 | BY132: =IF(Control!$D69="yes",Scenarios!BY$107,1) -> 0 | BZ132: =IF(Control!$D69="yes",Scenarios!BZ$107,1) -> 0 | CA132: =IF(Control!$D69="yes",Scenarios!CA$107,1) -> 0 | CB132: =IF(Control!$D69="yes",Scenarios!CB$107,1) -> 0 | CC132: =IF(Control!$D69="yes",Scenarios!CC$107,1) -> 0
A133: Northern Grampians (S) | B133: 1 | C133: 1 | D133: 1 | E133: 1 | F133: 1 | G133: 1 | H133: 1 | I133: 1 | J133: 1 | K133: 1 | L133: 1 | M133: 1 | N133: 1 | O133: 1 | P133: 1 | Q133: 1 | R133: 1 | S133: 1 | T133: 1 | U133: =IF(Control!$D70="yes",Scenarios!U$107,1) -> 0.9 | V133: =IF(Control!$D70="yes",Scenarios!V$107,1) -> 0.8 | W133: =IF(Control!$D70="yes",Scenarios!W$107,1) -> 0.7 | X133: =IF(Control!$D70="yes",Scenarios!X$107,1) -> 0.6 | Y133: =IF(Control!$D70="yes",Scenarios!Y$107,1) -> 0.5 | Z133: =IF(Control!$D70="yes",Scenarios!Z$107,1) -> 0.4 | AA133: =IF(Control!$D70="yes",Scenarios!AA$107,1) -> 0.3 | AB133: =IF(Control!$D70="yes",Scenarios!AB$107,1) -> 0.2 | AC133: =IF(Control!$D70="yes",Scenarios!AC$107,1) -> 0.1 | AD133: =IF(Control!$D70="yes",Scenarios!AD$107,1) -> 0 | AE133: =IF(Control!$D70="yes",Scenarios!AE$107,1) -> 0 | AF133: =IF(Control!$D70="yes",Scenarios!AF$107,1) -> 0 | AG133: =IF(Control!$D70="yes",Scenarios!AG$107,1) -> 0 | AH133: =IF(Control!$D70="yes",Scenarios!AH$107,1) -> 0 | AI133: =IF(Control!$D70="yes",Scenarios!AI$107,1) -> 0 | AJ133: =IF(Control!$D70="yes",Scenarios!AJ$107,1) -> 0 | AK133: =IF(Control!$D70="yes",Scenarios!AK$107,1) -> 0 | AL133: =IF(Control!$D70="yes",Scenarios!AL$107,1) -> 0 | AM133: =IF(Control!$D70="yes",Scenarios!AM$107,1) -> 0 | AN133: =IF(Control!$D70="yes",Scenarios!AN$107,1) -> 0 | AO133: =IF(Control!$D70="yes",Scenarios!AO$107,1) -> 0 | AP133: =IF(Control!$D70="yes",Scenarios!AP$107,1) -> 0 | AQ133: =IF(Control!$D70="yes",Scenarios!AQ$107,1) -> 0 | AR133: =IF(Control!$D70="yes",Scenarios!AR$107,1) -> 0 | AS133: =IF(Control!$D70="yes",Scenarios!AS$107,1) -> 0 | AT133: =IF(Control!$D70="yes",Scenarios!AT$107,1) -> 0 | AU133: =IF(Control!$D70="yes",Scenarios!AU$107,1) -> 0 | AV133: =IF(Control!$D70="yes",Scenarios!AV$107,1) -> 0 | AW133: =IF(Control!$D70="yes",Scenarios!AW$107,1) -> 0 | AX133: =IF(Control!$D70="yes",Scenarios!AX$107,1) -> 0 | AY133: =IF(Control!$D70="yes",Scenarios!AY$107,1) -> 0 | AZ133: =IF(Control!$D70="yes",Scenarios!AZ$107,1) -> 0 | BA133: =IF(Control!$D70="yes",Scenarios!BA$107,1) -> 0 | BB133: =IF(Control!$D70="yes",Scenarios!BB$107,1) -> 0 | BC133: =IF(Control!$D70="yes",Scenarios!BC$107,1) -> 0 | BD133: =IF(Control!$D70="yes",Scenarios!BD$107,1) -> 0 | BE133: =IF(Control!$D70="yes",Scenarios!BE$107,1) -> 0 | BF133: =IF(Control!$D70="yes",Scenarios!BF$107,1) -> 0 | BG133: =IF(Control!$D70="yes",Scenarios!BG$107,1) -> 0 | BH133: =IF(Control!$D70="yes",Scenarios!BH$107,1) -> 0 | BI133: =IF(Control!$D70="yes",Scenarios!BI$107,1) -> 0 | BJ133: =IF(Control!$D70="yes",Scenarios!BJ$107,1) -> 0 | BK133: =IF(Control!$D70="yes",Scenarios!BK$107,1) -> 0 | BL133: =IF(Control!$D70="yes",Scenarios!BL$107,1) -> 0 | BM133: =IF(Control!$D70="yes",Scenarios!BM$107,1) -> 0 | BN133: =IF(Control!$D70="yes",Scenarios!BN$107,1) -> 0 | BO133: =IF(Control!$D70="yes",Scenarios!BO$107,1) -> 0 | BP133: =IF(Control!$D70="yes",Scenarios!BP$107,1) -> 0 | BQ133: =IF(Control!$D70="yes",Scenarios!BQ$107,1) -> 0 | BR133: =IF(Control!$D70="yes",Scenarios!BR$107,1) -> 0 | BS133: =IF(Control!$D70="yes",Scenarios!BS$107,1) -> 0 | BT133: =IF(Control!$D70="yes",Scenarios!BT$107,1) -> 0 | BU133: =IF(Control!$D70="yes",Scenarios!BU$107,1) -> 0 | BV133: =IF(Control!$D70="yes",Scenarios!BV$107,1) -> 0 | BW133: =IF(Control!$D70="yes",Scenarios!BW$107,1) -> 0 | BX133: =IF(Control!$D70="yes",Scenarios!BX$107,1) -> 0 | BY133: =IF(Control!$D70="yes",Scenarios!BY$107,1) -> 0 | BZ133: =IF(Control!$D70="yes",Scenarios!BZ$107,1) -> 0 | CA133: =IF(Control!$D70="yes",Scenarios!CA$107,1) -> 0 | CB133: =IF(Control!$D70="yes",Scenarios!CB$107,1) -> 0 | CC133: =IF(Control!$D70="yes",Scenarios!CC$107,1) -> 0
A134: Pyrenees (S) | B134: 1 | C134: 1 | D134: 1 | E134: 1 | F134: 1 | G134: 1 | H134: 1 | I134: 1 | J134: 1 | K134: 1 | L134: 1 | M134: 1 | N134: 1 | O134: 1 | P134: 1 | Q134: 1 | R134: 1 | S134: 1 | T134: 1 | U134: =IF(Control!$D71="yes",Scenarios!U$107,1) -> 0.9 | V134: =IF(Control!$D71="yes",Scenarios!V$107,1) -> 0.8 | W134: =IF(Control!$D71="yes",Scenarios!W$107,1) -> 0.7 | X134: =IF(Control!$D71="yes",Scenarios!X$107,1) -> 0.6 | Y134: =IF(Control!$D71="yes",Scenarios!Y$107,1) -> 0.5 | Z134: =IF(Control!$D71="yes",Scenarios!Z$107,1) -> 0.4 | AA134: =IF(Control!$D71="yes",Scenarios!AA$107,1) -> 0.3 | AB134: =IF(Control!$D71="yes",Scenarios!AB$107,1) -> 0.2 | AC134: =IF(Control!$D71="yes",Scenarios!AC$107,1) -> 0.1 | AD134: =IF(Control!$D71="yes",Scenarios!AD$107,1) -> 0 | AE134: =IF(Control!$D71="yes",Scenarios!AE$107,1) -> 0 | AF134: =IF(Control!$D71="yes",Scenarios!AF$107,1) -> 0 | AG134: =IF(Control!$D71="yes",Scenarios!AG$107,1) -> 0 | AH134: =IF(Control!$D71="yes",Scenarios!AH$107,1) -> 0 | AI134: =IF(Control!$D71="yes",Scenarios!AI$107,1) -> 0 | AJ134: =IF(Control!$D71="yes",Scenarios!AJ$107,1) -> 0 | AK134: =IF(Control!$D71="yes",Scenarios!AK$107,1) -> 0 | AL134: =IF(Control!$D71="yes",Scenarios!AL$107,1) -> 0 | AM134: =IF(Control!$D71="yes",Scenarios!AM$107,1) -> 0 | AN134: =IF(Control!$D71="yes",Scenarios!AN$107,1) -> 0 | AO134: =IF(Control!$D71="yes",Scenarios!AO$107,1) -> 0 | AP134: =IF(Control!$D71="yes",Scenarios!AP$107,1) -> 0 | AQ134: =IF(Control!$D71="yes",Scenarios!AQ$107,1) -> 0 | AR134: =IF(Control!$D71="yes",Scenarios!AR$107,1) -> 0 | AS134: =IF(Control!$D71="yes",Scenarios!AS$107,1) -> 0 | AT134: =IF(Control!$D71="yes",Scenarios!AT$107,1) -> 0 | AU134: =IF(Control!$D71="yes",Scenarios!AU$107,1) -> 0 | AV134: =IF(Control!$D71="yes",Scenarios!AV$107,1) -> 0 | AW134: =IF(Control!$D71="yes",Scenarios!AW$107,1) -> 0 | AX134: =IF(Control!$D71="yes",Scenarios!AX$107,1) -> 0 | AY134: =IF(Control!$D71="yes",Scenarios!AY$107,1) -> 0 | AZ134: =IF(Control!$D71="yes",Scenarios!AZ$107,1) -> 0 | BA134: =IF(Control!$D71="yes",Scenarios!BA$107,1) -> 0 | BB134: =IF(Control!$D71="yes",Scenarios!BB$107,1) -> 0 | BC134: =IF(Control!$D71="yes",Scenarios!BC$107,1) -> 0 | BD134: =IF(Control!$D71="yes",Scenarios!BD$107,1) -> 0 | BE134: =IF(Control!$D71="yes",Scenarios!BE$107,1) -> 0 | BF134: =IF(Control!$D71="yes",Scenarios!BF$107,1) -> 0 | BG134: =IF(Control!$D71="yes",Scenarios!BG$107,1) -> 0 | BH134: =IF(Control!$D71="yes",Scenarios!BH$107,1) -> 0 | BI134: =IF(Control!$D71="yes",Scenarios!BI$107,1) -> 0 | BJ134: =IF(Control!$D71="yes",Scenarios!BJ$107,1) -> 0 | BK134: =IF(Control!$D71="yes",Scenarios!BK$107,1) -> 0 | BL134: =IF(Control!$D71="yes",Scenarios!BL$107,1) -> 0 | BM134: =IF(Control!$D71="yes",Scenarios!BM$107,1) -> 0 | BN134: =IF(Control!$D71="yes",Scenarios!BN$107,1) -> 0 | BO134: =IF(Control!$D71="yes",Scenarios!BO$107,1) -> 0 | BP134: =IF(Control!$D71="yes",Scenarios!BP$107,1) -> 0 | BQ134: =IF(Control!$D71="yes",Scenarios!BQ$107,1) -> 0 | BR134: =IF(Control!$D71="yes",Scenarios!BR$107,1) -> 0 | BS134: =IF(Control!$D71="yes",Scenarios!BS$107,1) -> 0 | BT134: =IF(Control!$D71="yes",Scenarios!BT$107,1) -> 0 | BU134: =IF(Control!$D71="yes",Scenarios!BU$107,1) -> 0 | BV134: =IF(Control!$D71="yes",Scenarios!BV$107,1) -> 0 | BW134: =IF(Control!$D71="yes",Scenarios!BW$107,1) -> 0 | BX134: =IF(Control!$D71="yes",Scenarios!BX$107,1) -> 0 | BY134: =IF(Control!$D71="yes",Scenarios!BY$107,1) -> 0 | BZ134: =IF(Control!$D71="yes",Scenarios!BZ$107,1) -> 0 | CA134: =IF(Control!$D71="yes",Scenarios!CA$107,1) -> 0 | CB134: =IF(Control!$D71="yes",Scenarios!CB$107,1) -> 0 | CC134: =IF(Control!$D71="yes",Scenarios!CC$107,1) -> 0
A135: Queenscliffe (B) | B135: 1 | C135: 1 | D135: 1 | E135: 1 | F135: 1 | G135: 1 | H135: 1 | I135: 1 | J135: 1 | K135: 1 | L135: 1 | M135: 1 | N135: 1 | O135: 1 | P135: 1 | Q135: 1 | R135: 1 | S135: 1 | T135: 1 | U135: =IF(Control!$D72="yes",Scenarios!U$107,1) -> 0.9 | V135: =IF(Control!$D72="yes",Scenarios!V$107,1) -> 0.8 | W135: =IF(Control!$D72="yes",Scenarios!W$107,1) -> 0.7 | X135: =IF(Control!$D72="yes",Scenarios!X$107,1) -> 0.6 | Y135: =IF(Control!$D72="yes",Scenarios!Y$107,1) -> 0.5 | Z135: =IF(Control!$D72="yes",Scenarios!Z$107,1) -> 0.4 | AA135: =IF(Control!$D72="yes",Scenarios!AA$107,1) -> 0.3 | AB135: =IF(Control!$D72="yes",Scenarios!AB$107,1) -> 0.2 | AC135: =IF(Control!$D72="yes",Scenarios!AC$107,1) -> 0.1 | AD135: =IF(Control!$D72="yes",Scenarios!AD$107,1) -> 0 | AE135: =IF(Control!$D72="yes",Scenarios!AE$107,1) -> 0 | AF135: =IF(Control!$D72="yes",Scenarios!AF$107,1) -> 0 | AG135: =IF(Control!$D72="yes",Scenarios!AG$107,1) -> 0 | AH135: =IF(Control!$D72="yes",Scenarios!AH$107,1) -> 0 | AI135: =IF(Control!$D72="yes",Scenarios!AI$107,1) -> 0 | AJ135: =IF(Control!$D72="yes",Scenarios!AJ$107,1) -> 0 | AK135: =IF(Control!$D72="yes",Scenarios!AK$107,1) -> 0 | AL135: =IF(Control!$D72="yes",Scenarios!AL$107,1) -> 0 | AM135: =IF(Control!$D72="yes",Scenarios!AM$107,1) -> 0 | AN135: =IF(Control!$D72="yes",Scenarios!AN$107,1) -> 0 | AO135: =IF(Control!$D72="yes",Scenarios!AO$107,1) -> 0 | AP135: =IF(Control!$D72="yes",Scenarios!AP$107,1) -> 0 | AQ135: =IF(Control!$D72="yes",Scenarios!AQ$107,1) -> 0 | AR135: =IF(Control!$D72="yes",Scenarios!AR$107,1) -> 0 | AS135: =IF(Control!$D72="yes",Scenarios!AS$107,1) -> 0 | AT135: =IF(Control!$D72="yes",Scenarios!AT$107,1) -> 0 | AU135: =IF(Control!$D72="yes",Scenarios!AU$107,1) -> 0 | AV135: =IF(Control!$D72="yes",Scenarios!AV$107,1) -> 0 | AW135: =IF(Control!$D72="yes",Scenarios!AW$107,1) -> 0 | AX135: =IF(Control!$D72="yes",Scenarios!AX$107,1) -> 0 | AY135: =IF(Control!$D72="yes",Scenarios!AY$107,1) -> 0 | AZ135: =IF(Control!$D72="yes",Scenarios!AZ$107,1) -> 0 | BA135: =IF(Control!$D72="yes",Scenarios!BA$107,1) -> 0 | BB135: =IF(Control!$D72="yes",Scenarios!BB$107,1) -> 0 | BC135: =IF(Control!$D72="yes",Scenarios!BC$107,1) -> 0 | BD135: =IF(Control!$D72="yes",Scenarios!BD$107,1) -> 0 | BE135: =IF(Control!$D72="yes",Scenarios!BE$107,1) -> 0 | BF135: =IF(Control!$D72="yes",Scenarios!BF$107,1) -> 0 | BG135: =IF(Control!$D72="yes",Scenarios!BG$107,1) -> 0 | BH135: =IF(Control!$D72="yes",Scenarios!BH$107,1) -> 0 | BI135: =IF(Control!$D72="yes",Scenarios!BI$107,1) -> 0 | BJ135: =IF(Control!$D72="yes",Scenarios!BJ$107,1) -> 0 | BK135: =IF(Control!$D72="yes",Scenarios!BK$107,1) -> 0 | BL135: =IF(Control!$D72="yes",Scenarios!BL$107,1) -> 0 | BM135: =IF(Control!$D72="yes",Scenarios!BM$107,1) -> 0 | BN135: =IF(Control!$D72="yes",Scenarios!BN$107,1) -> 0 | BO135: =IF(Control!$D72="yes",Scenarios!BO$107,1) -> 0 | BP135: =IF(Control!$D72="yes",Scenarios!BP$107,1) -> 0 | BQ135: =IF(Control!$D72="yes",Scenarios!BQ$107,1) -> 0 | BR135: =IF(Control!$D72="yes",Scenarios!BR$107,1) -> 0 | BS135: =IF(Control!$D72="yes",Scenarios!BS$107,1) -> 0 | BT135: =IF(Control!$D72="yes",Scenarios!BT$107,1) -> 0 | BU135: =IF(Control!$D72="yes",Scenarios!BU$107,1) -> 0 | BV135: =IF(Control!$D72="yes",Scenarios!BV$107,1) -> 0 | BW135: =IF(Control!$D72="yes",Scenarios!BW$107,1) -> 0 | BX135: =IF(Control!$D72="yes",Scenarios!BX$107,1) -> 0 | BY135: =IF(Control!$D72="yes",Scenarios!BY$107,1) -> 0 | BZ135: =IF(Control!$D72="yes",Scenarios!BZ$107,1) -> 0 | CA135: =IF(Control!$D72="yes",Scenarios!CA$107,1) -> 0 | CB135: =IF(Control!$D72="yes",Scenarios!CB$107,1) -> 0 | CC135: =IF(Control!$D72="yes",Scenarios!CC$107,1) -> 0
A136: Southern Grampians (S) | B136: 1 | C136: 1 | D136: 1 | E136: 1 | F136: 1 | G136: 1 | H136: 1 | I136: 1 | J136: 1 | K136: 1 | L136: 1 | M136: 1 | N136: 1 | O136: 1 | P136: 1 | Q136: 1 | R136: 1 | S136: 1 | T136: 1 | U136: =IF(Control!$D73="yes",Scenarios!U$107,1) -> 0.9 | V136: =IF(Control!$D73="yes",Scenarios!V$107,1) -> 0.8 | W136: =IF(Control!$D73="yes",Scenarios!W$107,1) -> 0.7 | X136: =IF(Control!$D73="yes",Scenarios!X$107,1) -> 0.6 | Y136: =IF(Control!$D73="yes",Scenarios!Y$107,1) -> 0.5 | Z136: =IF(Control!$D73="yes",Scenarios!Z$107,1) -> 0.4 | AA136: =IF(Control!$D73="yes",Scenarios!AA$107,1) -> 0.3 | AB136: =IF(Control!$D73="yes",Scenarios!AB$107,1) -> 0.2 | AC136: =IF(Control!$D73="yes",Scenarios!AC$107,1) -> 0.1 | AD136: =IF(Control!$D73="yes",Scenarios!AD$107,1) -> 0 | AE136: =IF(Control!$D73="yes",Scenarios!AE$107,1) -> 0 | AF136: =IF(Control!$D73="yes",Scenarios!AF$107,1) -> 0 | AG136: =IF(Control!$D73="yes",Scenarios!AG$107,1) -> 0 | AH136: =IF(Control!$D73="yes",Scenarios!AH$107,1) -> 0 | AI136: =IF(Control!$D73="yes",Scenarios!AI$107,1) -> 0 | AJ136: =IF(Control!$D73="yes",Scenarios!AJ$107,1) -> 0 | AK136: =IF(Control!$D73="yes",Scenarios!AK$107,1) -> 0 | AL136: =IF(Control!$D73="yes",Scenarios!AL$107,1) -> 0 | AM136: =IF(Control!$D73="yes",Scenarios!AM$107,1) -> 0 | AN136: =IF(Control!$D73="yes",Scenarios!AN$107,1) -> 0 | AO136: =IF(Control!$D73="yes",Scenarios!AO$107,1) -> 0 | AP136: =IF(Control!$D73="yes",Scenarios!AP$107,1) -> 0 | AQ136: =IF(Control!$D73="yes",Scenarios!AQ$107,1) -> 0 | AR136: =IF(Control!$D73="yes",Scenarios!AR$107,1) -> 0 | AS136: =IF(Control!$D73="yes",Scenarios!AS$107,1) -> 0 | AT136: =IF(Control!$D73="yes",Scenarios!AT$107,1) -> 0 | AU136: =IF(Control!$D73="yes",Scenarios!AU$107,1) -> 0 | AV136: =IF(Control!$D73="yes",Scenarios!AV$107,1) -> 0 | AW136: =IF(Control!$D73="yes",Scenarios!AW$107,1) -> 0 | AX136: =IF(Control!$D73="yes",Scenarios!AX$107,1) -> 0 | AY136: =IF(Control!$D73="yes",Scenarios!AY$107,1) -> 0 | AZ136: =IF(Control!$D73="yes",Scenarios!AZ$107,1) -> 0 | BA136: =IF(Control!$D73="yes",Scenarios!BA$107,1) -> 0 | BB136: =IF(Control!$D73="yes",Scenarios!BB$107,1) -> 0 | BC136: =IF(Control!$D73="yes",Scenarios!BC$107,1) -> 0 | BD136: =IF(Control!$D73="yes",Scenarios!BD$107,1) -> 0 | BE136: =IF(Control!$D73="yes",Scenarios!BE$107,1) -> 0 | BF136: =IF(Control!$D73="yes",Scenarios!BF$107,1) -> 0 | BG136: =IF(Control!$D73="yes",Scenarios!BG$107,1) -> 0 | BH136: =IF(Control!$D73="yes",Scenarios!BH$107,1) -> 0 | BI136: =IF(Control!$D73="yes",Scenarios!BI$107,1) -> 0 | BJ136: =IF(Control!$D73="yes",Scenarios!BJ$107,1) -> 0 | BK136: =IF(Control!$D73="yes",Scenarios!BK$107,1) -> 0 | BL136: =IF(Control!$D73="yes",Scenarios!BL$107,1) -> 0 | BM136: =IF(Control!$D73="yes",Scenarios!BM$107,1) -> 0 | BN136: =IF(Control!$D73="yes",Scenarios!BN$107,1) -> 0 | BO136: =IF(Control!$D73="yes",Scenarios!BO$107,1) -> 0 | BP136: =IF(Control!$D73="yes",Scenarios!BP$107,1) -> 0 | BQ136: =IF(Control!$D73="yes",Scenarios!BQ$107,1) -> 0 | BR136: =IF(Control!$D73="yes",Scenarios!BR$107,1) -> 0 | BS136: =IF(Control!$D73="yes",Scenarios!BS$107,1) -> 0 | BT136: =IF(Control!$D73="yes",Scenarios!BT$107,1) -> 0 | BU136: =IF(Control!$D73="yes",Scenarios!BU$107,1) -> 0 | BV136: =IF(Control!$D73="yes",Scenarios!BV$107,1) -> 0 | BW136: =IF(Control!$D73="yes",Scenarios!BW$107,1) -> 0 | BX136: =IF(Control!$D73="yes",Scenarios!BX$107,1) -> 0 | BY136: =IF(Control!$D73="yes",Scenarios!BY$107,1) -> 0 | BZ136: =IF(Control!$D73="yes",Scenarios!BZ$107,1) -> 0 | CA136: =IF(Control!$D73="yes",Scenarios!CA$107,1) -> 0 | CB136: =IF(Control!$D73="yes",Scenarios!CB$107,1) -> 0 | CC136: =IF(Control!$D73="yes",Scenarios!CC$107,1) -> 0
A137: Surf Coast (S) | B137: 1 | C137: 1 | D137: 1 | E137: 1 | F137: 1 | G137: 1 | H137: 1 | I137: 1 | J137: 1 | K137: 1 | L137: 1 | M137: 1 | N137: 1 | O137: 1 | P137: 1 | Q137: 1 | R137: 1 | S137: 1 | T137: 1 | U137: =IF(Control!$D74="yes",Scenarios!U$107,1) -> 0.9 | V137: =IF(Control!$D74="yes",Scenarios!V$107,1) -> 0.8 | W137: =IF(Control!$D74="yes",Scenarios!W$107,1) -> 0.7 | X137: =IF(Control!$D74="yes",Scenarios!X$107,1) -> 0.6 | Y137: =IF(Control!$D74="yes",Scenarios!Y$107,1) -> 0.5 | Z137: =IF(Control!$D74="yes",Scenarios!Z$107,1) -> 0.4 | AA137: =IF(Control!$D74="yes",Scenarios!AA$107,1) -> 0.3 | AB137: =IF(Control!$D74="yes",Scenarios!AB$107,1) -> 0.2 | AC137: =IF(Control!$D74="yes",Scenarios!AC$107,1) -> 0.1 | AD137: =IF(Control!$D74="yes",Scenarios!AD$107,1) -> 0 | AE137: =IF(Control!$D74="yes",Scenarios!AE$107,1) -> 0 | AF137: =IF(Control!$D74="yes",Scenarios!AF$107,1) -> 0 | AG137: =IF(Control!$D74="yes",Scenarios!AG$107,1) -> 0 | AH137: =IF(Control!$D74="yes",Scenarios!AH$107,1) -> 0 | AI137: =IF(Control!$D74="yes",Scenarios!AI$107,1) -> 0 | AJ137: =IF(Control!$D74="yes",Scenarios!AJ$107,1) -> 0 | AK137: =IF(Control!$D74="yes",Scenarios!AK$107,1) -> 0 | AL137: =IF(Control!$D74="yes",Scenarios!AL$107,1) -> 0 | AM137: =IF(Control!$D74="yes",Scenarios!AM$107,1) -> 0 | AN137: =IF(Control!$D74="yes",Scenarios!AN$107,1) -> 0 | AO137: =IF(Control!$D74="yes",Scenarios!AO$107,1) -> 0 | AP137: =IF(Control!$D74="yes",Scenarios!AP$107,1) -> 0 | AQ137: =IF(Control!$D74="yes",Scenarios!AQ$107,1) -> 0 | AR137: =IF(Control!$D74="yes",Scenarios!AR$107,1) -> 0 | AS137: =IF(Control!$D74="yes",Scenarios!AS$107,1) -> 0 | AT137: =IF(Control!$D74="yes",Scenarios!AT$107,1) -> 0 | AU137: =IF(Control!$D74="yes",Scenarios!AU$107,1) -> 0 | AV137: =IF(Control!$D74="yes",Scenarios!AV$107,1) -> 0 | AW137: =IF(Control!$D74="yes",Scenarios!AW$107,1) -> 0 | AX137: =IF(Control!$D74="yes",Scenarios!AX$107,1) -> 0 | AY137: =IF(Control!$D74="yes",Scenarios!AY$107,1) -> 0 | AZ137: =IF(Control!$D74="yes",Scenarios!AZ$107,1) -> 0 | BA137: =IF(Control!$D74="yes",Scenarios!BA$107,1) -> 0 | BB137: =IF(Control!$D74="yes",Scenarios!BB$107,1) -> 0 | BC137: =IF(Control!$D74="yes",Scenarios!BC$107,1) -> 0 | BD137: =IF(Control!$D74="yes",Scenarios!BD$107,1) -> 0 | BE137: =IF(Control!$D74="yes",Scenarios!BE$107,1) -> 0 | BF137: =IF(Control!$D74="yes",Scenarios!BF$107,1) -> 0 | BG137: =IF(Control!$D74="yes",Scenarios!BG$107,1) -> 0 | BH137: =IF(Control!$D74="yes",Scenarios!BH$107,1) -> 0 | BI137: =IF(Control!$D74="yes",Scenarios!BI$107,1) -> 0 | BJ137: =IF(Control!$D74="yes",Scenarios!BJ$107,1) -> 0 | BK137: =IF(Control!$D74="yes",Scenarios!BK$107,1) -> 0 | BL137: =IF(Control!$D74="yes",Scenarios!BL$107,1) -> 0 | BM137: =IF(Control!$D74="yes",Scenarios!BM$107,1) -> 0 | BN137: =IF(Control!$D74="yes",Scenarios!BN$107,1) -> 0 | BO137: =IF(Control!$D74="yes",Scenarios!BO$107,1) -> 0 | BP137: =IF(Control!$D74="yes",Scenarios!BP$107,1) -> 0 | BQ137: =IF(Control!$D74="yes",Scenarios!BQ$107,1) -> 0 | BR137: =IF(Control!$D74="yes",Scenarios!BR$107,1) -> 0 | BS137: =IF(Control!$D74="yes",Scenarios!BS$107,1) -> 0 | BT137: =IF(Control!$D74="yes",Scenarios!BT$107,1) -> 0 | BU137: =IF(Control!$D74="yes",Scenarios!BU$107,1) -> 0 | BV137: =IF(Control!$D74="yes",Scenarios!BV$107,1) -> 0 | BW137: =IF(Control!$D74="yes",Scenarios!BW$107,1) -> 0 | BX137: =IF(Control!$D74="yes",Scenarios!BX$107,1) -> 0 | BY137: =IF(Control!$D74="yes",Scenarios!BY$107,1) -> 0 | BZ137: =IF(Control!$D74="yes",Scenarios!BZ$107,1) -> 0 | CA137: =IF(Control!$D74="yes",Scenarios!CA$107,1) -> 0 | CB137: =IF(Control!$D74="yes",Scenarios!CB$107,1) -> 0 | CC137: =IF(Control!$D74="yes",Scenarios!CC$107,1) -> 0
A138: Warrnambool (C) | B138: 1 | C138: 1 | D138: 1 | E138: 1 | F138: 1 | G138: 1 | H138: 1 | I138: 1 | J138: 1 | K138: 1 | L138: 1 | M138: 1 | N138: 1 | O138: 1 | P138: 1 | Q138: 1 | R138: 1 | S138: 1 | T138: 1 | U138: =IF(Control!$D75="yes",Scenarios!U$107,1) -> 0.9 | V138: =IF(Control!$D75="yes",Scenarios!V$107,1) -> 0.8 | W138: =IF(Control!$D75="yes",Scenarios!W$107,1) -> 0.7 | X138: =IF(Control!$D75="yes",Scenarios!X$107,1) -> 0.6 | Y138: =IF(Control!$D75="yes",Scenarios!Y$107,1) -> 0.5 | Z138: =IF(Control!$D75="yes",Scenarios!Z$107,1) -> 0.4 | AA138: =IF(Control!$D75="yes",Scenarios!AA$107,1) -> 0.3 | AB138: =IF(Control!$D75="yes",Scenarios!AB$107,1) -> 0.2 | AC138: =IF(Control!$D75="yes",Scenarios!AC$107,1) -> 0.1 | AD138: =IF(Control!$D75="yes",Scenarios!AD$107,1) -> 0 | AE138: =IF(Control!$D75="yes",Scenarios!AE$107,1) -> 0 | AF138: =IF(Control!$D75="yes",Scenarios!AF$107,1) -> 0 | AG138: =IF(Control!$D75="yes",Scenarios!AG$107,1) -> 0 | AH138: =IF(Control!$D75="yes",Scenarios!AH$107,1) -> 0 | AI138: =IF(Control!$D75="yes",Scenarios!AI$107,1) -> 0 | AJ138: =IF(Control!$D75="yes",Scenarios!AJ$107,1) -> 0 | AK138: =IF(Control!$D75="yes",Scenarios!AK$107,1) -> 0 | AL138: =IF(Control!$D75="yes",Scenarios!AL$107,1) -> 0 | AM138: =IF(Control!$D75="yes",Scenarios!AM$107,1) -> 0 | AN138: =IF(Control!$D75="yes",Scenarios!AN$107,1) -> 0 | AO138: =IF(Control!$D75="yes",Scenarios!AO$107,1) -> 0 | AP138: =IF(Control!$D75="yes",Scenarios!AP$107,1) -> 0 | AQ138: =IF(Control!$D75="yes",Scenarios!AQ$107,1) -> 0 | AR138: =IF(Control!$D75="yes",Scenarios!AR$107,1) -> 0 | AS138: =IF(Control!$D75="yes",Scenarios!AS$107,1) -> 0 | AT138: =IF(Control!$D75="yes",Scenarios!AT$107,1) -> 0 | AU138: =IF(Control!$D75="yes",Scenarios!AU$107,1) -> 0 | AV138: =IF(Control!$D75="yes",Scenarios!AV$107,1) -> 0 | AW138: =IF(Control!$D75="yes",Scenarios!AW$107,1) -> 0 | AX138: =IF(Control!$D75="yes",Scenarios!AX$107,1) -> 0 | AY138: =IF(Control!$D75="yes",Scenarios!AY$107,1) -> 0 | AZ138: =IF(Control!$D75="yes",Scenarios!AZ$107,1) -> 0 | BA138: =IF(Control!$D75="yes",Scenarios!BA$107,1) -> 0 | BB138: =IF(Control!$D75="yes",Scenarios!BB$107,1) -> 0 | BC138: =IF(Control!$D75="yes",Scenarios!BC$107,1) -> 0 | BD138: =IF(Control!$D75="yes",Scenarios!BD$107,1) -> 0 | BE138: =IF(Control!$D75="yes",Scenarios!BE$107,1) -> 0 | BF138: =IF(Control!$D75="yes",Scenarios!BF$107,1) -> 0 | BG138: =IF(Control!$D75="yes",Scenarios!BG$107,1) -> 0 | BH138: =IF(Control!$D75="yes",Scenarios!BH$107,1) -> 0 | BI138: =IF(Control!$D75="yes",Scenarios!BI$107,1) -> 0 | BJ138: =IF(Control!$D75="yes",Scenarios!BJ$107,1) -> 0 | BK138: =IF(Control!$D75="yes",Scenarios!BK$107,1) -> 0 | BL138: =IF(Control!$D75="yes",Scenarios!BL$107,1) -> 0 | BM138: =IF(Control!$D75="yes",Scenarios!BM$107,1) -> 0 | BN138: =IF(Control!$D75="yes",Scenarios!BN$107,1) -> 0 | BO138: =IF(Control!$D75="yes",Scenarios!BO$107,1) -> 0 | BP138: =IF(Control!$D75="yes",Scenarios!BP$107,1) -> 0 | BQ138: =IF(Control!$D75="yes",Scenarios!BQ$107,1) -> 0 | BR138: =IF(Control!$D75="yes",Scenarios!BR$107,1) -> 0 | BS138: =IF(Control!$D75="yes",Scenarios!BS$107,1) -> 0 | BT138: =IF(Control!$D75="yes",Scenarios!BT$107,1) -> 0 | BU138: =IF(Control!$D75="yes",Scenarios!BU$107,1) -> 0 | BV138: =IF(Control!$D75="yes",Scenarios!BV$107,1) -> 0 | BW138: =IF(Control!$D75="yes",Scenarios!BW$107,1) -> 0 | BX138: =IF(Control!$D75="yes",Scenarios!BX$107,1) -> 0 | BY138: =IF(Control!$D75="yes",Scenarios!BY$107,1) -> 0 | BZ138: =IF(Control!$D75="yes",Scenarios!BZ$107,1) -> 0 | CA138: =IF(Control!$D75="yes",Scenarios!CA$107,1) -> 0 | CB138: =IF(Control!$D75="yes",Scenarios!CB$107,1) -> 0 | CC138: =IF(Control!$D75="yes",Scenarios!CC$107,1) -> 0
A139: Wyndham (C) | B139: 1 | C139: 1 | D139: 1 | E139: 1 | F139: 1 | G139: 1 | H139: 1 | I139: 1 | J139: 1 | K139: 1 | L139: 1 | M139: 1 | N139: 1 | O139: 1 | P139: 1 | Q139: 1 | R139: 1 | S139: 1 | T139: 1 | U139: =IF(Control!$D76="yes",Scenarios!U$107,1) -> 1 | V139: =IF(Control!$D76="yes",Scenarios!V$107,1) -> 1 | W139: =IF(Control!$D76="yes",Scenarios!W$107,1) -> 1 | X139: =IF(Control!$D76="yes",Scenarios!X$107,1) -> 1 | Y139: =IF(Control!$D76="yes",Scenarios!Y$107,1) -> 1 | Z139: =IF(Control!$D76="yes",Scenarios!Z$107,1) -> 1 | AA139: =IF(Control!$D76="yes",Scenarios!AA$107,1) -> 1 | AB139: =IF(Control!$D76="yes",Scenarios!AB$107,1) -> 1 | AC139: =IF(Control!$D76="yes",Scenarios!AC$107,1) -> 1 | AD139: =IF(Control!$D76="yes",Scenarios!AD$107,1) -> 1 | AE139: =IF(Control!$D76="yes",Scenarios!AE$107,1) -> 1 | AF139: =IF(Control!$D76="yes",Scenarios!AF$107,1) -> 1 | AG139: =IF(Control!$D76="yes",Scenarios!AG$107,1) -> 1 | AH139: =IF(Control!$D76="yes",Scenarios!AH$107,1) -> 1 | AI139: =IF(Control!$D76="yes",Scenarios!AI$107,1) -> 1 | AJ139: =IF(Control!$D76="yes",Scenarios!AJ$107,1) -> 1 | AK139: =IF(Control!$D76="yes",Scenarios!AK$107,1) -> 1 | AL139: =IF(Control!$D76="yes",Scenarios!AL$107,1) -> 1 | AM139: =IF(Control!$D76="yes",Scenarios!AM$107,1) -> 1 | AN139: =IF(Control!$D76="yes",Scenarios!AN$107,1) -> 1 | AO139: =IF(Control!$D76="yes",Scenarios!AO$107,1) -> 1 | AP139: =IF(Control!$D76="yes",Scenarios!AP$107,1) -> 1 | AQ139: =IF(Control!$D76="yes",Scenarios!AQ$107,1) -> 1 | AR139: =IF(Control!$D76="yes",Scenarios!AR$107,1) -> 1 | AS139: =IF(Control!$D76="yes",Scenarios!AS$107,1) -> 1 | AT139: =IF(Control!$D76="yes",Scenarios!AT$107,1) -> 1 | AU139: =IF(Control!$D76="yes",Scenarios!AU$107,1) -> 1 | AV139: =IF(Control!$D76="yes",Scenarios!AV$107,1) -> 1 | AW139: =IF(Control!$D76="yes",Scenarios!AW$107,1) -> 1 | AX139: =IF(Control!$D76="yes",Scenarios!AX$107,1) -> 1 | AY139: =IF(Control!$D76="yes",Scenarios!AY$107,1) -> 1 | AZ139: =IF(Control!$D76="yes",Scenarios!AZ$107,1) -> 1 | BA139: =IF(Control!$D76="yes",Scenarios!BA$107,1) -> 1 | BB139: =IF(Control!$D76="yes",Scenarios!BB$107,1) -> 1 | BC139: =IF(Control!$D76="yes",Scenarios!BC$107,1) -> 1 | BD139: =IF(Control!$D76="yes",Scenarios!BD$107,1) -> 1 | BE139: =IF(Control!$D76="yes",Scenarios!BE$107,1) -> 1 | BF139: =IF(Control!$D76="yes",Scenarios!BF$107,1) -> 1 | BG139: =IF(Control!$D76="yes",Scenarios!BG$107,1) -> 1 | BH139: =IF(Control!$D76="yes",Scenarios!BH$107,1) -> 1 | BI139: =IF(Control!$D76="yes",Scenarios!BI$107,1) -> 1 | BJ139: =IF(Control!$D76="yes",Scenarios!BJ$107,1) -> 1 | BK139: =IF(Control!$D76="yes",Scenarios!BK$107,1) -> 1 | BL139: =IF(Control!$D76="yes",Scenarios!BL$107,1) -> 1 | BM139: =IF(Control!$D76="yes",Scenarios!BM$107,1) -> 1 | BN139: =IF(Control!$D76="yes",Scenarios!BN$107,1) -> 1 | BO139: =IF(Control!$D76="yes",Scenarios!BO$107,1) -> 1 | BP139: =IF(Control!$D76="yes",Scenarios!BP$107,1) -> 1 | BQ139: =IF(Control!$D76="yes",Scenarios!BQ$107,1) -> 1 | BR139: =IF(Control!$D76="yes",Scenarios!BR$107,1) -> 1 | BS139: =IF(Control!$D76="yes",Scenarios!BS$107,1) -> 1 | BT139: =IF(Control!$D76="yes",Scenarios!BT$107,1) -> 1 | BU139: =IF(Control!$D76="yes",Scenarios!BU$107,1) -> 1 | BV139: =IF(Control!$D76="yes",Scenarios!BV$107,1) -> 1 | BW139: =IF(Control!$D76="yes",Scenarios!BW$107,1) -> 1 | BX139: =IF(Control!$D76="yes",Scenarios!BX$107,1) -> 1 | BY139: =IF(Control!$D76="yes",Scenarios!BY$107,1) -> 1 | BZ139: =IF(Control!$D76="yes",Scenarios!BZ$107,1) -> 1 | CA139: =IF(Control!$D76="yes",Scenarios!CA$107,1) -> 1 | CB139: =IF(Control!$D76="yes",Scenarios!CB$107,1) -> 1 | CC139: =IF(Control!$D76="yes",Scenarios!CC$107,1) -> 1
A141: Commercial Network ON/OFF
A142: LGA | B142: 2021 | C142: =B142+1 -> 2022 | D142: =C142+1 -> 2023 | E142: 2024 | F142: 2025 | G142: 2026 | H142: 2027 | I142: 2028 | J142: 2029 | K142: 2030 | L142: 2031 | M142: 2032 | N142: 2033 | O142: 2034 | P142: 2035 | Q142: 2036 | R142: 2037 | S142: 2038 | T142: 2039 | U142: 2040 | V142: 2041 | W142: 2042 | X142: 2043 | Y142: 2044 | Z142: 2045 | AA142: 2046 | AB142: 2047 | AC142: 2048 | AD142: 2049 | AE142: 2050 | AF142: 2051 | AG142: 2052 | AH142: 2053 | AI142: 2054 | AJ142: 2055 | AK142: 2056 | AL142: 2057 | AM142: 2058 | AN142: 2059 | AO142: 2060 | AP142: 2061 | AQ142: 2062 | AR142: 2063 | AS142: 2064 | AT142: 2065 | AU142: 2066 | AV142: 2067 | AW142: 2068 | AX142: 2069 | AY142: 2070 | AZ142: 2071 | BA142: 2072 | BB142: 2073 | BC142: 2074 | BD142: 2075 | BE142: 2076 | BF142: 2077 | BG142: 2078 | BH142: 2079 | BI142: 2080 | BJ142: 2081 | BK142: 2082 | BL142: 2083 | BM142: 2084 | BN142: 2085 | BO142: 2086 | BP142: =BO142+1 -> 2087 | BQ142: 2088 | BR142: 2089 | BS142: 2090 | BT142: 2091 | BU142: 2092 | BV142: 2093 | BW142: 2094 | BX142: 2095 | BY142: 2096 | BZ142: 2097 | CA142: 2098 | CB142: 2099 | CC142: 2100
A143: Ararat (RC) | B143: 1 | C143: 1 | D143: 1 | E143: 1 | F143: 1 | G143: 1 | H143: 1 | I143: 1 | J143: 1 | K143: 1 | L143: 1 | M143: 1 | N143: 1 | O143: 1 | P143: 1 | Q143: 1 | R143: 1 | S143: 1 | T143: 1 | U143: =IF(Control!$D46="yes",Scenarios!U$107,1) -> 0.9 | V143: =IF(Control!$D46="yes",Scenarios!V$107,1) -> 0.8 | W143: =IF(Control!$D46="yes",Scenarios!W$107,1) -> 0.7 | X143: =IF(Control!$D46="yes",Scenarios!X$107,1) -> 0.6 | Y143: =IF(Control!$D46="yes",Scenarios!Y$107,1) -> 0.5 | Z143: =IF(Control!$D46="yes",Scenarios!Z$107,1) -> 0.4 | AA143: =IF(Control!$D46="yes",Scenarios!AA$107,1) -> 0.3 | AB143: =IF(Control!$D46="yes",Scenarios!AB$107,1) -> 0.2 | AC143: =IF(Control!$D46="yes",Scenarios!AC$107,1) -> 0.1 | AD143: =IF(Control!$D46="yes",Scenarios!AD$107,1) -> 0 | AE143: =IF(Control!$D46="yes",Scenarios!AE$107,1) -> 0 | AF143: =IF(Control!$D46="yes",Scenarios!AF$107,1) -> 0 | AG143: =IF(Control!$D46="yes",Scenarios!AG$107,1) -> 0 | AH143: =IF(Control!$D46="yes",Scenarios!AH$107,1) -> 0 | AI143: =IF(Control!$D46="yes",Scenarios!AI$107,1) -> 0 | AJ143: =IF(Control!$D46="yes",Scenarios!AJ$107,1) -> 0 | AK143: =IF(Control!$D46="yes",Scenarios!AK$107,1) -> 0 | AL143: =IF(Control!$D46="yes",Scenarios!AL$107,1) -> 0 | AM143: =IF(Control!$D46="yes",Scenarios!AM$107,1) -> 0 | AN143: =IF(Control!$D46="yes",Scenarios!AN$107,1) -> 0 | AO143: =IF(Control!$D46="yes",Scenarios!AO$107,1) -> 0 | AP143: =IF(Control!$D46="yes",Scenarios!AP$107,1) -> 0 | AQ143: =IF(Control!$D46="yes",Scenarios!AQ$107,1) -> 0 | AR143: =IF(Control!$D46="yes",Scenarios!AR$107,1) -> 0 | AS143: =IF(Control!$D46="yes",Scenarios!AS$107,1) -> 0 | AT143: =IF(Control!$D46="yes",Scenarios!AT$107,1) -> 0 | AU143: =IF(Control!$D46="yes",Scenarios!AU$107,1) -> 0 | AV143: =IF(Control!$D46="yes",Scenarios!AV$107,1) -> 0 | AW143: =IF(Control!$D46="yes",Scenarios!AW$107,1) -> 0 | AX143: =IF(Control!$D46="yes",Scenarios!AX$107,1) -> 0 | AY143: =IF(Control!$D46="yes",Scenarios!AY$107,1) -> 0 | AZ143: =IF(Control!$D46="yes",Scenarios!AZ$107,1) -> 0 | BA143: =IF(Control!$D46="yes",Scenarios!BA$107,1) -> 0 | BB143: =IF(Control!$D46="yes",Scenarios!BB$107,1) -> 0 | BC143: =IF(Control!$D46="yes",Scenarios!BC$107,1) -> 0 | BD143: =IF(Control!$D46="yes",Scenarios!BD$107,1) -> 0 | BE143: =IF(Control!$D46="yes",Scenarios!BE$107,1) -> 0 | BF143: =IF(Control!$D46="yes",Scenarios!BF$107,1) -> 0 | BG143: =IF(Control!$D46="yes",Scenarios!BG$107,1) -> 0 | BH143: =IF(Control!$D46="yes",Scenarios!BH$107,1) -> 0 | BI143: =IF(Control!$D46="yes",Scenarios!BI$107,1) -> 0 | BJ143: =IF(Control!$D46="yes",Scenarios!BJ$107,1) -> 0 | BK143: =IF(Control!$D46="yes",Scenarios!BK$107,1) -> 0 | BL143: =IF(Control!$D46="yes",Scenarios!BL$107,1) -> 0 | BM143: =IF(Control!$D46="yes",Scenarios!BM$107,1) -> 0 | BN143: =IF(Control!$D46="yes",Scenarios!BN$107,1) -> 0 | BO143: =IF(Control!$D46="yes",Scenarios!BO$107,1) -> 0 | BP143: =IF(Control!$D46="yes",Scenarios!BP$107,1) -> 0 | BQ143: =IF(Control!$D46="yes",Scenarios!BQ$107,1) -> 0 | BR143: =IF(Control!$D46="yes",Scenarios!BR$107,1) -> 0 | BS143: =IF(Control!$D46="yes",Scenarios!BS$107,1) -> 0 | BT143: =IF(Control!$D46="yes",Scenarios!BT$107,1) -> 0 | BU143: =IF(Control!$D46="yes",Scenarios!BU$107,1) -> 0 | BV143: =IF(Control!$D46="yes",Scenarios!BV$107,1) -> 0 | BW143: =IF(Control!$D46="yes",Scenarios!BW$107,1) -> 0 | BX143: =IF(Control!$D46="yes",Scenarios!BX$107,1) -> 0 | BY143: =IF(Control!$D46="yes",Scenarios!BY$107,1) -> 0 | BZ143: =IF(Control!$D46="yes",Scenarios!BZ$107,1) -> 0 | CA143: =IF(Control!$D46="yes",Scenarios!CA$107,1) -> 0 | CB143: =IF(Control!$D46="yes",Scenarios!CB$107,1) -> 0 | CC143: =IF(Control!$D46="yes",Scenarios!CC$107,1) -> 0
A144: Ballarat (C) | B144: 1 | C144: 1 | D144: 1 | E144: 1 | F144: 1 | G144: 1 | H144: 1 | I144: 1 | J144: 1 | K144: 1 | L144: 1 | M144: 1 | N144: 1 | O144: 1 | P144: 1 | Q144: 1 | R144: 1 | S144: 1 | T144: 1 | U144: =IF(Control!$D47="yes",Scenarios!U$107,1) -> 1 | V144: =IF(Control!$D47="yes",Scenarios!V$107,1) -> 1 | W144: =IF(Control!$D47="yes",Scenarios!W$107,1) -> 1 | X144: =IF(Control!$D47="yes",Scenarios!X$107,1) -> 1 | Y144: =IF(Control!$D47="yes",Scenarios!Y$107,1) -> 1 | Z144: =IF(Control!$D47="yes",Scenarios!Z$107,1) -> 1 | AA144: =IF(Control!$D47="yes",Scenarios!AA$107,1) -> 1 | AB144: =IF(Control!$D47="yes",Scenarios!AB$107,1) -> 1 | AC144: =IF(Control!$D47="yes",Scenarios!AC$107,1) -> 1 | AD144: =IF(Control!$D47="yes",Scenarios!AD$107,1) -> 1 | AE144: =IF(Control!$D47="yes",Scenarios!AE$107,1) -> 1 | AF144: =IF(Control!$D47="yes",Scenarios!AF$107,1) -> 1 | AG144: =IF(Control!$D47="yes",Scenarios!AG$107,1) -> 1 | AH144: =IF(Control!$D47="yes",Scenarios!AH$107,1) -> 1 | AI144: =IF(Control!$D47="yes",Scenarios!AI$107,1) -> 1 | AJ144: =IF(Control!$D47="yes",Scenarios!AJ$107,1) -> 1 | AK144: =IF(Control!$D47="yes",Scenarios!AK$107,1) -> 1 | AL144: =IF(Control!$D47="yes",Scenarios!AL$107,1) -> 1 | AM144: =IF(Control!$D47="yes",Scenarios!AM$107,1) -> 1 | AN144: =IF(Control!$D47="yes",Scenarios!AN$107,1) -> 1 | AO144: =IF(Control!$D47="yes",Scenarios!AO$107,1) -> 1 | AP144: =IF(Control!$D47="yes",Scenarios!AP$107,1) -> 1 | AQ144: =IF(Control!$D47="yes",Scenarios!AQ$107,1) -> 1 | AR144: =IF(Control!$D47="yes",Scenarios!AR$107,1) -> 1 | AS144: =IF(Control!$D47="yes",Scenarios!AS$107,1) -> 1 | AT144: =IF(Control!$D47="yes",Scenarios!AT$107,1) -> 1 | AU144: =IF(Control!$D47="yes",Scenarios!AU$107,1) -> 1 | AV144: =IF(Control!$D47="yes",Scenarios!AV$107,1) -> 1 | AW144: =IF(Control!$D47="yes",Scenarios!AW$107,1) -> 1 | AX144: =IF(Control!$D47="yes",Scenarios!AX$107,1) -> 1 | AY144: =IF(Control!$D47="yes",Scenarios!AY$107,1) -> 1 | AZ144: =IF(Control!$D47="yes",Scenarios!AZ$107,1) -> 1 | BA144: =IF(Control!$D47="yes",Scenarios!BA$107,1) -> 1 | BB144: =IF(Control!$D47="yes",Scenarios!BB$107,1) -> 1 | BC144: =IF(Control!$D47="yes",Scenarios!BC$107,1) -> 1 | BD144: =IF(Control!$D47="yes",Scenarios!BD$107,1) -> 1 | BE144: =IF(Control!$D47="yes",Scenarios!BE$107,1) -> 1 | BF144: =IF(Control!$D47="yes",Scenarios!BF$107,1) -> 1 | BG144: =IF(Control!$D47="yes",Scenarios!BG$107,1) -> 1 | BH144: =IF(Control!$D47="yes",Scenarios!BH$107,1) -> 1 | BI144: =IF(Control!$D47="yes",Scenarios!BI$107,1) -> 1 | BJ144: =IF(Control!$D47="yes",Scenarios!BJ$107,1) -> 1 | BK144: =IF(Control!$D47="yes",Scenarios!BK$107,1) -> 1 | BL144: =IF(Control!$D47="yes",Scenarios!BL$107,1) -> 1 | BM144: =IF(Control!$D47="yes",Scenarios!BM$107,1) -> 1 | BN144: =IF(Control!$D47="yes",Scenarios!BN$107,1) -> 1 | BO144: =IF(Control!$D47="yes",Scenarios!BO$107,1) -> 1 | BP144: =IF(Control!$D47="yes",Scenarios!BP$107,1) -> 1 | BQ144: =IF(Control!$D47="yes",Scenarios!BQ$107,1) -> 1 | BR144: =IF(Control!$D47="yes",Scenarios!BR$107,1) -> 1 | BS144: =IF(Control!$D47="yes",Scenarios!BS$107,1) -> 1 | BT144: =IF(Control!$D47="yes",Scenarios!BT$107,1) -> 1 | BU144: =IF(Control!$D47="yes",Scenarios!BU$107,1) -> 1 | BV144: =IF(Control!$D47="yes",Scenarios!BV$107,1) -> 1 | BW144: =IF(Control!$D47="yes",Scenarios!BW$107,1) -> 1 | BX144: =IF(Control!$D47="yes",Scenarios!BX$107,1) -> 1 | BY144: =IF(Control!$D47="yes",Scenarios!BY$107,1) -> 1 | BZ144: =IF(Control!$D47="yes",Scenarios!BZ$107,1) -> 1 | CA144: =IF(Control!$D47="yes",Scenarios!CA$107,1) -> 1 | CB144: =IF(Control!$D47="yes",Scenarios!CB$107,1) -> 1 | CC144: =IF(Control!$D47="yes",Scenarios!CC$107,1) -> 1
A145: Brimbank (C) | B145: 1 | C145: 1 | D145: 1 | E145: 1 | F145: 1 | G145: 1 | H145: 1 | I145: 1 | J145: 1 | K145: 1 | L145: 1 | M145: 1 | N145: 1 | O145: 1 | P145: 1 | Q145: 1 | R145: 1 | S145: 1 | T145: 1 | U145: =IF(Control!$D48="yes",Scenarios!U$107,1) -> 0.9 | V145: =IF(Control!$D48="yes",Scenarios!V$107,1) -> 0.8 | W145: =IF(Control!$D48="yes",Scenarios!W$107,1) -> 0.7 | X145: =IF(Control!$D48="yes",Scenarios!X$107,1) -> 0.6 | Y145: =IF(Control!$D48="yes",Scenarios!Y$107,1) -> 0.5 | Z145: =IF(Control!$D48="yes",Scenarios!Z$107,1) -> 0.4 | AA145: =IF(Control!$D48="yes",Scenarios!AA$107,1) -> 0.3 | AB145: =IF(Control!$D48="yes",Scenarios!AB$107,1) -> 0.2 | AC145: =IF(Control!$D48="yes",Scenarios!AC$107,1) -> 0.1 | AD145: =IF(Control!$D48="yes",Scenarios!AD$107,1) -> 0 | AE145: =IF(Control!$D48="yes",Scenarios!AE$107,1) -> 0 | AF145: =IF(Control!$D48="yes",Scenarios!AF$107,1) -> 0 | AG145: =IF(Control!$D48="yes",Scenarios!AG$107,1) -> 0 | AH145: =IF(Control!$D48="yes",Scenarios!AH$107,1) -> 0 | AI145: =IF(Control!$D48="yes",Scenarios!AI$107,1) -> 0 | AJ145: =IF(Control!$D48="yes",Scenarios!AJ$107,1) -> 0 | AK145: =IF(Control!$D48="yes",Scenarios!AK$107,1) -> 0 | AL145: =IF(Control!$D48="yes",Scenarios!AL$107,1) -> 0 | AM145: =IF(Control!$D48="yes",Scenarios!AM$107,1) -> 0 | AN145: =IF(Control!$D48="yes",Scenarios!AN$107,1) -> 0 | AO145: =IF(Control!$D48="yes",Scenarios!AO$107,1) -> 0 | AP145: =IF(Control!$D48="yes",Scenarios!AP$107,1) -> 0 | AQ145: =IF(Control!$D48="yes",Scenarios!AQ$107,1) -> 0 | AR145: =IF(Control!$D48="yes",Scenarios!AR$107,1) -> 0 | AS145: =IF(Control!$D48="yes",Scenarios!AS$107,1) -> 0 | AT145: =IF(Control!$D48="yes",Scenarios!AT$107,1) -> 0 | AU145: =IF(Control!$D48="yes",Scenarios!AU$107,1) -> 0 | AV145: =IF(Control!$D48="yes",Scenarios!AV$107,1) -> 0 | AW145: =IF(Control!$D48="yes",Scenarios!AW$107,1) -> 0 | AX145: =IF(Control!$D48="yes",Scenarios!AX$107,1) -> 0 | AY145: =IF(Control!$D48="yes",Scenarios!AY$107,1) -> 0 | AZ145: =IF(Control!$D48="yes",Scenarios!AZ$107,1) -> 0 | BA145: =IF(Control!$D48="yes",Scenarios!BA$107,1) -> 0 | BB145: =IF(Control!$D48="yes",Scenarios!BB$107,1) -> 0 | BC145: =IF(Control!$D48="yes",Scenarios!BC$107,1) -> 0 | BD145: =IF(Control!$D48="yes",Scenarios!BD$107,1) -> 0 | BE145: =IF(Control!$D48="yes",Scenarios!BE$107,1) -> 0 | BF145: =IF(Control!$D48="yes",Scenarios!BF$107,1) -> 0 | BG145: =IF(Control!$D48="yes",Scenarios!BG$107,1) -> 0 | BH145: =IF(Control!$D48="yes",Scenarios!BH$107,1) -> 0 | BI145: =IF(Control!$D48="yes",Scenarios!BI$107,1) -> 0 | BJ145: =IF(Control!$D48="yes",Scenarios!BJ$107,1) -> 0 | BK145: =IF(Control!$D48="yes",Scenarios!BK$107,1) -> 0 | BL145: =IF(Control!$D48="yes",Scenarios!BL$107,1) -> 0 | BM145: =IF(Control!$D48="yes",Scenarios!BM$107,1) -> 0 | BN145: =IF(Control!$D48="yes",Scenarios!BN$107,1) -> 0 | BO145: =IF(Control!$D48="yes",Scenarios!BO$107,1) -> 0 | BP145: =IF(Control!$D48="yes",Scenarios!BP$107,1) -> 0 | BQ145: =IF(Control!$D48="yes",Scenarios!BQ$107,1) -> 0 | BR145: =IF(Control!$D48="yes",Scenarios!BR$107,1) -> 0 | BS145: =IF(Control!$D48="yes",Scenarios!BS$107,1) -> 0 | BT145: =IF(Control!$D48="yes",Scenarios!BT$107,1) -> 0 | BU145: =IF(Control!$D48="yes",Scenarios!BU$107,1) -> 0 | BV145: =IF(Control!$D48="yes",Scenarios!BV$107,1) -> 0 | BW145: =IF(Control!$D48="yes",Scenarios!BW$107,1) -> 0 | BX145: =IF(Control!$D48="yes",Scenarios!BX$107,1) -> 0 | BY145: =IF(Control!$D48="yes",Scenarios!BY$107,1) -> 0 | BZ145: =IF(Control!$D48="yes",Scenarios!BZ$107,1) -> 0 | CA145: =IF(Control!$D48="yes",Scenarios!CA$107,1) -> 0 | CB145: =IF(Control!$D48="yes",Scenarios!CB$107,1) -> 0 | CC145: =IF(Control!$D48="yes",Scenarios!CC$107,1) -> 0
A146: Central Goldfields (S) | B146: 1 | C146: 1 | D146: 1 | E146: 1 | F146: 1 | G146: 1 | H146: 1 | I146: 1 | J146: 1 | K146: 1 | L146: 1 | M146: 1 | N146: 1 | O146: 1 | P146: 1 | Q146: 1 | R146: 1 | S146: 1 | T146: 1 | U146: =IF(Control!$D49="yes",Scenarios!U$107,1) -> 0.9 | V146: =IF(Control!$D49="yes",Scenarios!V$107,1) -> 0.8 | W146: =IF(Control!$D49="yes",Scenarios!W$107,1) -> 0.7 | X146: =IF(Control!$D49="yes",Scenarios!X$107,1) -> 0.6 | Y146: =IF(Control!$D49="yes",Scenarios!Y$107,1) -> 0.5 | Z146: =IF(Control!$D49="yes",Scenarios!Z$107,1) -> 0.4 | AA146: =IF(Control!$D49="yes",Scenarios!AA$107,1) -> 0.3 | AB146: =IF(Control!$D49="yes",Scenarios!AB$107,1) -> 0.2 | AC146: =IF(Control!$D49="yes",Scenarios!AC$107,1) -> 0.1 | AD146: =IF(Control!$D49="yes",Scenarios!AD$107,1) -> 0 | AE146: =IF(Control!$D49="yes",Scenarios!AE$107,1) -> 0 | AF146: =IF(Control!$D49="yes",Scenarios!AF$107,1) -> 0 | AG146: =IF(Control!$D49="yes",Scenarios!AG$107,1) -> 0 | AH146: =IF(Control!$D49="yes",Scenarios!AH$107,1) -> 0 | AI146: =IF(Control!$D49="yes",Scenarios!AI$107,1) -> 0 | AJ146: =IF(Control!$D49="yes",Scenarios!AJ$107,1) -> 0 | AK146: =IF(Control!$D49="yes",Scenarios!AK$107,1) -> 0 | AL146: =IF(Control!$D49="yes",Scenarios!AL$107,1) -> 0 | AM146: =IF(Control!$D49="yes",Scenarios!AM$107,1) -> 0 | AN146: =IF(Control!$D49="yes",Scenarios!AN$107,1) -> 0 | AO146: =IF(Control!$D49="yes",Scenarios!AO$107,1) -> 0 | AP146: =IF(Control!$D49="yes",Scenarios!AP$107,1) -> 0 | AQ146: =IF(Control!$D49="yes",Scenarios!AQ$107,1) -> 0 | AR146: =IF(Control!$D49="yes",Scenarios!AR$107,1) -> 0 | AS146: =IF(Control!$D49="yes",Scenarios!AS$107,1) -> 0 | AT146: =IF(Control!$D49="yes",Scenarios!AT$107,1) -> 0 | AU146: =IF(Control!$D49="yes",Scenarios!AU$107,1) -> 0 | AV146: =IF(Control!$D49="yes",Scenarios!AV$107,1) -> 0 | AW146: =IF(Control!$D49="yes",Scenarios!AW$107,1) -> 0 | AX146: =IF(Control!$D49="yes",Scenarios!AX$107,1) -> 0 | AY146: =IF(Control!$D49="yes",Scenarios!AY$107,1) -> 0 | AZ146: =IF(Control!$D49="yes",Scenarios!AZ$107,1) -> 0 | BA146: =IF(Control!$D49="yes",Scenarios!BA$107,1) -> 0 | BB146: =IF(Control!$D49="yes",Scenarios!BB$107,1) -> 0 | BC146: =IF(Control!$D49="yes",Scenarios!BC$107,1) -> 0 | BD146: =IF(Control!$D49="yes",Scenarios!BD$107,1) -> 0 | BE146: =IF(Control!$D49="yes",Scenarios!BE$107,1) -> 0 | BF146: =IF(Control!$D49="yes",Scenarios!BF$107,1) -> 0 | BG146: =IF(Control!$D49="yes",Scenarios!BG$107,1) -> 0 | BH146: =IF(Control!$D49="yes",Scenarios!BH$107,1) -> 0 | BI146: =IF(Control!$D49="yes",Scenarios!BI$107,1) -> 0 | BJ146: =IF(Control!$D49="yes",Scenarios!BJ$107,1) -> 0 | BK146: =IF(Control!$D49="yes",Scenarios!BK$107,1) -> 0 | BL146: =IF(Control!$D49="yes",Scenarios!BL$107,1) -> 0 | BM146: =IF(Control!$D49="yes",Scenarios!BM$107,1) -> 0 | BN146: =IF(Control!$D49="yes",Scenarios!BN$107,1) -> 0 | BO146: =IF(Control!$D49="yes",Scenarios!BO$107,1) -> 0 | BP146: =IF(Control!$D49="yes",Scenarios!BP$107,1) -> 0 | BQ146: =IF(Control!$D49="yes",Scenarios!BQ$107,1) -> 0 | BR146: =IF(Control!$D49="yes",Scenarios!BR$107,1) -> 0 | BS146: =IF(Control!$D49="yes",Scenarios!BS$107,1) -> 0 | BT146: =IF(Control!$D49="yes",Scenarios!BT$107,1) -> 0 | BU146: =IF(Control!$D49="yes",Scenarios!BU$107,1) -> 0 | BV146: =IF(Control!$D49="yes",Scenarios!BV$107,1) -> 0 | BW146: =IF(Control!$D49="yes",Scenarios!BW$107,1) -> 0 | BX146: =IF(Control!$D49="yes",Scenarios!BX$107,1) -> 0 | BY146: =IF(Control!$D49="yes",Scenarios!BY$107,1) -> 0 | BZ146: =IF(Control!$D49="yes",Scenarios!BZ$107,1) -> 0 | CA146: =IF(Control!$D49="yes",Scenarios!CA$107,1) -> 0 | CB146: =IF(Control!$D49="yes",Scenarios!CB$107,1) -> 0 | CC146: =IF(Control!$D49="yes",Scenarios!CC$107,1) -> 0
A147: Colac-Otway (S) | B147: 1 | C147: 1 | D147: 1 | E147: 1 | F147: 1 | G147: 1 | H147: 1 | I147: 1 | J147: 1 | K147: 1 | L147: 1 | M147: 1 | N147: 1 | O147: 1 | P147: 1 | Q147: 1 | R147: 1 | S147: 1 | T147: 1 | U147: =IF(Control!$D50="yes",Scenarios!U$107,1) -> 0.9 | V147: =IF(Control!$D50="yes",Scenarios!V$107,1) -> 0.8 | W147: =IF(Control!$D50="yes",Scenarios!W$107,1) -> 0.7 | X147: =IF(Control!$D50="yes",Scenarios!X$107,1) -> 0.6 | Y147: =IF(Control!$D50="yes",Scenarios!Y$107,1) -> 0.5 | Z147: =IF(Control!$D50="yes",Scenarios!Z$107,1) -> 0.4 | AA147: =IF(Control!$D50="yes",Scenarios!AA$107,1) -> 0.3 | AB147: =IF(Control!$D50="yes",Scenarios!AB$107,1) -> 0.2 | AC147: =IF(Control!$D50="yes",Scenarios!AC$107,1) -> 0.1 | AD147: =IF(Control!$D50="yes",Scenarios!AD$107,1) -> 0 | AE147: =IF(Control!$D50="yes",Scenarios!AE$107,1) -> 0 | AF147: =IF(Control!$D50="yes",Scenarios!AF$107,1) -> 0 | AG147: =IF(Control!$D50="yes",Scenarios!AG$107,1) -> 0 | AH147: =IF(Control!$D50="yes",Scenarios!AH$107,1) -> 0 | AI147: =IF(Control!$D50="yes",Scenarios!AI$107,1) -> 0 | AJ147: =IF(Control!$D50="yes",Scenarios!AJ$107,1) -> 0 | AK147: =IF(Control!$D50="yes",Scenarios!AK$107,1) -> 0 | AL147: =IF(Control!$D50="yes",Scenarios!AL$107,1) -> 0 | AM147: =IF(Control!$D50="yes",Scenarios!AM$107,1) -> 0 | AN147: =IF(Control!$D50="yes",Scenarios!AN$107,1) -> 0 | AO147: =IF(Control!$D50="yes",Scenarios!AO$107,1) -> 0 | AP147: =IF(Control!$D50="yes",Scenarios!AP$107,1) -> 0 | AQ147: =IF(Control!$D50="yes",Scenarios!AQ$107,1) -> 0 | AR147: =IF(Control!$D50="yes",Scenarios!AR$107,1) -> 0 | AS147: =IF(Control!$D50="yes",Scenarios!AS$107,1) -> 0 | AT147: =IF(Control!$D50="yes",Scenarios!AT$107,1) -> 0 | AU147: =IF(Control!$D50="yes",Scenarios!AU$107,1) -> 0 | AV147: =IF(Control!$D50="yes",Scenarios!AV$107,1) -> 0 | AW147: =IF(Control!$D50="yes",Scenarios!AW$107,1) -> 0 | AX147: =IF(Control!$D50="yes",Scenarios!AX$107,1) -> 0 | AY147: =IF(Control!$D50="yes",Scenarios!AY$107,1) -> 0 | AZ147: =IF(Control!$D50="yes",Scenarios!AZ$107,1) -> 0 | BA147: =IF(Control!$D50="yes",Scenarios!BA$107,1) -> 0 | BB147: =IF(Control!$D50="yes",Scenarios!BB$107,1) -> 0 | BC147: =IF(Control!$D50="yes",Scenarios!BC$107,1) -> 0 | BD147: =IF(Control!$D50="yes",Scenarios!BD$107,1) -> 0 | BE147: =IF(Control!$D50="yes",Scenarios!BE$107,1) -> 0 | BF147: =IF(Control!$D50="yes",Scenarios!BF$107,1) -> 0 | BG147: =IF(Control!$D50="yes",Scenarios!BG$107,1) -> 0 | BH147: =IF(Control!$D50="yes",Scenarios!BH$107,1) -> 0 | BI147: =IF(Control!$D50="yes",Scenarios!BI$107,1) -> 0 | BJ147: =IF(Control!$D50="yes",Scenarios!BJ$107,1) -> 0 | BK147: =IF(Control!$D50="yes",Scenarios!BK$107,1) -> 0 | BL147: =IF(Control!$D50="yes",Scenarios!BL$107,1) -> 0 | BM147: =IF(Control!$D50="yes",Scenarios!BM$107,1) -> 0 | BN147: =IF(Control!$D50="yes",Scenarios!BN$107,1) -> 0 | BO147: =IF(Control!$D50="yes",Scenarios!BO$107,1) -> 0 | BP147: =IF(Control!$D50="yes",Scenarios!BP$107,1) -> 0 | BQ147: =IF(Control!$D50="yes",Scenarios!BQ$107,1) -> 0 | BR147: =IF(Control!$D50="yes",Scenarios!BR$107,1) -> 0 | BS147: =IF(Control!$D50="yes",Scenarios!BS$107,1) -> 0 | BT147: =IF(Control!$D50="yes",Scenarios!BT$107,1) -> 0 | BU147: =IF(Control!$D50="yes",Scenarios!BU$107,1) -> 0 | BV147: =IF(Control!$D50="yes",Scenarios!BV$107,1) -> 0 | BW147: =IF(Control!$D50="yes",Scenarios!BW$107,1) -> 0 | BX147: =IF(Control!$D50="yes",Scenarios!BX$107,1) -> 0 | BY147: =IF(Control!$D50="yes",Scenarios!BY$107,1) -> 0 | BZ147: =IF(Control!$D50="yes",Scenarios!BZ$107,1) -> 0 | CA147: =IF(Control!$D50="yes",Scenarios!CA$107,1) -> 0 | CB147: =IF(Control!$D50="yes",Scenarios!CB$107,1) -> 0 | CC147: =IF(Control!$D50="yes",Scenarios!CC$107,1) -> 0
A148: Corangamite (S) | B148: 1 | C148: 1 | D148: 1 | E148: 1 | F148: 1 | G148: 1 | H148: 1 | I148: 1 | J148: 1 | K148: 1 | L148: 1 | M148: 1 | N148: 1 | O148: 1 | P148: 1 | Q148: 1 | R148: 1 | S148: 1 | T148: 1 | U148: =IF(Control!$D51="yes",Scenarios!U$107,1) -> 0.9 | V148: =IF(Control!$D51="yes",Scenarios!V$107,1) -> 0.8 | W148: =IF(Control!$D51="yes",Scenarios!W$107,1) -> 0.7 | X148: =IF(Control!$D51="yes",Scenarios!X$107,1) -> 0.6 | Y148: =IF(Control!$D51="yes",Scenarios!Y$107,1) -> 0.5 | Z148: =IF(Control!$D51="yes",Scenarios!Z$107,1) -> 0.4 | AA148: =IF(Control!$D51="yes",Scenarios!AA$107,1) -> 0.3 | AB148: =IF(Control!$D51="yes",Scenarios!AB$107,1) -> 0.2 | AC148: =IF(Control!$D51="yes",Scenarios!AC$107,1) -> 0.1 | AD148: =IF(Control!$D51="yes",Scenarios!AD$107,1) -> 0 | AE148: =IF(Control!$D51="yes",Scenarios!AE$107,1) -> 0 | AF148: =IF(Control!$D51="yes",Scenarios!AF$107,1) -> 0 | AG148: =IF(Control!$D51="yes",Scenarios!AG$107,1) -> 0 | AH148: =IF(Control!$D51="yes",Scenarios!AH$107,1) -> 0 | AI148: =IF(Control!$D51="yes",Scenarios!AI$107,1) -> 0 | AJ148: =IF(Control!$D51="yes",Scenarios!AJ$107,1) -> 0 | AK148: =IF(Control!$D51="yes",Scenarios!AK$107,1) -> 0 | AL148: =IF(Control!$D51="yes",Scenarios!AL$107,1) -> 0 | AM148: =IF(Control!$D51="yes",Scenarios!AM$107,1) -> 0 | AN148: =IF(Control!$D51="yes",Scenarios!AN$107,1) -> 0 | AO148: =IF(Control!$D51="yes",Scenarios!AO$107,1) -> 0 | AP148: =IF(Control!$D51="yes",Scenarios!AP$107,1) -> 0 | AQ148: =IF(Control!$D51="yes",Scenarios!AQ$107,1) -> 0 | AR148: =IF(Control!$D51="yes",Scenarios!AR$107,1) -> 0 | AS148: =IF(Control!$D51="yes",Scenarios!AS$107,1) -> 0 | AT148: =IF(Control!$D51="yes",Scenarios!AT$107,1) -> 0 | AU148: =IF(Control!$D51="yes",Scenarios!AU$107,1) -> 0 | AV148: =IF(Control!$D51="yes",Scenarios!AV$107,1) -> 0 | AW148: =IF(Control!$D51="yes",Scenarios!AW$107,1) -> 0 | AX148: =IF(Control!$D51="yes",Scenarios!AX$107,1) -> 0 | AY148: =IF(Control!$D51="yes",Scenarios!AY$107,1) -> 0 | AZ148: =IF(Control!$D51="yes",Scenarios!AZ$107,1) -> 0 | BA148: =IF(Control!$D51="yes",Scenarios!BA$107,1) -> 0 | BB148: =IF(Control!$D51="yes",Scenarios!BB$107,1) -> 0 | BC148: =IF(Control!$D51="yes",Scenarios!BC$107,1) -> 0 | BD148: =IF(Control!$D51="yes",Scenarios!BD$107,1) -> 0 | BE148: =IF(Control!$D51="yes",Scenarios!BE$107,1) -> 0 | BF148: =IF(Control!$D51="yes",Scenarios!BF$107,1) -> 0 | BG148: =IF(Control!$D51="yes",Scenarios!BG$107,1) -> 0 | BH148: =IF(Control!$D51="yes",Scenarios!BH$107,1) -> 0 | BI148: =IF(Control!$D51="yes",Scenarios!BI$107,1) -> 0 | BJ148: =IF(Control!$D51="yes",Scenarios!BJ$107,1) -> 0 | BK148: =IF(Control!$D51="yes",Scenarios!BK$107,1) -> 0 | BL148: =IF(Control!$D51="yes",Scenarios!BL$107,1) -> 0 | BM148: =IF(Control!$D51="yes",Scenarios!BM$107,1) -> 0 | BN148: =IF(Control!$D51="yes",Scenarios!BN$107,1) -> 0 | BO148: =IF(Control!$D51="yes",Scenarios!BO$107,1) -> 0 | BP148: =IF(Control!$D51="yes",Scenarios!BP$107,1) -> 0 | BQ148: =IF(Control!$D51="yes",Scenarios!BQ$107,1) -> 0 | BR148: =IF(Control!$D51="yes",Scenarios!BR$107,1) -> 0 | BS148: =IF(Control!$D51="yes",Scenarios!BS$107,1) -> 0 | BT148: =IF(Control!$D51="yes",Scenarios!BT$107,1) -> 0 | BU148: =IF(Control!$D51="yes",Scenarios!BU$107,1) -> 0 | BV148: =IF(Control!$D51="yes",Scenarios!BV$107,1) -> 0 | BW148: =IF(Control!$D51="yes",Scenarios!BW$107,1) -> 0 | BX148: =IF(Control!$D51="yes",Scenarios!BX$107,1) -> 0 | BY148: =IF(Control!$D51="yes",Scenarios!BY$107,1) -> 0 | BZ148: =IF(Control!$D51="yes",Scenarios!BZ$107,1) -> 0 | CA148: =IF(Control!$D51="yes",Scenarios!CA$107,1) -> 0 | CB148: =IF(Control!$D51="yes",Scenarios!CB$107,1) -> 0 | CC148: =IF(Control!$D51="yes",Scenarios!CC$107,1) -> 0
A149: Glenelg (S) | B149: 1 | C149: 1 | D149: 1 | E149: 1 | F149: 1 | G149: 1 | H149: 1 | I149: 1 | J149: 1 | K149: 1 | L149: 1 | M149: 1 | N149: 1 | O149: 1 | P149: 1 | Q149: 1 | R149: 1 | S149: 1 | T149: 1 | U149: =IF(Control!$D52="yes",Scenarios!U$107,1) -> 0.9 | V149: =IF(Control!$D52="yes",Scenarios!V$107,1) -> 0.8 | W149: =IF(Control!$D52="yes",Scenarios!W$107,1) -> 0.7 | X149: =IF(Control!$D52="yes",Scenarios!X$107,1) -> 0.6 | Y149: =IF(Control!$D52="yes",Scenarios!Y$107,1) -> 0.5 | Z149: =IF(Control!$D52="yes",Scenarios!Z$107,1) -> 0.4 | AA149: =IF(Control!$D52="yes",Scenarios!AA$107,1) -> 0.3 | AB149: =IF(Control!$D52="yes",Scenarios!AB$107,1) -> 0.2 | AC149: =IF(Control!$D52="yes",Scenarios!AC$107,1) -> 0.1 | AD149: =IF(Control!$D52="yes",Scenarios!AD$107,1) -> 0 | AE149: =IF(Control!$D52="yes",Scenarios!AE$107,1) -> 0 | AF149: =IF(Control!$D52="yes",Scenarios!AF$107,1) -> 0 | AG149: =IF(Control!$D52="yes",Scenarios!AG$107,1) -> 0 | AH149: =IF(Control!$D52="yes",Scenarios!AH$107,1) -> 0 | AI149: =IF(Control!$D52="yes",Scenarios!AI$107,1) -> 0 | AJ149: =IF(Control!$D52="yes",Scenarios!AJ$107,1) -> 0 | AK149: =IF(Control!$D52="yes",Scenarios!AK$107,1) -> 0 | AL149: =IF(Control!$D52="yes",Scenarios!AL$107,1) -> 0 | AM149: =IF(Control!$D52="yes",Scenarios!AM$107,1) -> 0 | AN149: =IF(Control!$D52="yes",Scenarios!AN$107,1) -> 0 | AO149: =IF(Control!$D52="yes",Scenarios!AO$107,1) -> 0 | AP149: =IF(Control!$D52="yes",Scenarios!AP$107,1) -> 0 | AQ149: =IF(Control!$D52="yes",Scenarios!AQ$107,1) -> 0 | AR149: =IF(Control!$D52="yes",Scenarios!AR$107,1) -> 0 | AS149: =IF(Control!$D52="yes",Scenarios!AS$107,1) -> 0 | AT149: =IF(Control!$D52="yes",Scenarios!AT$107,1) -> 0 | AU149: =IF(Control!$D52="yes",Scenarios!AU$107,1) -> 0 | AV149: =IF(Control!$D52="yes",Scenarios!AV$107,1) -> 0 | AW149: =IF(Control!$D52="yes",Scenarios!AW$107,1) -> 0 | AX149: =IF(Control!$D52="yes",Scenarios!AX$107,1) -> 0 | AY149: =IF(Control!$D52="yes",Scenarios!AY$107,1) -> 0 | AZ149: =IF(Control!$D52="yes",Scenarios!AZ$107,1) -> 0 | BA149: =IF(Control!$D52="yes",Scenarios!BA$107,1) -> 0 | BB149: =IF(Control!$D52="yes",Scenarios!BB$107,1) -> 0 | BC149: =IF(Control!$D52="yes",Scenarios!BC$107,1) -> 0 | BD149: =IF(Control!$D52="yes",Scenarios!BD$107,1) -> 0 | BE149: =IF(Control!$D52="yes",Scenarios!BE$107,1) -> 0 | BF149: =IF(Control!$D52="yes",Scenarios!BF$107,1) -> 0 | BG149: =IF(Control!$D52="yes",Scenarios!BG$107,1) -> 0 | BH149: =IF(Control!$D52="yes",Scenarios!BH$107,1) -> 0 | BI149: =IF(Control!$D52="yes",Scenarios!BI$107,1) -> 0 | BJ149: =IF(Control!$D52="yes",Scenarios!BJ$107,1) -> 0 | BK149: =IF(Control!$D52="yes",Scenarios!BK$107,1) -> 0 | BL149: =IF(Control!$D52="yes",Scenarios!BL$107,1) -> 0 | BM149: =IF(Control!$D52="yes",Scenarios!BM$107,1) -> 0 | BN149: =IF(Control!$D52="yes",Scenarios!BN$107,1) -> 0 | BO149: =IF(Control!$D52="yes",Scenarios!BO$107,1) -> 0 | BP149: =IF(Control!$D52="yes",Scenarios!BP$107,1) -> 0 | BQ149: =IF(Control!$D52="yes",Scenarios!BQ$107,1) -> 0 | BR149: =IF(Control!$D52="yes",Scenarios!BR$107,1) -> 0 | BS149: =IF(Control!$D52="yes",Scenarios!BS$107,1) -> 0 | BT149: =IF(Control!$D52="yes",Scenarios!BT$107,1) -> 0 | BU149: =IF(Control!$D52="yes",Scenarios!BU$107,1) -> 0 | BV149: =IF(Control!$D52="yes",Scenarios!BV$107,1) -> 0 | BW149: =IF(Control!$D52="yes",Scenarios!BW$107,1) -> 0 | BX149: =IF(Control!$D52="yes",Scenarios!BX$107,1) -> 0 | BY149: =IF(Control!$D52="yes",Scenarios!BY$107,1) -> 0 | BZ149: =IF(Control!$D52="yes",Scenarios!BZ$107,1) -> 0 | CA149: =IF(Control!$D52="yes",Scenarios!CA$107,1) -> 0 | CB149: =IF(Control!$D52="yes",Scenarios!CB$107,1) -> 0 | CC149: =IF(Control!$D52="yes",Scenarios!CC$107,1) -> 0
A150: Golden Plains (S) | B150: 1 | C150: 1 | D150: 1 | E150: 1 | F150: 1 | G150: 1 | H150: 1 | I150: 1 | J150: 1 | K150: 1 | L150: 1 | M150: 1 | N150: 1 | O150: 1 | P150: 1 | Q150: 1 | R150: 1 | S150: 1 | T150: 1 | U150: =IF(Control!$D53="yes",Scenarios!U$107,1) -> 0.9 | V150: =IF(Control!$D53="yes",Scenarios!V$107,1) -> 0.8 | W150: =IF(Control!$D53="yes",Scenarios!W$107,1) -> 0.7 | X150: =IF(Control!$D53="yes",Scenarios!X$107,1) -> 0.6 | Y150: =IF(Control!$D53="yes",Scenarios!Y$107,1) -> 0.5 | Z150: =IF(Control!$D53="yes",Scenarios!Z$107,1) -> 0.4 | AA150: =IF(Control!$D53="yes",Scenarios!AA$107,1) -> 0.3 | AB150: =IF(Control!$D53="yes",Scenarios!AB$107,1) -> 0.2 | AC150: =IF(Control!$D53="yes",Scenarios!AC$107,1) -> 0.1 | AD150: =IF(Control!$D53="yes",Scenarios!AD$107,1) -> 0 | AE150: =IF(Control!$D53="yes",Scenarios!AE$107,1) -> 0 | AF150: =IF(Control!$D53="yes",Scenarios!AF$107,1) -> 0 | AG150: =IF(Control!$D53="yes",Scenarios!AG$107,1) -> 0 | AH150: =IF(Control!$D53="yes",Scenarios!AH$107,1) -> 0 | AI150: =IF(Control!$D53="yes",Scenarios!AI$107,1) -> 0 | AJ150: =IF(Control!$D53="yes",Scenarios!AJ$107,1) -> 0 | AK150: =IF(Control!$D53="yes",Scenarios!AK$107,1) -> 0 | AL150: =IF(Control!$D53="yes",Scenarios!AL$107,1) -> 0 | AM150: =IF(Control!$D53="yes",Scenarios!AM$107,1) -> 0 | AN150: =IF(Control!$D53="yes",Scenarios!AN$107,1) -> 0 | AO150: =IF(Control!$D53="yes",Scenarios!AO$107,1) -> 0 | AP150: =IF(Control!$D53="yes",Scenarios!AP$107,1) -> 0 | AQ150: =IF(Control!$D53="yes",Scenarios!AQ$107,1) -> 0 | AR150: =IF(Control!$D53="yes",Scenarios!AR$107,1) -> 0 | AS150: =IF(Control!$D53="yes",Scenarios!AS$107,1) -> 0 | AT150: =IF(Control!$D53="yes",Scenarios!AT$107,1) -> 0 | AU150: =IF(Control!$D53="yes",Scenarios!AU$107,1) -> 0 | AV150: =IF(Control!$D53="yes",Scenarios!AV$107,1) -> 0 | AW150: =IF(Control!$D53="yes",Scenarios!AW$107,1) -> 0 | AX150: =IF(Control!$D53="yes",Scenarios!AX$107,1) -> 0 | AY150: =IF(Control!$D53="yes",Scenarios!AY$107,1) -> 0 | AZ150: =IF(Control!$D53="yes",Scenarios!AZ$107,1) -> 0 | BA150: =IF(Control!$D53="yes",Scenarios!BA$107,1) -> 0 | BB150: =IF(Control!$D53="yes",Scenarios!BB$107,1) -> 0 | BC150: =IF(Control!$D53="yes",Scenarios!BC$107,1) -> 0 | BD150: =IF(Control!$D53="yes",Scenarios!BD$107,1) -> 0 | BE150: =IF(Control!$D53="yes",Scenarios!BE$107,1) -> 0 | BF150: =IF(Control!$D53="yes",Scenarios!BF$107,1) -> 0 | BG150: =IF(Control!$D53="yes",Scenarios!BG$107,1) -> 0 | BH150: =IF(Control!$D53="yes",Scenarios!BH$107,1) -> 0 | BI150: =IF(Control!$D53="yes",Scenarios!BI$107,1) -> 0 | BJ150: =IF(Control!$D53="yes",Scenarios!BJ$107,1) -> 0 | BK150: =IF(Control!$D53="yes",Scenarios!BK$107,1) -> 0 | BL150: =IF(Control!$D53="yes",Scenarios!BL$107,1) -> 0 | BM150: =IF(Control!$D53="yes",Scenarios!BM$107,1) -> 0 | BN150: =IF(Control!$D53="yes",Scenarios!BN$107,1) -> 0 | BO150: =IF(Control!$D53="yes",Scenarios!BO$107,1) -> 0 | BP150: =IF(Control!$D53="yes",Scenarios!BP$107,1) -> 0 | BQ150: =IF(Control!$D53="yes",Scenarios!BQ$107,1) -> 0 | BR150: =IF(Control!$D53="yes",Scenarios!BR$107,1) -> 0 | BS150: =IF(Control!$D53="yes",Scenarios!BS$107,1) -> 0 | BT150: =IF(Control!$D53="yes",Scenarios!BT$107,1) -> 0 | BU150: =IF(Control!$D53="yes",Scenarios!BU$107,1) -> 0 | BV150: =IF(Control!$D53="yes",Scenarios!BV$107,1) -> 0 | BW150: =IF(Control!$D53="yes",Scenarios!BW$107,1) -> 0 | BX150: =IF(Control!$D53="yes",Scenarios!BX$107,1) -> 0 | BY150: =IF(Control!$D53="yes",Scenarios!BY$107,1) -> 0 | BZ150: =IF(Control!$D53="yes",Scenarios!BZ$107,1) -> 0 | CA150: =IF(Control!$D53="yes",Scenarios!CA$107,1) -> 0 | CB150: =IF(Control!$D53="yes",Scenarios!CB$107,1) -> 0 | CC150: =IF(Control!$D53="yes",Scenarios!CC$107,1) -> 0
A151: Greater Bendigo (C) | B151: 1 | C151: 1 | D151: 1 | E151: 1 | F151: 1 | G151: 1 | H151: 1 | I151: 1 | J151: 1 | K151: 1 | L151: 1 | M151: 1 | N151: 1 | O151: 1 | P151: 1 | Q151: 1 | R151: 1 | S151: 1 | T151: 1 | U151: =IF(Control!$D54="yes",Scenarios!U$107,1) -> 0.9 | V151: =IF(Control!$D54="yes",Scenarios!V$107,1) -> 0.8 | W151: =IF(Control!$D54="yes",Scenarios!W$107,1) -> 0.7 | X151: =IF(Control!$D54="yes",Scenarios!X$107,1) -> 0.6 | Y151: =IF(Control!$D54="yes",Scenarios!Y$107,1) -> 0.5 | Z151: =IF(Control!$D54="yes",Scenarios!Z$107,1) -> 0.4 | AA151: =IF(Control!$D54="yes",Scenarios!AA$107,1) -> 0.3 | AB151: =IF(Control!$D54="yes",Scenarios!AB$107,1) -> 0.2 | AC151: =IF(Control!$D54="yes",Scenarios!AC$107,1) -> 0.1 | AD151: =IF(Control!$D54="yes",Scenarios!AD$107,1) -> 0 | AE151: =IF(Control!$D54="yes",Scenarios!AE$107,1) -> 0 | AF151: =IF(Control!$D54="yes",Scenarios!AF$107,1) -> 0 | AG151: =IF(Control!$D54="yes",Scenarios!AG$107,1) -> 0 | AH151: =IF(Control!$D54="yes",Scenarios!AH$107,1) -> 0 | AI151: =IF(Control!$D54="yes",Scenarios!AI$107,1) -> 0 | AJ151: =IF(Control!$D54="yes",Scenarios!AJ$107,1) -> 0 | AK151: =IF(Control!$D54="yes",Scenarios!AK$107,1) -> 0 | AL151: =IF(Control!$D54="yes",Scenarios!AL$107,1) -> 0 | AM151: =IF(Control!$D54="yes",Scenarios!AM$107,1) -> 0 | AN151: =IF(Control!$D54="yes",Scenarios!AN$107,1) -> 0 | AO151: =IF(Control!$D54="yes",Scenarios!AO$107,1) -> 0 | AP151: =IF(Control!$D54="yes",Scenarios!AP$107,1) -> 0 | AQ151: =IF(Control!$D54="yes",Scenarios!AQ$107,1) -> 0 | AR151: =IF(Control!$D54="yes",Scenarios!AR$107,1) -> 0 | AS151: =IF(Control!$D54="yes",Scenarios!AS$107,1) -> 0 | AT151: =IF(Control!$D54="yes",Scenarios!AT$107,1) -> 0 | AU151: =IF(Control!$D54="yes",Scenarios!AU$107,1) -> 0 | AV151: =IF(Control!$D54="yes",Scenarios!AV$107,1) -> 0 | AW151: =IF(Control!$D54="yes",Scenarios!AW$107,1) -> 0 | AX151: =IF(Control!$D54="yes",Scenarios!AX$107,1) -> 0 | AY151: =IF(Control!$D54="yes",Scenarios!AY$107,1) -> 0 | AZ151: =IF(Control!$D54="yes",Scenarios!AZ$107,1) -> 0 | BA151: =IF(Control!$D54="yes",Scenarios!BA$107,1) -> 0 | BB151: =IF(Control!$D54="yes",Scenarios!BB$107,1) -> 0 | BC151: =IF(Control!$D54="yes",Scenarios!BC$107,1) -> 0 | BD151: =IF(Control!$D54="yes",Scenarios!BD$107,1) -> 0 | BE151: =IF(Control!$D54="yes",Scenarios!BE$107,1) -> 0 | BF151: =IF(Control!$D54="yes",Scenarios!BF$107,1) -> 0 | BG151: =IF(Control!$D54="yes",Scenarios!BG$107,1) -> 0 | BH151: =IF(Control!$D54="yes",Scenarios!BH$107,1) -> 0 | BI151: =IF(Control!$D54="yes",Scenarios!BI$107,1) -> 0 | BJ151: =IF(Control!$D54="yes",Scenarios!BJ$107,1) -> 0 | BK151: =IF(Control!$D54="yes",Scenarios!BK$107,1) -> 0 | BL151: =IF(Control!$D54="yes",Scenarios!BL$107,1) -> 0 | BM151: =IF(Control!$D54="yes",Scenarios!BM$107,1) -> 0 | BN151: =IF(Control!$D54="yes",Scenarios!BN$107,1) -> 0 | BO151: =IF(Control!$D54="yes",Scenarios!BO$107,1) -> 0 | BP151: =IF(Control!$D54="yes",Scenarios!BP$107,1) -> 0 | BQ151: =IF(Control!$D54="yes",Scenarios!BQ$107,1) -> 0 | BR151: =IF(Control!$D54="yes",Scenarios!BR$107,1) -> 0 | BS151: =IF(Control!$D54="yes",Scenarios!BS$107,1) -> 0 | BT151: =IF(Control!$D54="yes",Scenarios!BT$107,1) -> 0 | BU151: =IF(Control!$D54="yes",Scenarios!BU$107,1) -> 0 | BV151: =IF(Control!$D54="yes",Scenarios!BV$107,1) -> 0 | BW151: =IF(Control!$D54="yes",Scenarios!BW$107,1) -> 0 | BX151: =IF(Control!$D54="yes",Scenarios!BX$107,1) -> 0 | BY151: =IF(Control!$D54="yes",Scenarios!BY$107,1) -> 0 | BZ151: =IF(Control!$D54="yes",Scenarios!BZ$107,1) -> 0 | CA151: =IF(Control!$D54="yes",Scenarios!CA$107,1) -> 0 | CB151: =IF(Control!$D54="yes",Scenarios!CB$107,1) -> 0 | CC151: =IF(Control!$D54="yes",Scenarios!CC$107,1) -> 0
A152: Greater Geelong (C) | B152: 1 | C152: 1 | D152: 1 | E152: 1 | F152: 1 | G152: 1 | H152: 1 | I152: 1 | J152: 1 | K152: 1 | L152: 1 | M152: 1 | N152: 1 | O152: 1 | P152: 1 | Q152: 1 | R152: 1 | S152: 1 | T152: 1 | U152: =IF(Control!$D55="yes",Scenarios!U$107,1) -> 1 | V152: =IF(Control!$D55="yes",Scenarios!V$107,1) -> 1 | W152: =IF(Control!$D55="yes",Scenarios!W$107,1) -> 1 | X152: =IF(Control!$D55="yes",Scenarios!X$107,1) -> 1 | Y152: =IF(Control!$D55="yes",Scenarios!Y$107,1) -> 1 | Z152: =IF(Control!$D55="yes",Scenarios!Z$107,1) -> 1 | AA152: =IF(Control!$D55="yes",Scenarios!AA$107,1) -> 1 | AB152: =IF(Control!$D55="yes",Scenarios!AB$107,1) -> 1 | AC152: =IF(Control!$D55="yes",Scenarios!AC$107,1) -> 1 | AD152: =IF(Control!$D55="yes",Scenarios!AD$107,1) -> 1 | AE152: =IF(Control!$D55="yes",Scenarios!AE$107,1) -> 1 | AF152: =IF(Control!$D55="yes",Scenarios!AF$107,1) -> 1 | AG152: =IF(Control!$D55="yes",Scenarios!AG$107,1) -> 1 | AH152: =IF(Control!$D55="yes",Scenarios!AH$107,1) -> 1 | AI152: =IF(Control!$D55="yes",Scenarios!AI$107,1) -> 1 | AJ152: =IF(Control!$D55="yes",Scenarios!AJ$107,1) -> 1 | AK152: =IF(Control!$D55="yes",Scenarios!AK$107,1) -> 1 | AL152: =IF(Control!$D55="yes",Scenarios!AL$107,1) -> 1 | AM152: =IF(Control!$D55="yes",Scenarios!AM$107,1) -> 1 | AN152: =IF(Control!$D55="yes",Scenarios!AN$107,1) -> 1 | AO152: =IF(Control!$D55="yes",Scenarios!AO$107,1) -> 1 | AP152: =IF(Control!$D55="yes",Scenarios!AP$107,1) -> 1 | AQ152: =IF(Control!$D55="yes",Scenarios!AQ$107,1) -> 1 | AR152: =IF(Control!$D55="yes",Scenarios!AR$107,1) -> 1 | AS152: =IF(Control!$D55="yes",Scenarios!AS$107,1) -> 1 | AT152: =IF(Control!$D55="yes",Scenarios!AT$107,1) -> 1 | AU152: =IF(Control!$D55="yes",Scenarios!AU$107,1) -> 1 | AV152: =IF(Control!$D55="yes",Scenarios!AV$107,1) -> 1 | AW152: =IF(Control!$D55="yes",Scenarios!AW$107,1) -> 1 | AX152: =IF(Control!$D55="yes",Scenarios!AX$107,1) -> 1 | AY152: =IF(Control!$D55="yes",Scenarios!AY$107,1) -> 1 | AZ152: =IF(Control!$D55="yes",Scenarios!AZ$107,1) -> 1 | BA152: =IF(Control!$D55="yes",Scenarios!BA$107,1) -> 1 | BB152: =IF(Control!$D55="yes",Scenarios!BB$107,1) -> 1 | BC152: =IF(Control!$D55="yes",Scenarios!BC$107,1) -> 1 | BD152: =IF(Control!$D55="yes",Scenarios!BD$107,1) -> 1 | BE152: =IF(Control!$D55="yes",Scenarios!BE$107,1) -> 1 | BF152: =IF(Control!$D55="yes",Scenarios!BF$107,1) -> 1 | BG152: =IF(Control!$D55="yes",Scenarios!BG$107,1) -> 1 | BH152: =IF(Control!$D55="yes",Scenarios!BH$107,1) -> 1 | BI152: =IF(Control!$D55="yes",Scenarios!BI$107,1) -> 1 | BJ152: =IF(Control!$D55="yes",Scenarios!BJ$107,1) -> 1 | BK152: =IF(Control!$D55="yes",Scenarios!BK$107,1) -> 1 | BL152: =IF(Control!$D55="yes",Scenarios!BL$107,1) -> 1 | BM152: =IF(Control!$D55="yes",Scenarios!BM$107,1) -> 1 | BN152: =IF(Control!$D55="yes",Scenarios!BN$107,1) -> 1 | BO152: =IF(Control!$D55="yes",Scenarios!BO$107,1) -> 1 | BP152: =IF(Control!$D55="yes",Scenarios!BP$107,1) -> 1 | BQ152: =IF(Control!$D55="yes",Scenarios!BQ$107,1) -> 1 | BR152: =IF(Control!$D55="yes",Scenarios!BR$107,1) -> 1 | BS152: =IF(Control!$D55="yes",Scenarios!BS$107,1) -> 1 | BT152: =IF(Control!$D55="yes",Scenarios!BT$107,1) -> 1 | BU152: =IF(Control!$D55="yes",Scenarios!BU$107,1) -> 1 | BV152: =IF(Control!$D55="yes",Scenarios!BV$107,1) -> 1 | BW152: =IF(Control!$D55="yes",Scenarios!BW$107,1) -> 1 | BX152: =IF(Control!$D55="yes",Scenarios!BX$107,1) -> 1 | BY152: =IF(Control!$D55="yes",Scenarios!BY$107,1) -> 1 | BZ152: =IF(Control!$D55="yes",Scenarios!BZ$107,1) -> 1 | CA152: =IF(Control!$D55="yes",Scenarios!CA$107,1) -> 1 | CB152: =IF(Control!$D55="yes",Scenarios!CB$107,1) -> 1 | CC152: =IF(Control!$D55="yes",Scenarios!CC$107,1) -> 1
A153: Hepburn (S) | B153: 1 | C153: 1 | D153: 1 | E153: 1 | F153: 1 | G153: 1 | H153: 1 | I153: 1 | J153: 1 | K153: 1 | L153: 1 | M153: 1 | N153: 1 | O153: 1 | P153: 1 | Q153: 1 | R153: 1 | S153: 1 | T153: 1 | U153: =IF(Control!$D56="yes",Scenarios!U$107,1) -> 1 | V153: =IF(Control!$D56="yes",Scenarios!V$107,1) -> 1 | W153: =IF(Control!$D56="yes",Scenarios!W$107,1) -> 1 | X153: =IF(Control!$D56="yes",Scenarios!X$107,1) -> 1 | Y153: =IF(Control!$D56="yes",Scenarios!Y$107,1) -> 1 | Z153: =IF(Control!$D56="yes",Scenarios!Z$107,1) -> 1 | AA153: =IF(Control!$D56="yes",Scenarios!AA$107,1) -> 1 | AB153: =IF(Control!$D56="yes",Scenarios!AB$107,1) -> 1 | AC153: =IF(Control!$D56="yes",Scenarios!AC$107,1) -> 1 | AD153: =IF(Control!$D56="yes",Scenarios!AD$107,1) -> 1 | AE153: =IF(Control!$D56="yes",Scenarios!AE$107,1) -> 1 | AF153: =IF(Control!$D56="yes",Scenarios!AF$107,1) -> 1 | AG153: =IF(Control!$D56="yes",Scenarios!AG$107,1) -> 1 | AH153: =IF(Control!$D56="yes",Scenarios!AH$107,1) -> 1 | AI153: =IF(Control!$D56="yes",Scenarios!AI$107,1) -> 1 | AJ153: =IF(Control!$D56="yes",Scenarios!AJ$107,1) -> 1 | AK153: =IF(Control!$D56="yes",Scenarios!AK$107,1) -> 1 | AL153: =IF(Control!$D56="yes",Scenarios!AL$107,1) -> 1 | AM153: =IF(Control!$D56="yes",Scenarios!AM$107,1) -> 1 | AN153: =IF(Control!$D56="yes",Scenarios!AN$107,1) -> 1 | AO153: =IF(Control!$D56="yes",Scenarios!AO$107,1) -> 1 | AP153: =IF(Control!$D56="yes",Scenarios!AP$107,1) -> 1 | AQ153: =IF(Control!$D56="yes",Scenarios!AQ$107,1) -> 1 | AR153: =IF(Control!$D56="yes",Scenarios!AR$107,1) -> 1 | AS153: =IF(Control!$D56="yes",Scenarios!AS$107,1) -> 1 | AT153: =IF(Control!$D56="yes",Scenarios!AT$107,1) -> 1 | AU153: =IF(Control!$D56="yes",Scenarios!AU$107,1) -> 1 | AV153: =IF(Control!$D56="yes",Scenarios!AV$107,1) -> 1 | AW153: =IF(Control!$D56="yes",Scenarios!AW$107,1) -> 1 | AX153: =IF(Control!$D56="yes",Scenarios!AX$107,1) -> 1 | AY153: =IF(Control!$D56="yes",Scenarios!AY$107,1) -> 1 | AZ153: =IF(Control!$D56="yes",Scenarios!AZ$107,1) -> 1 | BA153: =IF(Control!$D56="yes",Scenarios!BA$107,1) -> 1 | BB153: =IF(Control!$D56="yes",Scenarios!BB$107,1) -> 1 | BC153: =IF(Control!$D56="yes",Scenarios!BC$107,1) -> 1 | BD153: =IF(Control!$D56="yes",Scenarios!BD$107,1) -> 1 | BE153: =IF(Control!$D56="yes",Scenarios!BE$107,1) -> 1 | BF153: =IF(Control!$D56="yes",Scenarios!BF$107,1) -> 1 | BG153: =IF(Control!$D56="yes",Scenarios!BG$107,1) -> 1 | BH153: =IF(Control!$D56="yes",Scenarios!BH$107,1) -> 1 | BI153: =IF(Control!$D56="yes",Scenarios!BI$107,1) -> 1 | BJ153: =IF(Control!$D56="yes",Scenarios!BJ$107,1) -> 1 | BK153: =IF(Control!$D56="yes",Scenarios!BK$107,1) -> 1 | BL153: =IF(Control!$D56="yes",Scenarios!BL$107,1) -> 1 | BM153: =IF(Control!$D56="yes",Scenarios!BM$107,1) -> 1 | BN153: =IF(Control!$D56="yes",Scenarios!BN$107,1) -> 1 | BO153: =IF(Control!$D56="yes",Scenarios!BO$107,1) -> 1 | BP153: =IF(Control!$D56="yes",Scenarios!BP$107,1) -> 1 | BQ153: =IF(Control!$D56="yes",Scenarios!BQ$107,1) -> 1 | BR153: =IF(Control!$D56="yes",Scenarios!BR$107,1) -> 1 | BS153: =IF(Control!$D56="yes",Scenarios!BS$107,1) -> 1 | BT153: =IF(Control!$D56="yes",Scenarios!BT$107,1) -> 1 | BU153: =IF(Control!$D56="yes",Scenarios!BU$107,1) -> 1 | BV153: =IF(Control!$D56="yes",Scenarios!BV$107,1) -> 1 | BW153: =IF(Control!$D56="yes",Scenarios!BW$107,1) -> 1 | BX153: =IF(Control!$D56="yes",Scenarios!BX$107,1) -> 1 | BY153: =IF(Control!$D56="yes",Scenarios!BY$107,1) -> 1 | BZ153: =IF(Control!$D56="yes",Scenarios!BZ$107,1) -> 1 | CA153: =IF(Control!$D56="yes",Scenarios!CA$107,1) -> 1 | CB153: =IF(Control!$D56="yes",Scenarios!CB$107,1) -> 1 | CC153: =IF(Control!$D56="yes",Scenarios!CC$107,1) -> 1
A154: Hobsons Bay (C) | B154: 1 | C154: 1 | D154: 1 | E154: 1 | F154: 1 | G154: 1 | H154: 1 | I154: 1 | J154: 1 | K154: 1 | L154: 1 | M154: 1 | N154: 1 | O154: 1 | P154: 1 | Q154: 1 | R154: 1 | S154: 1 | T154: 1 | U154: =IF(Control!$D57="yes",Scenarios!U$107,1) -> 0.9 | V154: =IF(Control!$D57="yes",Scenarios!V$107,1) -> 0.8 | W154: =IF(Control!$D57="yes",Scenarios!W$107,1) -> 0.7 | X154: =IF(Control!$D57="yes",Scenarios!X$107,1) -> 0.6 | Y154: =IF(Control!$D57="yes",Scenarios!Y$107,1) -> 0.5 | Z154: =IF(Control!$D57="yes",Scenarios!Z$107,1) -> 0.4 | AA154: =IF(Control!$D57="yes",Scenarios!AA$107,1) -> 0.3 | AB154: =IF(Control!$D57="yes",Scenarios!AB$107,1) -> 0.2 | AC154: =IF(Control!$D57="yes",Scenarios!AC$107,1) -> 0.1 | AD154: =IF(Control!$D57="yes",Scenarios!AD$107,1) -> 0 | AE154: =IF(Control!$D57="yes",Scenarios!AE$107,1) -> 0 | AF154: =IF(Control!$D57="yes",Scenarios!AF$107,1) -> 0 | AG154: =IF(Control!$D57="yes",Scenarios!AG$107,1) -> 0 | AH154: =IF(Control!$D57="yes",Scenarios!AH$107,1) -> 0 | AI154: =IF(Control!$D57="yes",Scenarios!AI$107,1) -> 0 | AJ154: =IF(Control!$D57="yes",Scenarios!AJ$107,1) -> 0 | AK154: =IF(Control!$D57="yes",Scenarios!AK$107,1) -> 0 | AL154: =IF(Control!$D57="yes",Scenarios!AL$107,1) -> 0 | AM154: =IF(Control!$D57="yes",Scenarios!AM$107,1) -> 0 | AN154: =IF(Control!$D57="yes",Scenarios!AN$107,1) -> 0 | AO154: =IF(Control!$D57="yes",Scenarios!AO$107,1) -> 0 | AP154: =IF(Control!$D57="yes",Scenarios!AP$107,1) -> 0 | AQ154: =IF(Control!$D57="yes",Scenarios!AQ$107,1) -> 0 | AR154: =IF(Control!$D57="yes",Scenarios!AR$107,1) -> 0 | AS154: =IF(Control!$D57="yes",Scenarios!AS$107,1) -> 0 | AT154: =IF(Control!$D57="yes",Scenarios!AT$107,1) -> 0 | AU154: =IF(Control!$D57="yes",Scenarios!AU$107,1) -> 0 | AV154: =IF(Control!$D57="yes",Scenarios!AV$107,1) -> 0 | AW154: =IF(Control!$D57="yes",Scenarios!AW$107,1) -> 0 | AX154: =IF(Control!$D57="yes",Scenarios!AX$107,1) -> 0 | AY154: =IF(Control!$D57="yes",Scenarios!AY$107,1) -> 0 | AZ154: =IF(Control!$D57="yes",Scenarios!AZ$107,1) -> 0 | BA154: =IF(Control!$D57="yes",Scenarios!BA$107,1) -> 0 | BB154: =IF(Control!$D57="yes",Scenarios!BB$107,1) -> 0 | BC154: =IF(Control!$D57="yes",Scenarios!BC$107,1) -> 0 | BD154: =IF(Control!$D57="yes",Scenarios!BD$107,1) -> 0 | BE154: =IF(Control!$D57="yes",Scenarios!BE$107,1) -> 0 | BF154: =IF(Control!$D57="yes",Scenarios!BF$107,1) -> 0 | BG154: =IF(Control!$D57="yes",Scenarios!BG$107,1) -> 0 | BH154: =IF(Control!$D57="yes",Scenarios!BH$107,1) -> 0 | BI154: =IF(Control!$D57="yes",Scenarios!BI$107,1) -> 0 | BJ154: =IF(Control!$D57="yes",Scenarios!BJ$107,1) -> 0 | BK154: =IF(Control!$D57="yes",Scenarios!BK$107,1) -> 0 | BL154: =IF(Control!$D57="yes",Scenarios!BL$107,1) -> 0 | BM154: =IF(Control!$D57="yes",Scenarios!BM$107,1) -> 0 | BN154: =IF(Control!$D57="yes",Scenarios!BN$107,1) -> 0 | BO154: =IF(Control!$D57="yes",Scenarios!BO$107,1) -> 0 | BP154: =IF(Control!$D57="yes",Scenarios!BP$107,1) -> 0 | BQ154: =IF(Control!$D57="yes",Scenarios!BQ$107,1) -> 0 | BR154: =IF(Control!$D57="yes",Scenarios!BR$107,1) -> 0 | BS154: =IF(Control!$D57="yes",Scenarios!BS$107,1) -> 0 | BT154: =IF(Control!$D57="yes",Scenarios!BT$107,1) -> 0 | BU154: =IF(Control!$D57="yes",Scenarios!BU$107,1) -> 0 | BV154: =IF(Control!$D57="yes",Scenarios!BV$107,1) -> 0 | BW154: =IF(Control!$D57="yes",Scenarios!BW$107,1) -> 0 | BX154: =IF(Control!$D57="yes",Scenarios!BX$107,1) -> 0 | BY154: =IF(Control!$D57="yes",Scenarios!BY$107,1) -> 0 | BZ154: =IF(Control!$D57="yes",Scenarios!BZ$107,1) -> 0 | CA154: =IF(Control!$D57="yes",Scenarios!CA$107,1) -> 0 | CB154: =IF(Control!$D57="yes",Scenarios!CB$107,1) -> 0 | CC154: =IF(Control!$D57="yes",Scenarios!CC$107,1) -> 0
A155: Horsham (RC) | B155: 1 | C155: 1 | D155: 1 | E155: 1 | F155: 1 | G155: 1 | H155: 1 | I155: 1 | J155: 1 | K155: 1 | L155: 1 | M155: 1 | N155: 1 | O155: 1 | P155: 1 | Q155: 1 | R155: 1 | S155: 1 | T155: 1 | U155: =IF(Control!$D58="yes",Scenarios!U$107,1) -> 1 | V155: =IF(Control!$D58="yes",Scenarios!V$107,1) -> 1 | W155: =IF(Control!$D58="yes",Scenarios!W$107,1) -> 1 | X155: =IF(Control!$D58="yes",Scenarios!X$107,1) -> 1 | Y155: =IF(Control!$D58="yes",Scenarios!Y$107,1) -> 1 | Z155: =IF(Control!$D58="yes",Scenarios!Z$107,1) -> 1 | AA155: =IF(Control!$D58="yes",Scenarios!AA$107,1) -> 1 | AB155: =IF(Control!$D58="yes",Scenarios!AB$107,1) -> 1 | AC155: =IF(Control!$D58="yes",Scenarios!AC$107,1) -> 1 | AD155: =IF(Control!$D58="yes",Scenarios!AD$107,1) -> 1 | AE155: =IF(Control!$D58="yes",Scenarios!AE$107,1) -> 1 | AF155: =IF(Control!$D58="yes",Scenarios!AF$107,1) -> 1 | AG155: =IF(Control!$D58="yes",Scenarios!AG$107,1) -> 1 | AH155: =IF(Control!$D58="yes",Scenarios!AH$107,1) -> 1 | AI155: =IF(Control!$D58="yes",Scenarios!AI$107,1) -> 1 | AJ155: =IF(Control!$D58="yes",Scenarios!AJ$107,1) -> 1 | AK155: =IF(Control!$D58="yes",Scenarios!AK$107,1) -> 1 | AL155: =IF(Control!$D58="yes",Scenarios!AL$107,1) -> 1 | AM155: =IF(Control!$D58="yes",Scenarios!AM$107,1) -> 1 | AN155: =IF(Control!$D58="yes",Scenarios!AN$107,1) -> 1 | AO155: =IF(Control!$D58="yes",Scenarios!AO$107,1) -> 1 | AP155: =IF(Control!$D58="yes",Scenarios!AP$107,1) -> 1 | AQ155: =IF(Control!$D58="yes",Scenarios!AQ$107,1) -> 1 | AR155: =IF(Control!$D58="yes",Scenarios!AR$107,1) -> 1 | AS155: =IF(Control!$D58="yes",Scenarios!AS$107,1) -> 1 | AT155: =IF(Control!$D58="yes",Scenarios!AT$107,1) -> 1 | AU155: =IF(Control!$D58="yes",Scenarios!AU$107,1) -> 1 | AV155: =IF(Control!$D58="yes",Scenarios!AV$107,1) -> 1 | AW155: =IF(Control!$D58="yes",Scenarios!AW$107,1) -> 1 | AX155: =IF(Control!$D58="yes",Scenarios!AX$107,1) -> 1 | AY155: =IF(Control!$D58="yes",Scenarios!AY$107,1) -> 1 | AZ155: =IF(Control!$D58="yes",Scenarios!AZ$107,1) -> 1 | BA155: =IF(Control!$D58="yes",Scenarios!BA$107,1) -> 1 | BB155: =IF(Control!$D58="yes",Scenarios!BB$107,1) -> 1 | BC155: =IF(Control!$D58="yes",Scenarios!BC$107,1) -> 1 | BD155: =IF(Control!$D58="yes",Scenarios!BD$107,1) -> 1 | BE155: =IF(Control!$D58="yes",Scenarios!BE$107,1) -> 1 | BF155: =IF(Control!$D58="yes",Scenarios!BF$107,1) -> 1 | BG155: =IF(Control!$D58="yes",Scenarios!BG$107,1) -> 1 | BH155: =IF(Control!$D58="yes",Scenarios!BH$107,1) -> 1 | BI155: =IF(Control!$D58="yes",Scenarios!BI$107,1) -> 1 | BJ155: =IF(Control!$D58="yes",Scenarios!BJ$107,1) -> 1 | BK155: =IF(Control!$D58="yes",Scenarios!BK$107,1) -> 1 | BL155: =IF(Control!$D58="yes",Scenarios!BL$107,1) -> 1 | BM155: =IF(Control!$D58="yes",Scenarios!BM$107,1) -> 1 | BN155: =IF(Control!$D58="yes",Scenarios!BN$107,1) -> 1 | BO155: =IF(Control!$D58="yes",Scenarios!BO$107,1) -> 1 | BP155: =IF(Control!$D58="yes",Scenarios!BP$107,1) -> 1 | BQ155: =IF(Control!$D58="yes",Scenarios!BQ$107,1) -> 1 | BR155: =IF(Control!$D58="yes",Scenarios!BR$107,1) -> 1 | BS155: =IF(Control!$D58="yes",Scenarios!BS$107,1) -> 1 | BT155: =IF(Control!$D58="yes",Scenarios!BT$107,1) -> 1 | BU155: =IF(Control!$D58="yes",Scenarios!BU$107,1) -> 1 | BV155: =IF(Control!$D58="yes",Scenarios!BV$107,1) -> 1 | BW155: =IF(Control!$D58="yes",Scenarios!BW$107,1) -> 1 | BX155: =IF(Control!$D58="yes",Scenarios!BX$107,1) -> 1 | BY155: =IF(Control!$D58="yes",Scenarios!BY$107,1) -> 1 | BZ155: =IF(Control!$D58="yes",Scenarios!BZ$107,1) -> 1 | CA155: =IF(Control!$D58="yes",Scenarios!CA$107,1) -> 1 | CB155: =IF(Control!$D58="yes",Scenarios!CB$107,1) -> 1 | CC155: =IF(Control!$D58="yes",Scenarios!CC$107,1) -> 1
A156: Hume (C) | B156: 1 | C156: 1 | D156: 1 | E156: 1 | F156: 1 | G156: 1 | H156: 1 | I156: 1 | J156: 1 | K156: 1 | L156: 1 | M156: 1 | N156: 1 | O156: 1 | P156: 1 | Q156: 1 | R156: 1 | S156: 1 | T156: 1 | U156: =IF(Control!$D59="yes",Scenarios!U$107,1) -> 0.9 | V156: =IF(Control!$D59="yes",Scenarios!V$107,1) -> 0.8 | W156: =IF(Control!$D59="yes",Scenarios!W$107,1) -> 0.7 | X156: =IF(Control!$D59="yes",Scenarios!X$107,1) -> 0.6 | Y156: =IF(Control!$D59="yes",Scenarios!Y$107,1) -> 0.5 | Z156: =IF(Control!$D59="yes",Scenarios!Z$107,1) -> 0.4 | AA156: =IF(Control!$D59="yes",Scenarios!AA$107,1) -> 0.3 | AB156: =IF(Control!$D59="yes",Scenarios!AB$107,1) -> 0.2 | AC156: =IF(Control!$D59="yes",Scenarios!AC$107,1) -> 0.1 | AD156: =IF(Control!$D59="yes",Scenarios!AD$107,1) -> 0 | AE156: =IF(Control!$D59="yes",Scenarios!AE$107,1) -> 0 | AF156: =IF(Control!$D59="yes",Scenarios!AF$107,1) -> 0 | AG156: =IF(Control!$D59="yes",Scenarios!AG$107,1) -> 0 | AH156: =IF(Control!$D59="yes",Scenarios!AH$107,1) -> 0 | AI156: =IF(Control!$D59="yes",Scenarios!AI$107,1) -> 0 | AJ156: =IF(Control!$D59="yes",Scenarios!AJ$107,1) -> 0 | AK156: =IF(Control!$D59="yes",Scenarios!AK$107,1) -> 0 | AL156: =IF(Control!$D59="yes",Scenarios!AL$107,1) -> 0 | AM156: =IF(Control!$D59="yes",Scenarios!AM$107,1) -> 0 | AN156: =IF(Control!$D59="yes",Scenarios!AN$107,1) -> 0 | AO156: =IF(Control!$D59="yes",Scenarios!AO$107,1) -> 0 | AP156: =IF(Control!$D59="yes",Scenarios!AP$107,1) -> 0 | AQ156: =IF(Control!$D59="yes",Scenarios!AQ$107,1) -> 0 | AR156: =IF(Control!$D59="yes",Scenarios!AR$107,1) -> 0 | AS156: =IF(Control!$D59="yes",Scenarios!AS$107,1) -> 0 | AT156: =IF(Control!$D59="yes",Scenarios!AT$107,1) -> 0 | AU156: =IF(Control!$D59="yes",Scenarios!AU$107,1) -> 0 | AV156: =IF(Control!$D59="yes",Scenarios!AV$107,1) -> 0 | AW156: =IF(Control!$D59="yes",Scenarios!AW$107,1) -> 0 | AX156: =IF(Control!$D59="yes",Scenarios!AX$107,1) -> 0 | AY156: =IF(Control!$D59="yes",Scenarios!AY$107,1) -> 0 | AZ156: =IF(Control!$D59="yes",Scenarios!AZ$107,1) -> 0 | BA156: =IF(Control!$D59="yes",Scenarios!BA$107,1) -> 0 | BB156: =IF(Control!$D59="yes",Scenarios!BB$107,1) -> 0 | BC156: =IF(Control!$D59="yes",Scenarios!BC$107,1) -> 0 | BD156: =IF(Control!$D59="yes",Scenarios!BD$107,1) -> 0 | BE156: =IF(Control!$D59="yes",Scenarios!BE$107,1) -> 0 | BF156: =IF(Control!$D59="yes",Scenarios!BF$107,1) -> 0 | BG156: =IF(Control!$D59="yes",Scenarios!BG$107,1) -> 0 | BH156: =IF(Control!$D59="yes",Scenarios!BH$107,1) -> 0 | BI156: =IF(Control!$D59="yes",Scenarios!BI$107,1) -> 0 | BJ156: =IF(Control!$D59="yes",Scenarios!BJ$107,1) -> 0 | BK156: =IF(Control!$D59="yes",Scenarios!BK$107,1) -> 0 | BL156: =IF(Control!$D59="yes",Scenarios!BL$107,1) -> 0 | BM156: =IF(Control!$D59="yes",Scenarios!BM$107,1) -> 0 | BN156: =IF(Control!$D59="yes",Scenarios!BN$107,1) -> 0 | BO156: =IF(Control!$D59="yes",Scenarios!BO$107,1) -> 0 | BP156: =IF(Control!$D59="yes",Scenarios!BP$107,1) -> 0 | BQ156: =IF(Control!$D59="yes",Scenarios!BQ$107,1) -> 0 | BR156: =IF(Control!$D59="yes",Scenarios!BR$107,1) -> 0 | BS156: =IF(Control!$D59="yes",Scenarios!BS$107,1) -> 0 | BT156: =IF(Control!$D59="yes",Scenarios!BT$107,1) -> 0 | BU156: =IF(Control!$D59="yes",Scenarios!BU$107,1) -> 0 | BV156: =IF(Control!$D59="yes",Scenarios!BV$107,1) -> 0 | BW156: =IF(Control!$D59="yes",Scenarios!BW$107,1) -> 0 | BX156: =IF(Control!$D59="yes",Scenarios!BX$107,1) -> 0 | BY156: =IF(Control!$D59="yes",Scenarios!BY$107,1) -> 0 | BZ156: =IF(Control!$D59="yes",Scenarios!BZ$107,1) -> 0 | CA156: =IF(Control!$D59="yes",Scenarios!CA$107,1) -> 0 | CB156: =IF(Control!$D59="yes",Scenarios!CB$107,1) -> 0 | CC156: =IF(Control!$D59="yes",Scenarios!CC$107,1) -> 0
A157: Macedon Ranges (S) | B157: 1 | C157: 1 | D157: 1 | E157: 1 | F157: 1 | G157: 1 | H157: 1 | I157: 1 | J157: 1 | K157: 1 | L157: 1 | M157: 1 | N157: 1 | O157: 1 | P157: 1 | Q157: 1 | R157: 1 | S157: 1 | T157: 1 | U157: =IF(Control!$D60="yes",Scenarios!U$107,1) -> 1 | V157: =IF(Control!$D60="yes",Scenarios!V$107,1) -> 1 | W157: =IF(Control!$D60="yes",Scenarios!W$107,1) -> 1 | X157: =IF(Control!$D60="yes",Scenarios!X$107,1) -> 1 | Y157: =IF(Control!$D60="yes",Scenarios!Y$107,1) -> 1 | Z157: =IF(Control!$D60="yes",Scenarios!Z$107,1) -> 1 | AA157: =IF(Control!$D60="yes",Scenarios!AA$107,1) -> 1 | AB157: =IF(Control!$D60="yes",Scenarios!AB$107,1) -> 1 | AC157: =IF(Control!$D60="yes",Scenarios!AC$107,1) -> 1 | AD157: =IF(Control!$D60="yes",Scenarios!AD$107,1) -> 1 | AE157: =IF(Control!$D60="yes",Scenarios!AE$107,1) -> 1 | AF157: =IF(Control!$D60="yes",Scenarios!AF$107,1) -> 1 | AG157: =IF(Control!$D60="yes",Scenarios!AG$107,1) -> 1 | AH157: =IF(Control!$D60="yes",Scenarios!AH$107,1) -> 1 | AI157: =IF(Control!$D60="yes",Scenarios!AI$107,1) -> 1 | AJ157: =IF(Control!$D60="yes",Scenarios!AJ$107,1) -> 1 | AK157: =IF(Control!$D60="yes",Scenarios!AK$107,1) -> 1 | AL157: =IF(Control!$D60="yes",Scenarios!AL$107,1) -> 1 | AM157: =IF(Control!$D60="yes",Scenarios!AM$107,1) -> 1 | AN157: =IF(Control!$D60="yes",Scenarios!AN$107,1) -> 1 | AO157: =IF(Control!$D60="yes",Scenarios!AO$107,1) -> 1 | AP157: =IF(Control!$D60="yes",Scenarios!AP$107,1) -> 1 | AQ157: =IF(Control!$D60="yes",Scenarios!AQ$107,1) -> 1 | AR157: =IF(Control!$D60="yes",Scenarios!AR$107,1) -> 1 | AS157: =IF(Control!$D60="yes",Scenarios!AS$107,1) -> 1 | AT157: =IF(Control!$D60="yes",Scenarios!AT$107,1) -> 1 | AU157: =IF(Control!$D60="yes",Scenarios!AU$107,1) -> 1 | AV157: =IF(Control!$D60="yes",Scenarios!AV$107,1) -> 1 | AW157: =IF(Control!$D60="yes",Scenarios!AW$107,1) -> 1 | AX157: =IF(Control!$D60="yes",Scenarios!AX$107,1) -> 1 | AY157: =IF(Control!$D60="yes",Scenarios!AY$107,1) -> 1 | AZ157: =IF(Control!$D60="yes",Scenarios!AZ$107,1) -> 1 | BA157: =IF(Control!$D60="yes",Scenarios!BA$107,1) -> 1 | BB157: =IF(Control!$D60="yes",Scenarios!BB$107,1) -> 1 | BC157: =IF(Control!$D60="yes",Scenarios!BC$107,1) -> 1 | BD157: =IF(Control!$D60="yes",Scenarios!BD$107,1) -> 1 | BE157: =IF(Control!$D60="yes",Scenarios!BE$107,1) -> 1 | BF157: =IF(Control!$D60="yes",Scenarios!BF$107,1) -> 1 | BG157: =IF(Control!$D60="yes",Scenarios!BG$107,1) -> 1 | BH157: =IF(Control!$D60="yes",Scenarios!BH$107,1) -> 1 | BI157: =IF(Control!$D60="yes",Scenarios!BI$107,1) -> 1 | BJ157: =IF(Control!$D60="yes",Scenarios!BJ$107,1) -> 1 | BK157: =IF(Control!$D60="yes",Scenarios!BK$107,1) -> 1 | BL157: =IF(Control!$D60="yes",Scenarios!BL$107,1) -> 1 | BM157: =IF(Control!$D60="yes",Scenarios!BM$107,1) -> 1 | BN157: =IF(Control!$D60="yes",Scenarios!BN$107,1) -> 1 | BO157: =IF(Control!$D60="yes",Scenarios!BO$107,1) -> 1 | BP157: =IF(Control!$D60="yes",Scenarios!BP$107,1) -> 1 | BQ157: =IF(Control!$D60="yes",Scenarios!BQ$107,1) -> 1 | BR157: =IF(Control!$D60="yes",Scenarios!BR$107,1) -> 1 | BS157: =IF(Control!$D60="yes",Scenarios!BS$107,1) -> 1 | BT157: =IF(Control!$D60="yes",Scenarios!BT$107,1) -> 1 | BU157: =IF(Control!$D60="yes",Scenarios!BU$107,1) -> 1 | BV157: =IF(Control!$D60="yes",Scenarios!BV$107,1) -> 1 | BW157: =IF(Control!$D60="yes",Scenarios!BW$107,1) -> 1 | BX157: =IF(Control!$D60="yes",Scenarios!BX$107,1) -> 1 | BY157: =IF(Control!$D60="yes",Scenarios!BY$107,1) -> 1 | BZ157: =IF(Control!$D60="yes",Scenarios!BZ$107,1) -> 1 | CA157: =IF(Control!$D60="yes",Scenarios!CA$107,1) -> 1 | CB157: =IF(Control!$D60="yes",Scenarios!CB$107,1) -> 1 | CC157: =IF(Control!$D60="yes",Scenarios!CC$107,1) -> 1
A158: Maribyrnong (C) | B158: 1 | C158: 1 | D158: 1 | E158: 1 | F158: 1 | G158: 1 | H158: 1 | I158: 1 | J158: 1 | K158: 1 | L158: 1 | M158: 1 | N158: 1 | O158: 1 | P158: 1 | Q158: 1 | R158: 1 | S158: 1 | T158: 1 | U158: =IF(Control!$D61="yes",Scenarios!U$107,1) -> 1 | V158: =IF(Control!$D61="yes",Scenarios!V$107,1) -> 1 | W158: =IF(Control!$D61="yes",Scenarios!W$107,1) -> 1 | X158: =IF(Control!$D61="yes",Scenarios!X$107,1) -> 1 | Y158: =IF(Control!$D61="yes",Scenarios!Y$107,1) -> 1 | Z158: =IF(Control!$D61="yes",Scenarios!Z$107,1) -> 1 | AA158: =IF(Control!$D61="yes",Scenarios!AA$107,1) -> 1 | AB158: =IF(Control!$D61="yes",Scenarios!AB$107,1) -> 1 | AC158: =IF(Control!$D61="yes",Scenarios!AC$107,1) -> 1 | AD158: =IF(Control!$D61="yes",Scenarios!AD$107,1) -> 1 | AE158: =IF(Control!$D61="yes",Scenarios!AE$107,1) -> 1 | AF158: =IF(Control!$D61="yes",Scenarios!AF$107,1) -> 1 | AG158: =IF(Control!$D61="yes",Scenarios!AG$107,1) -> 1 | AH158: =IF(Control!$D61="yes",Scenarios!AH$107,1) -> 1 | AI158: =IF(Control!$D61="yes",Scenarios!AI$107,1) -> 1 | AJ158: =IF(Control!$D61="yes",Scenarios!AJ$107,1) -> 1 | AK158: =IF(Control!$D61="yes",Scenarios!AK$107,1) -> 1 | AL158: =IF(Control!$D61="yes",Scenarios!AL$107,1) -> 1 | AM158: =IF(Control!$D61="yes",Scenarios!AM$107,1) -> 1 | AN158: =IF(Control!$D61="yes",Scenarios!AN$107,1) -> 1 | AO158: =IF(Control!$D61="yes",Scenarios!AO$107,1) -> 1 | AP158: =IF(Control!$D61="yes",Scenarios!AP$107,1) -> 1 | AQ158: =IF(Control!$D61="yes",Scenarios!AQ$107,1) -> 1 | AR158: =IF(Control!$D61="yes",Scenarios!AR$107,1) -> 1 | AS158: =IF(Control!$D61="yes",Scenarios!AS$107,1) -> 1 | AT158: =IF(Control!$D61="yes",Scenarios!AT$107,1) -> 1 | AU158: =IF(Control!$D61="yes",Scenarios!AU$107,1) -> 1 | AV158: =IF(Control!$D61="yes",Scenarios!AV$107,1) -> 1 | AW158: =IF(Control!$D61="yes",Scenarios!AW$107,1) -> 1 | AX158: =IF(Control!$D61="yes",Scenarios!AX$107,1) -> 1 | AY158: =IF(Control!$D61="yes",Scenarios!AY$107,1) -> 1 | AZ158: =IF(Control!$D61="yes",Scenarios!AZ$107,1) -> 1 | BA158: =IF(Control!$D61="yes",Scenarios!BA$107,1) -> 1 | BB158: =IF(Control!$D61="yes",Scenarios!BB$107,1) -> 1 | BC158: =IF(Control!$D61="yes",Scenarios!BC$107,1) -> 1 | BD158: =IF(Control!$D61="yes",Scenarios!BD$107,1) -> 1 | BE158: =IF(Control!$D61="yes",Scenarios!BE$107,1) -> 1 | BF158: =IF(Control!$D61="yes",Scenarios!BF$107,1) -> 1 | BG158: =IF(Control!$D61="yes",Scenarios!BG$107,1) -> 1 | BH158: =IF(Control!$D61="yes",Scenarios!BH$107,1) -> 1 | BI158: =IF(Control!$D61="yes",Scenarios!BI$107,1) -> 1 | BJ158: =IF(Control!$D61="yes",Scenarios!BJ$107,1) -> 1 | BK158: =IF(Control!$D61="yes",Scenarios!BK$107,1) -> 1 | BL158: =IF(Control!$D61="yes",Scenarios!BL$107,1) -> 1 | BM158: =IF(Control!$D61="yes",Scenarios!BM$107,1) -> 1 | BN158: =IF(Control!$D61="yes",Scenarios!BN$107,1) -> 1 | BO158: =IF(Control!$D61="yes",Scenarios!BO$107,1) -> 1 | BP158: =IF(Control!$D61="yes",Scenarios!BP$107,1) -> 1 | BQ158: =IF(Control!$D61="yes",Scenarios!BQ$107,1) -> 1 | BR158: =IF(Control!$D61="yes",Scenarios!BR$107,1) -> 1 | BS158: =IF(Control!$D61="yes",Scenarios!BS$107,1) -> 1 | BT158: =IF(Control!$D61="yes",Scenarios!BT$107,1) -> 1 | BU158: =IF(Control!$D61="yes",Scenarios!BU$107,1) -> 1 | BV158: =IF(Control!$D61="yes",Scenarios!BV$107,1) -> 1 | BW158: =IF(Control!$D61="yes",Scenarios!BW$107,1) -> 1 | BX158: =IF(Control!$D61="yes",Scenarios!BX$107,1) -> 1 | BY158: =IF(Control!$D61="yes",Scenarios!BY$107,1) -> 1 | BZ158: =IF(Control!$D61="yes",Scenarios!BZ$107,1) -> 1 | CA158: =IF(Control!$D61="yes",Scenarios!CA$107,1) -> 1 | CB158: =IF(Control!$D61="yes",Scenarios!CB$107,1) -> 1 | CC158: =IF(Control!$D61="yes",Scenarios!CC$107,1) -> 1
A159: Melbourne (C) | B159: 1 | C159: 1 | D159: 1 | E159: 1 | F159: 1 | G159: 1 | H159: 1 | I159: 1 | J159: 1 | K159: 1 | L159: 1 | M159: 1 | N159: 1 | O159: 1 | P159: 1 | Q159: 1 | R159: 1 | S159: 1 | T159: 1 | U159: =IF(Control!$D62="yes",Scenarios!U$107,1) -> 1 | V159: =IF(Control!$D62="yes",Scenarios!V$107,1) -> 1 | W159: =IF(Control!$D62="yes",Scenarios!W$107,1) -> 1 | X159: =IF(Control!$D62="yes",Scenarios!X$107,1) -> 1 | Y159: =IF(Control!$D62="yes",Scenarios!Y$107,1) -> 1 | Z159: =IF(Control!$D62="yes",Scenarios!Z$107,1) -> 1 | AA159: =IF(Control!$D62="yes",Scenarios!AA$107,1) -> 1 | AB159: =IF(Control!$D62="yes",Scenarios!AB$107,1) -> 1 | AC159: =IF(Control!$D62="yes",Scenarios!AC$107,1) -> 1 | AD159: =IF(Control!$D62="yes",Scenarios!AD$107,1) -> 1 | AE159: =IF(Control!$D62="yes",Scenarios!AE$107,1) -> 1 | AF159: =IF(Control!$D62="yes",Scenarios!AF$107,1) -> 1 | AG159: =IF(Control!$D62="yes",Scenarios!AG$107,1) -> 1 | AH159: =IF(Control!$D62="yes",Scenarios!AH$107,1) -> 1 | AI159: =IF(Control!$D62="yes",Scenarios!AI$107,1) -> 1 | AJ159: =IF(Control!$D62="yes",Scenarios!AJ$107,1) -> 1 | AK159: =IF(Control!$D62="yes",Scenarios!AK$107,1) -> 1 | AL159: =IF(Control!$D62="yes",Scenarios!AL$107,1) -> 1 | AM159: =IF(Control!$D62="yes",Scenarios!AM$107,1) -> 1 | AN159: =IF(Control!$D62="yes",Scenarios!AN$107,1) -> 1 | AO159: =IF(Control!$D62="yes",Scenarios!AO$107,1) -> 1 | AP159: =IF(Control!$D62="yes",Scenarios!AP$107,1) -> 1 | AQ159: =IF(Control!$D62="yes",Scenarios!AQ$107,1) -> 1 | AR159: =IF(Control!$D62="yes",Scenarios!AR$107,1) -> 1 | AS159: =IF(Control!$D62="yes",Scenarios!AS$107,1) -> 1 | AT159: =IF(Control!$D62="yes",Scenarios!AT$107,1) -> 1 | AU159: =IF(Control!$D62="yes",Scenarios!AU$107,1) -> 1 | AV159: =IF(Control!$D62="yes",Scenarios!AV$107,1) -> 1 | AW159: =IF(Control!$D62="yes",Scenarios!AW$107,1) -> 1 | AX159: =IF(Control!$D62="yes",Scenarios!AX$107,1) -> 1 | AY159: =IF(Control!$D62="yes",Scenarios!AY$107,1) -> 1 | AZ159: =IF(Control!$D62="yes",Scenarios!AZ$107,1) -> 1 | BA159: =IF(Control!$D62="yes",Scenarios!BA$107,1) -> 1 | BB159: =IF(Control!$D62="yes",Scenarios!BB$107,1) -> 1 | BC159: =IF(Control!$D62="yes",Scenarios!BC$107,1) -> 1 | BD159: =IF(Control!$D62="yes",Scenarios!BD$107,1) -> 1 | BE159: =IF(Control!$D62="yes",Scenarios!BE$107,1) -> 1 | BF159: =IF(Control!$D62="yes",Scenarios!BF$107,1) -> 1 | BG159: =IF(Control!$D62="yes",Scenarios!BG$107,1) -> 1 | BH159: =IF(Control!$D62="yes",Scenarios!BH$107,1) -> 1 | BI159: =IF(Control!$D62="yes",Scenarios!BI$107,1) -> 1 | BJ159: =IF(Control!$D62="yes",Scenarios!BJ$107,1) -> 1 | BK159: =IF(Control!$D62="yes",Scenarios!BK$107,1) -> 1 | BL159: =IF(Control!$D62="yes",Scenarios!BL$107,1) -> 1 | BM159: =IF(Control!$D62="yes",Scenarios!BM$107,1) -> 1 | BN159: =IF(Control!$D62="yes",Scenarios!BN$107,1) -> 1 | BO159: =IF(Control!$D62="yes",Scenarios!BO$107,1) -> 1 | BP159: =IF(Control!$D62="yes",Scenarios!BP$107,1) -> 1 | BQ159: =IF(Control!$D62="yes",Scenarios!BQ$107,1) -> 1 | BR159: =IF(Control!$D62="yes",Scenarios!BR$107,1) -> 1 | BS159: =IF(Control!$D62="yes",Scenarios!BS$107,1) -> 1 | BT159: =IF(Control!$D62="yes",Scenarios!BT$107,1) -> 1 | BU159: =IF(Control!$D62="yes",Scenarios!BU$107,1) -> 1 | BV159: =IF(Control!$D62="yes",Scenarios!BV$107,1) -> 1 | BW159: =IF(Control!$D62="yes",Scenarios!BW$107,1) -> 1 | BX159: =IF(Control!$D62="yes",Scenarios!BX$107,1) -> 1 | BY159: =IF(Control!$D62="yes",Scenarios!BY$107,1) -> 1 | BZ159: =IF(Control!$D62="yes",Scenarios!BZ$107,1) -> 1 | CA159: =IF(Control!$D62="yes",Scenarios!CA$107,1) -> 1 | CB159: =IF(Control!$D62="yes",Scenarios!CB$107,1) -> 1 | CC159: =IF(Control!$D62="yes",Scenarios!CC$107,1) -> 1
A160: Melton (S) | B160: 1 | C160: 1 | D160: 1 | E160: 1 | F160: 1 | G160: 1 | H160: 1 | I160: 1 | J160: 1 | K160: 1 | L160: 1 | M160: 1 | N160: 1 | O160: 1 | P160: 1 | Q160: 1 | R160: 1 | S160: 1 | T160: 1 | U160: =IF(Control!$D63="yes",Scenarios!U$107,1) -> 1 | V160: =IF(Control!$D63="yes",Scenarios!V$107,1) -> 1 | W160: =IF(Control!$D63="yes",Scenarios!W$107,1) -> 1 | X160: =IF(Control!$D63="yes",Scenarios!X$107,1) -> 1 | Y160: =IF(Control!$D63="yes",Scenarios!Y$107,1) -> 1 | Z160: =IF(Control!$D63="yes",Scenarios!Z$107,1) -> 1 | AA160: =IF(Control!$D63="yes",Scenarios!AA$107,1) -> 1 | AB160: =IF(Control!$D63="yes",Scenarios!AB$107,1) -> 1 | AC160: =IF(Control!$D63="yes",Scenarios!AC$107,1) -> 1 | AD160: =IF(Control!$D63="yes",Scenarios!AD$107,1) -> 1 | AE160: =IF(Control!$D63="yes",Scenarios!AE$107,1) -> 1 | AF160: =IF(Control!$D63="yes",Scenarios!AF$107,1) -> 1 | AG160: =IF(Control!$D63="yes",Scenarios!AG$107,1) -> 1 | AH160: =IF(Control!$D63="yes",Scenarios!AH$107,1) -> 1 | AI160: =IF(Control!$D63="yes",Scenarios!AI$107,1) -> 1 | AJ160: =IF(Control!$D63="yes",Scenarios!AJ$107,1) -> 1 | AK160: =IF(Control!$D63="yes",Scenarios!AK$107,1) -> 1 | AL160: =IF(Control!$D63="yes",Scenarios!AL$107,1) -> 1 | AM160: =IF(Control!$D63="yes",Scenarios!AM$107,1) -> 1 | AN160: =IF(Control!$D63="yes",Scenarios!AN$107,1) -> 1 | AO160: =IF(Control!$D63="yes",Scenarios!AO$107,1) -> 1 | AP160: =IF(Control!$D63="yes",Scenarios!AP$107,1) -> 1 | AQ160: =IF(Control!$D63="yes",Scenarios!AQ$107,1) -> 1 | AR160: =IF(Control!$D63="yes",Scenarios!AR$107,1) -> 1 | AS160: =IF(Control!$D63="yes",Scenarios!AS$107,1) -> 1 | AT160: =IF(Control!$D63="yes",Scenarios!AT$107,1) -> 1 | AU160: =IF(Control!$D63="yes",Scenarios!AU$107,1) -> 1 | AV160: =IF(Control!$D63="yes",Scenarios!AV$107,1) -> 1 | AW160: =IF(Control!$D63="yes",Scenarios!AW$107,1) -> 1 | AX160: =IF(Control!$D63="yes",Scenarios!AX$107,1) -> 1 | AY160: =IF(Control!$D63="yes",Scenarios!AY$107,1) -> 1 | AZ160: =IF(Control!$D63="yes",Scenarios!AZ$107,1) -> 1 | BA160: =IF(Control!$D63="yes",Scenarios!BA$107,1) -> 1 | BB160: =IF(Control!$D63="yes",Scenarios!BB$107,1) -> 1 | BC160: =IF(Control!$D63="yes",Scenarios!BC$107,1) -> 1 | BD160: =IF(Control!$D63="yes",Scenarios!BD$107,1) -> 1 | BE160: =IF(Control!$D63="yes",Scenarios!BE$107,1) -> 1 | BF160: =IF(Control!$D63="yes",Scenarios!BF$107,1) -> 1 | BG160: =IF(Control!$D63="yes",Scenarios!BG$107,1) -> 1 | BH160: =IF(Control!$D63="yes",Scenarios!BH$107,1) -> 1 | BI160: =IF(Control!$D63="yes",Scenarios!BI$107,1) -> 1 | BJ160: =IF(Control!$D63="yes",Scenarios!BJ$107,1) -> 1 | BK160: =IF(Control!$D63="yes",Scenarios!BK$107,1) -> 1 | BL160: =IF(Control!$D63="yes",Scenarios!BL$107,1) -> 1 | BM160: =IF(Control!$D63="yes",Scenarios!BM$107,1) -> 1 | BN160: =IF(Control!$D63="yes",Scenarios!BN$107,1) -> 1 | BO160: =IF(Control!$D63="yes",Scenarios!BO$107,1) -> 1 | BP160: =IF(Control!$D63="yes",Scenarios!BP$107,1) -> 1 | BQ160: =IF(Control!$D63="yes",Scenarios!BQ$107,1) -> 1 | BR160: =IF(Control!$D63="yes",Scenarios!BR$107,1) -> 1 | BS160: =IF(Control!$D63="yes",Scenarios!BS$107,1) -> 1 | BT160: =IF(Control!$D63="yes",Scenarios!BT$107,1) -> 1 | BU160: =IF(Control!$D63="yes",Scenarios!BU$107,1) -> 1 | BV160: =IF(Control!$D63="yes",Scenarios!BV$107,1) -> 1 | BW160: =IF(Control!$D63="yes",Scenarios!BW$107,1) -> 1 | BX160: =IF(Control!$D63="yes",Scenarios!BX$107,1) -> 1 | BY160: =IF(Control!$D63="yes",Scenarios!BY$107,1) -> 1 | BZ160: =IF(Control!$D63="yes",Scenarios!BZ$107,1) -> 1 | CA160: =IF(Control!$D63="yes",Scenarios!CA$107,1) -> 1 | CB160: =IF(Control!$D63="yes",Scenarios!CB$107,1) -> 1 | CC160: =IF(Control!$D63="yes",Scenarios!CC$107,1) -> 1
A161: Moonee Valley (C) | B161: 1 | C161: 1 | D161: 1 | E161: 1 | F161: 1 | G161: 1 | H161: 1 | I161: 1 | J161: 1 | K161: 1 | L161: 1 | M161: 1 | N161: 1 | O161: 1 | P161: 1 | Q161: 1 | R161: 1 | S161: 1 | T161: 1 | U161: =IF(Control!$D64="yes",Scenarios!U$107,1) -> 0.9 | V161: =IF(Control!$D64="yes",Scenarios!V$107,1) -> 0.8 | W161: =IF(Control!$D64="yes",Scenarios!W$107,1) -> 0.7 | X161: =IF(Control!$D64="yes",Scenarios!X$107,1) -> 0.6 | Y161: =IF(Control!$D64="yes",Scenarios!Y$107,1) -> 0.5 | Z161: =IF(Control!$D64="yes",Scenarios!Z$107,1) -> 0.4 | AA161: =IF(Control!$D64="yes",Scenarios!AA$107,1) -> 0.3 | AB161: =IF(Control!$D64="yes",Scenarios!AB$107,1) -> 0.2 | AC161: =IF(Control!$D64="yes",Scenarios!AC$107,1) -> 0.1 | AD161: =IF(Control!$D64="yes",Scenarios!AD$107,1) -> 0 | AE161: =IF(Control!$D64="yes",Scenarios!AE$107,1) -> 0 | AF161: =IF(Control!$D64="yes",Scenarios!AF$107,1) -> 0 | AG161: =IF(Control!$D64="yes",Scenarios!AG$107,1) -> 0 | AH161: =IF(Control!$D64="yes",Scenarios!AH$107,1) -> 0 | AI161: =IF(Control!$D64="yes",Scenarios!AI$107,1) -> 0 | AJ161: =IF(Control!$D64="yes",Scenarios!AJ$107,1) -> 0 | AK161: =IF(Control!$D64="yes",Scenarios!AK$107,1) -> 0 | AL161: =IF(Control!$D64="yes",Scenarios!AL$107,1) -> 0 | AM161: =IF(Control!$D64="yes",Scenarios!AM$107,1) -> 0 | AN161: =IF(Control!$D64="yes",Scenarios!AN$107,1) -> 0 | AO161: =IF(Control!$D64="yes",Scenarios!AO$107,1) -> 0 | AP161: =IF(Control!$D64="yes",Scenarios!AP$107,1) -> 0 | AQ161: =IF(Control!$D64="yes",Scenarios!AQ$107,1) -> 0 | AR161: =IF(Control!$D64="yes",Scenarios!AR$107,1) -> 0 | AS161: =IF(Control!$D64="yes",Scenarios!AS$107,1) -> 0 | AT161: =IF(Control!$D64="yes",Scenarios!AT$107,1) -> 0 | AU161: =IF(Control!$D64="yes",Scenarios!AU$107,1) -> 0 | AV161: =IF(Control!$D64="yes",Scenarios!AV$107,1) -> 0 | AW161: =IF(Control!$D64="yes",Scenarios!AW$107,1) -> 0 | AX161: =IF(Control!$D64="yes",Scenarios!AX$107,1) -> 0 | AY161: =IF(Control!$D64="yes",Scenarios!AY$107,1) -> 0 | AZ161: =IF(Control!$D64="yes",Scenarios!AZ$107,1) -> 0 | BA161: =IF(Control!$D64="yes",Scenarios!BA$107,1) -> 0 | BB161: =IF(Control!$D64="yes",Scenarios!BB$107,1) -> 0 | BC161: =IF(Control!$D64="yes",Scenarios!BC$107,1) -> 0 | BD161: =IF(Control!$D64="yes",Scenarios!BD$107,1) -> 0 | BE161: =IF(Control!$D64="yes",Scenarios!BE$107,1) -> 0 | BF161: =IF(Control!$D64="yes",Scenarios!BF$107,1) -> 0 | BG161: =IF(Control!$D64="yes",Scenarios!BG$107,1) -> 0 | BH161: =IF(Control!$D64="yes",Scenarios!BH$107,1) -> 0 | BI161: =IF(Control!$D64="yes",Scenarios!BI$107,1) -> 0 | BJ161: =IF(Control!$D64="yes",Scenarios!BJ$107,1) -> 0 | BK161: =IF(Control!$D64="yes",Scenarios!BK$107,1) -> 0 | BL161: =IF(Control!$D64="yes",Scenarios!BL$107,1) -> 0 | BM161: =IF(Control!$D64="yes",Scenarios!BM$107,1) -> 0 | BN161: =IF(Control!$D64="yes",Scenarios!BN$107,1) -> 0 | BO161: =IF(Control!$D64="yes",Scenarios!BO$107,1) -> 0 | BP161: =IF(Control!$D64="yes",Scenarios!BP$107,1) -> 0 | BQ161: =IF(Control!$D64="yes",Scenarios!BQ$107,1) -> 0 | BR161: =IF(Control!$D64="yes",Scenarios!BR$107,1) -> 0 | BS161: =IF(Control!$D64="yes",Scenarios!BS$107,1) -> 0 | BT161: =IF(Control!$D64="yes",Scenarios!BT$107,1) -> 0 | BU161: =IF(Control!$D64="yes",Scenarios!BU$107,1) -> 0 | BV161: =IF(Control!$D64="yes",Scenarios!BV$107,1) -> 0 | BW161: =IF(Control!$D64="yes",Scenarios!BW$107,1) -> 0 | BX161: =IF(Control!$D64="yes",Scenarios!BX$107,1) -> 0 | BY161: =IF(Control!$D64="yes",Scenarios!BY$107,1) -> 0 | BZ161: =IF(Control!$D64="yes",Scenarios!BZ$107,1) -> 0 | CA161: =IF(Control!$D64="yes",Scenarios!CA$107,1) -> 0 | CB161: =IF(Control!$D64="yes",Scenarios!CB$107,1) -> 0 | CC161: =IF(Control!$D64="yes",Scenarios!CC$107,1) -> 0
